Workbook

Sheet INDICE
F1: ÁSIA - DÉCADA
F2: Trocas comerciais com Portugal (PT) 2009-2018 Agroalimentar, Mar & Florestas
C3: Fonte
D4: Estatísticas do Comércio Internacional | F4: 1. Ásia - Síntese
D5: dados: 2017 provisórios; 2018 preliminares | F5: 2. Evolução da balança comercial
F6: 3. Principais transações de Agroalimentar, Mar & Florestas (NC 2 e 4 dígitos)
C7: Data | D7: 2019-11-26T14:40:28.720 | F7: 3A Principais produtos agrícolas e agroalimentares transacionados (NC 2D)
F8: 3B Principais origens/destinos para Agroalimentar, Mar & Florestas
F9: 3C Principais origens/destinos produtos agrícolas e agroalimentares
F10: 4. Evolução da balança comercial por país e produto
F11: 4A Evolução da balança comercial por produto
F12: 5.1. Trocas comerciais por país
F13: 5.1A Trocas comerciais por país (produtos agrícolas e agroalimentares)
F14: 5.2. Trocas comerciais por produto (NC 2 dígitos)
C23: Lista de países
D24: Afeganistão, Arábia Saudita, Arménia, Azerbaijão, Bangladesh, Bahrein, Brunei, Butão, Camboja, Catar, Cazaquistão, República Popular da China (e Macau e Hong Kong), Coreia do Norte, Coreia do Sul, Estado da Palestina (Territórios Ocupados), Emirados Árabes Unidos, Filipinas, Geórgia, Iémen, Índia, Indonésia, Irão, Iraque, Israel, Japão, Jordânia, Kuwait, Laos, Líbano, Malásia, Maldivas, Mongólia, Myanmar, Nepal, Omã, Paquistão, Quirguizistão, Rússia, Singapura, Síria, Sri Lanca, Tailândia, Taiwan, Tajiquistão, Timor-Leste, Turquemenistão, Uzbequistão, Vietname

Sheet 1
A1: Ásia - Síntese para Agroalimentar, Mar & Florestas 2009-2018
A3: • As trocas comerciais de bens transacionáveis (excluindo serviços) entre Portugal e Ásia representam um total de 2,1 mil milhões de € em exportações e 6,6 mil milhões de € em importações, na média do período 2009-2018, correspondendo a um saldo negativo da balança comercial de cerca de -4,6 mil milhões.
A4: • No que respeita aos produtos dos setores agrícola e agroalimentar, mar e florestas, Portugal exportou para Ásia 0,5 mil milhões de € em média anual, no mesmo período, enquanto as importações ascenderam a 0,4 mil milhões de € . Estes setores representam perto de 23,3% do total de exportações de bens transacionáveis e as importações 6,1% das correspondentes importações. Se nos referirmos apenas ao setor agrícola e agroalimentar, as exportações representam, em média, 215 milhões de € e as importações 150 milhões.
A5: • As principais exportações do setor Agroalimentar, Mar & Florestas (NC 4 dígitos) neste período são Cortiça aglomerada e suas obras (12%), Papel e cartão p/ escrita, etc. (10%) e Tomates preparados (9%). As importações mais relevantes do mesmo setor referem-se a Moluscos (11%), Peixes congelados (10%) e Crustáceos (10%).
A6: • Os principais destinos das exportações do setor Agroalimentar, Mar & Florestas no mesmo período são China (25%), Rússia (14%) e Israel (11%). As principais origens das importações são China (32%), Índia (14%) e Vietname (14%).
A8: Trocas PT-Ásia (milhões de euros) Agroalimentar, Mar & Florestas | H8: Trocas PT-Ásia (milhões de euros) produtos agrícolas e agroalimentares
B10: 2016 | C10: 2017 | D10: 2018 | E10: média 2009-2018 | F10: TVMA* 2009-2018 | G10: TVT* 2009-2018 | I10: 2016 | J10: 2017 | K10: 2018 | L10: média 2009-2018 | M10: TVMA* 2009-2018 | N10: TVT* 2009-2018
A11: Exportações | B11: 630.739005 | C11: 761.992172 | D11: 747.211781 | E11: 480.7536782 | F11: 0.1319384065 | G11: 2.453249495 | H11: Exportações | I11: 312.822448 | J11: 407.737549 | K11: 396.087517 | L11: 214.9455795 | M11: 0.1534223188 | N11: 3.167575802
A12: Importações | B12: 446.900634 | C12: 534.423731 | D12: 585.120632 | E12: 407.721987 | F12: 0.06816308655 | G12: 0.9336401536 | H12: Importações | I12: 157.402361 | J12: 203.84837 | K12: 199.488004 | L12: 149.8998103 | M12: 0.05824489107 | N12: 0.7614154643
A13: Saldo | B13: 183.838371 | C13: 227.568441 | D13: 162.091149 | E13: 73.0316912 | H13: Saldo | I13: 155.420087 | J13: 203.889179 | K13: 196.599513 | L13: 65.0457692
A14: *TVMA - Taxa de variação média anual; TVT - Taxa de variação total
C15: Saldo da Balança Comercial PT-Ásia (milhões de euros)
C16: 2009 | D16: 2010 | E16: 2011 | F16: 2012 | G16: 2013 | H16: 2014 | I16: 2015 | J16: 2016 | K16: 2017 | L16: 2018 | M16: média 2009-2018
A17: Total bens transacionáveis* | C17: -3092.921572 | D17: -4186.883614 | E17: -4600.108594 | F17: -3711.795649 | G17: -4067.648081 | H17: -4422.097047 | I17: -4082.273757 | J17: -4519.940454 | K17: -6171.015791 | L17: -6952.2515 | M17: -4580.693606
A18: Agrícola e Agroalimentar (AA) | C18: -18.214106 | D18: 8.67632 | E18: -19.092151 | F18: -11.746171 | G18: 47.408843 | H18: 14.174502 | I18: 73.341676 | J18: 155.420087 | K18: 203.889179 | L18: 196.599513 | M18: 65.0457692
B19: Mar (M) | C19: -139.941942 | D19: -151.357516 | E19: -163.12968 | F19: -170.533767 | G19: -160.133935 | H19: -181.82514 | I19: -185.595467 | J19: -216.918501 | K19: -247.123215 | L19: -292.29699 | M19: -190.8856153
B20: Florestas (F) | C20: 71.934789 | D20: 84.926426 | E20: 213.107383 | F20: 212.512718 | G20: 227.063041 | H20: 200.179398 | I20: 205.06373 | J20: 245.336785 | K20: 270.802477 | L20: 257.788626 | M20: 198.8715373
B21: AA + M + F | C21: -86.221259 | D21: -57.75477 | E21: 30.885552 | F21: 30.23278 | G21: 114.337949 | H21: 32.52876 | I21: 92.809939 | J21: 183.838371 | K21: 227.568441 | L21: 162.091149 | M21: 73.0316912
B22: *exclui serviços
A23: Evolução das trocas comerciais PT-Ásia (em milhões de euros 2009-2018)
F32: Exportações | H32: Importações | J32: Saldo
A33: Principais transações de Agroalimentar, Mar & Florestas (NC 2 dígitos)
A52: Principais origens e destinos em Ásia para Agroalimentar, Mar & Florestas (média 2009-2018)
A67: Principais transações de Agroalimentar, Mar & Florestas (NC 4 dígitos - média 2009-2018)
A89: Fonte: GPP a partir de dados INE/Comércio Internacional (2017 provisórios; 2018 preliminares) | L89: 2019-11-26T14:40:28.720

Sheet 2
A1: Evolução da balança comercial Portugal-Ásia 2009-2018 em milhões de euros
A3: Total de Bens Transacionáveis (BT)(1) | B3: 2009 | C3: 2010 | D3: 2011 | E3: 2012 | F3: 2013 | G3: 2014 | H3: 2015 | I3: 2016 | J3: 2017 | K3: 2018 | L3: média período | M3: var. 09/10 | N3: var. 10/11 | O3: var. 11/12 | P3: var. 12/13 | Q3: var. 13/14 | R3: var. 14/15 | S3: var. 15/16 | T3: var. 16/17 | U3: var. 17/18 | V3: TVMA* 2009-2018 | W3: TVT* 2009-2018
A4: Exportações | B4: 1004.472514 | C4: 1220.306678 | D4: 1644.34104 | E4: 2204.618799 | F4: 2174.837503 | G4: 2198.549357 | H4: 2351.230798 | I4: 2336.82588 | J4: 2905.702828 | K4: 2608.014155 | L4: 2064.889955 | M4: 0.2148731409 | N4: 0.3474818008 | O4: 0.3407308736 | P4: -0.01350859206 | Q4: 0.0109028164 | R4: 0.06944644682 | S4: -0.006126543601 | T4: 0.2434400239 | U4: -0.1024497998 | V4: 0.1001127262 | W4: 1.596401712
A5: Importações | B5: 4097.394086 | C5: 5407.190292 | D5: 6244.449634 | E5: 5916.414448 | F5: 6242.485584 | G5: 6620.646404 | H5: 6433.504555 | I5: 6856.766334 | J5: 9076.718619 | K5: 9560.265655 | L5: 6645.583561 | M5: 0.3196656652 | N5: 0.1548418489 | O5: -0.0525322815 | P5: 0.05511296392 | Q5: 0.06057856521 | R5: -0.02826640143 | S5: 0.06579023538 | T5: 0.3237608191 | U5: 0.05327333107 | V5: 0.08841927059 | W5: 1.333255102
A6: Saldo (exp-imp) | B6: -3092.921572 | C6: -4186.883614 | D6: -4600.108594 | E6: -3711.795649 | F6: -4067.648081 | G6: -4422.097047 | H6: -4082.273757 | I6: -4519.940454 | J6: -6171.015791 | K6: -6952.2515 | L6: -4580.693606
A7: Cobertura (exp/imp) | B7: 0.2451491101 | C7: 0.2256822143 | D7: 0.2633284175 | E7: 0.3726275126 | F7: 0.3483928755 | G7: 0.3320747285 | H7: 0.365466563 | I7: 0.340805821 | J7: 0.320127014 | K7: 0.2727972474 | L7: 0.3107161224
A8: Exp BT Ásia / Exp BT Mundo | B8: 0.03182285152 | C8: 0.03283982398 | D8: 0.03838449945 | E8: 0.04875115319 | F8: 0.04596173903 | G8: 0.04574572895 | H8: 0.04735502059 | I8: 0.04669294393 | J8: 0.05280462851 | K8: 0.04511172188 | L8: 0.04443484373 | V8: Exportações
A9: Imp BT Ásia / Imp BT Mundo | B9: 0.07987287633 | C9: 0.09233080663 | D9: 0.1048579932 | E9: 0.104949192 | F9: 0.1094926554 | G9: 0.1121532875 | H9: 0.1066124107 | I9: 0.1116300578 | J9: 0.1302468872 | K9: 0.1268546841 | L9: 0.1091849184 | V9: Importações
A10: Exp BT Ásia / Exp TE Mundo | B10: 0.02114117378 | C10: 0.02270300583 | D10: 0.02721974186 | E10: 0.03471630964 | F10: 0.03232328433 | G10: 0.03169749605 | H10: 0.03236490014 | I10: 0.03131670756 | J10: 0.03496698643 | K10: 0.02968107173 | L10: 0.03036359225
A11: Imp BT Ásia / Imp TE Mundo | B11: 0.06868468728 | C11: 0.08028421501 | D11: 0.09189509529 | E11: 0.09192832393 | F11: 0.09519944912 | G11: 0.0959051931 | H11: 0.08985267266 | I11: 0.09451982395 | J11: 0.1113183817 | K11: 0.109156899 | L11: 0.09397201491
A12: (1) Todos os produtos transacionados entre PT e Ásia (exclui serviços) | D12: TE - Total da Economia (bens e serviços) Fonte: INE/Contas Nacionais | M12: *TVMA - Taxa de variação média anual; TVT - Taxa de variação total
A24: Agro(1) + Mar + Florestas (AMF) | B24: 2009 | C24: 2010 | D24: 2011 | E24: 2012 | F24: 2013 | G24: 2014 | H24: 2015 | I24: 2016 | J24: 2017 | K24: 2018 | L24: média período | M24: var. 09/10 | N24: var. 10/11 | O24: var. 11/12 | P24: var. 12/13 | Q24: var. 13/14 | R24: var. 14/15 | S24: var. 15/16 | T24: var. 16/17 | U24: var. 17/18 | V24: TVMA* 2009-2018 | W24: TVT* 2009-2018
A25: Exportações | B25: 216.379321 | C25: 276.907496 | D25: 401.868776 | E25: 388.920682 | F25: 454.270433 | G25: 427.973371 | H25: 501.273745 | I25: 630.739005 | J25: 761.992172 | K25: 747.211781 | L25: 480.7536782 | M25: 0.279731791 | N25: 0.4512744574 | O25: -0.03221970646 | P25: 0.1680284799 | Q25: -0.05788856172 | R25: 0.1712732122 | S25: 0.2582725732 | T25: 0.2080942608 | U25: -0.01939703785 | V25: 0.1319384065 | W25: 2.453249495
A26: Importações | B26: 302.60058 | C26: 334.662266 | D26: 370.983224 | E26: 358.687902 | F26: 339.932484 | G26: 395.444611 | H26: 408.463806 | I26: 446.900634 | J26: 534.423731 | K26: 585.120632 | L26: 407.721987 | M26: 0.1059538154 | N26: 0.1085301861 | O26: -0.0331425283 | P26: -0.05228896178 | Q26: 0.16330339 | R26: 0.03292292938 | S26: 0.09410093975 | T26: 0.1958446472 | U26: 0.09486274291 | V26: 0.06816308655 | W26: 0.9336401536
A27: Saldo (exp-imp) | B27: -86.221259 | C27: -57.75477 | D27: 30.885552 | E27: 30.23278 | F27: 114.337949 | G27: 32.52876 | H27: 92.809939 | I27: 183.838371 | J27: 227.568441 | K27: 162.091149 | L27: 73.0316912
A28: Cobertura (exp/imp) | B28: 0.7150657841 | C28: 0.8274237168 | D28: 1.083253231 | E28: 1.084287147 | F28: 1.336354877 | G28: 1.082258701 | H28: 1.227217045 | I28: 1.411362968 | J28: 1.425820239 | K28: 1.277021763 | L28: 1.179121297
A29: Exp AMF / Exp BT | B29: 0.2154158705 | C29: 0.2269163162 | D29: 0.2443950289 | E29: 0.1764117598 | F29: 0.2088755746 | G29: 0.1946617071 | H29: 0.2131963163 | I29: 0.2699127095 | J29: 0.262240228 | K29: 0.2865060297 | L29: 0.2328229052 | V29: Exportações
A30: Imp AMF / Imp BT | B30: 0.07385195899 | C30: 0.0618920822 | D30: 0.05941007547 | E30: 0.06062589177 | F30: 0.05445466865 | G30: 0.05972900331 | H30: 0.06349009354 | I30: 0.06517658795 | J30: 0.05887851694 | K30: 0.0612033863 | L30: 0.06135232267 | V30: Importações
A31: Exp AMF Ásia / Exp AMF Mundo | B31: 0.03228515772 | C31: 0.03545870589 | D31: 0.04636082866 | E31: 0.04332464813 | F31: 0.04773352613 | G31: 0.04292957455 | H31: 0.04817062684 | I31: 0.05999941089 | J31: 0.06834920835 | K31: 0.06728035224 | L31: 0.05070402327
A32: Imp AMF Ásia / Imp AMF Mundo | B32: 0.03191737083 | C32: 0.03236781572 | D32: 0.03310655627 | E32: 0.03388330011 | F32: 0.03083371231 | G32: 0.0359269152 | H32: 0.03554340314 | I32: 0.03749815039 | J32: 0.04100434953 | K32: 0.04634685811 | L32: 0.03617394612
A33: (1) Produtos agrícolas e agroalimentares | B33: BT - Total de Bens Transacionáveis (exclui serviços) | M33: *TVMA - Taxa de variação média anual; TVT - Taxa de variação total
A49: Agroalimentar (AA)(1) | B49: 2009 | C49: 2010 | D49: 2011 | E49: 2012 | F49: 2013 | G49: 2014 | H49: 2015 | I49: 2016 | J49: 2017 | K49: 2018 | L49: média período | M49: var. 09/10 | N49: var. 10/11 | O49: var. 11/12 | P49: var. 12/13 | Q49: var. 13/14 | R49: var. 14/15 | S49: var. 15/16 | T49: var. 16/17 | U49: var. 17/18 | V49: TVMA* 2009-2018 | W49: TVT* 2009-2018
A50: Exportações | B50: 95.040267 | C50: 106.337191 | D50: 119.908375 | E50: 128.596393 | F50: 183.011748 | G50: 174.994284 | H50: 224.920023 | I50: 312.822448 | J50: 407.737549 | K50: 396.087517 | L50: 214.9455795 | M50: 0.1188646071 | N50: 0.1276240596 | O50: 0.07245547277 | P50: 0.4231483771 | Q50: -0.04380846633 | R50: 0.2852992558 | S50: 0.3908163614 | T50: 0.3034152492 | U50: -0.02857237953 | V50: 0.1534223188 | W50: 3.167575802
A51: Importações | B51: 113.254373 | C51: 97.660871 | D51: 139.000526 | E51: 140.342564 | F51: 135.602905 | G51: 160.819782 | H51: 151.578347 | I51: 157.402361 | J51: 203.84837 | K51: 199.488004 | L51: 149.8998103 | M51: -0.1376856503 | N51: 0.4232980371 | O51: 0.009654913104 | P51: -0.03377207075 | Q51: 0.1859611857 | R51: -0.05746454127 | S51: 0.03842246677 | T51: 0.2950782231 | U51: -0.02139024217 | V51: 0.05824489107 | W51: 0.7614154643
A52: Saldo (exp-imp) | B52: -18.214106 | C52: 8.67632 | D52: -19.092151 | E52: -11.746171 | F52: 47.408843 | G52: 14.174502 | H52: 73.341676 | I52: 155.420087 | J52: 203.889179 | K52: 196.599513 | L52: 65.0457692
A53: Cobertura (exp/imp) | B53: 0.839175252 | C53: 1.088841313 | D53: 0.8626469155 | E53: 0.9163035742 | F53: 1.349615246 | G53: 1.088139045 | H53: 1.483853251 | I53: 1.987406326 | J53: 2.000200193 | K53: 1.985520478 | L53: 1.433928296
A54: Exp AA / Exp AMF | B54: 0.4392298976 | C54: 0.3840170184 | D54: 0.2983769383 | E54: 0.3306494073 | F54: 0.4028696008 | G54: 0.4088905896 | H54: 0.4486969949 | I54: 0.4959617933 | J54: 0.535094144 | K54: 0.5300873555 | L54: 0.4471012688 | V54: Exportações
A55: Imp AA / Imp AMF | B55: 0.3742701782 | C55: 0.2918191888 | D55: 0.374681433 | E55: 0.3912665111 | F55: 0.3989112879 | G55: 0.4066809296 | H55: 0.3710937047 | I55: 0.3522088559 | J55: 0.3814358498 | K55: 0.3409348314 | L55: 0.3676520155 | V55: Importações
A56: Exp AA / Exp BT | B56: 0.09461709074 | C56: 0.08713972718 | D56: 0.07292184047 | E56: 0.05833044382 | F56: 0.08414961934 | G56: 0.07959534019 | H56: 0.09566054646 | I56: 0.1338663914 | J56: 0.1403232103 | K56: 0.1518732236 | L56: 0.1040954163
A57: Imp AA / Imp BT | B57: 0.02764058585 | C57: 0.01806129722 | D57: 0.02225985221 | E57: 0.02372088116 | F57: 0.021722582 | G57: 0.02429064659 | H57: 0.02356077402 | I57: 0.02295577147 | J57: 0.02245837715 | K57: 0.02086636619 | L57: 0.02255630509
A58: Exp AA Ásia / Exp AA Mundo | B58: 0.02702098484 | C58: 0.02856267746 | D58: 0.02884838522 | E58: 0.02874095297 | F58: 0.03793778766 | G58: 0.03394527589 | H58: 0.04180803468 | I58: 0.0571803517 | J58: 0.06923574207 | K58: 0.06510397677 | L58: 0.04416033361
A59: Imp AA Ásia / Imp AA Mundo | B59: 0.01734122214 | C59: 0.01398228204 | D59: 0.01816500411 | E59: 0.01882121556 | F59: 0.01730893512 | G59: 0.02134389894 | H59: 0.01952328718 | I59: 0.01973793756 | J59: 0.02333062197 | K59: 0.02218167479 | L59: 0.01935125731
A60: (1) Produtos agrícolas e agroalimentares | B60: AMF - Agroalimentar, Mar e Florestas; BT - Total de Bens Transacionáveis (exclui serviços) | M60: *TVMA - Taxa de variação média anual; TVT - Taxa de variação total
A72: Mar (M) | B72: 2009 | C72: 2010 | D72: 2011 | E72: 2012 | F72: 2013 | G72: 2014 | H72: 2015 | I72: 2016 | J72: 2017 | K72: 2018 | L72: média período | M72: var. 09/10 | N72: var. 10/11 | O72: var. 11/12 | P72: var. 12/13 | Q72: var. 13/14 | R72: var. 14/15 | S72: var. 15/16 | T72: var. 16/17 | U72: var. 17/18 | V72: TVMA* 2009-2018 | W72: TVT* 2009-2018
A73: Exportações | B73: 3.875029 | C73: 6.308112 | D73: 9.596012 | E73: 9.470096 | F73: 12.859594 | G73: 14.310759 | H73: 24.663723 | I73: 17.109969 | J73: 23.020325 | K73: 21.653849 | L73: 14.2867468 | M73: 0.6278876881 | N73: 0.521217759 | O73: -0.01312170097 | P73: 0.3579159071 | Q73: 0.1128468753 | R73: 0.723439197 | S73: -0.3062698198 | T73: 0.3454334721 | U73: -0.05935954423 | V73: 0.1877526682 | W73: 4.588048244
A74: Importações | B74: 143.816971 | C74: 157.665628 | D74: 172.725692 | E74: 180.003863 | F74: 172.993529 | G74: 196.135899 | H74: 210.25919 | I74: 234.02847 | J74: 270.14354 | K74: 313.950839 | L74: 205.1723621 | M74: 0.0962936217 | N74: 0.09551900558 | O74: 0.0421371651 | P74: -0.03894546419 | Q74: 0.1337759287 | R74: 0.07200767974 | S74: 0.1130475201 | T74: 0.1543191305 | U74: 0.1621630449 | V74: 0.08119779428 | W74: 1.182988814
A75: Saldo (exp-imp) | B75: -139.941942 | C75: -151.357516 | D75: -163.12968 | E75: -170.533767 | F75: -160.133935 | G75: -181.82514 | H75: -185.595467 | I75: -216.918501 | J75: -247.123215 | K75: -292.29699 | L75: -190.8856153
A76: Cobertura (exp/imp) | B76: 0.02694417059 | C76: 0.04000943059 | D76: 0.05555636738 | E76: 0.05261051536 | F76: 0.07433569379 | G76: 0.0729634864 | H76: 0.117301522 | I76: 0.07311063051 | J76: 0.08521516006 | K76: 0.06897210107 | L76: 0.06963290111
A77: Exp M / Exp AMF | B77: 0.01790849968 | C77: 0.02278057507 | D77: 0.02387847122 | E77: 0.02434968475 | F77: 0.02830823462 | G77: 0.03343843325 | H77: 0.04920210413 | I77: 0.0271268605 | J77: 0.03021071062 | K77: 0.02897953372 | L77: 0.02971739468 | V77: Exportações
A78: Imp M / Imp AMF | B78: 0.475269978 | C78: 0.4711186292 | D78: 0.4655889561 | E78: 0.5018397944 | F78: 0.5089055537 | G78: 0.4959882966 | H78: 0.514755988 | I78: 0.5236700335 | J78: 0.5054856743 | K78: 0.5365574581 | L78: 0.5032163303 | V78: Importações
A79: Exp M / Exp BT | B79: 0.003857775047 | C79: 0.005169284176 | D79: 0.005835779663 | E79: 0.004295570737 | F79: 0.005912898772 | G79: 0.0065091825 | H79: 0.01048970736 | I79: 0.007321884419 | J79: 0.007922463639 | K79: 0.008302811148 | L79: 0.006918890164
A80: Imp M / Imp BT | B80: 0.03509961892 | C80: 0.02915851292 | D80: 0.02766067502 | E80: 0.03042448506 | F80: 0.0277122833 | G80: 0.02962488661 | H80: 0.03268190583 | I80: 0.034131026 | J80: 0.02976224684 | K80: 0.03283913338 | L80: 0.03087349067
A81: Exp M Ásia / Exp M Mundo | B81: 0.007476442268 | C81: 0.009185846507 | D81: 0.01205361823 | E81: 0.01207412605 | F81: 0.0157241005 | G81: 0.01593289958 | H81: 0.02744361861 | I81: 0.01780364274 | J81: 0.02168653418 | K81: 0.01990614656 | L81: 0.01678716307
A82: Imp M Ásia / Imp M Mundo | B82: 0.1131258401 | C82: 0.1128387261 | D82: 0.1144976187 | E82: 0.1232382409 | F82: 0.1198626259 | G82: 0.1246347092 | H82: 0.1192144992 | I82: 0.1212689991 | J82: 0.1264158916 | K82: 0.1425098529 | L82: 0.1229447558
A83: AMF - Agroalimentar, Mar e Florestas; BT - Total de Bens Transacionáveis (exclui serviços) | M83: *TVMA - Taxa de variação média anual; TVT - Taxa de variação total
A95: Florestas (F) | B95: 2009 | C95: 2010 | D95: 2011 | E95: 2012 | F95: 2013 | G95: 2014 | H95: 2015 | I95: 2016 | J95: 2017 | K95: 2018 | L95: média período | M95: var. 09/10 | N95: var. 10/11 | O95: var. 11/12 | P95: var. 12/13 | Q95: var. 13/14 | R95: var. 14/15 | S95: var. 15/16 | T95: var. 16/17 | U95: var. 17/18 | V95: TVMA* 2009-2018 | W95: TVT* 2009-2018
A96: Exportações | B96: 117.464025 | C96: 164.262193 | D96: 272.364389 | E96: 250.854193 | F96: 258.399091 | G96: 238.668328 | H96: 251.689999 | I96: 300.806588 | J96: 331.234298 | K96: 329.470415 | L96: 251.5213519 | M96: 0.3984042604 | N96: 0.6581075902 | O96: -0.07897580179 | P96: 0.03007682634 | Q96: -0.07635771056 | R96: 0.05455969424 | S96: 0.195147162 | T96: 0.1011537354 | U96: -0.005325182237 | V96: 0.1086415584 | W96: 1.804862297
A97: Importações | B97: 45.529236 | C97: 79.335767 | D97: 59.257006 | E97: 38.341475 | F97: 31.33605 | G97: 38.48893 | H97: 46.626269 | I97: 55.469803 | J97: 60.431821 | K97: 71.681789 | L97: 52.6498146 | M97: 0.7425235732 | N97: -0.2530858623 | O97: -0.3529630066 | P97: -0.1827114111 | Q97: 0.2282636133 | R97: 0.2114202447 | S97: 0.1896684892 | T97: 0.08945440098 | U97: 0.1861596724 | V97: 0.04643401276 | W97: 0.5744122963
A98: Saldo (exp-imp) | B98: 71.934789 | C98: 84.926426 | D98: 213.107383 | E98: 212.512718 | F98: 227.063041 | G98: 200.179398 | H98: 205.06373 | I98: 245.336785 | J98: 270.802477 | K98: 257.788626 | L98: 198.8715373
A99: Cobertura (exp/imp) | B99: 2.579969165 | C99: 2.07046833 | D99: 4.596323834 | E99: 6.542632828 | F99: 8.246064549 | G99: 6.200960328 | H99: 5.398030003 | I99: 5.422889063 | J99: 5.481123893 | K99: 4.596291744 | L99: 4.777250477
A100: Exp F / Exp AMF | B100: 0.5428616027 | C100: 0.5932024065 | D100: 0.6777445904 | E100: 0.6450009079 | F100: 0.5688221646 | G100: 0.5576709772 | H100: 0.502100901 | I100: 0.4769113462 | J100: 0.4346951454 | K100: 0.4409331108 | L100: 0.5231813365 | V100: Exportações
A101: Imp F / Imp AMF | B101: 0.1504598438 | C101: 0.237062182 | D101: 0.1597296108 | E101: 0.1068936945 | F101: 0.09218315835 | G101: 0.09733077384 | H101: 0.1141503074 | I101: 0.1241211106 | J101: 0.1130784759 | K101: 0.1225077105 | L101: 0.1291316541 | V101: Importações
A102: Exp F / Exp BT | B102: 0.1169410047 | C102: 0.1346073048 | D102: 0.1656374088 | E102: 0.1137857452 | F102: 0.1188130564 | G102: 0.1085571844 | H102: 0.1070460625 | I102: 0.1287244337 | J102: 0.113994554 | K102: 0.1263299949 | L102: 0.1218085987
A103: Imp F / Imp BT | B103: 0.01111175421 | C103: 0.01467227205 | D103: 0.009489548235 | E103: 0.006480525551 | F103: 0.005019803342 | G103: 0.005813470113 | H103: 0.007247413692 | I103: 0.008089790478 | J103: 0.006657892961 | K103: 0.007497886731 | L103: 0.007922526911
A104: Exp F Ásia / Exp F Mundo | B104: 0.04405085113 | C104: 0.04831763591 | D104: 0.07330155091 | E104: 0.06746591192 | F104: 0.0666840336 | G104: 0.06094978138 | H104: 0.06097615783 | I104: 0.07371663858 | J104: 0.07890490385 | K104: 0.08374469683 | L104: 0.06683839977
A105: Imp F Ásia / Imp F Mundo | B105: 0.02712472177 | C105: 0.04052971622 | D105: 0.02897547241 | E105: 0.02297621013 | F105: 0.01793537075 | G105: 0.02027294818 | H105: 0.02373694837 | I105: 0.02754896791 | J105: 0.02799032169 | K105: 0.05018199578 | L105: 0.02836619569
A106: AMF - Agroalimentar, Mar e Florestas; BT - Total de Bens Transacionáveis (exclui serviços) | M106: *TVMA - Taxa de variação média anual; TVT - Taxa de variação total
A116: Fonte: GPP a partir de dados INE/Comércio Internacional (2017 provisórios; 2018 preliminares) | M116: 2019-11-26T14:40:28.720

Sheet 3
A1: Principais transações de Agroalimentar, Mar & Florestas entre Portugal e Ásia em 2009-2018 (NC a 2 e 4 dígitos) em milhões de euros
AC4: P | AE4: Cód.NC | AF4: Descritivo | AG4: Média export quinquénio | AH4: % do total | AI4: % acumulada | AN4: P | AO4: NC | AP4: Exportações | AQ4: 2009 | AR4: 2010 | AS4: 2011 | AT4: 2012 | AU4: 2013 | AV4: 2014 | AW4: 2015 | AX4: 2016 | AY4: 2017 | AZ4: 2018 | BA4: média período
AC5: 1 | AD5: º | AE5: 45 | AF5: Cortiça e suas obras | AG5: 80.0103033 | AH5: 0.1664268147 | AN5: 1º | AO5: 45 | AP5: Cortiça e suas obras | AQ5: 50.365239 | AR5: 67.295539 | AS5: 83.03534 | AT5: 91.264753 | AU5: 84.379578 | AV5: 80.846966 | AW5: 78.693 | AX5: 83.58343 | AY5: 86.157318 | AZ5: 94.48187 | BA5: 80.0103033
AC6: 2 | AD6: º | AE6: 47 | AF6: Pastas de madeira | AG6: 68.1550553 | AH6: 0.1417671011 | AN6: 2º | AO6: 47 | AP6: Pastas de madeira | AQ6: 19.944671 | AR6: 27.878298 | AS6: 66.384892 | AT6: 59.777397 | AU6: 72.019915 | AV6: 61.471681 | AW6: 67.382786 | AX6: 106.454965 | AY6: 108.490229 | AZ6: 91.745719 | BA6: 68.1550553
AC7: 3 | AD7: º | AE7: 48 | AF7: Papel e cartão | AG7: 66.8241661 | AH7: 0.138998762 | AI7: 0.4471926778 | AN7: 3º | AO7: 48 | AP7: Papel e cartão | AQ7: 22.825895 | AR7: 44.468073 | AS7: 89.013085 | AT7: 63.206764 | AU7: 63.20487 | AV7: 61.962879 | AW7: 66.039999 | AX7: 71.295486 | AY7: 89.365903 | AZ7: 96.858707 | BA7: 66.8241661
AC8: 4 | AD8: º | AE8: 22 | AF8: Bebidas, líquidos alcoólicos e vinagres | AG8: 54.2659279 | AH8: 0.1128767815 | AO8: - | AP8: Outros | AQ8: 123.243516 | AR8: 137.265586 | AS8: 163.435459 | AT8: 174.671768 | AU8: 234.66607 | AV8: 223.691845 | AW8: 289.15796 | AX8: 369.405124 | AY8: 477.978722 | AZ8: 464.125485 | BA8: 265.7641535
AC9: 5 | AD9: º | AE9: 20 | AF9: Preparações de produtos vegetais | AG9: 50.7826927 | AH9: 0.1056314179 | AP9: Total | AQ9: 216.379321 | AR9: 276.907496 | AS9: 401.868776 | AT9: 388.920682 | AU9: 454.270433 | AV9: 427.973371 | AW9: 501.273745 | AX9: 630.739005 | AY9: 761.992172 | AZ9: 747.211781 | BA9: 480.7536782
AC10: 6 | AD10: º | AE10: 44 | AF10: Madeira e suas obras | AG10: 32.7216938 | AH10: 0.06806332491
AC11: 7 | AD11: º | AE11: 01 | AF11: Animais vivos | AG11: 24.9187972 | AH11: 0.05183277493
AC12: 8 | AD12: º | AE12: 15 | AF12: Gorduras e óleos animais ou vegetais | AG12: 13.6886165 | AH12: 0.02847324341
AC13: 9 | AD13: º | AE13: 04 | AF13: Leite e laticínios; ovos; mel, etc. | AG13: 12.5722914 | AH13: 0.02615121209
AC14: 10 | AD14: º | AE14: 03 | AF14: Peixes e crustáceos | AG14: 9.7065306 | AH14: 0.02019023679 | AI14: 0.8604116693
AE15: - | AF15: Outros | AG15: 67.1076034 | AH15: 0.1395883307
AE16: Total | AG16: 480.7536782 | AH16: 1
AC38: P | AE38: Cód.NC | AF38: Descritivo | AG38: Média import quinquénio | AH38: % do total | AI38: % acumulada | AN38: P | AO38: NC | AP38: Importações | AQ38: 2009 | AR38: 2010 | AS38: 2011 | AT38: 2012 | AU38: 2013 | AV38: 2014 | AW38: 2015 | AX38: 2016 | AY38: 2017 | AZ38: 2018 | BA38: média período
AC39: 1 | AD39: º | AE39: 03 | AF39: Peixes e crustáceos | AG39: 179.0035932 | AH39: 0.4390334564 | AN39: 1º | AO39: 03 | AP39: Peixes e crustáceos | AQ39: 136.156534 | AR39: 149.107046 | AS39: 162.825999 | AT39: 164.954798 | AU39: 146.058879 | AV39: 154.044147 | AW39: 176.507352 | AX39: 196.130215 | AY39: 232.996511 | AZ39: 271.254451 | BA39: 179.0035932
AC40: 2 | AD40: º | AE40: 09 | AF40: Café, chá, mate e especiarias | AG40: 34.8497841 | AH40: 0.08547438012 | AN40: 2º | AO40: 09 | AP40: Café, chá, mate e especiarias | AQ40: 21.190826 | AR40: 21.448855 | AS40: 30.814633 | AT40: 34.868995 | AU40: 37.738358 | AV40: 33.736567 | AW40: 41.888855 | AX40: 38.934563 | AY40: 43.861643 | AZ40: 44.014546 | BA40: 34.8497841
AC41: 3 | AD41: º | AE41: 16p | AF41: Preparações e conservas de peixes ou crustáceos (NC 1604-05) (p) | AG41: 24.2999137 | AH41: 0.05959922318 | AI41: 0.5841070597 | AN41: 3º | AO41: 16p | AP41: Preparações e conservas de peixes ou crustáceos (NC 1604-05) (p) | AQ41: 5.321713 | AR41: 6.599856 | AS41: 7.860411 | AT41: 13.520785 | AU41: 25.222795 | AV41: 40.075188 | AW41: 31.861521 | AX41: 36.184828 | AY41: 35.216607 | AZ41: 41.135433 | BA41: 24.2999137
AC42: 4 | AD42: º | AE42: 44 | AF42: Madeira e suas obras | AG42: 20.0130048 | AH42: 0.04908492904 | AO42: - | AP42: Outros | AQ42: 139.931507 | AR42: 157.506509 | AS42: 169.482181 | AT42: 145.343324 | AU42: 130.912452 | AV42: 167.588709 | AW42: 158.206078 | AX42: 175.651028 | AY42: 222.34897 | AZ42: 228.716202 | BA42: 169.568696
AC43: 5 | AD43: º | AE43: 48 | AF43: Papel e cartão | AG43: 19.7180681 | AH43: 0.04836155206 | AP43: Total | AQ43: 302.60058 | AR43: 334.662266 | AS43: 370.983224 | AT43: 358.687902 | AU43: 339.932484 | AV43: 395.444611 | AW43: 408.463806 | AX43: 446.900634 | AY43: 534.423731 | AZ43: 585.120632 | BA43: 407.721987
AC44: 6 | AD44: º | AE44: 10 | AF44: Cereais | AG44: 16.0955619 | AH44: 0.03947680629
AC45: 7 | AD45: º | AE45: 15 | AF45: Gorduras e óleos animais ou vegetais | AG45: 15.5266381 | AH45: 0.0380814344
AC46: 8 | AD46: º | AE46: 38f | AF46: Tall oil, essências e colofónias (f) | AG46: 10.7563681 | AH46: 0.02638162386
AC47: 9 | AD47: º | AE47: 20 | AF47: Preparações de produtos vegetais | AG47: 9.8300109 | AH47: 0.02410959235
AC48: 10 | AD48: º | AE48: 12 | AF48: Sementes e frutos oleaginosos | AG48: 9.3636621 | AH48: 0.0229658012 | AI48: 0.8325687989
AE49: - | AF49: Outros | AG49: 68.265382 | AH49: 0.1674312011
AE50: Total | AG50: 407.721987 | AH50: 1
AC62: DESAGREGAÇÃO A 4 DÍGITOS | AN62: DESAGREGAÇÃO A 4 DÍGITOS
AC64: P | AE64: Cód.NC | AF64: Descritivo | AG64: Média export quinquénio | AH64: % do total | AI64: % acumulada | AN64: P | AO64: NC | AP64: Exportações | AQ64: 2009 | AR64: 2010 | AS64: 2011 | AT64: 2012 | AU64: 2013 | AV64: 2014 | AW64: 2015 | AX64: 2016 | AY64: 2017 | AZ64: 2018 | BA64: média período
AC65: 1 | AD65: º | AE65: 4504 | AF65: Cortiça aglomerada e suas obras | AG65: 55.5440355 | AH65: 0.1155353313 | AN65: 1º | AO65: 4504 | AP65: Cortiça aglomerada e suas obras | AQ65: 27.107421 | AR65: 40.395504 | AS65: 54.886311 | AT65: 64.575249 | AU65: 59.143416 | AV65: 56.35721 | AW65: 57.945685 | AX65: 61.155299 | AY65: 65.586487 | AZ65: 68.287773 | BA65: 55.5440355
AC66: 2 | AD66: º | AE66: 4802 | AF66: Papel e cartão p/ escrita, etc. | AG66: 47.257653 | AH66: 0.09829909815 | AN66: 2º | AO66: 4802 | AP66: Papel e cartão p/ escrita, etc. | AQ66: 8.729415 | AR66: 31.668828 | AS66: 70.135721 | AT66: 45.168391 | AU66: 44.350178 | AV66: 41.594401 | AW66: 44.070366 | AX66: 47.971494 | AY66: 69.621634 | AZ66: 69.266102 | BA66: 47.257653
AC67: 3 | AD67: º | AE67: 2002 | AF67: Tomates preparados | AG67: 42.2323878 | AH67: 0.08784620839 | AI67: 0.3016806379 | AN67: 3º | AO67: 2002 | AP67: Tomates preparados | AQ67: 23.776431 | AR67: 32.905022 | AS67: 33.338891 | AT67: 40.99199 | AU67: 53.568594 | AV67: 45.695239 | AW67: 53.393881 | AX67: 46.061819 | AY67: 47.896706 | AZ67: 44.695305 | BA67: 42.2323878
AC68: 4 | AD68: º | AE68: 2204 | AF68: Vinhos de uvas frescas | AG68: 32.7702764 | AH68: 0.06816437998 | AN68: - | AO68: - | AP68: Outros | AQ68: 156.766054 | AR68: 171.938142 | AS68: 243.507853 | AT68: 238.185052 | AU68: 297.208245 | AV68: 284.326521 | AW68: 345.863813 | AX68: 475.550393 | AY68: 578.887345 | AZ68: 564.962601 | BA68: 335.7196019
AC69: 5 | AD69: º | AE69: 4702 | AF69: Pastas químicas de madeira para dissolução | AG69: 25.0266146 | AH69: 0.05205704238 | AP69: Total | AQ69: 216.379321 | AR69: 276.907496 | AS69: 401.868776 | AT69: 388.920682 | AU69: 454.270433 | AV69: 427.973371 | AW69: 501.273745 | AX69: 630.739005 | AY69: 761.992172 | AZ69: 747.211781 | BA69: 480.7536782
AC70: 6 | AD70: º | AE70: 0102 | AF70: Bovinos vivos | AG70: 17.9351419 | AH70: 0.03730630199
AC71: 7 | AD71: º | AE71: 4704 | AF71: Pastas químicas de madeira, ao bissulfito | AG71: 17.8937156 | AH71: 0.03722013249
AC72: 8 | AD72: º | AE72: 4703 | AF72: Pastas químicas de madeira, à soda ou ao sulfato | AG72: 17.0384044 | AH72: 0.03544102765
AC73: 9 | AD73: º | AE73: 2203 | AF73: Cervejas de malte | AG73: 16.4304159 | AH73: 0.03417637066
AC74: 10 | AD74: º | AE74: 4503 | AF74: Obras de cortiça natural | AG74: 13.7667226 | AH74: 0.02863570935 | AI74: 0.5946816024
AE75: - | AF75: Outros | AG75: 194.8583105 | AH75: 0.4053183976
AE76: Total | AG76: 480.7536782 | AH76: 1
AC89: DESAGREGAÇÃO A 4 DÍGITOS | AN89: DESAGREGAÇÃO A 4 DÍGITOS
G91: média 2009-2018 em milhões de euros | I91: Cód. NC | J91: Descritivo | K91: Export | L91: Import | M91: Saldo | AC91: P | AE91: Cód.NC | AF91: Descritivo | AG91: Média import quinquénio | AH91: % do total | AI91: % acumulada | AN91: P | AO91: NC | AP91: Importações | AQ91: 2009 | AR91: 2010 | AS91: 2011 | AT91: 2012 | AU91: 2013 | AV91: 2014 | AW91: 2015 | AX91: 2016 | AY91: 2017 | AZ91: 2018 | BA91: média período
I92: 4504 | J92: Cortiça aglomerada e suas obras | K92: 55.5440355 | L92: 0.2416183 | M92: 55.3024172 | AC92: 1 | AD92: º | AE92: 0307 | AF92: Moluscos | AG92: 43.3439341 | AH92: 0.106307571 | AN92: 1º | AO92: 0307 | AP92: Moluscos | AQ92: 25.43314 | AR92: 38.701827 | AS92: 47.904667 | AT92: 41.523054 | AU92: 32.05078 | AV92: 38.511314 | AW92: 33.504019 | AX92: 37.369768 | AY92: 71.489604 | AZ92: 66.951168 | BA92: 43.3439341
I93: 4802 | J93: Papel e cartão p/ escrita, etc. | K93: 47.257653 | L93: 0.45226 | M93: 46.805393 | AC93: 2 | AD93: º | AE93: 0303 | AF93: Peixes congelados | AG93: 42.1114826 | AH93: 0.1032847969 | AN93: 2º | AO93: 0303 | AP93: Peixes congelados | AQ93: 33.30148 | AR93: 22.084175 | AS93: 18.827337 | AT93: 22.020071 | AU93: 24.339685 | AV93: 25.472128 | AW93: 51.707201 | AX93: 62.039866 | AY93: 62.3266 | AZ93: 98.996283 | BA93: 42.1114826
I94: 2002 | J94: Tomates preparados | K94: 42.2323878 | L94: 0.5608583 | M94: 41.6715295 | AC94: 3 | AD94: º | AE94: 0306 | AF94: Crustáceos | AG94: 41.6198884 | AH94: 0.1020790875 | AI94: 0.3116714554 | AN94: 3º | AO94: 0306 | AP94: Crustáceos | AQ94: 36.171346 | AR94: 43.82584 | AS94: 36.200634 | AT94: 38.289174 | AU94: 32.646965 | AV94: 46.799486 | AW94: 45.86203 | AX94: 43.662713 | AY94: 45.391975 | AZ94: 47.348721 | BA94: 41.6198884
I95: 2204 | J95: Vinhos de uvas frescas | K95: 32.7702764 | L95: 0.054385 | M95: 32.7158914 | AC95: 4 | AD95: º | AE95: 0305 | AF95: Peixes secos, salgados ou fumados | AG95: 34.1683885 | AH95: 0.08380315408 | AN95: - | AO95: - | AP95: Outros | AQ95: 207.694614 | AR95: 230.050424 | AS95: 268.050586 | AT95: 256.855603 | AU95: 250.895054 | AV95: 284.661683 | AW95: 277.390556 | AX95: 303.828287 | AY95: 355.215552 | AZ95: 371.82446 | BA95: 280.6466819
I96: 4702 | J96: Pastas químicas de madeira para dissolução | K96: 25.0266146 | L96: 0 | M96: 25.0266146 | AC96: 5 | AD96: º | AE96: 0901 | AF96: Café | AG96: 32.7587106 | AH96: 0.08034570527 | AP96: Total | AQ96: 302.60058 | AR96: 334.662266 | AS96: 370.983224 | AT96: 358.687902 | AU96: 339.932484 | AV96: 395.444611 | AW96: 408.463806 | AX96: 446.900634 | AY96: 534.423731 | AZ96: 585.120632 | BA96: 407.721987
I97: 0102 | J97: Bovinos vivos | K97: 17.9351419 | L97: 0 | M97: 17.9351419 | AC97: 6 | AD97: º | AE97: 1604 | AF97: Preparações e conservas de peixes, etc. | AG97: 16.9854334 | AH97: 0.04165935108
I98: 4704 | J98: Pastas químicas de madeira, ao bissulfito | K98: 17.8937156 | L98: 0 | M98: 17.8937156 | AC98: 7 | AD98: º | AE98: 0304 | AF98: Filetes de peixes | AG98: 16.4766018 | AH98: 0.04041136442
I99: 4703 | J99: Pastas químicas de madeira, à soda ou ao sulfato | K99: 17.0384044 | L99: 0.0592652 | M99: 16.9791392 | AC99: 8 | AD99: º | AE99: 1006 | AF99: Arroz | AG99: 11.628844 | AH99: 0.02852150331
I100: 2203 | J100: Cervejas de malte | K100: 16.4304159 | L100: 0.3699319 | M100: 16.060484 | AC100: 9 | AD100: º | AE100: 3806 | AF100: Colofónias e derivados | AG100: 10.719745 | AH100: 0.02629180015
I101: 4503 | J101: Obras de cortiça natural | K101: 13.7667226 | L101: 0.101245 | M101: 13.6654776 | AC101: 10 | AD101: º | AE101: 4412 | AF101: Madeira contraplacada, folheada etc. | AG101: 10.6024874 | AH101: 0.02600420811 | AI101: 0.6387085419
I102: - | J102: Outros | K102: 172.4802801 | L102: 145.4669075 | M102: 27.0133726 | AE102: - | AF102: Outros | AG102: 147.3064712 | AH102: 0.3612914581
I103: 1006 | J103: Arroz | K103: 4.1283562 | L103: 11.628844 | M103: -7.5004878 | AE103: Total | AG103: 407.721987 | AH103: 1
I104: 3806 | J104: Colofónias e derivados | K104: 2.2356773 | L104: 10.719745 | M104: -8.4840677
I105: 4412 | J105: Madeira contraplacada, folheada etc. | K105: 0.0804088 | L105: 10.6024874 | M105: -10.5220786
I106: 1604 | J106: Preparações e conservas de peixes, etc. | K106: 4.358896 | L106: 16.9854334 | M106: -12.6265374
J107: Filetes de peixes | K107: 0.6030175 | L107: 16.4766018 | M107: -15.8735843
I108: 0901 | J108: Café | K108: 3.523137 | L108: 32.7587106 | M108: -29.2355736
I109: 0305 | J109: Peixes secos, salgados ou fumados | K109: 0.7631376 | L109: 34.1683885 | M109: -33.4052509
I110: 0306 | J110: Crustáceos | K110: 3.274591 | L110: 41.6198884 | M110: -38.3452974
I111: 0303 | J111: Peixes congelados | K111: 2.8539841 | L111: 42.1114826 | M111: -39.2574985
I112: 0307 | J112: Moluscos | K112: 0.5568249 | L112: 43.3439341 | M112: -42.7871092
I113: Total | K113: 480.7536782 | L113: 407.721987 | M113: 73.0316912
A116: Fonte: GPP a partir de dados INE/Comércio Internacional (2017 provisórios; 2018 preliminares) | Y116: 2019-11-26T14:40:28.720

Sheet 3A
A1: Principais produtos agrícolas e agroalimentares transacionados entre Portugal e Ásia em 2009-2018 (NC 2 dígitos) em milhões de euros
AC4: P | AE4: Cód.NC | AF4: Descritivo | AG4: Média export quinquénio | AH4: % do total | AI4: % acumulada | AN4: P | AO4: NC | AP4: Exportações | AQ4: 2009 | AR4: 2010 | AS4: 2011 | AT4: 2012 | AU4: 2013 | AV4: 2014 | AW4: 2015 | AX4: 2016 | AY4: 2017 | AZ4: 2018 | BA4: média período
AC5: 1 | AD5: º | AE5: 22 | AF5: Bebidas, líquidos alcoólicos e vinagres | AG5: 54.2659279 | AH5: 0.2524635679 | AN5: 1º | AO5: 22 | AP5: Bebidas, líquidos alcoólicos e vinagres | AQ5: 15.585968 | AR5: 20.552276 | AS5: 28.601796 | AT5: 34.671683 | AU5: 35.888983 | AV5: 40.129449 | AW5: 59.138185 | AX5: 88.264082 | AY5: 124.430691 | AZ5: 95.396166 | BA5: 54.2659279
AC6: 2 | AD6: º | AE6: 20 | AF6: Preparações de produtos vegetais | AG6: 50.7826927 | AH6: 0.2362583721 | AN6: 2º | AO6: 20 | AP6: Preparações de produtos vegetais | AQ6: 29.116556 | AR6: 36.285389 | AS6: 37.094782 | AT6: 45.325073 | AU6: 61.035371 | AV6: 52.991884 | AW6: 61.131536 | AX6: 57.495162 | AY6: 63.405828 | AZ6: 63.945346 | BA6: 50.7826927
AC7: 3 | AD7: º | AE7: 01 | AF7: Animais vivos | AG7: 24.9187972 | AH7: 0.1159307265 | AI7: 0.6046526665 | AN7: 3º | AO7: 01 | AP7: Animais vivos | AQ7: 0.005703 | AR7: 0.006615 | AS7: 0.00459 | AT7: 0.046328 | AU7: 0.082773 | AV7: 0.390882 | AW7: 9.746856 | AX7: 57.26802 | AY7: 77.529522 | AZ7: 104.106683 | BA7: 24.9187972
AC8: 4 | AD8: º | AE8: 15 | AF8: Gorduras e óleos animais ou vegetais | AG8: 13.6886165 | AH8: 0.06368410335 | AO8: - | AP8: Outros | AQ8: 50.33204 | AR8: 49.492911 | AS8: 54.207207 | AT8: 48.553309 | AU8: 86.004621 | AV8: 81.482069 | AW8: 94.903446 | AX8: 109.795184 | AY8: 142.371508 | AZ8: 132.639322 | BA8: 84.9781617
AC9: 5 | AD9: º | AE9: 04 | AF9: Leite e laticínios; ovos; mel, etc. | AG9: 12.5722914 | AH9: 0.05849057901 | AP9: Total | AQ9: 95.040267 | AR9: 106.337191 | AS9: 119.908375 | AT9: 128.596393 | AU9: 183.011748 | AV9: 174.994284 | AW9: 224.920023 | AX9: 312.822448 | AY9: 407.737549 | AZ9: 396.087517 | BA9: 214.9455795
AC10: 6 | AD10: º | AE10: 05a | AF10: Outros produtos de origem animal (exc. NC 0508, 051191) (a) | AG10: 8.8131154 | AH10: 0.04100161269
AC11: 7 | AD11: º | AE11: 19a | AF11: Preparações à base de cereais (exc. NC 19022010) (a) | AG11: 7.7879458 | AH11: 0.03623217476
AC12: 8 | AD12: º | AE12: 02 | AF12: Carnes e miudezas | AG12: 6.5915978 | AH12: 0.03066635664
AC13: 9 | AD13: º | AE13: 24 | AF13: Tabaco | AG13: 6.1528584 | AH13: 0.02862519162
AC14: 10 | AD14: º | AE14: 09 | AF14: Café, chá, mate e especiarias | AG14: 5.9321853 | AH14: 0.02759854524 | AI14: 0.8909512298
AE15: - | AF15: Outros | AG15: 23.4395511 | AH15: 0.1090487702
AE16: Total | AG16: 214.9455795 | AH16: 1
AC38: P | AE38: Cód.NC | AF38: Descritivo | AG38: Média import quinquénio | AH38: % do total | AI38: % acumulada | AN38: P | AO38: NC | AP38: Importações | AQ38: 2009 | AR38: 2010 | AS38: 2011 | AT38: 2012 | AU38: 2013 | AV38: 2014 | AW38: 2015 | AX38: 2016 | AY38: 2017 | AZ38: 2018 | BA38: média período
AC39: 1 | AD39: º | AE39: 09 | AF39: Café, chá, mate e especiarias | AG39: 34.8497841 | AH39: 0.2324871795 | AN39: 1º | AO39: 09 | AP39: Café, chá, mate e especiarias | AQ39: 21.190826 | AR39: 21.448855 | AS39: 30.814633 | AT39: 34.868995 | AU39: 37.738358 | AV39: 33.736567 | AW39: 41.888855 | AX39: 38.934563 | AY39: 43.861643 | AZ39: 44.014546 | BA39: 34.8497841
AC40: 2 | AD40: º | AE40: 10 | AF40: Cereais | AG40: 16.0955619 | AH40: 0.1073754654 | AN40: 2º | AO40: 10 | AP40: Cereais | AQ40: 9.478444 | AR40: 6.176407 | AS40: 16.195616 | AT40: 23.189304 | AU40: 10.837371 | AV40: 23.419274 | AW40: 16.920493 | AX40: 16.298854 | AY40: 14.74445 | AZ40: 23.695406 | BA40: 16.0955619
AC41: 3 | AD41: º | AE41: 15 | AF41: Gorduras e óleos animais ou vegetais | AG41: 15.5266381 | AH41: 0.1035801051 | AI41: 0.44344275 | AN41: 3º | AO41: 15 | AP41: Gorduras e óleos animais ou vegetais | AQ41: 30.532132 | AR41: 12.738534 | AS41: 13.146453 | AT41: 14.039784 | AU41: 7.693703 | AV41: 8.18297 | AW41: 7.585767 | AX41: 8.115557 | AY41: 25.167206 | AZ41: 28.064275 | BA41: 15.5266381
AC42: 4 | AD42: º | AE42: 20 | AF42: Preparações de produtos vegetais | AG42: 9.8300109 | AH42: 0.06557720707 | AO42: - | AP42: Outros | AQ42: 52.052971 | AR42: 57.297075 | AS42: 78.843824 | AT42: 68.244481 | AU42: 79.333473 | AV42: 95.480971 | AW42: 85.183232 | AX42: 94.053387 | AY42: 120.075071 | AZ42: 103.713777 | BA42: 83.4278262
AC43: 5 | AD43: º | AE43: 12 | AF43: Sementes e frutos oleaginosos | AG43: 9.3636621 | AH43: 0.06246613709 | AP43: Total | AQ43: 113.254373 | AR43: 97.660871 | AS43: 139.000526 | AT43: 140.342564 | AU43: 135.602905 | AV43: 160.819782 | AW43: 151.578347 | AX43: 157.402361 | AY43: 203.84837 | AZ43: 199.488004 | BA43: 149.8998103
AC44: 6 | AD44: º | AE44: 07 | AF44: Produtos hortícolas | AG44: 9.1821219 | AH44: 0.06125506017
AC45: 7 | AD45: º | AE45: 24 | AF45: Tabaco | AG45: 7.1469328 | AH45: 0.04767806434
AC46: 8 | AD46: º | AE46: 08 | AF46: Frutas | AG46: 6.9514741 | AH46: 0.0463741354
AC47: 9 | AD47: º | AE47: 05a | AF47: Outros produtos de origem animal (exc. NC 0508, 051191) (a) | AG47: 6.1246217 | AH47: 0.04085810174
AC48: 10 | AD48: º | AE48: 21 | AF48: Preparações alimentícias diversas | AG48: 5.0406836 | AH48: 0.03362701787 | AI48: 0.8012784737
AE49: - | AF49: Outros | AG49: 29.7883191 | AH49: 0.1987215263
AE50: Total | AG50: 149.8998103 | AH50: 1
A56: Fonte: GPP a partir de dados INE/Comércio Internacional (2017 provisórios; 2018 preliminares) | Y56: 2019-11-26T16:01:11.420

Sheet 3B
A1: Principais origens e destinos em Ásia para Agroalimentar, Mar & Florestas (2009-2018) em milhões de euros
AC4: P | AE4: País | AF4: Média export quinquénio | AG4: % do total | AH4: % acumulada | AM4: P | AN4: Exportações | AO4: 2009 | AP4: 2010 | AQ4: 2011 | AR4: 2012 | AS4: 2013 | AT4: 2014 | AU4: 2015 | AV4: 2016 | AW4: 2017 | AX4: 2018 | AY4: média período
AC5: 1 | AD5: º | AE5: China | AF5: 120.581571 | AG5: 0.2508177815 | AM5: 1º | AN5: China, República Popular da | AO5: 43.045143 | AP5: 49.114856 | AQ5: 87.431085 | AR5: 83.004343 | AS5: 106.500591 | AT5: 95.693094 | AU5: 126.172214 | AV5: 195.139008 | AW5: 230.671365 | AX5: 189.044011 | AY5: 120.581571
AC6: 2 | AD6: º | AE6: Rússia | AF6: 68.7090392 | AG6: 0.1429194249 | AM6: 2º | AN6: Rússia, Federação da | AO6: 33.382225 | AP6: 46.140184 | AQ6: 56.984486 | AR6: 69.100456 | AS6: 97.236397 | AT6: 83.273473 | AU6: 63.076704 | AV6: 69.469913 | AW6: 82.977817 | AX6: 85.448737 | AY6: 68.7090392
AC7: 3 | AD7: º | AE7: Israel | AF7: 54.3560984 | AG7: 0.1130643422 | AH7: 0.5068015486 | AM7: 3º | AN7: Israel | AO7: 23.411904 | AP7: 21.450071 | AQ7: 24.452475 | AR7: 26.001634 | AS7: 28.91676 | AT7: 28.723081 | AU7: 45.207488 | AV7: 90.038608 | AW7: 112.278362 | AX7: 143.080601 | AY7: 54.3560984
AC8: 4 | AD8: º | AE8: Japão | AF8: 47.4851413 | AG8: 0.09877228912 | AN8: Outros | AO8: 116.540049 | AP8: 160.202385 | AQ8: 233.00073 | AR8: 210.814249 | AS8: 221.616685 | AT8: 220.283723 | AU8: 266.817339 | AV8: 276.091476 | AW8: 336.064628 | AX8: 329.638432 | AY8: 237.1069696
AC9: 5 | AD9: º | AE9: Emirados Árabes Unidos | AF9: 24.6011901 | AG9: 0.05117213079 | AN9: Total | AO9: 216.379321 | AP9: 276.907496 | AQ9: 401.868776 | AR9: 388.920682 | AS9: 454.270433 | AT9: 427.973371 | AU9: 501.273745 | AV9: 630.739005 | AW9: 761.992172 | AX9: 747.211781 | AY9: 480.7536782
AC10: 6 | AD10: º | AE10: Arábia Saudita | AF10: 23.1101613 | AG10: 0.04807069056
AC11: 7 | AD11: º | AE11: HongKong | AF11: 16.0580711 | AG11: 0.03340186842
AC12: 8 | AD12: º | AE12: Jordânia | AF12: 12.7940517 | AG12: 0.02661248843
AC13: 9 | AD13: º | AE13: Macau | AF13: 11.7444625 | AG13: 0.02442927227
AC14: 10 | AD14: º | AE14: Líbano | AF14: 10.1168618 | AG14: 0.0210437533 | AH14: 0.8103040415
AE15: Outros | AF15: 91.1970298 | AG15: 0.1896959585
AE16: Total | AF16: 480.7536782 | AG16: 1
AF18: 0
AC38: P | AE38: País | AF38: Média import quinquénio | AG38: % do total | AH38: % acumulada | AM38: P | AN38: Importações | AO38: 2009 | AP38: 2010 | AQ38: 2011 | AR38: 2012 | AS38: 2013 | AT38: 2014 | AU38: 2015 | AV38: 2016 | AW38: 2017 | AX38: 2018 | AY38: média período
AC39: 1 | AD39: º | AE39: China | AF39: 132.3784827 | AG39: 0.3246783027 | AM39: 1º | AN39: China, República Popular da | AO39: 99.072721 | AP39: 150.734179 | AQ39: 141.836046 | AR39: 115.253035 | AS39: 114.095982 | AT39: 108.827664 | AU39: 124.064101 | AV39: 131.890503 | AW39: 172.641396 | AX39: 165.3692 | AY39: 132.3784827
AC40: 2 | AD40: º | AE40: Índia | AF40: 58.3765442 | AG40: 0.1431773269 | AM40: 2º | AN40: Índia | AO40: 39.368697 | AP40: 40.646876 | AQ40: 55.183076 | AR40: 50.224999 | AS40: 47.050337 | AT40: 59.516483 | AU40: 64.505959 | AV40: 69.312229 | AW40: 81.45848 | AX40: 76.498306 | AY40: 58.3765442
AC41: 3 | AD41: º | AE41: Vietname | AF41: 58.3513411 | AG41: 0.1431155124 | AH41: 0.610971142 | AM41: 3º | AN41: Vietname | AO41: 39.071818 | AP41: 42.455251 | AQ41: 48.042018 | AR41: 53.5518 | AS41: 58.890167 | AT41: 56.975535 | AU41: 68.139203 | AV41: 69.310954 | AW41: 69.613383 | AX41: 77.463282 | AY41: 58.3513411
AC42: 4 | AD42: º | AE42: Rússia | AF42: 54.1421852 | AG42: 0.1327919193 | AN42: Outros | AO42: 125.087344 | AP42: 100.82596 | AQ42: 125.922084 | AR42: 139.658068 | AS42: 119.895998 | AT42: 170.124929 | AU42: 151.754543 | AV42: 176.386948 | AW42: 210.710472 | AX42: 265.789844 | AY42: 158.615619
AC43: 5 | AD43: º | AE43: Indonésia | AF43: 28.6042999 | AG43: 0.07015638306 | AN43: Total | AO43: 302.60058 | AP43: 334.662266 | AQ43: 370.983224 | AR43: 358.687902 | AS43: 339.932484 | AT43: 395.444611 | AU43: 408.463806 | AV43: 446.900634 | AW43: 534.423731 | AX43: 585.120632 | AY43: 407.721987
AC44: 6 | AD44: º | AE44: Tailândia | AF44: 14.6494974 | AG44: 0.03593011382
AC45: 7 | AD45: º | AE45: Israel | AF45: 8.9893144 | AG45: 0.0220476567
AC46: 8 | AD46: º | AE46: Bangladesh | AF46: 6.4151926 | AG46: 0.01573423265
AC47: 9 | AD47: º | AE47: Coreia do Sul | AF47: 6.3694692 | AG47: 0.01562208908
AC48: 10 | AD48: º | AE48: Japão | AF48: 5.4435362 | AG48: 0.01335109799 | AH48: 0.9166046346
AE49: Outros | AF49: 34.0021241 | AG49: 0.08339536543
AE50: Total | AF50: 407.721987 | AG50: 1
AF52: 0
A57: Fonte: GPP a partir de dados INE/Comércio Internacional (2017 provisórios; 2018 preliminares) | Y57: 2019-11-26T14:40:28.720

Sheet 3C
A1: Principais origens e destinos em Ásia para os produtos agrícolas e agroalimentares (2009-2018) em milhões de euros
AC4: P | AE4: País | AF4: Média export quinquénio | AG4: % do total | AH4: % acumulada | AM4: P | AN4: Exportações | AO4: 2009 | AP4: 2010 | AQ4: 2011 | AR4: 2012 | AS4: 2013 | AT4: 2014 | AU4: 2015 | AV4: 2016 | AW4: 2017 | AX4: 2018 | AY4: média período
AC5: 1 | AD5: º | AE5: Japão | AF5: 37.3626756 | AG5: 0.1738238846 | AM5: 1º | AN5: Japão | AO5: 24.863886 | AP5: 30.20013 | AQ5: 32.086846 | AR5: 36.597442 | AS5: 43.387302 | AT5: 33.740232 | AU5: 41.483441 | AV5: 35.333852 | AW5: 47.862183 | AX5: 48.071442 | AY5: 37.3626756
AC6: 2 | AD6: º | AE6: China | AF6: 35.3457935 | AG6: 0.1644406625 | AM6: 2º | AN6: China, República Popular da | AO6: 4.516703 | AP6: 7.899848 | AQ6: 13.624937 | AR6: 16.144958 | AS6: 20.716892 | AT6: 20.150034 | AU6: 40.318565 | AV6: 68.316995 | AW6: 94.755135 | AX6: 67.013868 | AY6: 35.3457935
AC7: 3 | AD7: º | AE7: Rússia | AF7: 32.0295186 | AG7: 0.1490122229 | AH7: 0.48727677 | AM7: 3º | AN7: Rússia, Federação da | AO7: 16.082551 | AP7: 19.641126 | AQ7: 20.16275 | AR7: 20.352641 | AS7: 47.659779 | AT7: 39.805897 | AU7: 27.171555 | AV7: 34.564599 | AW7: 45.903968 | AX7: 48.95032 | AY7: 32.0295186
AC8: 4 | AD8: º | AE8: Israel | AF8: 30.2246223 | AG8: 0.1406152309 | AN8: Outros | AO8: 49.577127 | AP8: 48.596087 | AQ8: 54.033842 | AR8: 55.501352 | AS8: 71.247775 | AT8: 81.298121 | AU8: 115.946462 | AV8: 174.607002 | AW8: 219.216263 | AX8: 232.051887 | AY8: 110.2075918
AC9: 5 | AD9: º | AE9: Arábia Saudita | AF9: 9.6994551 | AG9: 0.04512516667 | AN9: Total | AO9: 95.040267 | AP9: 106.337191 | AQ9: 119.908375 | AR9: 128.596393 | AS9: 183.011748 | AT9: 174.994284 | AU9: 224.920023 | AV9: 312.822448 | AW9: 407.737549 | AX9: 396.087517 | AY9: 214.9455795
AC10: 6 | AD10: º | AE10: Macau | AF10: 9.6143863 | AG10: 0.04472939766
AC11: 7 | AD11: º | AE11: Emirados Árabes Unidos | AF11: 9.6105388 | AG11: 0.04471149778
AC12: 8 | AD12: º | AE12: HongKong | AF12: 7.1477316 | AG12: 0.03325368038
AC13: 9 | AD13: º | AE13: Jordânia | AF13: 7.0811755 | AG13: 0.03294403875
AC14: 10 | AD14: º | AE14: Kuwait | AF14: 5.8751133 | AG14: 0.02733302687 | AH14: 0.855988809
AE15: Outros | AF15: 30.9545689 | AG15: 0.144011191
AE16: Total | AF16: 214.9455795 | AG16: 1
AF18: 0
AC38: P | AE38: País | AF38: Média import quinquénio | AG38: % do total | AH38: % acumulada | AM38: P | AN38: Importações | AO38: 2009 | AP38: 2010 | AQ38: 2011 | AR38: 2012 | AS38: 2013 | AT38: 2014 | AU38: 2015 | AV38: 2016 | AW38: 2017 | AX38: 2018 | AY38: média período
AC39: 1 | AD39: º | AE39: China | AF39: 35.7421185 | AG39: 0.2384400516 | AM39: 1º | AN39: China, República Popular da | AO39: 24.145883 | AP39: 26.200838 | AQ39: 32.953044 | AR39: 32.040732 | AS39: 40.870153 | AT39: 34.404149 | AU39: 33.4167 | AV39: 37.962503 | AW39: 52.356487 | AX39: 43.070696 | AY39: 35.7421185
AC40: 2 | AD40: º | AE40: Vietname | AF40: 23.256392 | AG40: 0.1551462404 | AM40: 2º | AN40: Vietname | AO40: 12.907158 | AP40: 11.923073 | AQ40: 18.239869 | AR40: 22.109306 | AS40: 25.570525 | AT40: 22.436439 | AU40: 28.075373 | AV40: 27.342238 | AW40: 31.270102 | AX40: 32.689837 | AY40: 23.256392
AC41: 3 | AD41: º | AE41: Índia | AF41: 18.4797833 | AG41: 0.1232808985 | AH41: 0.5168671905 | AM41: 3º | AN41: Índia | AO41: 9.546026 | AP41: 13.406102 | AQ41: 21.857371 | AR41: 17.331944 | AS41: 17.75336 | AT41: 15.933035 | AU41: 21.667954 | AV41: 21.156242 | AW41: 24.302027 | AX41: 21.843772 | AY41: 18.4797833
AC42: 4 | AD42: º | AE42: Indonésia | AF42: 15.8035579 | AG42: 0.105427471 | AN42: Outros | AO42: 66.655306 | AP42: 46.130858 | AQ42: 65.950242 | AR42: 68.860582 | AS42: 51.408867 | AT42: 88.046159 | AU42: 68.41832 | AV42: 70.941378 | AW42: 95.919754 | AX42: 101.883699 | AY42: 72.4215165
AC43: 5 | AD43: º | AE43: Tailândia | AF43: 9.9071952 | AG43: 0.06609211299 | AN43: Total | AO43: 113.254373 | AP43: 97.660871 | AQ43: 139.000526 | AR43: 140.342564 | AS43: 135.602905 | AT43: 160.819782 | AU43: 151.578347 | AV43: 157.402361 | AW43: 203.84837 | AX43: 199.488004 | AY43: 149.8998103
AC44: 6 | AD44: º | AE44: Rússia | AF44: 8.4547565 | AG44: 0.05640271647
AC45: 7 | AD45: º | AE45: Israel | AF45: 5.0744025 | AG45: 0.03385196079
AC46: 8 | AD46: º | AE46: Japão | AF46: 4.2907234 | AG46: 0.02862394149
AC47: 9 | AD47: º | AE47: Malásia | AF47: 4.1741426 | AG47: 0.02784621669
AC48: 10 | AD48: º | AE48: Laos | AF48: 3.788023 | AG48: 0.02527036554 | AH48: 0.8603819754
AE49: Outros | AF49: 20.9287154 | AG49: 0.1396180246
AE50: Total | AF50: 149.8998103 | AG50: 1
AF52: 0
A57: Fonte: GPP a partir de dados INE/Comércio Internacional (2017 provisórios; 2018 preliminares) | Y57: 2019-11-26T14:40:28.720

Sheet 4
A1: Evolução da balança comercial por país e por produto 2009-2018 em euros (NC 2 dígitos) Agroalimentar, Mar & Florestas
A2: =+aux!A55 -> Evolução da balança comercial Portugal-China, República Popular da
A4: Selecione o país:
A19: =+aux!A56 -> Evolução da balança comercial Portugal-China, República Popular da para Bebidas, líquidos alcoólicos e vinagres
M21: Selecione o produto:
A38: Fonte: GPP a partir de dados INE/Comércio Internacional (2017 provisórios; 2018 preliminares) | R38: 2019-11-26T14:40:28.720

Sheet 4A
A1: Evolução da balança comercial Portugal-Ásia 2009-2018 por produto em euros (NC 2 dígitos)
A3: =+aux!A31 -> Evolução da balança comercial Portugal-Ásia para Bebidas, líquidos alcoólicos e vinagres
A5: Selecione o produto:
U7: Para obter uma maior desagregação deste produto, clique no botão respetivo:
A20: =+aux!A43 -> Evolução da balança comercial Portugal-Ásia para Peixes e crustáceos
A22: Selecione o produto:
A38: Fonte: GPP a partir de dados INE/Comércio Internacional (2017 provisórios; 2018 preliminares) | R38: 2019-11-26T14:40:28.720

Sheet 5.1
A1: Trocas comerciais Portugal-Ásia (2009-2018) por país em milhares de euros | C1: Agroalimentar, Mar & Florestas
A2: Cód. País | B2: País | C2: Importações | O2: Exportações | AA2: Saldo período (exp-imp) | AB2: Evolução das importações | AC2: =+"Variação das Importações " & INDEX(C3:K3,1,aux!$BA$1) & "-"& L3 &"" -> Variação das Importações 2009-2018 | AG2: Evolução das exportações | AH2: ="Variação das Exportações " & INDEX(O3:W3,1,aux!BA1) & "-"& X3 &"" -> Variação das Exportações 2009-2018
C3: 2009 | D3: 2010 | E3: 2011 | F3: 2012 | G3: 2013 | H3: 2014 | I3: 2015 | J3: 2016 | K3: 2017 | L3: 2018 | M3: média período | N3: % Total | O3: 2009 | P3: 2010 | Q3: 2011 | R3: 2012 | S3: 2013 | T3: 2014 | U3: 2015 | V3: 2016 | W3: 2017 | X3: 2018 | Y3: média período | Z3: % Total | AC3: variação total em valor | AD3: % no total de variação | AE3: taxa de variação média anual | AF3: taxa de variação total | AH3: variação total em valor | AI3: % no total de variação | AJ3: taxa de variação média anual | AK3: taxa de variação total | CC3: filtro
A4: 0660 | B4: Afeganistão | C4: 0 | D4: 0 | E4: 0 | F4: 0 | G4: 0 | H4: 0 | I4: 15.895 | J4: 0 | K4: 385.134 | L4: 21.004 | M4: 42.2033 | N4: 0.000103509993 | O4: 6.722 | P4: 2.25 | Q4: 0.025 | R4: 0 | S4: 0 | T4: 0.03 | U4: 41.829 | V4: 79.696 | W4: 0.024 | X4: 0 | Y4: 13.0576 | Z4: 2.716068663e-05 | AA4: -29.1457 | AC4: =L4-INDEX($C4:$L4,1,aux!$BA$1) -> 21.004 | AD4: =AC4/$AC$252 -> 7.434516542e-05 | AE4: =+IF(INDEX($C4:$L4,1,aux!$BA$1)>0,(L4/INDEX($C4:$L4,1,aux!$BA$1))^(1/($L$3-INDEX($C$3:$L$3,1,aux!$BA$1)))-1,"n.d.") -> n.d. | AF4: =IF(INDEX($C4:$L4,1,aux!$BA$1)>0,(L4-INDEX($C4:$L4,1,aux!$BA$1))/INDEX($C4:$L4,1,aux!$BA$1),"n.d.") -> n.d. | AH4: =X4-INDEX($O4:$X4,1,aux!$BA$1) -> -6.722 | AI4: =AH4/$AH$252 -> -1.266312915e-05 | AJ4: =+IF(INDEX($O4:$X4,1,aux!$BA$1)>0,(X4/INDEX($O4:$X4,1,aux!$BA$1))^(1/($X$3-INDEX($O$3:$X$3,1,aux!$BA$1)))-1,"n.d.") -> -1 | AK4: =IF(INDEX($O4:$X4,1,aux!$BA$1)>0,(X4-INDEX($O4:$X4,1,aux!$BA$1))/INDEX($O4:$X4,1,aux!$BA$1),"n.d.") -> -1 | CC4: =+IF(ISNA(MATCH('5.1'!A4,AUX_2d_pais!$G$2:$G$40000,0)),0,1) -> 1
A5: 0388 | B5: África do Sul | C5: 0 | D5: 0 | E5: 0 | F5: 0 | G5: 0 | H5: 0 | I5: 0 | J5: 0 | K5: 0 | L5: 0 | M5: 0 | N5: 0 | O5: 0 | P5: 0 | Q5: 0 | R5: 0 | S5: 0 | T5: 0 | U5: 0 | V5: 0 | W5: 0 | X5: 0 | Y5: 0 | Z5: 0 | AA5: 0 | AC5: =L5-INDEX($C5:$L5,1,aux!$BA$1) -> 0 | AD5: 0 | AE5: =+IF(INDEX($C5:$L5,1,aux!$BA$1)>0,(L5/INDEX($C5:$L5,1,aux!$BA$1))^(1/($L$3-INDEX($C$3:$L$3,1,aux!$BA$1)))-1,"n.d.") -> n.d. | AF5: =IF(INDEX($C5:$L5,1,aux!$BA$1)>0,(L5-INDEX($C5:$L5,1,aux!$BA$1))/INDEX($C5:$L5,1,aux!$BA$1),"n.d.") -> n.d. | AH5: =X5-INDEX($O5:$X5,1,aux!$BA$1) -> 0 | AI5: 0 | AJ5: =+IF(INDEX($O5:$X5,1,aux!$BA$1)>0,(X5/INDEX($O5:$X5,1,aux!$BA$1))^(1/($X$3-INDEX($O$3:$X$3,1,aux!$BA$1)))-1,"n.d.") -> n.d. | AK5: =IF(INDEX($O5:$X5,1,aux!$BA$1)>0,(X5-INDEX($O5:$X5,1,aux!$BA$1))/INDEX($O5:$X5,1,aux!$BA$1),"n.d.") -> n.d. | AM5: =SUM(A5:AA5) -> 0 | CC5: =+IF(ISNA(MATCH('5.1'!A5,AUX_2d_pais!$G$2:$G$40000,0)),0,1) -> 0
A6: 0070 | B6: Albânia | C6: 0 | D6: 0 | E6: 0 | F6: 0 | G6: 0 | H6: 0 | I6: 0 | J6: 0 | K6: 0 | L6: 0 | M6: 0 | N6: 0 | O6: 0 | P6: 0 | Q6: 0 | R6: 0 | S6: 0 | T6: 0 | U6: 0 | V6: 0 | W6: 0 | X6: 0 | Y6: 0 | Z6: 0 | AA6: 0 | AC6: =L6-INDEX($C6:$L6,1,aux!$BA$1) -> 0 | AD6: 0 | AE6: =+IF(INDEX($C6:$L6,1,aux!$BA$1)>0,(L6/INDEX($C6:$L6,1,aux!$BA$1))^(1/($L$3-INDEX($C$3:$L$3,1,aux!$BA$1)))-1,"n.d.") -> n.d. | AF6: =IF(INDEX($C6:$L6,1,aux!$BA$1)>0,(L6-INDEX($C6:$L6,1,aux!$BA$1))/INDEX($C6:$L6,1,aux!$BA$1),"n.d.") -> n.d. | AH6: =X6-INDEX($O6:$X6,1,aux!$BA$1) -> 0 | AI6: 0 | AJ6: =+IF(INDEX($O6:$X6,1,aux!$BA$1)>0,(X6/INDEX($O6:$X6,1,aux!$BA$1))^(1/($X$3-INDEX($O$3:$X$3,1,aux!$BA$1)))-1,"n.d.") -> n.d. | AK6: =IF(INDEX($O6:$X6,1,aux!$BA$1)>0,(X6-INDEX($O6:$X6,1,aux!$BA$1))/INDEX($O6:$X6,1,aux!$BA$1),"n.d.") -> n.d. | AM6: 0 | CC6: =+IF(ISNA(MATCH('5.1'!A6,AUX_2d_pais!$G$2:$G$40000,0)),0,1) -> 0
A7: 0004 | B7: Alemanha | C7: 0 | D7: 0 | E7: 0 | F7: 0 | G7: 0 | H7: 0 | I7: 0 | J7: 0 | K7: 0 | L7: 0 | M7: 0 | N7: 0 | O7: 0 | P7: 0 | Q7: 0 | R7: 0 | S7: 0 | T7: 0 | U7: 0 | V7: 0 | W7: 0 | X7: 0 | Y7: 0 | Z7: 0 | AA7: 0 | AC7: =L7-INDEX($C7:$L7,1,aux!$BA$1) -> 0 | AD7: 0 | AE7: =+IF(INDEX($C7:$L7,1,aux!$BA$1)>0,(L7/INDEX($C7:$L7,1,aux!$BA$1))^(1/($L$3-INDEX($C$3:$L$3,1,aux!$BA$1)))-1,"n.d.") -> n.d. | AF7: =IF(INDEX($C7:$L7,1,aux!$BA$1)>0,(L7-INDEX($C7:$L7,1,aux!$BA$1))/INDEX($C7:$L7,1,aux!$BA$1),"n.d.") -> n.d. | AH7: =X7-INDEX($O7:$X7,1,aux!$BA$1) -> 0 | AI7: 0 | AJ7: =+IF(INDEX($O7:$X7,1,aux!$BA$1)>0,(X7/INDEX($O7:$X7,1,aux!$BA$1))^(1/($X$3-INDEX($O$3:$X$3,1,aux!$BA$1)))-1,"n.d.") -> n.d. | AK7: =IF(INDEX($O7:$X7,1,aux!$BA$1)>0,(X7-INDEX($O7:$X7,1,aux!$BA$1))/INDEX($O7:$X7,1,aux!$BA$1),"n.d.") -> n.d. | AM7: 0 | CC7: =+IF(ISNA(MATCH('5.1'!A7,AUX_2d_pais!$G$2:$G$40000,0)),0,1) -> 0
A8: 0043 | B8: Andorra | C8: 0 | D8: 0 | E8: 0 | F8: 0 | G8: 0 | H8: 0 | I8: 0 | J8: 0 | K8: 0 | L8: 0 | M8: 0 | N8: 0 | O8: 0 | P8: 0 | Q8: 0 | R8: 0 | S8: 0 | T8: 0 | U8: 0 | V8: 0 | W8: 0 | X8: 0 | Y8: 0 | Z8: 0 | AA8: 0 | AC8: =L8-INDEX($C8:$L8,1,aux!$BA$1) -> 0 | AD8: 0 | AE8: =+IF(INDEX($C8:$L8,1,aux!$BA$1)>0,(L8/INDEX($C8:$L8,1,aux!$BA$1))^(1/($L$3-INDEX($C$3:$L$3,1,aux!$BA$1)))-1,"n.d.") -> n.d. | AF8: =IF(INDEX($C8:$L8,1,aux!$BA$1)>0,(L8-INDEX($C8:$L8,1,aux!$BA$1))/INDEX($C8:$L8,1,aux!$BA$1),"n.d.") -> n.d. | AH8: =X8-INDEX($O8:$X8,1,aux!$BA$1) -> 0 | AI8: 0 | AJ8: =+IF(INDEX($O8:$X8,1,aux!$BA$1)>0,(X8/INDEX($O8:$X8,1,aux!$BA$1))^(1/($X$3-INDEX($O$3:$X$3,1,aux!$BA$1)))-1,"n.d.") -> n.d. | AK8: =IF(INDEX($O8:$X8,1,aux!$BA$1)>0,(X8-INDEX($O8:$X8,1,aux!$BA$1))/INDEX($O8:$X8,1,aux!$BA$1),"n.d.") -> n.d. | AM8: 0 | CC8: =+IF(ISNA(MATCH('5.1'!A8,AUX_2d_pais!$G$2:$G$40000,0)),0,1) -> 0
A9: 0330 | B9: Angola | C9: 0 | D9: 0 | E9: 0 | F9: 0 | G9: 0 | H9: 0 | I9: 0 | J9: 0 | K9: 0 | L9: 0 | M9: 0 | N9: 0 | O9: 0 | P9: 0 | Q9: 0 | R9: 0 | S9: 0 | T9: 0 | U9: 0 | V9: 0 | W9: 0 | X9: 0 | Y9: 0 | Z9: 0 | AA9: 0 | AC9: =L9-INDEX($C9:$L9,1,aux!$BA$1) -> 0 | AD9: 0 | AE9: =+IF(INDEX($C9:$L9,1,aux!$BA$1)>0,(L9/INDEX($C9:$L9,1,aux!$BA$1))^(1/($L$3-INDEX($C$3:$L$3,1,aux!$BA$1)))-1,"n.d.") -> n.d. | AF9: =IF(INDEX($C9:$L9,1,aux!$BA$1)>0,(L9-INDEX($C9:$L9,1,aux!$BA$1))/INDEX($C9:$L9,1,aux!$BA$1),"n.d.") -> n.d. | AH9: =X9-INDEX($O9:$X9,1,aux!$BA$1) -> 0 | AI9: 0 | AJ9: =+IF(INDEX($O9:$X9,1,aux!$BA$1)>0,(X9/INDEX($O9:$X9,1,aux!$BA$1))^(1/($X$3-INDEX($O$3:$X$3,1,aux!$BA$1)))-1,"n.d.") -> n.d. | AK9: =IF(INDEX($O9:$X9,1,aux!$BA$1)>0,(X9-INDEX($O9:$X9,1,aux!$BA$1))/INDEX($O9:$X9,1,aux!$BA$1),"n.d.") -> n.d. | AM9: 0 | CC9: =+IF(ISNA(MATCH('5.1'!A9,AUX_2d_pais!$G$2:$G$40000,0)),0,1) -> 0
A10: 0446 | B10: Anguila | C10: 0 | D10: 0 | E10: 0 | F10: 0 | G10: 0 | H10: 0 | I10: 0 | J10: 0 | K10: 0 | L10: 0 | M10: 0 | N10: 0 | O10: 0 | P10: 0 | Q10: 0 | R10: 0 | S10: 0 | T10: 0 | U10: 0 | V10: 0 | W10: 0 | X10: 0 | Y10: 0 | Z10: 0 | AA10: 0 | AC10: =L10-INDEX($C10:$L10,1,aux!$BA$1) -> 0 | AD10: 0 | AE10: =+IF(INDEX($C10:$L10,1,aux!$BA$1)>0,(L10/INDEX($C10:$L10,1,aux!$BA$1))^(1/($L$3-INDEX($C$3:$L$3,1,aux!$BA$1)))-1,"n.d.") -> n.d. | AF10: =IF(INDEX($C10:$L10,1,aux!$BA$1)>0,(L10-INDEX($C10:$L10,1,aux!$BA$1))/INDEX($C10:$L10,1,aux!$BA$1),"n.d.") -> n.d. | AH10: =X10-INDEX($O10:$X10,1,aux!$BA$1) -> 0 | AI10: 0 | AJ10: =+IF(INDEX($O10:$X10,1,aux!$BA$1)>0,(X10/INDEX($O10:$X10,1,aux!$BA$1))^(1/($X$3-INDEX($O$3:$X$3,1,aux!$BA$1)))-1,"n.d.") -> n.d. | AK10: =IF(INDEX($O10:$X10,1,aux!$BA$1)>0,(X10-INDEX($O10:$X10,1,aux!$BA$1))/INDEX($O10:$X10,1,aux!$BA$1),"n.d.") -> n.d. | AM10: 0 | CC10: =+IF(ISNA(MATCH('5.1'!A10,AUX_2d_pais!$G$2:$G$40000,0)),0,1) -> 0
A11: 0891 | B11: Antárctica | C11: 0 | D11: 0 | E11: 0 | F11: 0 | G11: 0 | H11: 0 | I11: 0 | J11: 0 | K11: 0 | L11: 0 | M11: 0 | N11: 0 | O11: 0 | P11: 0 | Q11: 0 | R11: 0 | S11: 0 | T11: 0 | U11: 0 | V11: 0 | W11: 0 | X11: 0 | Y11: 0 | Z11: 0 | AA11: 0 | AC11: =L11-INDEX($C11:$L11,1,aux!$BA$1) -> 0 | AD11: 0 | AE11: =+IF(INDEX($C11:$L11,1,aux!$BA$1)>0,(L11/INDEX($C11:$L11,1,aux!$BA$1))^(1/($L$3-INDEX($C$3:$L$3,1,aux!$BA$1)))-1,"n.d.") -> n.d. | AF11: =IF(INDEX($C11:$L11,1,aux!$BA$1)>0,(L11-INDEX($C11:$L11,1,aux!$BA$1))/INDEX($C11:$L11,1,aux!$BA$1),"n.d.") -> n.d. | AH11: =X11-INDEX($O11:$X11,1,aux!$BA$1) -> 0 | AI11: 0 | AJ11: =+IF(INDEX($O11:$X11,1,aux!$BA$1)>0,(X11/INDEX($O11:$X11,1,aux!$BA$1))^(1/($X$3-INDEX($O$3:$X$3,1,aux!$BA$1)))-1,"n.d.") -> n.d. | AK11: =IF(INDEX($O11:$X11,1,aux!$BA$1)>0,(X11-INDEX($O11:$X11,1,aux!$BA$1))/INDEX($O11:$X11,1,aux!$BA$1),"n.d.") -> n.d. | AM11: 0 | BO11: =SUM(C11:L11,O11:X11) -> 0 | CC11: =+IF(ISNA(MATCH('5.1'!A11,AUX_2d_pais!$G$2:$G$40000,0)),0,1) -> 0
A12: 0459 | B12: Antígua e Barbuda | C12: 0 | D12: 0 | E12: 0 | F12: 0 | G12: 0 | H12: 0 | I12: 0 | J12: 0 | K12: 0 | L12: 0 | M12: 0 | N12: 0 | O12: 0 | P12: 0 | Q12: 0 | R12: 0 | S12: 0 | T12: 0 | U12: 0 | V12: 0 | W12: 0 | X12: 0 | Y12: 0 | Z12: 0 | AA12: 0 | AC12: =L12-INDEX($C12:$L12,1,aux!$BA$1) -> 0 | AD12: 0 | AE12: =+IF(INDEX($C12:$L12,1,aux!$BA$1)>0,(L12/INDEX($C12:$L12,1,aux!$BA$1))^(1/($L$3-INDEX($C$3:$L$3,1,aux!$BA$1)))-1,"n.d.") -> n.d. | AF12: =IF(INDEX($C12:$L12,1,aux!$BA$1)>0,(L12-INDEX($C12:$L12,1,aux!$BA$1))/INDEX($C12:$L12,1,aux!$BA$1),"n.d.") -> n.d. | AH12: =X12-INDEX($O12:$X12,1,aux!$BA$1) -> 0 | AI12: 0 | AJ12: =+IF(INDEX($O12:$X12,1,aux!$BA$1)>0,(X12/INDEX($O12:$X12,1,aux!$BA$1))^(1/($X$3-INDEX($O$3:$X$3,1,aux!$BA$1)))-1,"n.d.") -> n.d. | AK12: =IF(INDEX($O12:$X12,1,aux!$BA$1)>0,(X12-INDEX($O12:$X12,1,aux!$BA$1))/INDEX($O12:$X12,1,aux!$BA$1),"n.d.") -> n.d. | AM12: 0 | CC12: =+IF(ISNA(MATCH('5.1'!A12,AUX_2d_pais!$G$2:$G$40000,0)),0,1) -> 0
A13: 0478 | B13: Antilhas Holandesas | C13: 0 | D13: 0 | E13: 0 | F13: 0 | G13: 0 | H13: 0 | I13: 0 | J13: 0 | K13: 0 | L13: 0 | M13: 0 | N13: 0 | O13: 0 | P13: 0 | Q13: 0 | R13: 0 | S13: 0 | T13: 0 | U13: 0 | V13: 0 | W13: 0 | X13: 0 | Y13: 0 | Z13: 0 | AA13: 0 | AC13: =L13-INDEX($C13:$L13,1,aux!$BA$1) -> 0 | AD13: 0 | AE13: =+IF(INDEX($C13:$L13,1,aux!$BA$1)>0,(L13/INDEX($C13:$L13,1,aux!$BA$1))^(1/($L$3-INDEX($C$3:$L$3,1,aux!$BA$1)))-1,"n.d.") -> n.d. | AF13: =IF(INDEX($C13:$L13,1,aux!$BA$1)>0,(L13-INDEX($C13:$L13,1,aux!$BA$1))/INDEX($C13:$L13,1,aux!$BA$1),"n.d.") -> n.d. | AH13: =X13-INDEX($O13:$X13,1,aux!$BA$1) -> 0 | AI13: 0 | AJ13: =+IF(INDEX($O13:$X13,1,aux!$BA$1)>0,(X13/INDEX($O13:$X13,1,aux!$BA$1))^(1/($X$3-INDEX($O$3:$X$3,1,aux!$BA$1)))-1,"n.d.") -> n.d. | AK13: =IF(INDEX($O13:$X13,1,aux!$BA$1)>0,(X13-INDEX($O13:$X13,1,aux!$BA$1))/INDEX($O13:$X13,1,aux!$BA$1),"n.d.") -> n.d. | AM13: 0 | BO13: 0 | CC13: =+IF(ISNA(MATCH('5.1'!A13,AUX_2d_pais!$G$2:$G$40000,0)),0,1) -> 0
A14: 0632 | B14: Arábia Saudita | C14: 6.542 | D14: 91.343 | E14: 168.605 | F14: 79.994 | G14: 80.135 | H14: 2675.57 | I14: 54.697 | J14: 173.804 | K14: 25.747 | L14: 14.768 | M14: 337.1205 | N14: 0.0008268391471 | O14: 3012.124 | P14: 10986.968 | Q14: 31251.242 | R14: 21148.63 | S14: 20616.246 | T14: 16628.455 | U14: 27055.402 | V14: 23646.204 | W14: 43121.791 | X14: 33634.551 | Y14: 23110.1613 | Z14: 0.04807069056 | AA14: 22773.0408 | AC14: =L14-INDEX($C14:$L14,1,aux!$BA$1) -> 8.226 | AD14: 2.911651736e-05 | AE14: =+IF(INDEX($C14:$L14,1,aux!$BA$1)>0,(L14/INDEX($C14:$L14,1,aux!$BA$1))^(1/($L$3-INDEX($C$3:$L$3,1,aux!$BA$1)))-1,"n.d.") -> 0.0946874196 | AF14: =IF(INDEX($C14:$L14,1,aux!$BA$1)>0,(L14-INDEX($C14:$L14,1,aux!$BA$1))/INDEX($C14:$L14,1,aux!$BA$1),"n.d.") -> 1.257413635 | AH14: =X14-INDEX($O14:$X14,1,aux!$BA$1) -> 30622.427 | AI14: 0.0576875555 | AJ14: =+IF(INDEX($O14:$X14,1,aux!$BA$1)>0,(X14/INDEX($O14:$X14,1,aux!$BA$1))^(1/($X$3-INDEX($O$3:$X$3,1,aux!$BA$1)))-1,"n.d.") -> 0.3074790964 | AK14: =IF(INDEX($O14:$X14,1,aux!$BA$1)>0,(X14-INDEX($O14:$X14,1,aux!$BA$1))/INDEX($O14:$X14,1,aux!$BA$1),"n.d.") -> 10.1663899 | CC14: =+IF(ISNA(MATCH('5.1'!A14,AUX_2d_pais!$G$2:$G$40000,0)),0,1) -> 1
A15: 0208 | B15: Argélia | C15: 0 | D15: 0 | E15: 0 | F15: 0 | G15: 0 | H15: 0 | I15: 0 | J15: 0 | K15: 0 | L15: 0 | M15: 0 | N15: 0 | O15: 0 | P15: 0 | Q15: 0 | R15: 0 | S15: 0 | T15: 0 | U15: 0 | V15: 0 | W15: 0 | X15: 0 | Y15: 0 | Z15: 0 | AA15: 0 | AC15: =L15-INDEX($C15:$L15,1,aux!$BA$1) -> 0 | AD15: 0 | AE15: =+IF(INDEX($C15:$L15,1,aux!$BA$1)>0,(L15/INDEX($C15:$L15,1,aux!$BA$1))^(1/($L$3-INDEX($C$3:$L$3,1,aux!$BA$1)))-1,"n.d.") -> n.d. | AF15: =IF(INDEX($C15:$L15,1,aux!$BA$1)>0,(L15-INDEX($C15:$L15,1,aux!$BA$1))/INDEX($C15:$L15,1,aux!$BA$1),"n.d.") -> n.d. | AH15: =X15-INDEX($O15:$X15,1,aux!$BA$1) -> 0 | AI15: 0 | AJ15: =+IF(INDEX($O15:$X15,1,aux!$BA$1)>0,(X15/INDEX($O15:$X15,1,aux!$BA$1))^(1/($X$3-INDEX($O$3:$X$3,1,aux!$BA$1)))-1,"n.d.") -> n.d. | AK15: =IF(INDEX($O15:$X15,1,aux!$BA$1)>0,(X15-INDEX($O15:$X15,1,aux!$BA$1))/INDEX($O15:$X15,1,aux!$BA$1),"n.d.") -> n.d. | AM15: 0 | CC15: =+IF(ISNA(MATCH('5.1'!A15,AUX_2d_pais!$G$2:$G$40000,0)),0,1) -> 0
A16: 0528 | B16: Argentina | C16: 0 | D16: 0 | E16: 0 | F16: 0 | G16: 0 | H16: 0 | I16: 0 | J16: 0 | K16: 0 | L16: 0 | M16: 0 | N16: 0 | O16: 0 | P16: 0 | Q16: 0 | R16: 0 | S16: 0 | T16: 0 | U16: 0 | V16: 0 | W16: 0 | X16: 0 | Y16: 0 | Z16: 0 | AA16: 0 | AC16: =L16-INDEX($C16:$L16,1,aux!$BA$1) -> 0 | AD16: 0 | AE16: =+IF(INDEX($C16:$L16,1,aux!$BA$1)>0,(L16/INDEX($C16:$L16,1,aux!$BA$1))^(1/($L$3-INDEX($C$3:$L$3,1,aux!$BA$1)))-1,"n.d.") -> n.d. | AF16: =IF(INDEX($C16:$L16,1,aux!$BA$1)>0,(L16-INDEX($C16:$L16,1,aux!$BA$1))/INDEX($C16:$L16,1,aux!$BA$1),"n.d.") -> n.d. | AH16: =X16-INDEX($O16:$X16,1,aux!$BA$1) -> 0 | AI16: 0 | AJ16: =+IF(INDEX($O16:$X16,1,aux!$BA$1)>0,(X16/INDEX($O16:$X16,1,aux!$BA$1))^(1/($X$3-INDEX($O$3:$X$3,1,aux!$BA$1)))-1,"n.d.") -> n.d. | AK16: =IF(INDEX($O16:$X16,1,aux!$BA$1)>0,(X16-INDEX($O16:$X16,1,aux!$BA$1))/INDEX($O16:$X16,1,aux!$BA$1),"n.d.") -> n.d. | AM16: 0 | CC16: =+IF(ISNA(MATCH('5.1'!A16,AUX_2d_pais!$G$2:$G$40000,0)),0,1) -> 0
A17: 0077 | B17: Arménia | C17: 0 | D17: 0 | E17: 0 | F17: 0 | G17: 0 | H17: 0 | I17: 0 | J17: 0 | K17: 0 | L17: 0 | M17: 0 | N17: 0 | O17: 382.059 | P17: 1278.135 | Q17: 1812.527 | R17: 2279.612 | S17: 3150.044 | T17: 2985.247 | U17: 1940.695 | V17: 2090.229 | W17: 2636.337 | X17: 2738.626 | Y17: 2129.3511 | Z17: 0.00442919357 | AA17: 2129.3511 | AC17: =L17-INDEX($C17:$L17,1,aux!$BA$1) -> 0 | AD17: 0 | AE17: =+IF(INDEX($C17:$L17,1,aux!$BA$1)>0,(L17/INDEX($C17:$L17,1,aux!$BA$1))^(1/($L$3-INDEX($C$3:$L$3,1,aux!$BA$1)))-1,"n.d.") -> n.d. | AF17: =IF(INDEX($C17:$L17,1,aux!$BA$1)>0,(L17-INDEX($C17:$L17,1,aux!$BA$1))/INDEX($C17:$L17,1,aux!$BA$1),"n.d.") -> n.d. | AH17: =X17-INDEX($O17:$X17,1,aux!$BA$1) -> 2356.567 | AI17: 0.004439379988 | AJ17: =+IF(INDEX($O17:$X17,1,aux!$BA$1)>0,(X17/INDEX($O17:$X17,1,aux!$BA$1))^(1/($X$3-INDEX($O$3:$X$3,1,aux!$BA$1)))-1,"n.d.") -> 0.2446427083 | AK17: =IF(INDEX($O17:$X17,1,aux!$BA$1)>0,(X17-INDEX($O17:$X17,1,aux!$BA$1))/INDEX($O17:$X17,1,aux!$BA$1),"n.d.") -> 6.1680709 | CC17: =+IF(ISNA(MATCH('5.1'!A17,AUX_2d_pais!$G$2:$G$40000,0)),0,1) -> 1
A18: 0474 | B18: Aruba | C18: 0 | D18: 0 | E18: 0 | F18: 0 | G18: 0 | H18: 0 | I18: 0 | J18: 0 | K18: 0 | L18: 0 | M18: 0 | N18: 0 | O18: 0 | P18: 0 | Q18: 0 | R18: 0 | S18: 0 | T18: 0 | U18: 0 | V18: 0 | W18: 0 | X18: 0 | Y18: 0 | Z18: 0 | AA18: 0 | AC18: =L18-INDEX($C18:$L18,1,aux!$BA$1) -> 0 | AD18: 0 | AE18: =+IF(INDEX($C18:$L18,1,aux!$BA$1)>0,(L18/INDEX($C18:$L18,1,aux!$BA$1))^(1/($L$3-INDEX($C$3:$L$3,1,aux!$BA$1)))-1,"n.d.") -> n.d. | AF18: =IF(INDEX($C18:$L18,1,aux!$BA$1)>0,(L18-INDEX($C18:$L18,1,aux!$BA$1))/INDEX($C18:$L18,1,aux!$BA$1),"n.d.") -> n.d. | AH18: =X18-INDEX($O18:$X18,1,aux!$BA$1) -> 0 | AI18: 0 | AJ18: =+IF(INDEX($O18:$X18,1,aux!$BA$1)>0,(X18/INDEX($O18:$X18,1,aux!$BA$1))^(1/($X$3-INDEX($O$3:$X$3,1,aux!$BA$1)))-1,"n.d.") -> n.d. | AK18: =IF(INDEX($O18:$X18,1,aux!$BA$1)>0,(X18-INDEX($O18:$X18,1,aux!$BA$1))/INDEX($O18:$X18,1,aux!$BA$1),"n.d.") -> n.d. | AM18: 0 | BO18: 0 | CC18: =+IF(ISNA(MATCH('5.1'!A18,AUX_2d_pais!$G$2:$G$40000,0)),0,1) -> 0
A19: 0800 | B19: Austrália | C19: 0 | D19: 0 | E19: 0 | F19: 0 | G19: 0 | H19: 0 | I19: 0 | J19: 0 | K19: 0 | L19: 0 | M19: 0 | N19: 0 | O19: 0 | P19: 0 | Q19: 0 | R19: 0 | S19: 0 | T19: 0 | U19: 0 | V19: 0 | W19: 0 | X19: 0 | Y19: 0 | Z19: 0 | AA19: 0 | AC19: =L19-INDEX($C19:$L19,1,aux!$BA$1) -> 0 | AD19: 0 | AE19: =+IF(INDEX($C19:$L19,1,aux!$BA$1)>0,(L19/INDEX($C19:$L19,1,aux!$BA$1))^(1/($L$3-INDEX($C$3:$L$3,1,aux!$BA$1)))-1,"n.d.") -> n.d. | AF19: =IF(INDEX($C19:$L19,1,aux!$BA$1)>0,(L19-INDEX($C19:$L19,1,aux!$BA$1))/INDEX($C19:$L19,1,aux!$BA$1),"n.d.") -> n.d. | AH19: =X19-INDEX($O19:$X19,1,aux!$BA$1) -> 0 | AI19: 0 | AJ19: =+IF(INDEX($O19:$X19,1,aux!$BA$1)>0,(X19/INDEX($O19:$X19,1,aux!$BA$1))^(1/($X$3-INDEX($O$3:$X$3,1,aux!$BA$1)))-1,"n.d.") -> n.d. | AK19: =IF(INDEX($O19:$X19,1,aux!$BA$1)>0,(X19-INDEX($O19:$X19,1,aux!$BA$1))/INDEX($O19:$X19,1,aux!$BA$1),"n.d.") -> n.d. | AM19: 0 | CC19: =+IF(ISNA(MATCH('5.1'!A19,AUX_2d_pais!$G$2:$G$40000,0)),0,1) -> 0
A20: 0038 | B20: Áustria | C20: 0 | D20: 0 | E20: 0 | F20: 0 | G20: 0 | H20: 0 | I20: 0 | J20: 0 | K20: 0 | L20: 0 | M20: 0 | N20: 0 | O20: 0 | P20: 0 | Q20: 0 | R20: 0 | S20: 0 | T20: 0 | U20: 0 | V20: 0 | W20: 0 | X20: 0 | Y20: 0 | Z20: 0 | AA20: 0 | AC20: =L20-INDEX($C20:$L20,1,aux!$BA$1) -> 0 | AD20: 0 | AE20: =+IF(INDEX($C20:$L20,1,aux!$BA$1)>0,(L20/INDEX($C20:$L20,1,aux!$BA$1))^(1/($L$3-INDEX($C$3:$L$3,1,aux!$BA$1)))-1,"n.d.") -> n.d. | AF20: =IF(INDEX($C20:$L20,1,aux!$BA$1)>0,(L20-INDEX($C20:$L20,1,aux!$BA$1))/INDEX($C20:$L20,1,aux!$BA$1),"n.d.") -> n.d. | AH20: =X20-INDEX($O20:$X20,1,aux!$BA$1) -> 0 | AI20: 0 | AJ20: =+IF(INDEX($O20:$X20,1,aux!$BA$1)>0,(X20/INDEX($O20:$X20,1,aux!$BA$1))^(1/($X$3-INDEX($O$3:$X$3,1,aux!$BA$1)))-1,"n.d.") -> n.d. | AK20: =IF(INDEX($O20:$X20,1,aux!$BA$1)>0,(X20-INDEX($O20:$X20,1,aux!$BA$1))/INDEX($O20:$X20,1,aux!$BA$1),"n.d.") -> n.d. | AM20: 0 | CC20: =+IF(ISNA(MATCH('5.1'!A20,AUX_2d_pais!$G$2:$G$40000,0)),0,1) -> 0
A21: 0078 | B21: Azerbaijão | C21: 0 | D21: 0 | E21: 0 | F21: 0.023 | G21: 0 | H21: 0 | I21: 0 | J21: 0 | K21: 0 | L21: 5.351 | M21: 0.5374 | N21: 1.318054991e-06 | O21: 482.25 | P21: 295.352 | Q21: 831.543 | R21: 1371.208 | S21: 1152.888 | T21: 1760.536 | U21: 1027.756 | V21: 604.048 | W21: 736.649 | X21: 1417.937 | Y21: 968.0167 | Z21: 0.002013539873 | AA21: 967.4793 | AC21: =L21-INDEX($C21:$L21,1,aux!$BA$1) -> 5.351 | AD21: 1.894024853e-05 | AE21: =+IF(INDEX($C21:$L21,1,aux!$BA$1)>0,(L21/INDEX($C21:$L21,1,aux!$BA$1))^(1/($L$3-INDEX($C$3:$L$3,1,aux!$BA$1)))-1,"n.d.") -> n.d. | AF21: =IF(INDEX($C21:$L21,1,aux!$BA$1)>0,(L21-INDEX($C21:$L21,1,aux!$BA$1))/INDEX($C21:$L21,1,aux!$BA$1),"n.d.") -> n.d. | AH21: =X21-INDEX($O21:$X21,1,aux!$BA$1) -> 935.687 | AI21: 0.001762678567 | AJ21: =+IF(INDEX($O21:$X21,1,aux!$BA$1)>0,(X21/INDEX($O21:$X21,1,aux!$BA$1))^(1/($X$3-INDEX($O$3:$X$3,1,aux!$BA$1)))-1,"n.d.") -> 0.1273084032 | AK21: =IF(INDEX($O21:$X21,1,aux!$BA$1)>0,(X21-INDEX($O21:$X21,1,aux!$BA$1))/INDEX($O21:$X21,1,aux!$BA$1),"n.d.") -> 1.940252981 | CC21: =+IF(ISNA(MATCH('5.1'!A21,AUX_2d_pais!$G$2:$G$40000,0)),0,1) -> 1
A22: 0453 | B22: Bahamas | C22: 0 | D22: 0 | E22: 0 | F22: 0 | G22: 0 | H22: 0 | I22: 0 | J22: 0 | K22: 0 | L22: 0 | M22: 0 | N22: 0 | O22: 0 | P22: 0 | Q22: 0 | R22: 0 | S22: 0 | T22: 0 | U22: 0 | V22: 0 | W22: 0 | X22: 0 | Y22: 0 | Z22: 0 | AA22: 0 | AC22: =L22-INDEX($C22:$L22,1,aux!$BA$1) -> 0 | AD22: 0 | AE22: =+IF(INDEX($C22:$L22,1,aux!$BA$1)>0,(L22/INDEX($C22:$L22,1,aux!$BA$1))^(1/($L$3-INDEX($C$3:$L$3,1,aux!$BA$1)))-1,"n.d.") -> n.d. | AF22: =IF(INDEX($C22:$L22,1,aux!$BA$1)>0,(L22-INDEX($C22:$L22,1,aux!$BA$1))/INDEX($C22:$L22,1,aux!$BA$1),"n.d.") -> n.d. | AH22: =X22-INDEX($O22:$X22,1,aux!$BA$1) -> 0 | AI22: 0 | AJ22: =+IF(INDEX($O22:$X22,1,aux!$BA$1)>0,(X22/INDEX($O22:$X22,1,aux!$BA$1))^(1/($X$3-INDEX($O$3:$X$3,1,aux!$BA$1)))-1,"n.d.") -> n.d. | AK22: =IF(INDEX($O22:$X22,1,aux!$BA$1)>0,(X22-INDEX($O22:$X22,1,aux!$BA$1))/INDEX($O22:$X22,1,aux!$BA$1),"n.d.") -> n.d. | AM22: 0 | BO22: 0 | CC22: =+IF(ISNA(MATCH('5.1'!A22,AUX_2d_pais!$G$2:$G$40000,0)),0,1) -> 0
A23: 0666 | B23: Bangladesh | C23: 3140.349 | D23: 6993.729 | E23: 6187.062 | F23: 8823.126 | G23: 6650.219 | H23: 7819.628 | I23: 4270.629 | J23: 5128.022 | K23: 8117.274 | L23: 7021.888 | M23: 6415.1926 | N23: 0.01573423265 | O23: 371.285 | P23: 538.755 | Q23: 2237.217 | R23: 174.925 | S23: 180.055 | T23: 330.369 | U23: 165.124 | V23: 201.541 | W23: 516.286 | X23: 382.391 | Y23: 509.7948 | Z23: 0.001060407487 | AA23: -5905.3978 | AC23: =L23-INDEX($C23:$L23,1,aux!$BA$1) -> 3881.539 | AD23: 0.01373898586 | AE23: =+IF(INDEX($C23:$L23,1,aux!$BA$1)>0,(L23/INDEX($C23:$L23,1,aux!$BA$1))^(1/($L$3-INDEX($C$3:$L$3,1,aux!$BA$1)))-1,"n.d.") -> 0.09352990609 | AF23: =IF(INDEX($C23:$L23,1,aux!$BA$1)>0,(L23-INDEX($C23:$L23,1,aux!$BA$1))/INDEX($C23:$L23,1,aux!$BA$1),"n.d.") -> 1.236021538 | AH23: =X23-INDEX($O23:$X23,1,aux!$BA$1) -> 11.106 | AI23: 2.092185546e-05 | AJ23: =+IF(INDEX($O23:$X23,1,aux!$BA$1)>0,(X23/INDEX($O23:$X23,1,aux!$BA$1))^(1/($X$3-INDEX($O$3:$X$3,1,aux!$BA$1)))-1,"n.d.") -> 0.003280221922 | AK23: =IF(INDEX($O23:$X23,1,aux!$BA$1)>0,(X23-INDEX($O23:$X23,1,aux!$BA$1))/INDEX($O23:$X23,1,aux!$BA$1),"n.d.") -> 0.0299123315 | CC23: =+IF(ISNA(MATCH('5.1'!A23,AUX_2d_pais!$G$2:$G$40000,0)),0,1) -> 1
A24: 0469 | B24: Barbados | C24: 0 | D24: 0 | E24: 0 | F24: 0 | G24: 0 | H24: 0 | I24: 0 | J24: 0 | K24: 0 | L24: 0 | M24: 0 | N24: 0 | O24: 0 | P24: 0 | Q24: 0 | R24: 0 | S24: 0 | T24: 0 | U24: 0 | V24: 0 | W24: 0 | X24: 0 | Y24: 0 | Z24: 0 | AA24: 0 | AC24: =L24-INDEX($C24:$L24,1,aux!$BA$1) -> 0 | AD24: 0 | AE24: =+IF(INDEX($C24:$L24,1,aux!$BA$1)>0,(L24/INDEX($C24:$L24,1,aux!$BA$1))^(1/($L$3-INDEX($C$3:$L$3,1,aux!$BA$1)))-1,"n.d.") -> n.d. | AF24: =IF(INDEX($C24:$L24,1,aux!$BA$1)>0,(L24-INDEX($C24:$L24,1,aux!$BA$1))/INDEX($C24:$L24,1,aux!$BA$1),"n.d.") -> n.d. | AH24: =X24-INDEX($O24:$X24,1,aux!$BA$1) -> 0 | AI24: 0 | AJ24: =+IF(INDEX($O24:$X24,1,aux!$BA$1)>0,(X24/INDEX($O24:$X24,1,aux!$BA$1))^(1/($X$3-INDEX($O$3:$X$3,1,aux!$BA$1)))-1,"n.d.") -> n.d. | AK24: =IF(INDEX($O24:$X24,1,aux!$BA$1)>0,(X24-INDEX($O24:$X24,1,aux!$BA$1))/INDEX($O24:$X24,1,aux!$BA$1),"n.d.") -> n.d. | AM24: 0 | BO24: 0 | CC24: =+IF(ISNA(MATCH('5.1'!A24,AUX_2d_pais!$G$2:$G$40000,0)),0,1) -> 0
A25: 0640 | B25: Barém | C25: 0 | D25: 0 | E25: 0 | F25: 0.431 | G25: 0 | H25: 0 | I25: 0 | J25: 0 | K25: 0.438 | L25: 0.342 | M25: 0.1211 | N25: 2.970161136e-07 | O25: 202.243 | P25: 264.421 | Q25: 675.265 | R25: 315.646 | S25: 260.907 | T25: 318.122 | U25: 447.168 | V25: 510.212 | W25: 1124.626 | X25: 769.988 | Y25: 488.8598 | Z25: 0.001016861279 | AA25: 488.7387 | AC25: =L25-INDEX($C25:$L25,1,aux!$BA$1) -> 0.342 | AD25: 1.210533545e-06 | AE25: =+IF(INDEX($C25:$L25,1,aux!$BA$1)>0,(L25/INDEX($C25:$L25,1,aux!$BA$1))^(1/($L$3-INDEX($C$3:$L$3,1,aux!$BA$1)))-1,"n.d.") -> n.d. | AF25: =IF(INDEX($C25:$L25,1,aux!$BA$1)>0,(L25-INDEX($C25:$L25,1,aux!$BA$1))/INDEX($C25:$L25,1,aux!$BA$1),"n.d.") -> n.d. | AH25: =X25-INDEX($O25:$X25,1,aux!$BA$1) -> 567.745 | AI25: 0.001069537081 | AJ25: =+IF(INDEX($O25:$X25,1,aux!$BA$1)>0,(X25/INDEX($O25:$X25,1,aux!$BA$1))^(1/($X$3-INDEX($O$3:$X$3,1,aux!$BA$1)))-1,"n.d.") -> 0.1601450013 | AK25: =IF(INDEX($O25:$X25,1,aux!$BA$1)>0,(X25-INDEX($O25:$X25,1,aux!$BA$1))/INDEX($O25:$X25,1,aux!$BA$1),"n.d.") -> 2.807241783 | CC25: =+IF(ISNA(MATCH('5.1'!A25,AUX_2d_pais!$G$2:$G$40000,0)),0,1) -> 1
A26: 0073 | B26: Belarus | C26: 0 | D26: 0 | E26: 0 | F26: 0 | G26: 0 | H26: 0 | I26: 0 | J26: 0 | K26: 0 | L26: 0 | M26: 0 | N26: 0 | O26: 0 | P26: 0 | Q26: 0 | R26: 0 | S26: 0 | T26: 0 | U26: 0 | V26: 0 | W26: 0 | X26: 0 | Y26: 0 | Z26: 0 | AA26: 0 | AC26: =L26-INDEX($C26:$L26,1,aux!$BA$1) -> 0 | AD26: 0 | AE26: =+IF(INDEX($C26:$L26,1,aux!$BA$1)>0,(L26/INDEX($C26:$L26,1,aux!$BA$1))^(1/($L$3-INDEX($C$3:$L$3,1,aux!$BA$1)))-1,"n.d.") -> n.d. | AF26: =IF(INDEX($C26:$L26,1,aux!$BA$1)>0,(L26-INDEX($C26:$L26,1,aux!$BA$1))/INDEX($C26:$L26,1,aux!$BA$1),"n.d.") -> n.d. | AH26: =X26-INDEX($O26:$X26,1,aux!$BA$1) -> 0 | AI26: 0 | AJ26: =+IF(INDEX($O26:$X26,1,aux!$BA$1)>0,(X26/INDEX($O26:$X26,1,aux!$BA$1))^(1/($X$3-INDEX($O$3:$X$3,1,aux!$BA$1)))-1,"n.d.") -> n.d. | AK26: =IF(INDEX($O26:$X26,1,aux!$BA$1)>0,(X26-INDEX($O26:$X26,1,aux!$BA$1))/INDEX($O26:$X26,1,aux!$BA$1),"n.d.") -> n.d. | AM26: 0 | CC26: =+IF(ISNA(MATCH('5.1'!A26,AUX_2d_pais!$G$2:$G$40000,0)),0,1) -> 0
A27: 0017 | B27: Bélgica | C27: 0 | D27: 0 | E27: 0 | F27: 0 | G27: 0 | H27: 0 | I27: 0 | J27: 0 | K27: 0 | L27: 0 | M27: 0 | N27: 0 | O27: 0 | P27: 0 | Q27: 0 | R27: 0 | S27: 0 | T27: 0 | U27: 0 | V27: 0 | W27: 0 | X27: 0 | Y27: 0 | Z27: 0 | AA27: 0 | AC27: =L27-INDEX($C27:$L27,1,aux!$BA$1) -> 0 | AD27: 0 | AE27: =+IF(INDEX($C27:$L27,1,aux!$BA$1)>0,(L27/INDEX($C27:$L27,1,aux!$BA$1))^(1/($L$3-INDEX($C$3:$L$3,1,aux!$BA$1)))-1,"n.d.") -> n.d. | AF27: =IF(INDEX($C27:$L27,1,aux!$BA$1)>0,(L27-INDEX($C27:$L27,1,aux!$BA$1))/INDEX($C27:$L27,1,aux!$BA$1),"n.d.") -> n.d. | AH27: =X27-INDEX($O27:$X27,1,aux!$BA$1) -> 0 | AI27: 0 | AJ27: =+IF(INDEX($O27:$X27,1,aux!$BA$1)>0,(X27/INDEX($O27:$X27,1,aux!$BA$1))^(1/($X$3-INDEX($O$3:$X$3,1,aux!$BA$1)))-1,"n.d.") -> n.d. | AK27: =IF(INDEX($O27:$X27,1,aux!$BA$1)>0,(X27-INDEX($O27:$X27,1,aux!$BA$1))/INDEX($O27:$X27,1,aux!$BA$1),"n.d.") -> n.d. | AM27: 0 | CC27: =+IF(ISNA(MATCH('5.1'!A27,AUX_2d_pais!$G$2:$G$40000,0)),0,1) -> 0
A28: 0421 | B28: Belize | C28: 0 | D28: 0 | E28: 0 | F28: 0 | G28: 0 | H28: 0 | I28: 0 | J28: 0 | K28: 0 | L28: 0 | M28: 0 | N28: 0 | O28: 0 | P28: 0 | Q28: 0 | R28: 0 | S28: 0 | T28: 0 | U28: 0 | V28: 0 | W28: 0 | X28: 0 | Y28: 0 | Z28: 0 | AA28: 0 | AC28: =L28-INDEX($C28:$L28,1,aux!$BA$1) -> 0 | AD28: 0 | AE28: =+IF(INDEX($C28:$L28,1,aux!$BA$1)>0,(L28/INDEX($C28:$L28,1,aux!$BA$1))^(1/($L$3-INDEX($C$3:$L$3,1,aux!$BA$1)))-1,"n.d.") -> n.d. | AF28: =IF(INDEX($C28:$L28,1,aux!$BA$1)>0,(L28-INDEX($C28:$L28,1,aux!$BA$1))/INDEX($C28:$L28,1,aux!$BA$1),"n.d.") -> n.d. | AH28: =X28-INDEX($O28:$X28,1,aux!$BA$1) -> 0 | AI28: 0 | AJ28: =+IF(INDEX($O28:$X28,1,aux!$BA$1)>0,(X28/INDEX($O28:$X28,1,aux!$BA$1))^(1/($X$3-INDEX($O$3:$X$3,1,aux!$BA$1)))-1,"n.d.") -> n.d. | AK28: =IF(INDEX($O28:$X28,1,aux!$BA$1)>0,(X28-INDEX($O28:$X28,1,aux!$BA$1))/INDEX($O28:$X28,1,aux!$BA$1),"n.d.") -> n.d. | AM28: 0 | CC28: =+IF(ISNA(MATCH('5.1'!A28,AUX_2d_pais!$G$2:$G$40000,0)),0,1) -> 0
A29: 0284 | B29: Benim | C29: 0 | D29: 0 | E29: 0 | F29: 0 | G29: 0 | H29: 0 | I29: 0 | J29: 0 | K29: 0 | L29: 0 | M29: 0 | N29: 0 | O29: 0 | P29: 0 | Q29: 0 | R29: 0 | S29: 0 | T29: 0 | U29: 0 | V29: 0 | W29: 0 | X29: 0 | Y29: 0 | Z29: 0 | AA29: 0 | AC29: =L29-INDEX($C29:$L29,1,aux!$BA$1) -> 0 | AD29: 0 | AE29: =+IF(INDEX($C29:$L29,1,aux!$BA$1)>0,(L29/INDEX($C29:$L29,1,aux!$BA$1))^(1/($L$3-INDEX($C$3:$L$3,1,aux!$BA$1)))-1,"n.d.") -> n.d. | AF29: =IF(INDEX($C29:$L29,1,aux!$BA$1)>0,(L29-INDEX($C29:$L29,1,aux!$BA$1))/INDEX($C29:$L29,1,aux!$BA$1),"n.d.") -> n.d. | AH29: =X29-INDEX($O29:$X29,1,aux!$BA$1) -> 0 | AI29: 0 | AJ29: =+IF(INDEX($O29:$X29,1,aux!$BA$1)>0,(X29/INDEX($O29:$X29,1,aux!$BA$1))^(1/($X$3-INDEX($O$3:$X$3,1,aux!$BA$1)))-1,"n.d.") -> n.d. | AK29: =IF(INDEX($O29:$X29,1,aux!$BA$1)>0,(X29-INDEX($O29:$X29,1,aux!$BA$1))/INDEX($O29:$X29,1,aux!$BA$1),"n.d.") -> n.d. | AM29: 0 | CC29: =+IF(ISNA(MATCH('5.1'!A29,AUX_2d_pais!$G$2:$G$40000,0)),0,1) -> 0
A30: 0413 | B30: Bermudas | C30: 0 | D30: 0 | E30: 0 | F30: 0 | G30: 0 | H30: 0 | I30: 0 | J30: 0 | K30: 0 | L30: 0 | M30: 0 | N30: 0 | O30: 0 | P30: 0 | Q30: 0 | R30: 0 | S30: 0 | T30: 0 | U30: 0 | V30: 0 | W30: 0 | X30: 0 | Y30: 0 | Z30: 0 | AA30: 0 | AC30: =L30-INDEX($C30:$L30,1,aux!$BA$1) -> 0 | AD30: 0 | AE30: =+IF(INDEX($C30:$L30,1,aux!$BA$1)>0,(L30/INDEX($C30:$L30,1,aux!$BA$1))^(1/($L$3-INDEX($C$3:$L$3,1,aux!$BA$1)))-1,"n.d.") -> n.d. | AF30: =IF(INDEX($C30:$L30,1,aux!$BA$1)>0,(L30-INDEX($C30:$L30,1,aux!$BA$1))/INDEX($C30:$L30,1,aux!$BA$1),"n.d.") -> n.d. | AH30: =X30-INDEX($O30:$X30,1,aux!$BA$1) -> 0 | AI30: 0 | AJ30: =+IF(INDEX($O30:$X30,1,aux!$BA$1)>0,(X30/INDEX($O30:$X30,1,aux!$BA$1))^(1/($X$3-INDEX($O$3:$X$3,1,aux!$BA$1)))-1,"n.d.") -> n.d. | AK30: =IF(INDEX($O30:$X30,1,aux!$BA$1)>0,(X30-INDEX($O30:$X30,1,aux!$BA$1))/INDEX($O30:$X30,1,aux!$BA$1),"n.d.") -> n.d. | AM30: 0 | CC30: =+IF(ISNA(MATCH('5.1'!A30,AUX_2d_pais!$G$2:$G$40000,0)),0,1) -> 0
A31: 0516 | B31: Bolívia | C31: 0 | D31: 0 | E31: 0 | F31: 0 | G31: 0 | H31: 0 | I31: 0 | J31: 0 | K31: 0 | L31: 0 | M31: 0 | N31: 0 | O31: 0 | P31: 0 | Q31: 0 | R31: 0 | S31: 0 | T31: 0 | U31: 0 | V31: 0 | W31: 0 | X31: 0 | Y31: 0 | Z31: 0 | AA31: 0 | AC31: =L31-INDEX($C31:$L31,1,aux!$BA$1) -> 0 | AD31: 0 | AE31: =+IF(INDEX($C31:$L31,1,aux!$BA$1)>0,(L31/INDEX($C31:$L31,1,aux!$BA$1))^(1/($L$3-INDEX($C$3:$L$3,1,aux!$BA$1)))-1,"n.d.") -> n.d. | AF31: =IF(INDEX($C31:$L31,1,aux!$BA$1)>0,(L31-INDEX($C31:$L31,1,aux!$BA$1))/INDEX($C31:$L31,1,aux!$BA$1),"n.d.") -> n.d. | AH31: =X31-INDEX($O31:$X31,1,aux!$BA$1) -> 0 | AI31: 0 | AJ31: =+IF(INDEX($O31:$X31,1,aux!$BA$1)>0,(X31/INDEX($O31:$X31,1,aux!$BA$1))^(1/($X$3-INDEX($O$3:$X$3,1,aux!$BA$1)))-1,"n.d.") -> n.d. | AK31: =IF(INDEX($O31:$X31,1,aux!$BA$1)>0,(X31-INDEX($O31:$X31,1,aux!$BA$1))/INDEX($O31:$X31,1,aux!$BA$1),"n.d.") -> n.d. | AM31: 0 | CC31: =+IF(ISNA(MATCH('5.1'!A31,AUX_2d_pais!$G$2:$G$40000,0)),0,1) -> 0
A32: 0477 | B32: Bonaire, Santo Eustáquio e Saba | C32: 0 | D32: 0 | E32: 0 | F32: 0 | G32: 0 | H32: 0 | I32: 0 | J32: 0 | K32: 0 | L32: 0 | M32: 0 | N32: 0 | O32: 0 | P32: 0 | Q32: 0 | R32: 0 | S32: 0 | T32: 0 | U32: 0 | V32: 0 | W32: 0 | X32: 0 | Y32: 0 | Z32: 0 | AA32: 0 | AC32: =L32-INDEX($C32:$L32,1,aux!$BA$1) -> 0 | AD32: 0 | AE32: =+IF(INDEX($C32:$L32,1,aux!$BA$1)>0,(L32/INDEX($C32:$L32,1,aux!$BA$1))^(1/($L$3-INDEX($C$3:$L$3,1,aux!$BA$1)))-1,"n.d.") -> n.d. | AF32: =IF(INDEX($C32:$L32,1,aux!$BA$1)>0,(L32-INDEX($C32:$L32,1,aux!$BA$1))/INDEX($C32:$L32,1,aux!$BA$1),"n.d.") -> n.d. | AH32: =X32-INDEX($O32:$X32,1,aux!$BA$1) -> 0 | AI32: 0 | AJ32: =+IF(INDEX($O32:$X32,1,aux!$BA$1)>0,(X32/INDEX($O32:$X32,1,aux!$BA$1))^(1/($X$3-INDEX($O$3:$X$3,1,aux!$BA$1)))-1,"n.d.") -> n.d. | AK32: =IF(INDEX($O32:$X32,1,aux!$BA$1)>0,(X32-INDEX($O32:$X32,1,aux!$BA$1))/INDEX($O32:$X32,1,aux!$BA$1),"n.d.") -> n.d. | AM32: 0 | BO32: 0 | CC32: =+IF(ISNA(MATCH('5.1'!A32,AUX_2d_pais!$G$2:$G$40000,0)),0,1) -> 0
A33: 0093 | B33: Bósnia-Herzegovina | C33: 0 | D33: 0 | E33: 0 | F33: 0 | G33: 0 | H33: 0 | I33: 0 | J33: 0 | K33: 0 | L33: 0 | M33: 0 | N33: 0 | O33: 0 | P33: 0 | Q33: 0 | R33: 0 | S33: 0 | T33: 0 | U33: 0 | V33: 0 | W33: 0 | X33: 0 | Y33: 0 | Z33: 0 | AA33: 0 | AC33: =L33-INDEX($C33:$L33,1,aux!$BA$1) -> 0 | AD33: 0 | AE33: =+IF(INDEX($C33:$L33,1,aux!$BA$1)>0,(L33/INDEX($C33:$L33,1,aux!$BA$1))^(1/($L$3-INDEX($C$3:$L$3,1,aux!$BA$1)))-1,"n.d.") -> n.d. | AF33: =IF(INDEX($C33:$L33,1,aux!$BA$1)>0,(L33-INDEX($C33:$L33,1,aux!$BA$1))/INDEX($C33:$L33,1,aux!$BA$1),"n.d.") -> n.d. | AH33: =X33-INDEX($O33:$X33,1,aux!$BA$1) -> 0 | AI33: 0 | AJ33: =+IF(INDEX($O33:$X33,1,aux!$BA$1)>0,(X33/INDEX($O33:$X33,1,aux!$BA$1))^(1/($X$3-INDEX($O$3:$X$3,1,aux!$BA$1)))-1,"n.d.") -> n.d. | AK33: =IF(INDEX($O33:$X33,1,aux!$BA$1)>0,(X33-INDEX($O33:$X33,1,aux!$BA$1))/INDEX($O33:$X33,1,aux!$BA$1),"n.d.") -> n.d. | AM33: 0 | CC33: =+IF(ISNA(MATCH('5.1'!A33,AUX_2d_pais!$G$2:$G$40000,0)),0,1) -> 0
A34: 0391 | B34: Botswana | C34: 0 | D34: 0 | E34: 0 | F34: 0 | G34: 0 | H34: 0 | I34: 0 | J34: 0 | K34: 0 | L34: 0 | M34: 0 | N34: 0 | O34: 0 | P34: 0 | Q34: 0 | R34: 0 | S34: 0 | T34: 0 | U34: 0 | V34: 0 | W34: 0 | X34: 0 | Y34: 0 | Z34: 0 | AA34: 0 | AC34: =L34-INDEX($C34:$L34,1,aux!$BA$1) -> 0 | AD34: 0 | AE34: =+IF(INDEX($C34:$L34,1,aux!$BA$1)>0,(L34/INDEX($C34:$L34,1,aux!$BA$1))^(1/($L$3-INDEX($C$3:$L$3,1,aux!$BA$1)))-1,"n.d.") -> n.d. | AF34: =IF(INDEX($C34:$L34,1,aux!$BA$1)>0,(L34-INDEX($C34:$L34,1,aux!$BA$1))/INDEX($C34:$L34,1,aux!$BA$1),"n.d.") -> n.d. | AH34: =X34-INDEX($O34:$X34,1,aux!$BA$1) -> 0 | AI34: 0 | AJ34: =+IF(INDEX($O34:$X34,1,aux!$BA$1)>0,(X34/INDEX($O34:$X34,1,aux!$BA$1))^(1/($X$3-INDEX($O$3:$X$3,1,aux!$BA$1)))-1,"n.d.") -> n.d. | AK34: =IF(INDEX($O34:$X34,1,aux!$BA$1)>0,(X34-INDEX($O34:$X34,1,aux!$BA$1))/INDEX($O34:$X34,1,aux!$BA$1),"n.d.") -> n.d. | AM34: 0 | CC34: =+IF(ISNA(MATCH('5.1'!A34,AUX_2d_pais!$G$2:$G$40000,0)),0,1) -> 0
A35: 0892 | B35: Bouvet, Ilha | C35: 0 | D35: 0 | E35: 0 | F35: 0 | G35: 0 | H35: 0 | I35: 0 | J35: 0 | K35: 0 | L35: 0 | M35: 0 | N35: 0 | O35: 0 | P35: 0 | Q35: 0 | R35: 0 | S35: 0 | T35: 0 | U35: 0 | V35: 0 | W35: 0 | X35: 0 | Y35: 0 | Z35: 0 | AA35: 0 | AC35: =L35-INDEX($C35:$L35,1,aux!$BA$1) -> 0 | AD35: 0 | AE35: =+IF(INDEX($C35:$L35,1,aux!$BA$1)>0,(L35/INDEX($C35:$L35,1,aux!$BA$1))^(1/($L$3-INDEX($C$3:$L$3,1,aux!$BA$1)))-1,"n.d.") -> n.d. | AF35: =IF(INDEX($C35:$L35,1,aux!$BA$1)>0,(L35-INDEX($C35:$L35,1,aux!$BA$1))/INDEX($C35:$L35,1,aux!$BA$1),"n.d.") -> n.d. | AH35: =X35-INDEX($O35:$X35,1,aux!$BA$1) -> 0 | AI35: 0 | AJ35: =+IF(INDEX($O35:$X35,1,aux!$BA$1)>0,(X35/INDEX($O35:$X35,1,aux!$BA$1))^(1/($X$3-INDEX($O$3:$X$3,1,aux!$BA$1)))-1,"n.d.") -> n.d. | AK35: =IF(INDEX($O35:$X35,1,aux!$BA$1)>0,(X35-INDEX($O35:$X35,1,aux!$BA$1))/INDEX($O35:$X35,1,aux!$BA$1),"n.d.") -> n.d. | AM35: 0 | BO35: 0 | CC35: =+IF(ISNA(MATCH('5.1'!A35,AUX_2d_pais!$G$2:$G$40000,0)),0,1) -> 0
A36: 0508 | B36: Brasil | C36: 0 | D36: 0 | E36: 0 | F36: 0 | G36: 0 | H36: 0 | I36: 0 | J36: 0 | K36: 0 | L36: 0 | M36: 0 | N36: 0 | O36: 0 | P36: 0 | Q36: 0 | R36: 0 | S36: 0 | T36: 0 | U36: 0 | V36: 0 | W36: 0 | X36: 0 | Y36: 0 | Z36: 0 | AA36: 0 | AC36: =L36-INDEX($C36:$L36,1,aux!$BA$1) -> 0 | AD36: =AC36/$AC$252 -> 0 | AE36: =+IF(INDEX($C36:$L36,1,aux!$BA$1)>0,(L36/INDEX($C36:$L36,1,aux!$BA$1))^(1/($L$3-INDEX($C$3:$L$3,1,aux!$BA$1)))-1,"n.d.") -> n.d. | AF36: =IF(INDEX($C36:$L36,1,aux!$BA$1)>0,(L36-INDEX($C36:$L36,1,aux!$BA$1))/INDEX($C36:$L36,1,aux!$BA$1),"n.d.") -> n.d. | AH36: =X36-INDEX($O36:$X36,1,aux!$BA$1) -> 0 | AI36: =AH36/$AH$252 -> 0 | AJ36: =+IF(INDEX($O36:$X36,1,aux!$BA$1)>0,(X36/INDEX($O36:$X36,1,aux!$BA$1))^(1/($X$3-INDEX($O$3:$X$3,1,aux!$BA$1)))-1,"n.d.") -> n.d. | AK36: =IF(INDEX($O36:$X36,1,aux!$BA$1)>0,(X36-INDEX($O36:$X36,1,aux!$BA$1))/INDEX($O36:$X36,1,aux!$BA$1),"n.d.") -> n.d. | AM36: 0 | CC36: =+IF(ISNA(MATCH('5.1'!A36,AUX_2d_pais!$G$2:$G$40000,0)),0,1) -> 0
A37: 0703 | B37: Brunei Darussalam | C37: 0 | D37: 0 | E37: 0 | F37: 0 | G37: 0 | H37: 0 | I37: 0 | J37: 0 | K37: 0 | L37: 0 | M37: 0 | N37: 0 | O37: 0 | P37: 0 | Q37: 113.149 | R37: 0 | S37: 0 | T37: 0.413 | U37: 25.849 | V37: 0.037 | W37: 19.175 | X37: 0.034 | Y37: 15.8657 | Z37: 3.300172358e-05 | AA37: 15.8657 | AC37: =L37-INDEX($C37:$L37,1,aux!$BA$1) -> 0 | AD37: 0 | AE37: =+IF(INDEX($C37:$L37,1,aux!$BA$1)>0,(L37/INDEX($C37:$L37,1,aux!$BA$1))^(1/($L$3-INDEX($C$3:$L$3,1,aux!$BA$1)))-1,"n.d.") -> n.d. | AF37: =IF(INDEX($C37:$L37,1,aux!$BA$1)>0,(L37-INDEX($C37:$L37,1,aux!$BA$1))/INDEX($C37:$L37,1,aux!$BA$1),"n.d.") -> n.d. | AH37: =X37-INDEX($O37:$X37,1,aux!$BA$1) -> 0.034 | AI37: 6.405034086e-08 | AJ37: =+IF(INDEX($O37:$X37,1,aux!$BA$1)>0,(X37/INDEX($O37:$X37,1,aux!$BA$1))^(1/($X$3-INDEX($O$3:$X$3,1,aux!$BA$1)))-1,"n.d.") -> n.d. | AK37: =IF(INDEX($O37:$X37,1,aux!$BA$1)>0,(X37-INDEX($O37:$X37,1,aux!$BA$1))/INDEX($O37:$X37,1,aux!$BA$1),"n.d.") -> n.d. | BO37: 158.657 | CC37: =+IF(ISNA(MATCH('5.1'!A37,AUX_2d_pais!$G$2:$G$40000,0)),0,1) -> 1
A38: 0068 | B38: Bulgária | C38: 0 | D38: 0 | E38: 0 | F38: 0 | G38: 0 | H38: 0 | I38: 0 | J38: 0 | K38: 0 | L38: 0 | M38: 0 | N38: 0 | O38: 0 | P38: 0 | Q38: 0 | R38: 0 | S38: 0 | T38: 0 | U38: 0 | V38: 0 | W38: 0 | X38: 0 | Y38: 0 | Z38: 0 | AA38: 0 | AC38: =L38-INDEX($C38:$L38,1,aux!$BA$1) -> 0 | AD38: 0 | AE38: =+IF(INDEX($C38:$L38,1,aux!$BA$1)>0,(L38/INDEX($C38:$L38,1,aux!$BA$1))^(1/($L$3-INDEX($C$3:$L$3,1,aux!$BA$1)))-1,"n.d.") -> n.d. | AF38: =IF(INDEX($C38:$L38,1,aux!$BA$1)>0,(L38-INDEX($C38:$L38,1,aux!$BA$1))/INDEX($C38:$L38,1,aux!$BA$1),"n.d.") -> n.d. | AH38: =X38-INDEX($O38:$X38,1,aux!$BA$1) -> 0 | AI38: 0 | AJ38: =+IF(INDEX($O38:$X38,1,aux!$BA$1)>0,(X38/INDEX($O38:$X38,1,aux!$BA$1))^(1/($X$3-INDEX($O$3:$X$3,1,aux!$BA$1)))-1,"n.d.") -> n.d. | AK38: =IF(INDEX($O38:$X38,1,aux!$BA$1)>0,(X38-INDEX($O38:$X38,1,aux!$BA$1))/INDEX($O38:$X38,1,aux!$BA$1),"n.d.") -> n.d. | AM38: 0 | CC38: =+IF(ISNA(MATCH('5.1'!A38,AUX_2d_pais!$G$2:$G$40000,0)),0,1) -> 0
A39: 0236 | B39: Burquina Faso | C39: 0 | D39: 0 | E39: 0 | F39: 0 | G39: 0 | H39: 0 | I39: 0 | J39: 0 | K39: 0 | L39: 0 | M39: 0 | N39: 0 | O39: 0 | P39: 0 | Q39: 0 | R39: 0 | S39: 0 | T39: 0 | U39: 0 | V39: 0 | W39: 0 | X39: 0 | Y39: 0 | Z39: 0 | AA39: 0 | AC39: =L39-INDEX($C39:$L39,1,aux!$BA$1) -> 0 | AD39: 0 | AE39: =+IF(INDEX($C39:$L39,1,aux!$BA$1)>0,(L39/INDEX($C39:$L39,1,aux!$BA$1))^(1/($L$3-INDEX($C$3:$L$3,1,aux!$BA$1)))-1,"n.d.") -> n.d. | AF39: =IF(INDEX($C39:$L39,1,aux!$BA$1)>0,(L39-INDEX($C39:$L39,1,aux!$BA$1))/INDEX($C39:$L39,1,aux!$BA$1),"n.d.") -> n.d. | AH39: =X39-INDEX($O39:$X39,1,aux!$BA$1) -> 0 | AI39: 0 | AJ39: =+IF(INDEX($O39:$X39,1,aux!$BA$1)>0,(X39/INDEX($O39:$X39,1,aux!$BA$1))^(1/($X$3-INDEX($O$3:$X$3,1,aux!$BA$1)))-1,"n.d.") -> n.d. | AK39: =IF(INDEX($O39:$X39,1,aux!$BA$1)>0,(X39-INDEX($O39:$X39,1,aux!$BA$1))/INDEX($O39:$X39,1,aux!$BA$1),"n.d.") -> n.d. | AM39: 0 | CC39: =+IF(ISNA(MATCH('5.1'!A39,AUX_2d_pais!$G$2:$G$40000,0)),0,1) -> 0
A40: 0328 | B40: Burundi | C40: 0 | D40: 0 | E40: 0 | F40: 0 | G40: 0 | H40: 0 | I40: 0 | J40: 0 | K40: 0 | L40: 0 | M40: 0 | N40: 0 | O40: 0 | P40: 0 | Q40: 0 | R40: 0 | S40: 0 | T40: 0 | U40: 0 | V40: 0 | W40: 0 | X40: 0 | Y40: 0 | Z40: 0 | AA40: 0 | AC40: =L40-INDEX($C40:$L40,1,aux!$BA$1) -> 0 | AD40: 0 | AE40: =+IF(INDEX($C40:$L40,1,aux!$BA$1)>0,(L40/INDEX($C40:$L40,1,aux!$BA$1))^(1/($L$3-INDEX($C$3:$L$3,1,aux!$BA$1)))-1,"n.d.") -> n.d. | AF40: =IF(INDEX($C40:$L40,1,aux!$BA$1)>0,(L40-INDEX($C40:$L40,1,aux!$BA$1))/INDEX($C40:$L40,1,aux!$BA$1),"n.d.") -> n.d. | AH40: =X40-INDEX($O40:$X40,1,aux!$BA$1) -> 0 | AI40: 0 | AJ40: =+IF(INDEX($O40:$X40,1,aux!$BA$1)>0,(X40/INDEX($O40:$X40,1,aux!$BA$1))^(1/($X$3-INDEX($O$3:$X$3,1,aux!$BA$1)))-1,"n.d.") -> n.d. | AK40: =IF(INDEX($O40:$X40,1,aux!$BA$1)>0,(X40-INDEX($O40:$X40,1,aux!$BA$1))/INDEX($O40:$X40,1,aux!$BA$1),"n.d.") -> n.d. | AM40: 0 | BO40: 0 | CC40: =+IF(ISNA(MATCH('5.1'!A40,AUX_2d_pais!$G$2:$G$40000,0)),0,1) -> 0
A41: 0675 | B41: Butão | C41: 0 | D41: 0 | E41: 0 | F41: 0 | G41: 0 | H41: 2.092 | I41: 0 | J41: 0.5 | K41: 0 | L41: 6.089 | M41: 0.8681 | N41: 2.129146889e-06 | O41: 0 | P41: 0 | Q41: 0 | R41: 0 | S41: 0 | T41: 0 | U41: 1.652 | V41: 0 | W41: 0 | X41: 0 | Y41: 0.1652 | Z41: 3.436271161e-07 | AA41: -0.7029 | AC41: =L41-INDEX($C41:$L41,1,aux!$BA$1) -> 6.089 | AD41: 2.15524525e-05 | AE41: =+IF(INDEX($C41:$L41,1,aux!$BA$1)>0,(L41/INDEX($C41:$L41,1,aux!$BA$1))^(1/($L$3-INDEX($C$3:$L$3,1,aux!$BA$1)))-1,"n.d.") -> n.d. | AF41: =IF(INDEX($C41:$L41,1,aux!$BA$1)>0,(L41-INDEX($C41:$L41,1,aux!$BA$1))/INDEX($C41:$L41,1,aux!$BA$1),"n.d.") -> n.d. | AH41: =X41-INDEX($O41:$X41,1,aux!$BA$1) -> 0 | AI41: 0 | AJ41: =+IF(INDEX($O41:$X41,1,aux!$BA$1)>0,(X41/INDEX($O41:$X41,1,aux!$BA$1))^(1/($X$3-INDEX($O$3:$X$3,1,aux!$BA$1)))-1,"n.d.") -> n.d. | AK41: =IF(INDEX($O41:$X41,1,aux!$BA$1)>0,(X41-INDEX($O41:$X41,1,aux!$BA$1))/INDEX($O41:$X41,1,aux!$BA$1),"n.d.") -> n.d. | BO41: 10.333 | CC41: =+IF(ISNA(MATCH('5.1'!A41,AUX_2d_pais!$G$2:$G$40000,0)),0,1) -> 1
A42: 0247 | B42: Cabo Verde | C42: 0 | D42: 0 | E42: 0 | F42: 0 | G42: 0 | H42: 0 | I42: 0 | J42: 0 | K42: 0 | L42: 0 | M42: 0 | N42: 0 | O42: 0 | P42: 0 | Q42: 0 | R42: 0 | S42: 0 | T42: 0 | U42: 0 | V42: 0 | W42: 0 | X42: 0 | Y42: 0 | Z42: 0 | AA42: 0 | AC42: =L42-INDEX($C42:$L42,1,aux!$BA$1) -> 0 | AD42: 0 | AE42: =+IF(INDEX($C42:$L42,1,aux!$BA$1)>0,(L42/INDEX($C42:$L42,1,aux!$BA$1))^(1/($L$3-INDEX($C$3:$L$3,1,aux!$BA$1)))-1,"n.d.") -> n.d. | AF42: =IF(INDEX($C42:$L42,1,aux!$BA$1)>0,(L42-INDEX($C42:$L42,1,aux!$BA$1))/INDEX($C42:$L42,1,aux!$BA$1),"n.d.") -> n.d. | AH42: =X42-INDEX($O42:$X42,1,aux!$BA$1) -> 0 | AI42: 0 | AJ42: =+IF(INDEX($O42:$X42,1,aux!$BA$1)>0,(X42/INDEX($O42:$X42,1,aux!$BA$1))^(1/($X$3-INDEX($O$3:$X$3,1,aux!$BA$1)))-1,"n.d.") -> n.d. | AK42: =IF(INDEX($O42:$X42,1,aux!$BA$1)>0,(X42-INDEX($O42:$X42,1,aux!$BA$1))/INDEX($O42:$X42,1,aux!$BA$1),"n.d.") -> n.d. | AM42: 0 | CC42: =+IF(ISNA(MATCH('5.1'!A42,AUX_2d_pais!$G$2:$G$40000,0)),0,1) -> 0
A43: 0463 | B43: Caimão, Ilhas | C43: 0 | D43: 0 | E43: 0 | F43: 0 | G43: 0 | H43: 0 | I43: 0 | J43: 0 | K43: 0 | L43: 0 | M43: 0 | N43: 0 | O43: 0 | P43: 0 | Q43: 0 | R43: 0 | S43: 0 | T43: 0 | U43: 0 | V43: 0 | W43: 0 | X43: 0 | Y43: 0 | Z43: 0 | AA43: 0 | AC43: =L43-INDEX($C43:$L43,1,aux!$BA$1) -> 0 | AD43: 0 | AE43: =+IF(INDEX($C43:$L43,1,aux!$BA$1)>0,(L43/INDEX($C43:$L43,1,aux!$BA$1))^(1/($L$3-INDEX($C$3:$L$3,1,aux!$BA$1)))-1,"n.d.") -> n.d. | AF43: =IF(INDEX($C43:$L43,1,aux!$BA$1)>0,(L43-INDEX($C43:$L43,1,aux!$BA$1))/INDEX($C43:$L43,1,aux!$BA$1),"n.d.") -> n.d. | AH43: =X43-INDEX($O43:$X43,1,aux!$BA$1) -> 0 | AI43: 0 | AJ43: =+IF(INDEX($O43:$X43,1,aux!$BA$1)>0,(X43/INDEX($O43:$X43,1,aux!$BA$1))^(1/($X$3-INDEX($O$3:$X$3,1,aux!$BA$1)))-1,"n.d.") -> n.d. | AK43: =IF(INDEX($O43:$X43,1,aux!$BA$1)>0,(X43-INDEX($O43:$X43,1,aux!$BA$1))/INDEX($O43:$X43,1,aux!$BA$1),"n.d.") -> n.d. | AM43: 0 | BO43: 0 | CC43: =+IF(ISNA(MATCH('5.1'!A43,AUX_2d_pais!$G$2:$G$40000,0)),0,1) -> 0
A44: 0302 | B44: Camarões | C44: 0 | D44: 0 | E44: 0 | F44: 0 | G44: 0 | H44: 0 | I44: 0 | J44: 0 | K44: 0 | L44: 0 | M44: 0 | N44: 0 | O44: 0 | P44: 0 | Q44: 0 | R44: 0 | S44: 0 | T44: 0 | U44: 0 | V44: 0 | W44: 0 | X44: 0 | Y44: 0 | Z44: 0 | AA44: 0 | AC44: =L44-INDEX($C44:$L44,1,aux!$BA$1) -> 0 | AD44: 0 | AE44: =+IF(INDEX($C44:$L44,1,aux!$BA$1)>0,(L44/INDEX($C44:$L44,1,aux!$BA$1))^(1/($L$3-INDEX($C$3:$L$3,1,aux!$BA$1)))-1,"n.d.") -> n.d. | AF44: =IF(INDEX($C44:$L44,1,aux!$BA$1)>0,(L44-INDEX($C44:$L44,1,aux!$BA$1))/INDEX($C44:$L44,1,aux!$BA$1),"n.d.") -> n.d. | AH44: =X44-INDEX($O44:$X44,1,aux!$BA$1) -> 0 | AI44: 0 | AJ44: =+IF(INDEX($O44:$X44,1,aux!$BA$1)>0,(X44/INDEX($O44:$X44,1,aux!$BA$1))^(1/($X$3-INDEX($O$3:$X$3,1,aux!$BA$1)))-1,"n.d.") -> n.d. | AK44: =IF(INDEX($O44:$X44,1,aux!$BA$1)>0,(X44-INDEX($O44:$X44,1,aux!$BA$1))/INDEX($O44:$X44,1,aux!$BA$1),"n.d.") -> n.d. | AM44: 0 | CC44: =+IF(ISNA(MATCH('5.1'!A44,AUX_2d_pais!$G$2:$G$40000,0)),0,1) -> 0
A45: 0696 | B45: Camboja | C45: 0.377 | D45: 1153.17 | E45: 2816.037 | F45: 1643.533 | G45: 2716.517 | H45: 3541.082 | I45: 5492.004 | J45: 5344.809 | K45: 3241.383 | L45: 4585.308 | M45: 3053.422 | N45: 0.007488980475 | O45: 154.517 | P45: 22.079 | Q45: 170.555 | R45: 29.833 | S45: 45.27 | T45: 122.969 | U45: 152.828 | V45: 193.849 | W45: 98.469 | X45: 655.395 | Y45: 164.5764 | Z45: 0.0003423299862 | AA45: -2888.8456 | AC45: =L45-INDEX($C45:$L45,1,aux!$BA$1) -> 4584.931 | AD45: 0.01622869233 | AE45: =+IF(INDEX($C45:$L45,1,aux!$BA$1)>0,(L45/INDEX($C45:$L45,1,aux!$BA$1))^(1/($L$3-INDEX($C$3:$L$3,1,aux!$BA$1)))-1,"n.d.") -> 1.843753228 | AF45: =IF(INDEX($C45:$L45,1,aux!$BA$1)>0,(L45-INDEX($C45:$L45,1,aux!$BA$1))/INDEX($C45:$L45,1,aux!$BA$1),"n.d.") -> 12161.62069 | AH45: =X45-INDEX($O45:$X45,1,aux!$BA$1) -> 500.878 | AI45: 0.0009435707831 | AJ45: =+IF(INDEX($O45:$X45,1,aux!$BA$1)>0,(X45/INDEX($O45:$X45,1,aux!$BA$1))^(1/($X$3-INDEX($O$3:$X$3,1,aux!$BA$1)))-1,"n.d.") -> 0.1741543901 | AK45: =IF(INDEX($O45:$X45,1,aux!$BA$1)>0,(X45-INDEX($O45:$X45,1,aux!$BA$1))/INDEX($O45:$X45,1,aux!$BA$1),"n.d.") -> 3.241572125 | CC45: =+IF(ISNA(MATCH('5.1'!A45,AUX_2d_pais!$G$2:$G$40000,0)),0,1) -> 1
A46: 0404 | B46: Canadá | C46: 0 | D46: 0 | E46: 0 | F46: 0 | G46: 0 | H46: 0 | I46: 0 | J46: 0 | K46: 0 | L46: 0 | M46: 0 | N46: 0 | O46: 0 | P46: 0 | Q46: 0 | R46: 0 | S46: 0 | T46: 0 | U46: 0 | V46: 0 | W46: 0 | X46: 0 | Y46: 0 | Z46: 0 | AA46: 0 | AC46: =L46-INDEX($C46:$L46,1,aux!$BA$1) -> 0 | AD46: 0 | AE46: =+IF(INDEX($C46:$L46,1,aux!$BA$1)>0,(L46/INDEX($C46:$L46,1,aux!$BA$1))^(1/($L$3-INDEX($C$3:$L$3,1,aux!$BA$1)))-1,"n.d.") -> n.d. | AF46: =IF(INDEX($C46:$L46,1,aux!$BA$1)>0,(L46-INDEX($C46:$L46,1,aux!$BA$1))/INDEX($C46:$L46,1,aux!$BA$1),"n.d.") -> n.d. | AH46: =X46-INDEX($O46:$X46,1,aux!$BA$1) -> 0 | AI46: 0 | AJ46: =+IF(INDEX($O46:$X46,1,aux!$BA$1)>0,(X46/INDEX($O46:$X46,1,aux!$BA$1))^(1/($X$3-INDEX($O$3:$X$3,1,aux!$BA$1)))-1,"n.d.") -> n.d. | AK46: =IF(INDEX($O46:$X46,1,aux!$BA$1)>0,(X46-INDEX($O46:$X46,1,aux!$BA$1))/INDEX($O46:$X46,1,aux!$BA$1),"n.d.") -> n.d. | AM46: 0 | CC46: =+IF(ISNA(MATCH('5.1'!A46,AUX_2d_pais!$G$2:$G$40000,0)),0,1) -> 0
A47: 0644 | B47: Catar | C47: 0 | D47: 4.907 | E47: 6.714 | F47: 0.067 | G47: 0.744 | H47: 0.218 | I47: 0.702 | J47: 0.215 | K47: 8.722 | L47: 2.643 | M47: 2.4932 | N47: 6.114951068e-06 | O47: 134.592 | P47: 155.686 | Q47: 1014.296 | R47: 1978.832 | S47: 1120.35 | T47: 1560.805 | U47: 2331.099 | V47: 3120.661 | W47: 4252.952 | X47: 5560.451 | Y47: 2122.9724 | Z47: 0.004415925444 | AA47: 2120.4792 | AC47: =L47-INDEX($C47:$L47,1,aux!$BA$1) -> 2.643 | AD47: 9.355088183e-06 | AE47: =+IF(INDEX($C47:$L47,1,aux!$BA$1)>0,(L47/INDEX($C47:$L47,1,aux!$BA$1))^(1/($L$3-INDEX($C$3:$L$3,1,aux!$BA$1)))-1,"n.d.") -> n.d. | AF47: =IF(INDEX($C47:$L47,1,aux!$BA$1)>0,(L47-INDEX($C47:$L47,1,aux!$BA$1))/INDEX($C47:$L47,1,aux!$BA$1),"n.d.") -> n.d. | AH47: =X47-INDEX($O47:$X47,1,aux!$BA$1) -> 5425.859 | AI47: 0.01022141525 | AJ47: =+IF(INDEX($O47:$X47,1,aux!$BA$1)>0,(X47/INDEX($O47:$X47,1,aux!$BA$1))^(1/($X$3-INDEX($O$3:$X$3,1,aux!$BA$1)))-1,"n.d.") -> 0.51204822 | AK47: =IF(INDEX($O47:$X47,1,aux!$BA$1)>0,(X47-INDEX($O47:$X47,1,aux!$BA$1))/INDEX($O47:$X47,1,aux!$BA$1),"n.d.") -> 40.31338415 | CC47: =+IF(ISNA(MATCH('5.1'!A47,AUX_2d_pais!$G$2:$G$40000,0)),0,1) -> 1
A48: 0079 | B48: Cazaquistão | C48: 153.261 | D48: 0.113 | E48: 31.581 | F48: 145.39 | G48: 0 | H48: 0 | I48: 0 | J48: 61.006 | K48: 0 | L48: 0.021 | M48: 39.1372 | N48: 9.598991776e-05 | O48: 568.096 | P48: 736.887 | Q48: 667.058 | R48: 886.363 | S48: 2299.853 | T48: 1963.629 | U48: 3460.011 | V48: 1426.884 | W48: 1402.829 | X48: 1668.438 | Y48: 1508.0048 | Z48: 0.003136751456 | AA48: 1468.8676 | AC48: =L48-INDEX($C48:$L48,1,aux!$BA$1) -> -153.24 | AD48: -0.0005424039778 | AE48: =+IF(INDEX($C48:$L48,1,aux!$BA$1)>0,(L48/INDEX($C48:$L48,1,aux!$BA$1))^(1/($L$3-INDEX($C$3:$L$3,1,aux!$BA$1)))-1,"n.d.") -> -0.6278190139 | AF48: =IF(INDEX($C48:$L48,1,aux!$BA$1)>0,(L48-INDEX($C48:$L48,1,aux!$BA$1))/INDEX($C48:$L48,1,aux!$BA$1),"n.d.") -> -0.9998629788 | AH48: =X48-INDEX($O48:$X48,1,aux!$BA$1) -> 1100.342 | AI48: 0.002072861181 | AJ48: =+IF(INDEX($O48:$X48,1,aux!$BA$1)>0,(X48/INDEX($O48:$X48,1,aux!$BA$1))^(1/($X$3-INDEX($O$3:$X$3,1,aux!$BA$1)))-1,"n.d.") -> 0.1271652559 | AK48: =IF(INDEX($O48:$X48,1,aux!$BA$1)>0,(X48-INDEX($O48:$X48,1,aux!$BA$1))/INDEX($O48:$X48,1,aux!$BA$1),"n.d.") -> 1.936894469 | CC48: =+IF(ISNA(MATCH('5.1'!A48,AUX_2d_pais!$G$2:$G$40000,0)),0,1) -> 1
A49: 0306 | B49: Centro-Africana, República | C49: 0 | D49: 0 | E49: 0 | F49: 0 | G49: 0 | H49: 0 | I49: 0 | J49: 0 | K49: 0 | L49: 0 | M49: 0 | N49: 0 | O49: 0 | P49: 0 | Q49: 0 | R49: 0 | S49: 0 | T49: 0 | U49: 0 | V49: 0 | W49: 0 | X49: 0 | Y49: 0 | Z49: 0 | AA49: 0 | AC49: =L49-INDEX($C49:$L49,1,aux!$BA$1) -> 0 | AD49: 0 | AE49: =+IF(INDEX($C49:$L49,1,aux!$BA$1)>0,(L49/INDEX($C49:$L49,1,aux!$BA$1))^(1/($L$3-INDEX($C$3:$L$3,1,aux!$BA$1)))-1,"n.d.") -> n.d. | AF49: =IF(INDEX($C49:$L49,1,aux!$BA$1)>0,(L49-INDEX($C49:$L49,1,aux!$BA$1))/INDEX($C49:$L49,1,aux!$BA$1),"n.d.") -> n.d. | AH49: =X49-INDEX($O49:$X49,1,aux!$BA$1) -> 0 | AI49: 0 | AJ49: =+IF(INDEX($O49:$X49,1,aux!$BA$1)>0,(X49/INDEX($O49:$X49,1,aux!$BA$1))^(1/($X$3-INDEX($O$3:$X$3,1,aux!$BA$1)))-1,"n.d.") -> n.d. | AK49: =IF(INDEX($O49:$X49,1,aux!$BA$1)>0,(X49-INDEX($O49:$X49,1,aux!$BA$1))/INDEX($O49:$X49,1,aux!$BA$1),"n.d.") -> n.d. | AM49: 0 | BO49: 0 | CC49: =+IF(ISNA(MATCH('5.1'!A49,AUX_2d_pais!$G$2:$G$40000,0)),0,1) -> 0
A50: 0021 | B50: Ceuta | C50: 0 | D50: 0 | E50: 0 | F50: 0 | G50: 0 | H50: 0 | I50: 0 | J50: 0 | K50: 0 | L50: 0 | M50: 0 | N50: 0 | O50: 0 | P50: 0 | Q50: 0 | R50: 0 | S50: 0 | T50: 0 | U50: 0 | V50: 0 | W50: 0 | X50: 0 | Y50: 0 | Z50: 0 | AA50: 0 | AC50: =L50-INDEX($C50:$L50,1,aux!$BA$1) -> 0 | AD50: 0 | AE50: =+IF(INDEX($C50:$L50,1,aux!$BA$1)>0,(L50/INDEX($C50:$L50,1,aux!$BA$1))^(1/($L$3-INDEX($C$3:$L$3,1,aux!$BA$1)))-1,"n.d.") -> n.d. | AF50: =IF(INDEX($C50:$L50,1,aux!$BA$1)>0,(L50-INDEX($C50:$L50,1,aux!$BA$1))/INDEX($C50:$L50,1,aux!$BA$1),"n.d.") -> n.d. | AH50: =X50-INDEX($O50:$X50,1,aux!$BA$1) -> 0 | AI50: 0 | AJ50: =+IF(INDEX($O50:$X50,1,aux!$BA$1)>0,(X50/INDEX($O50:$X50,1,aux!$BA$1))^(1/($X$3-INDEX($O$3:$X$3,1,aux!$BA$1)))-1,"n.d.") -> n.d. | AK50: =IF(INDEX($O50:$X50,1,aux!$BA$1)>0,(X50-INDEX($O50:$X50,1,aux!$BA$1))/INDEX($O50:$X50,1,aux!$BA$1),"n.d.") -> n.d. | AM50: 0 | CC50: =+IF(ISNA(MATCH('5.1'!A50,AUX_2d_pais!$G$2:$G$40000,0)),0,1) -> 0
A51: 0022 | B51: Ceuta e Melilha | C51: 0 | D51: 0 | E51: 0 | F51: 0 | G51: 0 | H51: 0 | I51: 0 | J51: 0 | K51: 0 | L51: 0 | M51: 0 | N51: 0 | O51: 0 | P51: 0 | Q51: 0 | R51: 0 | S51: 0 | T51: 0 | U51: 0 | V51: 0 | W51: 0 | X51: 0 | Y51: 0 | Z51: 0 | AA51: 0 | AC51: =L51-INDEX($C51:$L51,1,aux!$BA$1) -> 0 | AD51: 0 | AE51: =+IF(INDEX($C51:$L51,1,aux!$BA$1)>0,(L51/INDEX($C51:$L51,1,aux!$BA$1))^(1/($L$3-INDEX($C$3:$L$3,1,aux!$BA$1)))-1,"n.d.") -> n.d. | AF51: =IF(INDEX($C51:$L51,1,aux!$BA$1)>0,(L51-INDEX($C51:$L51,1,aux!$BA$1))/INDEX($C51:$L51,1,aux!$BA$1),"n.d.") -> n.d. | AH51: =X51-INDEX($O51:$X51,1,aux!$BA$1) -> 0 | AI51: 0 | AJ51: =+IF(INDEX($O51:$X51,1,aux!$BA$1)>0,(X51/INDEX($O51:$X51,1,aux!$BA$1))^(1/($X$3-INDEX($O$3:$X$3,1,aux!$BA$1)))-1,"n.d.") -> n.d. | AK51: =IF(INDEX($O51:$X51,1,aux!$BA$1)>0,(X51-INDEX($O51:$X51,1,aux!$BA$1))/INDEX($O51:$X51,1,aux!$BA$1),"n.d.") -> n.d. | AM51: 0 | CC51: =+IF(ISNA(MATCH('5.1'!A51,AUX_2d_pais!$G$2:$G$40000,0)),0,1) -> 0
A52: 0244 | B52: Chade | C52: 0 | D52: 0 | E52: 0 | F52: 0 | G52: 0 | H52: 0 | I52: 0 | J52: 0 | K52: 0 | L52: 0 | M52: 0 | N52: 0 | O52: 0 | P52: 0 | Q52: 0 | R52: 0 | S52: 0 | T52: 0 | U52: 0 | V52: 0 | W52: 0 | X52: 0 | Y52: 0 | Z52: 0 | AA52: 0 | AC52: =L52-INDEX($C52:$L52,1,aux!$BA$1) -> 0 | AD52: 0 | AE52: =+IF(INDEX($C52:$L52,1,aux!$BA$1)>0,(L52/INDEX($C52:$L52,1,aux!$BA$1))^(1/($L$3-INDEX($C$3:$L$3,1,aux!$BA$1)))-1,"n.d.") -> n.d. | AF52: =IF(INDEX($C52:$L52,1,aux!$BA$1)>0,(L52-INDEX($C52:$L52,1,aux!$BA$1))/INDEX($C52:$L52,1,aux!$BA$1),"n.d.") -> n.d. | AH52: =X52-INDEX($O52:$X52,1,aux!$BA$1) -> 0 | AI52: 0 | AJ52: =+IF(INDEX($O52:$X52,1,aux!$BA$1)>0,(X52/INDEX($O52:$X52,1,aux!$BA$1))^(1/($X$3-INDEX($O$3:$X$3,1,aux!$BA$1)))-1,"n.d.") -> n.d. | AK52: =IF(INDEX($O52:$X52,1,aux!$BA$1)>0,(X52-INDEX($O52:$X52,1,aux!$BA$1))/INDEX($O52:$X52,1,aux!$BA$1),"n.d.") -> n.d. | AM52: 0 | CC52: =+IF(ISNA(MATCH('5.1'!A52,AUX_2d_pais!$G$2:$G$40000,0)),0,1) -> 0
A53: 0061 | B53: Checa, República | C53: 0 | D53: 0 | E53: 0 | F53: 0 | G53: 0 | H53: 0 | I53: 0 | J53: 0 | K53: 0 | L53: 0 | M53: 0 | N53: 0 | O53: 0 | P53: 0 | Q53: 0 | R53: 0 | S53: 0 | T53: 0 | U53: 0 | V53: 0 | W53: 0 | X53: 0 | Y53: 0 | Z53: 0 | AA53: 0 | AC53: =L53-INDEX($C53:$L53,1,aux!$BA$1) -> 0 | AD53: 0 | AE53: =+IF(INDEX($C53:$L53,1,aux!$BA$1)>0,(L53/INDEX($C53:$L53,1,aux!$BA$1))^(1/($L$3-INDEX($C$3:$L$3,1,aux!$BA$1)))-1,"n.d.") -> n.d. | AF53: =IF(INDEX($C53:$L53,1,aux!$BA$1)>0,(L53-INDEX($C53:$L53,1,aux!$BA$1))/INDEX($C53:$L53,1,aux!$BA$1),"n.d.") -> n.d. | AH53: =X53-INDEX($O53:$X53,1,aux!$BA$1) -> 0 | AI53: 0 | AJ53: =+IF(INDEX($O53:$X53,1,aux!$BA$1)>0,(X53/INDEX($O53:$X53,1,aux!$BA$1))^(1/($X$3-INDEX($O$3:$X$3,1,aux!$BA$1)))-1,"n.d.") -> n.d. | AK53: =IF(INDEX($O53:$X53,1,aux!$BA$1)>0,(X53-INDEX($O53:$X53,1,aux!$BA$1))/INDEX($O53:$X53,1,aux!$BA$1),"n.d.") -> n.d. | AM53: 0 | CC53: =+IF(ISNA(MATCH('5.1'!A53,AUX_2d_pais!$G$2:$G$40000,0)),0,1) -> 0
A54: 0512 | B54: Chile | C54: 0 | D54: 0 | E54: 0 | F54: 0 | G54: 0 | H54: 0 | I54: 0 | J54: 0 | K54: 0 | L54: 0 | M54: 0 | N54: 0 | O54: 0 | P54: 0 | Q54: 0 | R54: 0 | S54: 0 | T54: 0 | U54: 0 | V54: 0 | W54: 0 | X54: 0 | Y54: 0 | Z54: 0 | AA54: 0 | AC54: =L54-INDEX($C54:$L54,1,aux!$BA$1) -> 0 | AD54: 0 | AE54: =+IF(INDEX($C54:$L54,1,aux!$BA$1)>0,(L54/INDEX($C54:$L54,1,aux!$BA$1))^(1/($L$3-INDEX($C$3:$L$3,1,aux!$BA$1)))-1,"n.d.") -> n.d. | AF54: =IF(INDEX($C54:$L54,1,aux!$BA$1)>0,(L54-INDEX($C54:$L54,1,aux!$BA$1))/INDEX($C54:$L54,1,aux!$BA$1),"n.d.") -> n.d. | AH54: =X54-INDEX($O54:$X54,1,aux!$BA$1) -> 0 | AI54: 0 | AJ54: =+IF(INDEX($O54:$X54,1,aux!$BA$1)>0,(X54/INDEX($O54:$X54,1,aux!$BA$1))^(1/($X$3-INDEX($O$3:$X$3,1,aux!$BA$1)))-1,"n.d.") -> n.d. | AK54: =IF(INDEX($O54:$X54,1,aux!$BA$1)>0,(X54-INDEX($O54:$X54,1,aux!$BA$1))/INDEX($O54:$X54,1,aux!$BA$1),"n.d.") -> n.d. | AM54: 0 | CC54: =+IF(ISNA(MATCH('5.1'!A54,AUX_2d_pais!$G$2:$G$40000,0)),0,1) -> 0
A55: 0720 | B55: China, República Popular da | C55: 99072.721 | D55: 150734.179 | E55: 141836.046 | F55: 115253.035 | G55: 114095.982 | H55: 108827.664 | I55: 124064.101 | J55: 131890.503 | K55: 172641.396 | L55: 165369.2 | M55: 132378.4827 | N55: 0.3246783027 | O55: 43045.143 | P55: 49114.856 | Q55: 87431.085 | R55: 83004.343 | S55: 106500.591 | T55: 95693.094 | U55: 126172.214 | V55: 195139.008 | W55: 230671.365 | X55: 189044.011 | Y55: 120581.571 | Z55: 0.2508177815 | AA55: -11796.9117 | AC55: =L55-INDEX($C55:$L55,1,aux!$BA$1) -> 66296.479 | AD55: 0.2346611454 | AE55: =+IF(INDEX($C55:$L55,1,aux!$BA$1)>0,(L55/INDEX($C55:$L55,1,aux!$BA$1))^(1/($L$3-INDEX($C$3:$L$3,1,aux!$BA$1)))-1,"n.d.") -> 0.0585765805 | AF55: =IF(INDEX($C55:$L55,1,aux!$BA$1)>0,(L55-INDEX($C55:$L55,1,aux!$BA$1))/INDEX($C55:$L55,1,aux!$BA$1),"n.d.") -> 0.6691698616 | AH55: =X55-INDEX($O55:$X55,1,aux!$BA$1) -> 145998.868 | AI55: 0.2750375665 | AJ55: =+IF(INDEX($O55:$X55,1,aux!$BA$1)>0,(X55/INDEX($O55:$X55,1,aux!$BA$1))^(1/($X$3-INDEX($O$3:$X$3,1,aux!$BA$1)))-1,"n.d.") -> 0.1787027794 | AK55: =IF(INDEX($O55:$X55,1,aux!$BA$1)>0,(X55-INDEX($O55:$X55,1,aux!$BA$1))/INDEX($O55:$X55,1,aux!$BA$1),"n.d.") -> 3.391761714 | CC55: =+IF(ISNA(MATCH('5.1'!A55,AUX_2d_pais!$G$2:$G$40000,0)),0,1) -> 1
A56: 0600 | B56: Chipre | C56: 0 | D56: 0 | E56: 0 | F56: 0 | G56: 0 | H56: 0 | I56: 0 | J56: 0 | K56: 0 | L56: 0 | M56: 0 | N56: 0 | O56: 0 | P56: 0 | Q56: 0 | R56: 0 | S56: 0 | T56: 0 | U56: 0 | V56: 0 | W56: 0 | X56: 0 | Y56: 0 | Z56: 0 | AA56: 0 | AC56: =L56-INDEX($C56:$L56,1,aux!$BA$1) -> 0 | AD56: 0 | AE56: =+IF(INDEX($C56:$L56,1,aux!$BA$1)>0,(L56/INDEX($C56:$L56,1,aux!$BA$1))^(1/($L$3-INDEX($C$3:$L$3,1,aux!$BA$1)))-1,"n.d.") -> n.d. | AF56: =IF(INDEX($C56:$L56,1,aux!$BA$1)>0,(L56-INDEX($C56:$L56,1,aux!$BA$1))/INDEX($C56:$L56,1,aux!$BA$1),"n.d.") -> n.d. | AH56: =X56-INDEX($O56:$X56,1,aux!$BA$1) -> 0 | AI56: 0 | AJ56: =+IF(INDEX($O56:$X56,1,aux!$BA$1)>0,(X56/INDEX($O56:$X56,1,aux!$BA$1))^(1/($X$3-INDEX($O$3:$X$3,1,aux!$BA$1)))-1,"n.d.") -> n.d. | AK56: =IF(INDEX($O56:$X56,1,aux!$BA$1)>0,(X56-INDEX($O56:$X56,1,aux!$BA$1))/INDEX($O56:$X56,1,aux!$BA$1),"n.d.") -> n.d. | AM56: 0 | CC56: =+IF(ISNA(MATCH('5.1'!A56,AUX_2d_pais!$G$2:$G$40000,0)),0,1) -> 0
A57: 0834 | B57: Christmas, Ilha | C57: 0 | D57: 0 | E57: 0 | F57: 0 | G57: 0 | H57: 0 | I57: 0 | J57: 0 | K57: 0 | L57: 0 | M57: 0 | N57: 0 | O57: 0 | P57: 0 | Q57: 0 | R57: 0 | S57: 0 | T57: 0 | U57: 0 | V57: 0 | W57: 0 | X57: 0 | Y57: 0 | Z57: 0 | AA57: 0 | AC57: =L57-INDEX($C57:$L57,1,aux!$BA$1) -> 0 | AD57: 0 | AE57: =+IF(INDEX($C57:$L57,1,aux!$BA$1)>0,(L57/INDEX($C57:$L57,1,aux!$BA$1))^(1/($L$3-INDEX($C$3:$L$3,1,aux!$BA$1)))-1,"n.d.") -> n.d. | AF57: =IF(INDEX($C57:$L57,1,aux!$BA$1)>0,(L57-INDEX($C57:$L57,1,aux!$BA$1))/INDEX($C57:$L57,1,aux!$BA$1),"n.d.") -> n.d. | AH57: =X57-INDEX($O57:$X57,1,aux!$BA$1) -> 0 | AI57: 0 | AJ57: =+IF(INDEX($O57:$X57,1,aux!$BA$1)>0,(X57/INDEX($O57:$X57,1,aux!$BA$1))^(1/($X$3-INDEX($O$3:$X$3,1,aux!$BA$1)))-1,"n.d.") -> n.d. | AK57: =IF(INDEX($O57:$X57,1,aux!$BA$1)>0,(X57-INDEX($O57:$X57,1,aux!$BA$1))/INDEX($O57:$X57,1,aux!$BA$1),"n.d.") -> n.d. | AM57: 0 | BO57: 0 | CC57: =+IF(ISNA(MATCH('5.1'!A57,AUX_2d_pais!$G$2:$G$40000,0)),0,1) -> 0
A58: 0833 | B58: Cocos (Keeling), Ilhas | C58: 0 | D58: 0 | E58: 0 | F58: 0 | G58: 0 | H58: 0 | I58: 0 | J58: 0 | K58: 0 | L58: 0 | M58: 0 | N58: 0 | O58: 0 | P58: 0 | Q58: 0 | R58: 0 | S58: 0 | T58: 0 | U58: 0 | V58: 0 | W58: 0 | X58: 0 | Y58: 0 | Z58: 0 | AA58: 0 | AC58: =L58-INDEX($C58:$L58,1,aux!$BA$1) -> 0 | AD58: 0 | AE58: =+IF(INDEX($C58:$L58,1,aux!$BA$1)>0,(L58/INDEX($C58:$L58,1,aux!$BA$1))^(1/($L$3-INDEX($C$3:$L$3,1,aux!$BA$1)))-1,"n.d.") -> n.d. | AF58: =IF(INDEX($C58:$L58,1,aux!$BA$1)>0,(L58-INDEX($C58:$L58,1,aux!$BA$1))/INDEX($C58:$L58,1,aux!$BA$1),"n.d.") -> n.d. | AH58: =X58-INDEX($O58:$X58,1,aux!$BA$1) -> 0 | AI58: 0 | AJ58: =+IF(INDEX($O58:$X58,1,aux!$BA$1)>0,(X58/INDEX($O58:$X58,1,aux!$BA$1))^(1/($X$3-INDEX($O$3:$X$3,1,aux!$BA$1)))-1,"n.d.") -> n.d. | AK58: =IF(INDEX($O58:$X58,1,aux!$BA$1)>0,(X58-INDEX($O58:$X58,1,aux!$BA$1))/INDEX($O58:$X58,1,aux!$BA$1),"n.d.") -> n.d. | AM58: 0 | BO58: 0 | CC58: =+IF(ISNA(MATCH('5.1'!A58,AUX_2d_pais!$G$2:$G$40000,0)),0,1) -> 0
A59: 0480 | B59: Colômbia | C59: 0 | D59: 0 | E59: 0 | F59: 0 | G59: 0 | H59: 0 | I59: 0 | J59: 0 | K59: 0 | L59: 0 | M59: 0 | N59: 0 | O59: 0 | P59: 0 | Q59: 0 | R59: 0 | S59: 0 | T59: 0 | U59: 0 | V59: 0 | W59: 0 | X59: 0 | Y59: 0 | Z59: 0 | AA59: 0 | AC59: =L59-INDEX($C59:$L59,1,aux!$BA$1) -> 0 | AD59: 0 | AE59: =+IF(INDEX($C59:$L59,1,aux!$BA$1)>0,(L59/INDEX($C59:$L59,1,aux!$BA$1))^(1/($L$3-INDEX($C$3:$L$3,1,aux!$BA$1)))-1,"n.d.") -> n.d. | AF59: =IF(INDEX($C59:$L59,1,aux!$BA$1)>0,(L59-INDEX($C59:$L59,1,aux!$BA$1))/INDEX($C59:$L59,1,aux!$BA$1),"n.d.") -> n.d. | AH59: =X59-INDEX($O59:$X59,1,aux!$BA$1) -> 0 | AI59: 0 | AJ59: =+IF(INDEX($O59:$X59,1,aux!$BA$1)>0,(X59/INDEX($O59:$X59,1,aux!$BA$1))^(1/($X$3-INDEX($O$3:$X$3,1,aux!$BA$1)))-1,"n.d.") -> n.d. | AK59: =IF(INDEX($O59:$X59,1,aux!$BA$1)>0,(X59-INDEX($O59:$X59,1,aux!$BA$1))/INDEX($O59:$X59,1,aux!$BA$1),"n.d.") -> n.d. | AM59: 0 | CC59: =+IF(ISNA(MATCH('5.1'!A59,AUX_2d_pais!$G$2:$G$40000,0)),0,1) -> 0
A60: 0375 | B60: Comores | C60: 0 | D60: 0 | E60: 0 | F60: 0 | G60: 0 | H60: 0 | I60: 0 | J60: 0 | K60: 0 | L60: 0 | M60: 0 | N60: 0 | O60: 0 | P60: 0 | Q60: 0 | R60: 0 | S60: 0 | T60: 0 | U60: 0 | V60: 0 | W60: 0 | X60: 0 | Y60: 0 | Z60: 0 | AA60: 0 | AC60: =L60-INDEX($C60:$L60,1,aux!$BA$1) -> 0 | AD60: 0 | AE60: =+IF(INDEX($C60:$L60,1,aux!$BA$1)>0,(L60/INDEX($C60:$L60,1,aux!$BA$1))^(1/($L$3-INDEX($C$3:$L$3,1,aux!$BA$1)))-1,"n.d.") -> n.d. | AF60: =IF(INDEX($C60:$L60,1,aux!$BA$1)>0,(L60-INDEX($C60:$L60,1,aux!$BA$1))/INDEX($C60:$L60,1,aux!$BA$1),"n.d.") -> n.d. | AH60: =X60-INDEX($O60:$X60,1,aux!$BA$1) -> 0 | AI60: 0 | AJ60: =+IF(INDEX($O60:$X60,1,aux!$BA$1)>0,(X60/INDEX($O60:$X60,1,aux!$BA$1))^(1/($X$3-INDEX($O$3:$X$3,1,aux!$BA$1)))-1,"n.d.") -> n.d. | AK60: =IF(INDEX($O60:$X60,1,aux!$BA$1)>0,(X60-INDEX($O60:$X60,1,aux!$BA$1))/INDEX($O60:$X60,1,aux!$BA$1),"n.d.") -> n.d. | AM60: 0 | CC60: =+IF(ISNA(MATCH('5.1'!A60,AUX_2d_pais!$G$2:$G$40000,0)),0,1) -> 0
A61: 0318 | B61: Congo | C61: 0 | D61: 0 | E61: 0 | F61: 0 | G61: 0 | H61: 0 | I61: 0 | J61: 0 | K61: 0 | L61: 0 | M61: 0 | N61: 0 | O61: 0 | P61: 0 | Q61: 0 | R61: 0 | S61: 0 | T61: 0 | U61: 0 | V61: 0 | W61: 0 | X61: 0 | Y61: 0 | Z61: 0 | AA61: 0 | AC61: =L61-INDEX($C61:$L61,1,aux!$BA$1) -> 0 | AD61: 0 | AE61: =+IF(INDEX($C61:$L61,1,aux!$BA$1)>0,(L61/INDEX($C61:$L61,1,aux!$BA$1))^(1/($L$3-INDEX($C$3:$L$3,1,aux!$BA$1)))-1,"n.d.") -> n.d. | AF61: =IF(INDEX($C61:$L61,1,aux!$BA$1)>0,(L61-INDEX($C61:$L61,1,aux!$BA$1))/INDEX($C61:$L61,1,aux!$BA$1),"n.d.") -> n.d. | AH61: =X61-INDEX($O61:$X61,1,aux!$BA$1) -> 0 | AI61: 0 | AJ61: =+IF(INDEX($O61:$X61,1,aux!$BA$1)>0,(X61/INDEX($O61:$X61,1,aux!$BA$1))^(1/($X$3-INDEX($O$3:$X$3,1,aux!$BA$1)))-1,"n.d.") -> n.d. | AK61: =IF(INDEX($O61:$X61,1,aux!$BA$1)>0,(X61-INDEX($O61:$X61,1,aux!$BA$1))/INDEX($O61:$X61,1,aux!$BA$1),"n.d.") -> n.d. | AM61: 0 | CC61: =+IF(ISNA(MATCH('5.1'!A61,AUX_2d_pais!$G$2:$G$40000,0)),0,1) -> 0
A62: 0322 | B62: Congo, República Democrática do | C62: 0 | D62: 0 | E62: 0 | F62: 0 | G62: 0 | H62: 0 | I62: 0 | J62: 0 | K62: 0 | L62: 0 | M62: 0 | N62: 0 | O62: 0 | P62: 0 | Q62: 0 | R62: 0 | S62: 0 | T62: 0 | U62: 0 | V62: 0 | W62: 0 | X62: 0 | Y62: 0 | Z62: 0 | AA62: 0 | AC62: =L62-INDEX($C62:$L62,1,aux!$BA$1) -> 0 | AD62: 0 | AE62: =+IF(INDEX($C62:$L62,1,aux!$BA$1)>0,(L62/INDEX($C62:$L62,1,aux!$BA$1))^(1/($L$3-INDEX($C$3:$L$3,1,aux!$BA$1)))-1,"n.d.") -> n.d. | AF62: =IF(INDEX($C62:$L62,1,aux!$BA$1)>0,(L62-INDEX($C62:$L62,1,aux!$BA$1))/INDEX($C62:$L62,1,aux!$BA$1),"n.d.") -> n.d. | AH62: =X62-INDEX($O62:$X62,1,aux!$BA$1) -> 0 | AI62: 0 | AJ62: =+IF(INDEX($O62:$X62,1,aux!$BA$1)>0,(X62/INDEX($O62:$X62,1,aux!$BA$1))^(1/($X$3-INDEX($O$3:$X$3,1,aux!$BA$1)))-1,"n.d.") -> n.d. | AK62: =IF(INDEX($O62:$X62,1,aux!$BA$1)>0,(X62-INDEX($O62:$X62,1,aux!$BA$1))/INDEX($O62:$X62,1,aux!$BA$1),"n.d.") -> n.d. | AM62: 0 | CC62: =+IF(ISNA(MATCH('5.1'!A62,AUX_2d_pais!$G$2:$G$40000,0)),0,1) -> 0
A63: 0837 | B63: Cook, Ilhas | C63: 0 | D63: 0 | E63: 0 | F63: 0 | G63: 0 | H63: 0 | I63: 0 | J63: 0 | K63: 0 | L63: 0 | M63: 0 | N63: 0 | O63: 0 | P63: 0 | Q63: 0 | R63: 0 | S63: 0 | T63: 0 | U63: 0 | V63: 0 | W63: 0 | X63: 0 | Y63: 0 | Z63: 0 | AA63: 0 | AC63: =L63-INDEX($C63:$L63,1,aux!$BA$1) -> 0 | AD63: 0 | AE63: =+IF(INDEX($C63:$L63,1,aux!$BA$1)>0,(L63/INDEX($C63:$L63,1,aux!$BA$1))^(1/($L$3-INDEX($C$3:$L$3,1,aux!$BA$1)))-1,"n.d.") -> n.d. | AF63: =IF(INDEX($C63:$L63,1,aux!$BA$1)>0,(L63-INDEX($C63:$L63,1,aux!$BA$1))/INDEX($C63:$L63,1,aux!$BA$1),"n.d.") -> n.d. | AH63: =X63-INDEX($O63:$X63,1,aux!$BA$1) -> 0 | AI63: 0 | AJ63: =+IF(INDEX($O63:$X63,1,aux!$BA$1)>0,(X63/INDEX($O63:$X63,1,aux!$BA$1))^(1/($X$3-INDEX($O$3:$X$3,1,aux!$BA$1)))-1,"n.d.") -> n.d. | AK63: =IF(INDEX($O63:$X63,1,aux!$BA$1)>0,(X63-INDEX($O63:$X63,1,aux!$BA$1))/INDEX($O63:$X63,1,aux!$BA$1),"n.d.") -> n.d. | AM63: 0 | BO63: 0 | CC63: =+IF(ISNA(MATCH('5.1'!A63,AUX_2d_pais!$G$2:$G$40000,0)),0,1) -> 0
A64: 0728 | B64: Coreia, República da | C64: 1792.131 | D64: 2314.703 | E64: 2807.265 | F64: 2249.172 | G64: 3627.067 | H64: 6740.744 | I64: 9952.016 | J64: 10433.062 | K64: 11251.118 | L64: 12527.414 | M64: 6369.4692 | N64: 0.01562208908 | O64: 12320.022 | P64: 7096.313 | Q64: 5927.148 | R64: 7791.97 | S64: 5648.419 | T64: 5410.759 | U64: 8450.011 | V64: 10025.964 | W64: 9615.696 | X64: 9682.698 | Y64: 8196.9 | Z64: 0.01705010356 | AA64: 1827.4308 | AC64: =L64-INDEX($C64:$L64,1,aux!$BA$1) -> 10735.283 | AD64: 0.03799830463 | AE64: =+IF(INDEX($C64:$L64,1,aux!$BA$1)>0,(L64/INDEX($C64:$L64,1,aux!$BA$1))^(1/($L$3-INDEX($C$3:$L$3,1,aux!$BA$1)))-1,"n.d.") -> 0.2411732546 | AF64: =IF(INDEX($C64:$L64,1,aux!$BA$1)>0,(L64-INDEX($C64:$L64,1,aux!$BA$1))/INDEX($C64:$L64,1,aux!$BA$1),"n.d.") -> 5.990233415 | AH64: =X64-INDEX($O64:$X64,1,aux!$BA$1) -> -2637.324 | AI64: -0.004968279445 | AJ64: =+IF(INDEX($O64:$X64,1,aux!$BA$1)>0,(X64/INDEX($O64:$X64,1,aux!$BA$1))^(1/($X$3-INDEX($O$3:$X$3,1,aux!$BA$1)))-1,"n.d.") -> -0.02641000927 | AK64: =IF(INDEX($O64:$X64,1,aux!$BA$1)>0,(X64-INDEX($O64:$X64,1,aux!$BA$1))/INDEX($O64:$X64,1,aux!$BA$1),"n.d.") -> -0.2140681242 | CC64: =+IF(ISNA(MATCH('5.1'!A64,AUX_2d_pais!$G$2:$G$40000,0)),0,1) -> 1
A65: 0724 | B65: Coreia, República Popular Democrática da | C65: 0 | D65: 0 | E65: 0 | F65: 0 | G65: 0 | H65: 0 | I65: 0 | J65: 0 | K65: 0 | L65: 0 | M65: 0 | N65: 0 | O65: 0 | P65: 0 | Q65: 0 | R65: 0 | S65: 0 | T65: 11.34 | U65: 0 | V65: 0 | W65: 0 | X65: 0 | Y65: 1.134 | Z65: 2.358796306e-06 | AA65: 1.134 | AC65: =L65-INDEX($C65:$L65,1,aux!$BA$1) -> 0 | AD65: 0 | AE65: =+IF(INDEX($C65:$L65,1,aux!$BA$1)>0,(L65/INDEX($C65:$L65,1,aux!$BA$1))^(1/($L$3-INDEX($C$3:$L$3,1,aux!$BA$1)))-1,"n.d.") -> n.d. | AF65: =IF(INDEX($C65:$L65,1,aux!$BA$1)>0,(L65-INDEX($C65:$L65,1,aux!$BA$1))/INDEX($C65:$L65,1,aux!$BA$1),"n.d.") -> n.d. | AH65: =X65-INDEX($O65:$X65,1,aux!$BA$1) -> 0 | AI65: 0 | AJ65: =+IF(INDEX($O65:$X65,1,aux!$BA$1)>0,(X65/INDEX($O65:$X65,1,aux!$BA$1))^(1/($X$3-INDEX($O$3:$X$3,1,aux!$BA$1)))-1,"n.d.") -> n.d. | AK65: =IF(INDEX($O65:$X65,1,aux!$BA$1)>0,(X65-INDEX($O65:$X65,1,aux!$BA$1))/INDEX($O65:$X65,1,aux!$BA$1),"n.d.") -> n.d. | BO65: 11.34 | CC65: =+IF(ISNA(MATCH('5.1'!A65,AUX_2d_pais!$G$2:$G$40000,0)),0,1) -> 1
A66: 0272 | B66: Costa do Marfim | C66: 0 | D66: 0 | E66: 0 | F66: 0 | G66: 0 | H66: 0 | I66: 0 | J66: 0 | K66: 0 | L66: 0 | M66: 0 | N66: 0 | O66: 0 | P66: 0 | Q66: 0 | R66: 0 | S66: 0 | T66: 0 | U66: 0 | V66: 0 | W66: 0 | X66: 0 | Y66: 0 | Z66: 0 | AA66: 0 | AC66: =L66-INDEX($C66:$L66,1,aux!$BA$1) -> 0 | AD66: 0 | AE66: =+IF(INDEX($C66:$L66,1,aux!$BA$1)>0,(L66/INDEX($C66:$L66,1,aux!$BA$1))^(1/($L$3-INDEX($C$3:$L$3,1,aux!$BA$1)))-1,"n.d.") -> n.d. | AF66: =IF(INDEX($C66:$L66,1,aux!$BA$1)>0,(L66-INDEX($C66:$L66,1,aux!$BA$1))/INDEX($C66:$L66,1,aux!$BA$1),"n.d.") -> n.d. | AH66: =X66-INDEX($O66:$X66,1,aux!$BA$1) -> 0 | AI66: 0 | AJ66: =+IF(INDEX($O66:$X66,1,aux!$BA$1)>0,(X66/INDEX($O66:$X66,1,aux!$BA$1))^(1/($X$3-INDEX($O$3:$X$3,1,aux!$BA$1)))-1,"n.d.") -> n.d. | AK66: =IF(INDEX($O66:$X66,1,aux!$BA$1)>0,(X66-INDEX($O66:$X66,1,aux!$BA$1))/INDEX($O66:$X66,1,aux!$BA$1),"n.d.") -> n.d. | AM66: 0 | CC66: =+IF(ISNA(MATCH('5.1'!A66,AUX_2d_pais!$G$2:$G$40000,0)),0,1) -> 0
A67: 0436 | B67: Costa Rica | C67: 0 | D67: 0 | E67: 0 | F67: 0 | G67: 0 | H67: 0 | I67: 0 | J67: 0 | K67: 0 | L67: 0 | M67: 0 | N67: 0 | O67: 0 | P67: 0 | Q67: 0 | R67: 0 | S67: 0 | T67: 0 | U67: 0 | V67: 0 | W67: 0 | X67: 0 | Y67: 0 | Z67: 0 | AA67: 0 | AC67: =L67-INDEX($C67:$L67,1,aux!$BA$1) -> 0 | AD67: 0 | AE67: =+IF(INDEX($C67:$L67,1,aux!$BA$1)>0,(L67/INDEX($C67:$L67,1,aux!$BA$1))^(1/($L$3-INDEX($C$3:$L$3,1,aux!$BA$1)))-1,"n.d.") -> n.d. | AF67: =IF(INDEX($C67:$L67,1,aux!$BA$1)>0,(L67-INDEX($C67:$L67,1,aux!$BA$1))/INDEX($C67:$L67,1,aux!$BA$1),"n.d.") -> n.d. | AH67: =X67-INDEX($O67:$X67,1,aux!$BA$1) -> 0 | AI67: 0 | AJ67: =+IF(INDEX($O67:$X67,1,aux!$BA$1)>0,(X67/INDEX($O67:$X67,1,aux!$BA$1))^(1/($X$3-INDEX($O$3:$X$3,1,aux!$BA$1)))-1,"n.d.") -> n.d. | AK67: =IF(INDEX($O67:$X67,1,aux!$BA$1)>0,(X67-INDEX($O67:$X67,1,aux!$BA$1))/INDEX($O67:$X67,1,aux!$BA$1),"n.d.") -> n.d. | AM67: 0 | CC67: =+IF(ISNA(MATCH('5.1'!A67,AUX_2d_pais!$G$2:$G$40000,0)),0,1) -> 0
A68: 0092 | B68: Croácia | C68: 0 | D68: 0 | E68: 0 | F68: 0 | G68: 0 | H68: 0 | I68: 0 | J68: 0 | K68: 0 | L68: 0 | M68: 0 | N68: 0 | O68: 0 | P68: 0 | Q68: 0 | R68: 0 | S68: 0 | T68: 0 | U68: 0 | V68: 0 | W68: 0 | X68: 0 | Y68: 0 | Z68: 0 | AA68: 0 | AC68: =L68-INDEX($C68:$L68,1,aux!$BA$1) -> 0 | AD68: =AC68/$AC$252 -> 0 | AE68: =+IF(INDEX($C68:$L68,1,aux!$BA$1)>0,(L68/INDEX($C68:$L68,1,aux!$BA$1))^(1/($L$3-INDEX($C$3:$L$3,1,aux!$BA$1)))-1,"n.d.") -> n.d. | AF68: =IF(INDEX($C68:$L68,1,aux!$BA$1)>0,(L68-INDEX($C68:$L68,1,aux!$BA$1))/INDEX($C68:$L68,1,aux!$BA$1),"n.d.") -> n.d. | AH68: =X68-INDEX($O68:$X68,1,aux!$BA$1) -> 0 | AI68: =AH68/$AH$252 -> 0 | AJ68: =+IF(INDEX($O68:$X68,1,aux!$BA$1)>0,(X68/INDEX($O68:$X68,1,aux!$BA$1))^(1/($X$3-INDEX($O$3:$X$3,1,aux!$BA$1)))-1,"n.d.") -> n.d. | AK68: =IF(INDEX($O68:$X68,1,aux!$BA$1)>0,(X68-INDEX($O68:$X68,1,aux!$BA$1))/INDEX($O68:$X68,1,aux!$BA$1),"n.d.") -> n.d. | AM68: =SUM(A68:AA68) -> 0 | CC68: =+IF(ISNA(MATCH('5.1'!A68,AUX_2d_pais!$G$2:$G$40000,0)),0,1) -> 0
A69: 0448 | B69: Cuba | C69: 0 | D69: 0 | E69: 0 | F69: 0 | G69: 0 | H69: 0 | I69: 0 | J69: 0 | K69: 0 | L69: 0 | M69: 0 | N69: 0 | O69: 0 | P69: 0 | Q69: 0 | R69: 0 | S69: 0 | T69: 0 | U69: 0 | V69: 0 | W69: 0 | X69: 0 | Y69: 0 | Z69: 0 | AA69: 0 | AC69: =L69-INDEX($C69:$L69,1,aux!$BA$1) -> 0 | AD69: 0 | AE69: =+IF(INDEX($C69:$L69,1,aux!$BA$1)>0,(L69/INDEX($C69:$L69,1,aux!$BA$1))^(1/($L$3-INDEX($C$3:$L$3,1,aux!$BA$1)))-1,"n.d.") -> n.d. | AF69: =IF(INDEX($C69:$L69,1,aux!$BA$1)>0,(L69-INDEX($C69:$L69,1,aux!$BA$1))/INDEX($C69:$L69,1,aux!$BA$1),"n.d.") -> n.d. | AH69: =X69-INDEX($O69:$X69,1,aux!$BA$1) -> 0 | AI69: 0 | AJ69: =+IF(INDEX($O69:$X69,1,aux!$BA$1)>0,(X69/INDEX($O69:$X69,1,aux!$BA$1))^(1/($X$3-INDEX($O$3:$X$3,1,aux!$BA$1)))-1,"n.d.") -> n.d. | AK69: =IF(INDEX($O69:$X69,1,aux!$BA$1)>0,(X69-INDEX($O69:$X69,1,aux!$BA$1))/INDEX($O69:$X69,1,aux!$BA$1),"n.d.") -> n.d. | AM69: 0 | CC69: =+IF(ISNA(MATCH('5.1'!A69,AUX_2d_pais!$G$2:$G$40000,0)),0,1) -> 0
A70: 0475 | B70: Curaçau | C70: 0 | D70: 0 | E70: 0 | F70: 0 | G70: 0 | H70: 0 | I70: 0 | J70: 0 | K70: 0 | L70: 0 | M70: 0 | N70: 0 | O70: 0 | P70: 0 | Q70: 0 | R70: 0 | S70: 0 | T70: 0 | U70: 0 | V70: 0 | W70: 0 | X70: 0 | Y70: 0 | Z70: 0 | AA70: 0 | AC70: =L70-INDEX($C70:$L70,1,aux!$BA$1) -> 0 | AD70: 0 | AE70: =+IF(INDEX($C70:$L70,1,aux!$BA$1)>0,(L70/INDEX($C70:$L70,1,aux!$BA$1))^(1/($L$3-INDEX($C$3:$L$3,1,aux!$BA$1)))-1,"n.d.") -> n.d. | AF70: =IF(INDEX($C70:$L70,1,aux!$BA$1)>0,(L70-INDEX($C70:$L70,1,aux!$BA$1))/INDEX($C70:$L70,1,aux!$BA$1),"n.d.") -> n.d. | AH70: =X70-INDEX($O70:$X70,1,aux!$BA$1) -> 0 | AI70: 0 | AJ70: =+IF(INDEX($O70:$X70,1,aux!$BA$1)>0,(X70/INDEX($O70:$X70,1,aux!$BA$1))^(1/($X$3-INDEX($O$3:$X$3,1,aux!$BA$1)))-1,"n.d.") -> n.d. | AK70: =IF(INDEX($O70:$X70,1,aux!$BA$1)>0,(X70-INDEX($O70:$X70,1,aux!$BA$1))/INDEX($O70:$X70,1,aux!$BA$1),"n.d.") -> n.d. | AM70: 0 | CC70: =+IF(ISNA(MATCH('5.1'!A70,AUX_2d_pais!$G$2:$G$40000,0)),0,1) -> 0
A71: 0008 | B71: Dinamarca | C71: 0 | D71: 0 | E71: 0 | F71: 0 | G71: 0 | H71: 0 | I71: 0 | J71: 0 | K71: 0 | L71: 0 | M71: 0 | N71: 0 | O71: 0 | P71: 0 | Q71: 0 | R71: 0 | S71: 0 | T71: 0 | U71: 0 | V71: 0 | W71: 0 | X71: 0 | Y71: 0 | Z71: 0 | AA71: 0 | AC71: =L71-INDEX($C71:$L71,1,aux!$BA$1) -> 0 | AD71: 0 | AE71: =+IF(INDEX($C71:$L71,1,aux!$BA$1)>0,(L71/INDEX($C71:$L71,1,aux!$BA$1))^(1/($L$3-INDEX($C$3:$L$3,1,aux!$BA$1)))-1,"n.d.") -> n.d. | AF71: =IF(INDEX($C71:$L71,1,aux!$BA$1)>0,(L71-INDEX($C71:$L71,1,aux!$BA$1))/INDEX($C71:$L71,1,aux!$BA$1),"n.d.") -> n.d. | AH71: =X71-INDEX($O71:$X71,1,aux!$BA$1) -> 0 | AI71: 0 | AJ71: =+IF(INDEX($O71:$X71,1,aux!$BA$1)>0,(X71/INDEX($O71:$X71,1,aux!$BA$1))^(1/($X$3-INDEX($O$3:$X$3,1,aux!$BA$1)))-1,"n.d.") -> n.d. | AK71: =IF(INDEX($O71:$X71,1,aux!$BA$1)>0,(X71-INDEX($O71:$X71,1,aux!$BA$1))/INDEX($O71:$X71,1,aux!$BA$1),"n.d.") -> n.d. | AM71: 0 | CC71: =+IF(ISNA(MATCH('5.1'!A71,AUX_2d_pais!$G$2:$G$40000,0)),0,1) -> 0
A72: 0460 | B72: Domínica | C72: 0 | D72: 0 | E72: 0 | F72: 0 | G72: 0 | H72: 0 | I72: 0 | J72: 0 | K72: 0 | L72: 0 | M72: 0 | N72: 0 | O72: 0 | P72: 0 | Q72: 0 | R72: 0 | S72: 0 | T72: 0 | U72: 0 | V72: 0 | W72: 0 | X72: 0 | Y72: 0 | Z72: 0 | AA72: 0 | AC72: =L72-INDEX($C72:$L72,1,aux!$BA$1) -> 0 | AD72: 0 | AE72: =+IF(INDEX($C72:$L72,1,aux!$BA$1)>0,(L72/INDEX($C72:$L72,1,aux!$BA$1))^(1/($L$3-INDEX($C$3:$L$3,1,aux!$BA$1)))-1,"n.d.") -> n.d. | AF72: =IF(INDEX($C72:$L72,1,aux!$BA$1)>0,(L72-INDEX($C72:$L72,1,aux!$BA$1))/INDEX($C72:$L72,1,aux!$BA$1),"n.d.") -> n.d. | AH72: =X72-INDEX($O72:$X72,1,aux!$BA$1) -> 0 | AI72: 0 | AJ72: =+IF(INDEX($O72:$X72,1,aux!$BA$1)>0,(X72/INDEX($O72:$X72,1,aux!$BA$1))^(1/($X$3-INDEX($O$3:$X$3,1,aux!$BA$1)))-1,"n.d.") -> n.d. | AK72: =IF(INDEX($O72:$X72,1,aux!$BA$1)>0,(X72-INDEX($O72:$X72,1,aux!$BA$1))/INDEX($O72:$X72,1,aux!$BA$1),"n.d.") -> n.d. | AM72: 0 | BO72: =SUM(C72:L72,O72:X72) -> 0 | CC72: =+IF(ISNA(MATCH('5.1'!A72,AUX_2d_pais!$G$2:$G$40000,0)),0,1) -> 0
A73: 0456 | B73: Dominicana, República | C73: 0 | D73: 0 | E73: 0 | F73: 0 | G73: 0 | H73: 0 | I73: 0 | J73: 0 | K73: 0 | L73: 0 | M73: 0 | N73: 0 | O73: 0 | P73: 0 | Q73: 0 | R73: 0 | S73: 0 | T73: 0 | U73: 0 | V73: 0 | W73: 0 | X73: 0 | Y73: 0 | Z73: 0 | AA73: 0 | AC73: =L73-INDEX($C73:$L73,1,aux!$BA$1) -> 0 | AD73: 0 | AE73: =+IF(INDEX($C73:$L73,1,aux!$BA$1)>0,(L73/INDEX($C73:$L73,1,aux!$BA$1))^(1/($L$3-INDEX($C$3:$L$3,1,aux!$BA$1)))-1,"n.d.") -> n.d. | AF73: =IF(INDEX($C73:$L73,1,aux!$BA$1)>0,(L73-INDEX($C73:$L73,1,aux!$BA$1))/INDEX($C73:$L73,1,aux!$BA$1),"n.d.") -> n.d. | AH73: =X73-INDEX($O73:$X73,1,aux!$BA$1) -> 0 | AI73: 0 | AJ73: =+IF(INDEX($O73:$X73,1,aux!$BA$1)>0,(X73/INDEX($O73:$X73,1,aux!$BA$1))^(1/($X$3-INDEX($O$3:$X$3,1,aux!$BA$1)))-1,"n.d.") -> n.d. | AK73: =IF(INDEX($O73:$X73,1,aux!$BA$1)>0,(X73-INDEX($O73:$X73,1,aux!$BA$1))/INDEX($O73:$X73,1,aux!$BA$1),"n.d.") -> n.d. | AM73: 0 | CC73: =+IF(ISNA(MATCH('5.1'!A73,AUX_2d_pais!$G$2:$G$40000,0)),0,1) -> 0
A74: 0220 | B74: Egito | C74: 0 | D74: 0 | E74: 0 | F74: 0 | G74: 0 | H74: 0 | I74: 0 | J74: 0 | K74: 0 | L74: 0 | M74: 0 | N74: 0 | O74: 0 | P74: 0 | Q74: 0 | R74: 0 | S74: 0 | T74: 0 | U74: 0 | V74: 0 | W74: 0 | X74: 0 | Y74: 0 | Z74: 0 | AA74: 0 | AC74: =L74-INDEX($C74:$L74,1,aux!$BA$1) -> 0 | AD74: 0 | AE74: =+IF(INDEX($C74:$L74,1,aux!$BA$1)>0,(L74/INDEX($C74:$L74,1,aux!$BA$1))^(1/($L$3-INDEX($C$3:$L$3,1,aux!$BA$1)))-1,"n.d.") -> n.d. | AF74: =IF(INDEX($C74:$L74,1,aux!$BA$1)>0,(L74-INDEX($C74:$L74,1,aux!$BA$1))/INDEX($C74:$L74,1,aux!$BA$1),"n.d.") -> n.d. | AH74: =X74-INDEX($O74:$X74,1,aux!$BA$1) -> 0 | AI74: 0 | AJ74: =+IF(INDEX($O74:$X74,1,aux!$BA$1)>0,(X74/INDEX($O74:$X74,1,aux!$BA$1))^(1/($X$3-INDEX($O$3:$X$3,1,aux!$BA$1)))-1,"n.d.") -> n.d. | AK74: =IF(INDEX($O74:$X74,1,aux!$BA$1)>0,(X74-INDEX($O74:$X74,1,aux!$BA$1))/INDEX($O74:$X74,1,aux!$BA$1),"n.d.") -> n.d. | AM74: 0 | CC74: =+IF(ISNA(MATCH('5.1'!A74,AUX_2d_pais!$G$2:$G$40000,0)),0,1) -> 0
A75: 0428 | B75: El Salvador | C75: 0 | D75: 0 | E75: 0 | F75: 0 | G75: 0 | H75: 0 | I75: 0 | J75: 0 | K75: 0 | L75: 0 | M75: 0 | N75: 0 | O75: 0 | P75: 0 | Q75: 0 | R75: 0 | S75: 0 | T75: 0 | U75: 0 | V75: 0 | W75: 0 | X75: 0 | Y75: 0 | Z75: 0 | AA75: 0 | AC75: =L75-INDEX($C75:$L75,1,aux!$BA$1) -> 0 | AD75: 0 | AE75: =+IF(INDEX($C75:$L75,1,aux!$BA$1)>0,(L75/INDEX($C75:$L75,1,aux!$BA$1))^(1/($L$3-INDEX($C$3:$L$3,1,aux!$BA$1)))-1,"n.d.") -> n.d. | AF75: =IF(INDEX($C75:$L75,1,aux!$BA$1)>0,(L75-INDEX($C75:$L75,1,aux!$BA$1))/INDEX($C75:$L75,1,aux!$BA$1),"n.d.") -> n.d. | AH75: =X75-INDEX($O75:$X75,1,aux!$BA$1) -> 0 | AI75: 0 | AJ75: =+IF(INDEX($O75:$X75,1,aux!$BA$1)>0,(X75/INDEX($O75:$X75,1,aux!$BA$1))^(1/($X$3-INDEX($O$3:$X$3,1,aux!$BA$1)))-1,"n.d.") -> n.d. | AK75: =IF(INDEX($O75:$X75,1,aux!$BA$1)>0,(X75-INDEX($O75:$X75,1,aux!$BA$1))/INDEX($O75:$X75,1,aux!$BA$1),"n.d.") -> n.d. | AM75: 0 | CC75: =+IF(ISNA(MATCH('5.1'!A75,AUX_2d_pais!$G$2:$G$40000,0)),0,1) -> 0
A76: 0647 | B76: Emirados Árabes Unidos | C76: 170.671 | D76: 124.492 | E76: 114.002 | F76: 376.675 | G76: 277.982 | H76: 298.327 | I76: 272.192 | J76: 338.823 | K76: 686.462 | L76: 376.825 | M76: 303.6451 | N76: 0.0007447356524 | O76: 5952.937 | P76: 10020.195 | Q76: 17998.704 | R76: 20814.093 | S76: 18500.777 | T76: 24571.909 | U76: 35586.342 | V76: 40343.811 | W76: 42542.008 | X76: 29681.125 | Y76: 24601.1901 | Z76: 0.05117213079 | AA76: 24297.545 | AC76: =L76-INDEX($C76:$L76,1,aux!$BA$1) -> 206.154 | AD76: 0.0007296968783 | AE76: =+IF(INDEX($C76:$L76,1,aux!$BA$1)>0,(L76/INDEX($C76:$L76,1,aux!$BA$1))^(1/($L$3-INDEX($C$3:$L$3,1,aux!$BA$1)))-1,"n.d.") -> 0.09199335898 | AF76: =IF(INDEX($C76:$L76,1,aux!$BA$1)>0,(L76-INDEX($C76:$L76,1,aux!$BA$1))/INDEX($C76:$L76,1,aux!$BA$1),"n.d.") -> 1.207902924 | AH76: =X76-INDEX($O76:$X76,1,aux!$BA$1) -> 23728.188 | AI76: 0.04469995674 | AJ76: =+IF(INDEX($O76:$X76,1,aux!$BA$1)>0,(X76/INDEX($O76:$X76,1,aux!$BA$1))^(1/($X$3-INDEX($O$3:$X$3,1,aux!$BA$1)))-1,"n.d.") -> 0.1954397004 | AK76: =IF(INDEX($O76:$X76,1,aux!$BA$1)>0,(X76-INDEX($O76:$X76,1,aux!$BA$1))/INDEX($O76:$X76,1,aux!$BA$1),"n.d.") -> 3.985963231 | CC76: =+IF(ISNA(MATCH('5.1'!A76,AUX_2d_pais!$G$2:$G$40000,0)),0,1) -> 1
A77: 0500 | B77: Equador | C77: 0 | D77: 0 | E77: 0 | F77: 0 | G77: 0 | H77: 0 | I77: 0 | J77: 0 | K77: 0 | L77: 0 | M77: 0 | N77: 0 | O77: 0 | P77: 0 | Q77: 0 | R77: 0 | S77: 0 | T77: 0 | U77: 0 | V77: 0 | W77: 0 | X77: 0 | Y77: 0 | Z77: 0 | AA77: 0 | AC77: =L77-INDEX($C77:$L77,1,aux!$BA$1) -> 0 | AD77: 0 | AE77: =+IF(INDEX($C77:$L77,1,aux!$BA$1)>0,(L77/INDEX($C77:$L77,1,aux!$BA$1))^(1/($L$3-INDEX($C$3:$L$3,1,aux!$BA$1)))-1,"n.d.") -> n.d. | AF77: =IF(INDEX($C77:$L77,1,aux!$BA$1)>0,(L77-INDEX($C77:$L77,1,aux!$BA$1))/INDEX($C77:$L77,1,aux!$BA$1),"n.d.") -> n.d. | AH77: =X77-INDEX($O77:$X77,1,aux!$BA$1) -> 0 | AI77: 0 | AJ77: =+IF(INDEX($O77:$X77,1,aux!$BA$1)>0,(X77/INDEX($O77:$X77,1,aux!$BA$1))^(1/($X$3-INDEX($O$3:$X$3,1,aux!$BA$1)))-1,"n.d.") -> n.d. | AK77: =IF(INDEX($O77:$X77,1,aux!$BA$1)>0,(X77-INDEX($O77:$X77,1,aux!$BA$1))/INDEX($O77:$X77,1,aux!$BA$1),"n.d.") -> n.d. | AM77: 0 | CC77: =+IF(ISNA(MATCH('5.1'!A77,AUX_2d_pais!$G$2:$G$40000,0)),0,1) -> 0
A78: 0336 | B78: Eritreia | C78: 0 | D78: 0 | E78: 0 | F78: 0 | G78: 0 | H78: 0 | I78: 0 | J78: 0 | K78: 0 | L78: 0 | M78: 0 | N78: 0 | O78: 0 | P78: 0 | Q78: 0 | R78: 0 | S78: 0 | T78: 0 | U78: 0 | V78: 0 | W78: 0 | X78: 0 | Y78: 0 | Z78: 0 | AA78: 0 | AC78: =L78-INDEX($C78:$L78,1,aux!$BA$1) -> 0 | AD78: 0 | AE78: =+IF(INDEX($C78:$L78,1,aux!$BA$1)>0,(L78/INDEX($C78:$L78,1,aux!$BA$1))^(1/($L$3-INDEX($C$3:$L$3,1,aux!$BA$1)))-1,"n.d.") -> n.d. | AF78: =IF(INDEX($C78:$L78,1,aux!$BA$1)>0,(L78-INDEX($C78:$L78,1,aux!$BA$1))/INDEX($C78:$L78,1,aux!$BA$1),"n.d.") -> n.d. | AH78: =X78-INDEX($O78:$X78,1,aux!$BA$1) -> 0 | AI78: 0 | AJ78: =+IF(INDEX($O78:$X78,1,aux!$BA$1)>0,(X78/INDEX($O78:$X78,1,aux!$BA$1))^(1/($X$3-INDEX($O$3:$X$3,1,aux!$BA$1)))-1,"n.d.") -> n.d. | AK78: =IF(INDEX($O78:$X78,1,aux!$BA$1)>0,(X78-INDEX($O78:$X78,1,aux!$BA$1))/INDEX($O78:$X78,1,aux!$BA$1),"n.d.") -> n.d. | AM78: 0 | BO78: 0 | CC78: =+IF(ISNA(MATCH('5.1'!A78,AUX_2d_pais!$G$2:$G$40000,0)),0,1) -> 0
A79: 0063 | B79: Eslováquia | C79: 0 | D79: 0 | E79: 0 | F79: 0 | G79: 0 | H79: 0 | I79: 0 | J79: 0 | K79: 0 | L79: 0 | M79: 0 | N79: 0 | O79: 0 | P79: 0 | Q79: 0 | R79: 0 | S79: 0 | T79: 0 | U79: 0 | V79: 0 | W79: 0 | X79: 0 | Y79: 0 | Z79: 0 | AA79: 0 | AC79: =L79-INDEX($C79:$L79,1,aux!$BA$1) -> 0 | AD79: 0 | AE79: =+IF(INDEX($C79:$L79,1,aux!$BA$1)>0,(L79/INDEX($C79:$L79,1,aux!$BA$1))^(1/($L$3-INDEX($C$3:$L$3,1,aux!$BA$1)))-1,"n.d.") -> n.d. | AF79: =IF(INDEX($C79:$L79,1,aux!$BA$1)>0,(L79-INDEX($C79:$L79,1,aux!$BA$1))/INDEX($C79:$L79,1,aux!$BA$1),"n.d.") -> n.d. | AH79: =X79-INDEX($O79:$X79,1,aux!$BA$1) -> 0 | AI79: 0 | AJ79: =+IF(INDEX($O79:$X79,1,aux!$BA$1)>0,(X79/INDEX($O79:$X79,1,aux!$BA$1))^(1/($X$3-INDEX($O$3:$X$3,1,aux!$BA$1)))-1,"n.d.") -> n.d. | AK79: =IF(INDEX($O79:$X79,1,aux!$BA$1)>0,(X79-INDEX($O79:$X79,1,aux!$BA$1))/INDEX($O79:$X79,1,aux!$BA$1),"n.d.") -> n.d. | AM79: 0 | CC79: =+IF(ISNA(MATCH('5.1'!A79,AUX_2d_pais!$G$2:$G$40000,0)),0,1) -> 0
A80: 0091 | B80: Eslovénia | C80: 0 | D80: 0 | E80: 0 | F80: 0 | G80: 0 | H80: 0 | I80: 0 | J80: 0 | K80: 0 | L80: 0 | M80: 0 | N80: 0 | O80: 0 | P80: 0 | Q80: 0 | R80: 0 | S80: 0 | T80: 0 | U80: 0 | V80: 0 | W80: 0 | X80: 0 | Y80: 0 | Z80: 0 | AA80: 0 | AC80: =L80-INDEX($C80:$L80,1,aux!$BA$1) -> 0 | AD80: 0 | AE80: =+IF(INDEX($C80:$L80,1,aux!$BA$1)>0,(L80/INDEX($C80:$L80,1,aux!$BA$1))^(1/($L$3-INDEX($C$3:$L$3,1,aux!$BA$1)))-1,"n.d.") -> n.d. | AF80: =IF(INDEX($C80:$L80,1,aux!$BA$1)>0,(L80-INDEX($C80:$L80,1,aux!$BA$1))/INDEX($C80:$L80,1,aux!$BA$1),"n.d.") -> n.d. | AH80: =X80-INDEX($O80:$X80,1,aux!$BA$1) -> 0 | AI80: 0 | AJ80: =+IF(INDEX($O80:$X80,1,aux!$BA$1)>0,(X80/INDEX($O80:$X80,1,aux!$BA$1))^(1/($X$3-INDEX($O$3:$X$3,1,aux!$BA$1)))-1,"n.d.") -> n.d. | AK80: =IF(INDEX($O80:$X80,1,aux!$BA$1)>0,(X80-INDEX($O80:$X80,1,aux!$BA$1))/INDEX($O80:$X80,1,aux!$BA$1),"n.d.") -> n.d. | AM80: 0 | CC80: =+IF(ISNA(MATCH('5.1'!A80,AUX_2d_pais!$G$2:$G$40000,0)),0,1) -> 0
A81: 0011 | B81: Espanha | C81: 0 | D81: 0 | E81: 0 | F81: 0 | G81: 0 | H81: 0 | I81: 0 | J81: 0 | K81: 0 | L81: 0 | M81: 0 | N81: 0 | O81: 0 | P81: 0 | Q81: 0 | R81: 0 | S81: 0 | T81: 0 | U81: 0 | V81: 0 | W81: 0 | X81: 0 | Y81: 0 | Z81: 0 | AA81: 0 | AC81: =L81-INDEX($C81:$L81,1,aux!$BA$1) -> 0 | AD81: 0 | AE81: =+IF(INDEX($C81:$L81,1,aux!$BA$1)>0,(L81/INDEX($C81:$L81,1,aux!$BA$1))^(1/($L$3-INDEX($C$3:$L$3,1,aux!$BA$1)))-1,"n.d.") -> n.d. | AF81: =IF(INDEX($C81:$L81,1,aux!$BA$1)>0,(L81-INDEX($C81:$L81,1,aux!$BA$1))/INDEX($C81:$L81,1,aux!$BA$1),"n.d.") -> n.d. | AH81: =X81-INDEX($O81:$X81,1,aux!$BA$1) -> 0 | AI81: 0 | AJ81: =+IF(INDEX($O81:$X81,1,aux!$BA$1)>0,(X81/INDEX($O81:$X81,1,aux!$BA$1))^(1/($X$3-INDEX($O$3:$X$3,1,aux!$BA$1)))-1,"n.d.") -> n.d. | AK81: =IF(INDEX($O81:$X81,1,aux!$BA$1)>0,(X81-INDEX($O81:$X81,1,aux!$BA$1))/INDEX($O81:$X81,1,aux!$BA$1),"n.d.") -> n.d. | AM81: 0 | CC81: =+IF(ISNA(MATCH('5.1'!A81,AUX_2d_pais!$G$2:$G$40000,0)),0,1) -> 0
A82: 0400 | B82: Estados Unidos | C82: 0 | D82: 0 | E82: 0 | F82: 0 | G82: 0 | H82: 0 | I82: 0 | J82: 0 | K82: 0 | L82: 0 | M82: 0 | N82: 0 | O82: 0 | P82: 0 | Q82: 0 | R82: 0 | S82: 0 | T82: 0 | U82: 0 | V82: 0 | W82: 0 | X82: 0 | Y82: 0 | Z82: 0 | AA82: 0 | AC82: =L82-INDEX($C82:$L82,1,aux!$BA$1) -> 0 | AD82: 0 | AE82: =+IF(INDEX($C82:$L82,1,aux!$BA$1)>0,(L82/INDEX($C82:$L82,1,aux!$BA$1))^(1/($L$3-INDEX($C$3:$L$3,1,aux!$BA$1)))-1,"n.d.") -> n.d. | AF82: =IF(INDEX($C82:$L82,1,aux!$BA$1)>0,(L82-INDEX($C82:$L82,1,aux!$BA$1))/INDEX($C82:$L82,1,aux!$BA$1),"n.d.") -> n.d. | AH82: =X82-INDEX($O82:$X82,1,aux!$BA$1) -> 0 | AI82: 0 | AJ82: =+IF(INDEX($O82:$X82,1,aux!$BA$1)>0,(X82/INDEX($O82:$X82,1,aux!$BA$1))^(1/($X$3-INDEX($O$3:$X$3,1,aux!$BA$1)))-1,"n.d.") -> n.d. | AK82: =IF(INDEX($O82:$X82,1,aux!$BA$1)>0,(X82-INDEX($O82:$X82,1,aux!$BA$1))/INDEX($O82:$X82,1,aux!$BA$1),"n.d.") -> n.d. | AM82: 0 | CC82: =+IF(ISNA(MATCH('5.1'!A82,AUX_2d_pais!$G$2:$G$40000,0)),0,1) -> 0
A83: 0053 | B83: Estónia | C83: 0 | D83: 0 | E83: 0 | F83: 0 | G83: 0 | H83: 0 | I83: 0 | J83: 0 | K83: 0 | L83: 0 | M83: 0 | N83: 0 | O83: 0 | P83: 0 | Q83: 0 | R83: 0 | S83: 0 | T83: 0 | U83: 0 | V83: 0 | W83: 0 | X83: 0 | Y83: 0 | Z83: 0 | AA83: 0 | AC83: =L83-INDEX($C83:$L83,1,aux!$BA$1) -> 0 | AD83: 0 | AE83: =+IF(INDEX($C83:$L83,1,aux!$BA$1)>0,(L83/INDEX($C83:$L83,1,aux!$BA$1))^(1/($L$3-INDEX($C$3:$L$3,1,aux!$BA$1)))-1,"n.d.") -> n.d. | AF83: =IF(INDEX($C83:$L83,1,aux!$BA$1)>0,(L83-INDEX($C83:$L83,1,aux!$BA$1))/INDEX($C83:$L83,1,aux!$BA$1),"n.d.") -> n.d. | AH83: =X83-INDEX($O83:$X83,1,aux!$BA$1) -> 0 | AI83: 0 | AJ83: =+IF(INDEX($O83:$X83,1,aux!$BA$1)>0,(X83/INDEX($O83:$X83,1,aux!$BA$1))^(1/($X$3-INDEX($O$3:$X$3,1,aux!$BA$1)))-1,"n.d.") -> n.d. | AK83: =IF(INDEX($O83:$X83,1,aux!$BA$1)>0,(X83-INDEX($O83:$X83,1,aux!$BA$1))/INDEX($O83:$X83,1,aux!$BA$1),"n.d.") -> n.d. | AM83: 0 | CC83: =+IF(ISNA(MATCH('5.1'!A83,AUX_2d_pais!$G$2:$G$40000,0)),0,1) -> 0
A84: 0334 | B84: Etiópia | C84: 0 | D84: 0 | E84: 0 | F84: 0 | G84: 0 | H84: 0 | I84: 0 | J84: 0 | K84: 0 | L84: 0 | M84: 0 | N84: 0 | O84: 0 | P84: 0 | Q84: 0 | R84: 0 | S84: 0 | T84: 0 | U84: 0 | V84: 0 | W84: 0 | X84: 0 | Y84: 0 | Z84: 0 | AA84: 0 | AC84: =L84-INDEX($C84:$L84,1,aux!$BA$1) -> 0 | AD84: 0 | AE84: =+IF(INDEX($C84:$L84,1,aux!$BA$1)>0,(L84/INDEX($C84:$L84,1,aux!$BA$1))^(1/($L$3-INDEX($C$3:$L$3,1,aux!$BA$1)))-1,"n.d.") -> n.d. | AF84: =IF(INDEX($C84:$L84,1,aux!$BA$1)>0,(L84-INDEX($C84:$L84,1,aux!$BA$1))/INDEX($C84:$L84,1,aux!$BA$1),"n.d.") -> n.d. | AH84: =X84-INDEX($O84:$X84,1,aux!$BA$1) -> 0 | AI84: 0 | AJ84: =+IF(INDEX($O84:$X84,1,aux!$BA$1)>0,(X84/INDEX($O84:$X84,1,aux!$BA$1))^(1/($X$3-INDEX($O$3:$X$3,1,aux!$BA$1)))-1,"n.d.") -> n.d. | AK84: =IF(INDEX($O84:$X84,1,aux!$BA$1)>0,(X84-INDEX($O84:$X84,1,aux!$BA$1))/INDEX($O84:$X84,1,aux!$BA$1),"n.d.") -> n.d. | AM84: 0 | CC84: =+IF(ISNA(MATCH('5.1'!A84,AUX_2d_pais!$G$2:$G$40000,0)),0,1) -> 0
A85: 0529 | B85: Falkland Ilhas (Malvinas) | C85: 0 | D85: 0 | E85: 0 | F85: 0 | G85: 0 | H85: 0 | I85: 0 | J85: 0 | K85: 0 | L85: 0 | M85: 0 | N85: 0 | O85: 0 | P85: 0 | Q85: 0 | R85: 0 | S85: 0 | T85: 0 | U85: 0 | V85: 0 | W85: 0 | X85: 0 | Y85: 0 | Z85: 0 | AA85: 0 | AC85: =L85-INDEX($C85:$L85,1,aux!$BA$1) -> 0 | AD85: 0 | AE85: =+IF(INDEX($C85:$L85,1,aux!$BA$1)>0,(L85/INDEX($C85:$L85,1,aux!$BA$1))^(1/($L$3-INDEX($C$3:$L$3,1,aux!$BA$1)))-1,"n.d.") -> n.d. | AF85: =IF(INDEX($C85:$L85,1,aux!$BA$1)>0,(L85-INDEX($C85:$L85,1,aux!$BA$1))/INDEX($C85:$L85,1,aux!$BA$1),"n.d.") -> n.d. | AH85: =X85-INDEX($O85:$X85,1,aux!$BA$1) -> 0 | AI85: 0 | AJ85: =+IF(INDEX($O85:$X85,1,aux!$BA$1)>0,(X85/INDEX($O85:$X85,1,aux!$BA$1))^(1/($X$3-INDEX($O$3:$X$3,1,aux!$BA$1)))-1,"n.d.") -> n.d. | AK85: =IF(INDEX($O85:$X85,1,aux!$BA$1)>0,(X85-INDEX($O85:$X85,1,aux!$BA$1))/INDEX($O85:$X85,1,aux!$BA$1),"n.d.") -> n.d. | AM85: 0 | BO85: 0 | CC85: =+IF(ISNA(MATCH('5.1'!A85,AUX_2d_pais!$G$2:$G$40000,0)),0,1) -> 0
A86: 0041 | B86: Faroé, Ilhas | C86: 0 | D86: 0 | E86: 0 | F86: 0 | G86: 0 | H86: 0 | I86: 0 | J86: 0 | K86: 0 | L86: 0 | M86: 0 | N86: 0 | O86: 0 | P86: 0 | Q86: 0 | R86: 0 | S86: 0 | T86: 0 | U86: 0 | V86: 0 | W86: 0 | X86: 0 | Y86: 0 | Z86: 0 | AA86: 0 | AC86: =L86-INDEX($C86:$L86,1,aux!$BA$1) -> 0 | AD86: 0 | AE86: =+IF(INDEX($C86:$L86,1,aux!$BA$1)>0,(L86/INDEX($C86:$L86,1,aux!$BA$1))^(1/($L$3-INDEX($C$3:$L$3,1,aux!$BA$1)))-1,"n.d.") -> n.d. | AF86: =IF(INDEX($C86:$L86,1,aux!$BA$1)>0,(L86-INDEX($C86:$L86,1,aux!$BA$1))/INDEX($C86:$L86,1,aux!$BA$1),"n.d.") -> n.d. | AH86: =X86-INDEX($O86:$X86,1,aux!$BA$1) -> 0 | AI86: 0 | AJ86: =+IF(INDEX($O86:$X86,1,aux!$BA$1)>0,(X86/INDEX($O86:$X86,1,aux!$BA$1))^(1/($X$3-INDEX($O$3:$X$3,1,aux!$BA$1)))-1,"n.d.") -> n.d. | AK86: =IF(INDEX($O86:$X86,1,aux!$BA$1)>0,(X86-INDEX($O86:$X86,1,aux!$BA$1))/INDEX($O86:$X86,1,aux!$BA$1),"n.d.") -> n.d. | AM86: 0 | BO86: 0 | CC86: =+IF(ISNA(MATCH('5.1'!A86,AUX_2d_pais!$G$2:$G$40000,0)),0,1) -> 0
A87: 0815 | B87: Fiji, Ilhas | C87: 0 | D87: 0 | E87: 0 | F87: 0 | G87: 0 | H87: 0 | I87: 0 | J87: 0 | K87: 0 | L87: 0 | M87: 0 | N87: 0 | O87: 0 | P87: 0 | Q87: 0 | R87: 0 | S87: 0 | T87: 0 | U87: 0 | V87: 0 | W87: 0 | X87: 0 | Y87: 0 | Z87: 0 | AA87: 0 | AC87: =L87-INDEX($C87:$L87,1,aux!$BA$1) -> 0 | AD87: 0 | AE87: =+IF(INDEX($C87:$L87,1,aux!$BA$1)>0,(L87/INDEX($C87:$L87,1,aux!$BA$1))^(1/($L$3-INDEX($C$3:$L$3,1,aux!$BA$1)))-1,"n.d.") -> n.d. | AF87: =IF(INDEX($C87:$L87,1,aux!$BA$1)>0,(L87-INDEX($C87:$L87,1,aux!$BA$1))/INDEX($C87:$L87,1,aux!$BA$1),"n.d.") -> n.d. | AH87: =X87-INDEX($O87:$X87,1,aux!$BA$1) -> 0 | AI87: 0 | AJ87: =+IF(INDEX($O87:$X87,1,aux!$BA$1)>0,(X87/INDEX($O87:$X87,1,aux!$BA$1))^(1/($X$3-INDEX($O$3:$X$3,1,aux!$BA$1)))-1,"n.d.") -> n.d. | AK87: =IF(INDEX($O87:$X87,1,aux!$BA$1)>0,(X87-INDEX($O87:$X87,1,aux!$BA$1))/INDEX($O87:$X87,1,aux!$BA$1),"n.d.") -> n.d. | AM87: 0 | BO87: 0 | CC87: =+IF(ISNA(MATCH('5.1'!A87,AUX_2d_pais!$G$2:$G$40000,0)),0,1) -> 0
A88: 0708 | B88: Filipinas | C88: 1406.372 | D88: 1122.108 | E88: 3229.153 | F88: 2047.217 | G88: 830.579 | H88: 1222.64 | I88: 3612.304 | J88: 4423.379 | K88: 7572.089 | L88: 13985.46 | M88: 3945.1301 | N88: 0.009676029809 | O88: 885.264 | P88: 1580.57 | Q88: 1462.04 | R88: 1405.585 | S88: 1403.627 | T88: 1719.369 | U88: 1695.069 | V88: 1614.479 | W88: 2480.129 | X88: 2726.224 | Y88: 1697.2356 | Z88: 0.003530364253 | AA88: -2247.8945 | AC88: =L88-INDEX($C88:$L88,1,aux!$BA$1) -> 12579.088 | AD88: 0.04452458475 | AE88: =+IF(INDEX($C88:$L88,1,aux!$BA$1)>0,(L88/INDEX($C88:$L88,1,aux!$BA$1))^(1/($L$3-INDEX($C$3:$L$3,1,aux!$BA$1)))-1,"n.d.") -> 0.2907491218 | AF88: =IF(INDEX($C88:$L88,1,aux!$BA$1)>0,(L88-INDEX($C88:$L88,1,aux!$BA$1))/INDEX($C88:$L88,1,aux!$BA$1),"n.d.") -> 8.944353272 | AH88: =X88-INDEX($O88:$X88,1,aux!$BA$1) -> 1840.96 | AI88: 0.003468062221 | AJ88: =+IF(INDEX($O88:$X88,1,aux!$BA$1)>0,(X88/INDEX($O88:$X88,1,aux!$BA$1))^(1/($X$3-INDEX($O$3:$X$3,1,aux!$BA$1)))-1,"n.d.") -> 0.1331216198 | AK88: =IF(INDEX($O88:$X88,1,aux!$BA$1)>0,(X88-INDEX($O88:$X88,1,aux!$BA$1))/INDEX($O88:$X88,1,aux!$BA$1),"n.d.") -> 2.079560448 | CC88: =+IF(ISNA(MATCH('5.1'!A88,AUX_2d_pais!$G$2:$G$40000,0)),0,1) -> 1
A89: 0032 | B89: Finlândia | C89: 0 | D89: 0 | E89: 0 | F89: 0 | G89: 0 | H89: 0 | I89: 0 | J89: 0 | K89: 0 | L89: 0 | M89: 0 | N89: 0 | O89: 0 | P89: 0 | Q89: 0 | R89: 0 | S89: 0 | T89: 0 | U89: 0 | V89: 0 | W89: 0 | X89: 0 | Y89: 0 | Z89: 0 | AA89: 0 | AC89: =L89-INDEX($C89:$L89,1,aux!$BA$1) -> 0 | AD89: 0 | AE89: =+IF(INDEX($C89:$L89,1,aux!$BA$1)>0,(L89/INDEX($C89:$L89,1,aux!$BA$1))^(1/($L$3-INDEX($C$3:$L$3,1,aux!$BA$1)))-1,"n.d.") -> n.d. | AF89: =IF(INDEX($C89:$L89,1,aux!$BA$1)>0,(L89-INDEX($C89:$L89,1,aux!$BA$1))/INDEX($C89:$L89,1,aux!$BA$1),"n.d.") -> n.d. | AH89: =X89-INDEX($O89:$X89,1,aux!$BA$1) -> 0 | AI89: 0 | AJ89: =+IF(INDEX($O89:$X89,1,aux!$BA$1)>0,(X89/INDEX($O89:$X89,1,aux!$BA$1))^(1/($X$3-INDEX($O$3:$X$3,1,aux!$BA$1)))-1,"n.d.") -> n.d. | AK89: =IF(INDEX($O89:$X89,1,aux!$BA$1)>0,(X89-INDEX($O89:$X89,1,aux!$BA$1))/INDEX($O89:$X89,1,aux!$BA$1),"n.d.") -> n.d. | AM89: 0 | CC89: =+IF(ISNA(MATCH('5.1'!A89,AUX_2d_pais!$G$2:$G$40000,0)),0,1) -> 0
A90: 0001 | B90: França | C90: 0 | D90: 0 | E90: 0 | F90: 0 | G90: 0 | H90: 0 | I90: 0 | J90: 0 | K90: 0 | L90: 0 | M90: 0 | N90: 0 | O90: 0 | P90: 0 | Q90: 0 | R90: 0 | S90: 0 | T90: 0 | U90: 0 | V90: 0 | W90: 0 | X90: 0 | Y90: 0 | Z90: 0 | AA90: 0 | AC90: =L90-INDEX($C90:$L90,1,aux!$BA$1) -> 0 | AD90: 0 | AE90: =+IF(INDEX($C90:$L90,1,aux!$BA$1)>0,(L90/INDEX($C90:$L90,1,aux!$BA$1))^(1/($L$3-INDEX($C$3:$L$3,1,aux!$BA$1)))-1,"n.d.") -> n.d. | AF90: =IF(INDEX($C90:$L90,1,aux!$BA$1)>0,(L90-INDEX($C90:$L90,1,aux!$BA$1))/INDEX($C90:$L90,1,aux!$BA$1),"n.d.") -> n.d. | AH90: =X90-INDEX($O90:$X90,1,aux!$BA$1) -> 0 | AI90: 0 | AJ90: =+IF(INDEX($O90:$X90,1,aux!$BA$1)>0,(X90/INDEX($O90:$X90,1,aux!$BA$1))^(1/($X$3-INDEX($O$3:$X$3,1,aux!$BA$1)))-1,"n.d.") -> n.d. | AK90: =IF(INDEX($O90:$X90,1,aux!$BA$1)>0,(X90-INDEX($O90:$X90,1,aux!$BA$1))/INDEX($O90:$X90,1,aux!$BA$1),"n.d.") -> n.d. | AM90: 0 | CC90: =+IF(ISNA(MATCH('5.1'!A90,AUX_2d_pais!$G$2:$G$40000,0)),0,1) -> 0
A91: 0314 | B91: Gabão | C91: 0 | D91: 0 | E91: 0 | F91: 0 | G91: 0 | H91: 0 | I91: 0 | J91: 0 | K91: 0 | L91: 0 | M91: 0 | N91: 0 | O91: 0 | P91: 0 | Q91: 0 | R91: 0 | S91: 0 | T91: 0 | U91: 0 | V91: 0 | W91: 0 | X91: 0 | Y91: 0 | Z91: 0 | AA91: 0 | AC91: =L91-INDEX($C91:$L91,1,aux!$BA$1) -> 0 | AD91: 0 | AE91: =+IF(INDEX($C91:$L91,1,aux!$BA$1)>0,(L91/INDEX($C91:$L91,1,aux!$BA$1))^(1/($L$3-INDEX($C$3:$L$3,1,aux!$BA$1)))-1,"n.d.") -> n.d. | AF91: =IF(INDEX($C91:$L91,1,aux!$BA$1)>0,(L91-INDEX($C91:$L91,1,aux!$BA$1))/INDEX($C91:$L91,1,aux!$BA$1),"n.d.") -> n.d. | AH91: =X91-INDEX($O91:$X91,1,aux!$BA$1) -> 0 | AI91: 0 | AJ91: =+IF(INDEX($O91:$X91,1,aux!$BA$1)>0,(X91/INDEX($O91:$X91,1,aux!$BA$1))^(1/($X$3-INDEX($O$3:$X$3,1,aux!$BA$1)))-1,"n.d.") -> n.d. | AK91: =IF(INDEX($O91:$X91,1,aux!$BA$1)>0,(X91-INDEX($O91:$X91,1,aux!$BA$1))/INDEX($O91:$X91,1,aux!$BA$1),"n.d.") -> n.d. | AM91: 0 | CC91: =+IF(ISNA(MATCH('5.1'!A91,AUX_2d_pais!$G$2:$G$40000,0)),0,1) -> 0
A92: 0252 | B92: Gâmbia | C92: 0 | D92: 0 | E92: 0 | F92: 0 | G92: 0 | H92: 0 | I92: 0 | J92: 0 | K92: 0 | L92: 0 | M92: 0 | N92: 0 | O92: 0 | P92: 0 | Q92: 0 | R92: 0 | S92: 0 | T92: 0 | U92: 0 | V92: 0 | W92: 0 | X92: 0 | Y92: 0 | Z92: 0 | AA92: 0 | AC92: =L92-INDEX($C92:$L92,1,aux!$BA$1) -> 0 | AD92: 0 | AE92: =+IF(INDEX($C92:$L92,1,aux!$BA$1)>0,(L92/INDEX($C92:$L92,1,aux!$BA$1))^(1/($L$3-INDEX($C$3:$L$3,1,aux!$BA$1)))-1,"n.d.") -> n.d. | AF92: =IF(INDEX($C92:$L92,1,aux!$BA$1)>0,(L92-INDEX($C92:$L92,1,aux!$BA$1))/INDEX($C92:$L92,1,aux!$BA$1),"n.d.") -> n.d. | AH92: =X92-INDEX($O92:$X92,1,aux!$BA$1) -> 0 | AI92: 0 | AJ92: =+IF(INDEX($O92:$X92,1,aux!$BA$1)>0,(X92/INDEX($O92:$X92,1,aux!$BA$1))^(1/($X$3-INDEX($O$3:$X$3,1,aux!$BA$1)))-1,"n.d.") -> n.d. | AK92: =IF(INDEX($O92:$X92,1,aux!$BA$1)>0,(X92-INDEX($O92:$X92,1,aux!$BA$1))/INDEX($O92:$X92,1,aux!$BA$1),"n.d.") -> n.d. | AM92: 0 | CC92: =+IF(ISNA(MATCH('5.1'!A92,AUX_2d_pais!$G$2:$G$40000,0)),0,1) -> 0
A93: 0276 | B93: Gana | C93: 0 | D93: 0 | E93: 0 | F93: 0 | G93: 0 | H93: 0 | I93: 0 | J93: 0 | K93: 0 | L93: 0 | M93: 0 | N93: 0 | O93: 0 | P93: 0 | Q93: 0 | R93: 0 | S93: 0 | T93: 0 | U93: 0 | V93: 0 | W93: 0 | X93: 0 | Y93: 0 | Z93: 0 | AA93: 0 | AC93: =L93-INDEX($C93:$L93,1,aux!$BA$1) -> 0 | AD93: 0 | AE93: =+IF(INDEX($C93:$L93,1,aux!$BA$1)>0,(L93/INDEX($C93:$L93,1,aux!$BA$1))^(1/($L$3-INDEX($C$3:$L$3,1,aux!$BA$1)))-1,"n.d.") -> n.d. | AF93: =IF(INDEX($C93:$L93,1,aux!$BA$1)>0,(L93-INDEX($C93:$L93,1,aux!$BA$1))/INDEX($C93:$L93,1,aux!$BA$1),"n.d.") -> n.d. | AH93: =X93-INDEX($O93:$X93,1,aux!$BA$1) -> 0 | AI93: 0 | AJ93: =+IF(INDEX($O93:$X93,1,aux!$BA$1)>0,(X93/INDEX($O93:$X93,1,aux!$BA$1))^(1/($X$3-INDEX($O$3:$X$3,1,aux!$BA$1)))-1,"n.d.") -> n.d. | AK93: =IF(INDEX($O93:$X93,1,aux!$BA$1)>0,(X93-INDEX($O93:$X93,1,aux!$BA$1))/INDEX($O93:$X93,1,aux!$BA$1),"n.d.") -> n.d. | AM93: 0 | CC93: =+IF(ISNA(MATCH('5.1'!A93,AUX_2d_pais!$G$2:$G$40000,0)),0,1) -> 0
A94: 0076 | B94: Geórgia | C94: 771.657 | D94: 1676.004 | E94: 1682.864 | F94: 4552.679 | G94: 766.088 | H94: 102.422 | I94: 13.4 | J94: 78.611 | K94: 0.178 | L94: 2.393 | M94: 964.6296 | N94: 0.00236590037 | O94: 1540.828 | P94: 2158.278 | Q94: 2789.381 | R94: 3258.02 | S94: 6195.025 | T94: 4779.602 | U94: 4999.258 | V94: 5146.624 | W94: 5936.294 | X94: 7508.397 | Y94: 4431.1707 | Z94: 0.009217133224 | AA94: 3466.5411 | AC94: =L94-INDEX($C94:$L94,1,aux!$BA$1) -> -769.264 | AD94: -0.002722865137 | AE94: =+IF(INDEX($C94:$L94,1,aux!$BA$1)>0,(L94/INDEX($C94:$L94,1,aux!$BA$1))^(1/($L$3-INDEX($C$3:$L$3,1,aux!$BA$1)))-1,"n.d.") -> -0.4736437041 | AF94: =IF(INDEX($C94:$L94,1,aux!$BA$1)>0,(L94-INDEX($C94:$L94,1,aux!$BA$1))/INDEX($C94:$L94,1,aux!$BA$1),"n.d.") -> -0.9968988812 | AH94: =X94-INDEX($O94:$X94,1,aux!$BA$1) -> 5967.569 | AI94: 0.01124190672 | AJ94: =+IF(INDEX($O94:$X94,1,aux!$BA$1)>0,(X94/INDEX($O94:$X94,1,aux!$BA$1))^(1/($X$3-INDEX($O$3:$X$3,1,aux!$BA$1)))-1,"n.d.") -> 0.1923985843 | AK94: =IF(INDEX($O94:$X94,1,aux!$BA$1)>0,(X94-INDEX($O94:$X94,1,aux!$BA$1))/INDEX($O94:$X94,1,aux!$BA$1),"n.d.") -> 3.872962459 | CC94: =+IF(ISNA(MATCH('5.1'!A94,AUX_2d_pais!$G$2:$G$40000,0)),0,1) -> 1
A95: 0893 | B95: Geórgia do Sul e Ilhas Sandwich do Sul | C95: 0 | D95: 0 | E95: 0 | F95: 0 | G95: 0 | H95: 0 | I95: 0 | J95: 0 | K95: 0 | L95: 0 | M95: 0 | N95: 0 | O95: 0 | P95: 0 | Q95: 0 | R95: 0 | S95: 0 | T95: 0 | U95: 0 | V95: 0 | W95: 0 | X95: 0 | Y95: 0 | Z95: 0 | AA95: 0 | AC95: =L95-INDEX($C95:$L95,1,aux!$BA$1) -> 0 | AD95: 0 | AE95: =+IF(INDEX($C95:$L95,1,aux!$BA$1)>0,(L95/INDEX($C95:$L95,1,aux!$BA$1))^(1/($L$3-INDEX($C$3:$L$3,1,aux!$BA$1)))-1,"n.d.") -> n.d. | AF95: =IF(INDEX($C95:$L95,1,aux!$BA$1)>0,(L95-INDEX($C95:$L95,1,aux!$BA$1))/INDEX($C95:$L95,1,aux!$BA$1),"n.d.") -> n.d. | AH95: =X95-INDEX($O95:$X95,1,aux!$BA$1) -> 0 | AI95: 0 | AJ95: =+IF(INDEX($O95:$X95,1,aux!$BA$1)>0,(X95/INDEX($O95:$X95,1,aux!$BA$1))^(1/($X$3-INDEX($O$3:$X$3,1,aux!$BA$1)))-1,"n.d.") -> n.d. | AK95: =IF(INDEX($O95:$X95,1,aux!$BA$1)>0,(X95-INDEX($O95:$X95,1,aux!$BA$1))/INDEX($O95:$X95,1,aux!$BA$1),"n.d.") -> n.d. | AM95: 0 | BO95: 0 | CC95: =+IF(ISNA(MATCH('5.1'!A95,AUX_2d_pais!$G$2:$G$40000,0)),0,1) -> 0
A96: 0044 | B96: Gibraltar | C96: 0 | D96: 0 | E96: 0 | F96: 0 | G96: 0 | H96: 0 | I96: 0 | J96: 0 | K96: 0 | L96: 0 | M96: 0 | N96: 0 | O96: 0 | P96: 0 | Q96: 0 | R96: 0 | S96: 0 | T96: 0 | U96: 0 | V96: 0 | W96: 0 | X96: 0 | Y96: 0 | Z96: 0 | AA96: 0 | AC96: =L96-INDEX($C96:$L96,1,aux!$BA$1) -> 0 | AD96: 0 | AE96: =+IF(INDEX($C96:$L96,1,aux!$BA$1)>0,(L96/INDEX($C96:$L96,1,aux!$BA$1))^(1/($L$3-INDEX($C$3:$L$3,1,aux!$BA$1)))-1,"n.d.") -> n.d. | AF96: =IF(INDEX($C96:$L96,1,aux!$BA$1)>0,(L96-INDEX($C96:$L96,1,aux!$BA$1))/INDEX($C96:$L96,1,aux!$BA$1),"n.d.") -> n.d. | AH96: =X96-INDEX($O96:$X96,1,aux!$BA$1) -> 0 | AI96: 0 | AJ96: =+IF(INDEX($O96:$X96,1,aux!$BA$1)>0,(X96/INDEX($O96:$X96,1,aux!$BA$1))^(1/($X$3-INDEX($O$3:$X$3,1,aux!$BA$1)))-1,"n.d.") -> n.d. | AK96: =IF(INDEX($O96:$X96,1,aux!$BA$1)>0,(X96-INDEX($O96:$X96,1,aux!$BA$1))/INDEX($O96:$X96,1,aux!$BA$1),"n.d.") -> n.d. | AM96: 0 | CC96: =+IF(ISNA(MATCH('5.1'!A96,AUX_2d_pais!$G$2:$G$40000,0)),0,1) -> 0
A97: 0473 | B97: Granada | C97: 0 | D97: 0 | E97: 0 | F97: 0 | G97: 0 | H97: 0 | I97: 0 | J97: 0 | K97: 0 | L97: 0 | M97: 0 | N97: 0 | O97: 0 | P97: 0 | Q97: 0 | R97: 0 | S97: 0 | T97: 0 | U97: 0 | V97: 0 | W97: 0 | X97: 0 | Y97: 0 | Z97: 0 | AA97: 0 | AC97: =L97-INDEX($C97:$L97,1,aux!$BA$1) -> 0 | AD97: 0 | AE97: =+IF(INDEX($C97:$L97,1,aux!$BA$1)>0,(L97/INDEX($C97:$L97,1,aux!$BA$1))^(1/($L$3-INDEX($C$3:$L$3,1,aux!$BA$1)))-1,"n.d.") -> n.d. | AF97: =IF(INDEX($C97:$L97,1,aux!$BA$1)>0,(L97-INDEX($C97:$L97,1,aux!$BA$1))/INDEX($C97:$L97,1,aux!$BA$1),"n.d.") -> n.d. | AH97: =X97-INDEX($O97:$X97,1,aux!$BA$1) -> 0 | AI97: 0 | AJ97: =+IF(INDEX($O97:$X97,1,aux!$BA$1)>0,(X97/INDEX($O97:$X97,1,aux!$BA$1))^(1/($X$3-INDEX($O$3:$X$3,1,aux!$BA$1)))-1,"n.d.") -> n.d. | AK97: =IF(INDEX($O97:$X97,1,aux!$BA$1)>0,(X97-INDEX($O97:$X97,1,aux!$BA$1))/INDEX($O97:$X97,1,aux!$BA$1),"n.d.") -> n.d. | AM97: 0 | BO97: 0 | CC97: =+IF(ISNA(MATCH('5.1'!A97,AUX_2d_pais!$G$2:$G$40000,0)),0,1) -> 0
A98: 0009 | B98: Grécia | C98: 0 | D98: 0 | E98: 0 | F98: 0 | G98: 0 | H98: 0 | I98: 0 | J98: 0 | K98: 0 | L98: 0 | M98: 0 | N98: 0 | O98: 0 | P98: 0 | Q98: 0 | R98: 0 | S98: 0 | T98: 0 | U98: 0 | V98: 0 | W98: 0 | X98: 0 | Y98: 0 | Z98: 0 | AA98: 0 | AC98: =L98-INDEX($C98:$L98,1,aux!$BA$1) -> 0 | AD98: 0 | AE98: =+IF(INDEX($C98:$L98,1,aux!$BA$1)>0,(L98/INDEX($C98:$L98,1,aux!$BA$1))^(1/($L$3-INDEX($C$3:$L$3,1,aux!$BA$1)))-1,"n.d.") -> n.d. | AF98: =IF(INDEX($C98:$L98,1,aux!$BA$1)>0,(L98-INDEX($C98:$L98,1,aux!$BA$1))/INDEX($C98:$L98,1,aux!$BA$1),"n.d.") -> n.d. | AH98: =X98-INDEX($O98:$X98,1,aux!$BA$1) -> 0 | AI98: 0 | AJ98: =+IF(INDEX($O98:$X98,1,aux!$BA$1)>0,(X98/INDEX($O98:$X98,1,aux!$BA$1))^(1/($X$3-INDEX($O$3:$X$3,1,aux!$BA$1)))-1,"n.d.") -> n.d. | AK98: =IF(INDEX($O98:$X98,1,aux!$BA$1)>0,(X98-INDEX($O98:$X98,1,aux!$BA$1))/INDEX($O98:$X98,1,aux!$BA$1),"n.d.") -> n.d. | AM98: 0 | CC98: =+IF(ISNA(MATCH('5.1'!A98,AUX_2d_pais!$G$2:$G$40000,0)),0,1) -> 0
A99: 0406 | B99: Gronelândia | C99: 0 | D99: 0 | E99: 0 | F99: 0 | G99: 0 | H99: 0 | I99: 0 | J99: 0 | K99: 0 | L99: 0 | M99: 0 | N99: 0 | O99: 0 | P99: 0 | Q99: 0 | R99: 0 | S99: 0 | T99: 0 | U99: 0 | V99: 0 | W99: 0 | X99: 0 | Y99: 0 | Z99: 0 | AA99: 0 | AC99: =L99-INDEX($C99:$L99,1,aux!$BA$1) -> 0 | AD99: 0 | AE99: =+IF(INDEX($C99:$L99,1,aux!$BA$1)>0,(L99/INDEX($C99:$L99,1,aux!$BA$1))^(1/($L$3-INDEX($C$3:$L$3,1,aux!$BA$1)))-1,"n.d.") -> n.d. | AF99: =IF(INDEX($C99:$L99,1,aux!$BA$1)>0,(L99-INDEX($C99:$L99,1,aux!$BA$1))/INDEX($C99:$L99,1,aux!$BA$1),"n.d.") -> n.d. | AH99: =X99-INDEX($O99:$X99,1,aux!$BA$1) -> 0 | AI99: 0 | AJ99: =+IF(INDEX($O99:$X99,1,aux!$BA$1)>0,(X99/INDEX($O99:$X99,1,aux!$BA$1))^(1/($X$3-INDEX($O$3:$X$3,1,aux!$BA$1)))-1,"n.d.") -> n.d. | AK99: =IF(INDEX($O99:$X99,1,aux!$BA$1)>0,(X99-INDEX($O99:$X99,1,aux!$BA$1))/INDEX($O99:$X99,1,aux!$BA$1),"n.d.") -> n.d. | AM99: 0 | BO99: 0 | CC99: =+IF(ISNA(MATCH('5.1'!A99,AUX_2d_pais!$G$2:$G$40000,0)),0,1) -> 0
A100: 0458 | B100: Guadalupe | C100: 0 | D100: 0 | E100: 0 | F100: 0 | G100: 0 | H100: 0 | I100: 0 | J100: 0 | K100: 0 | L100: 0 | M100: 0 | N100: 0 | O100: 0 | P100: 0 | Q100: 0 | R100: 0 | S100: 0 | T100: 0 | U100: 0 | V100: 0 | W100: 0 | X100: 0 | Y100: 0 | Z100: 0 | AA100: 0 | AC100: =L100-INDEX($C100:$L100,1,aux!$BA$1) -> 0 | AD100: =AC100/$AC$252 -> 0 | AE100: =+IF(INDEX($C100:$L100,1,aux!$BA$1)>0,(L100/INDEX($C100:$L100,1,aux!$BA$1))^(1/($L$3-INDEX($C$3:$L$3,1,aux!$BA$1)))-1,"n.d.") -> n.d. | AF100: =IF(INDEX($C100:$L100,1,aux!$BA$1)>0,(L100-INDEX($C100:$L100,1,aux!$BA$1))/INDEX($C100:$L100,1,aux!$BA$1),"n.d.") -> n.d. | AH100: =X100-INDEX($O100:$X100,1,aux!$BA$1) -> 0 | AI100: =AH100/$AH$252 -> 0 | AJ100: =+IF(INDEX($O100:$X100,1,aux!$BA$1)>0,(X100/INDEX($O100:$X100,1,aux!$BA$1))^(1/($X$3-INDEX($O$3:$X$3,1,aux!$BA$1)))-1,"n.d.") -> n.d. | AK100: =IF(INDEX($O100:$X100,1,aux!$BA$1)>0,(X100-INDEX($O100:$X100,1,aux!$BA$1))/INDEX($O100:$X100,1,aux!$BA$1),"n.d.") -> n.d. | AM100: 0 | BO100: 0 | CC100: =+IF(ISNA(MATCH('5.1'!A100,AUX_2d_pais!$G$2:$G$40000,0)),0,1) -> 0
A101: 0831 | B101: Guam | C101: 0 | D101: 0 | E101: 0 | F101: 0 | G101: 0 | H101: 0 | I101: 0 | J101: 0 | K101: 0 | L101: 0 | M101: 0 | N101: 0 | O101: 0 | P101: 0 | Q101: 0 | R101: 0 | S101: 0 | T101: 0 | U101: 0 | V101: 0 | W101: 0 | X101: 0 | Y101: 0 | Z101: 0 | AA101: 0 | AC101: =L101-INDEX($C101:$L101,1,aux!$BA$1) -> 0 | AD101: =AC101/$AC$252 -> 0 | AE101: =+IF(INDEX($C101:$L101,1,aux!$BA$1)>0,(L101/INDEX($C101:$L101,1,aux!$BA$1))^(1/($L$3-INDEX($C$3:$L$3,1,aux!$BA$1)))-1,"n.d.") -> n.d. | AF101: =IF(INDEX($C101:$L101,1,aux!$BA$1)>0,(L101-INDEX($C101:$L101,1,aux!$BA$1))/INDEX($C101:$L101,1,aux!$BA$1),"n.d.") -> n.d. | AH101: =X101-INDEX($O101:$X101,1,aux!$BA$1) -> 0 | AI101: =AH101/$AH$252 -> 0 | AJ101: =+IF(INDEX($O101:$X101,1,aux!$BA$1)>0,(X101/INDEX($O101:$X101,1,aux!$BA$1))^(1/($X$3-INDEX($O$3:$X$3,1,aux!$BA$1)))-1,"n.d.") -> n.d. | AK101: =IF(INDEX($O101:$X101,1,aux!$BA$1)>0,(X101-INDEX($O101:$X101,1,aux!$BA$1))/INDEX($O101:$X101,1,aux!$BA$1),"n.d.") -> n.d. | AM101: 0 | BO101: 0 | CC101: =+IF(ISNA(MATCH('5.1'!A101,AUX_2d_pais!$G$2:$G$40000,0)),0,1) -> 0
A102: 0416 | B102: Guatemala | C102: 0 | D102: 0 | E102: 0 | F102: 0 | G102: 0 | H102: 0 | I102: 0 | J102: 0 | K102: 0 | L102: 0 | M102: 0 | N102: 0 | O102: 0 | P102: 0 | Q102: 0 | R102: 0 | S102: 0 | T102: 0 | U102: 0 | V102: 0 | W102: 0 | X102: 0 | Y102: 0 | Z102: 0 | AA102: 0 | AC102: =L102-INDEX($C102:$L102,1,aux!$BA$1) -> 0 | AD102: 0 | AE102: =+IF(INDEX($C102:$L102,1,aux!$BA$1)>0,(L102/INDEX($C102:$L102,1,aux!$BA$1))^(1/($L$3-INDEX($C$3:$L$3,1,aux!$BA$1)))-1,"n.d.") -> n.d. | AF102: =IF(INDEX($C102:$L102,1,aux!$BA$1)>0,(L102-INDEX($C102:$L102,1,aux!$BA$1))/INDEX($C102:$L102,1,aux!$BA$1),"n.d.") -> n.d. | AH102: =X102-INDEX($O102:$X102,1,aux!$BA$1) -> 0 | AI102: 0 | AJ102: =+IF(INDEX($O102:$X102,1,aux!$BA$1)>0,(X102/INDEX($O102:$X102,1,aux!$BA$1))^(1/($X$3-INDEX($O$3:$X$3,1,aux!$BA$1)))-1,"n.d.") -> n.d. | AK102: =IF(INDEX($O102:$X102,1,aux!$BA$1)>0,(X102-INDEX($O102:$X102,1,aux!$BA$1))/INDEX($O102:$X102,1,aux!$BA$1),"n.d.") -> n.d. | AM102: 0 | CC102: =+IF(ISNA(MATCH('5.1'!A102,AUX_2d_pais!$G$2:$G$40000,0)),0,1) -> 0
A103: 0488 | B103: Guiana | C103: 0 | D103: 0 | E103: 0 | F103: 0 | G103: 0 | H103: 0 | I103: 0 | J103: 0 | K103: 0 | L103: 0 | M103: 0 | N103: 0 | O103: 0 | P103: 0 | Q103: 0 | R103: 0 | S103: 0 | T103: 0 | U103: 0 | V103: 0 | W103: 0 | X103: 0 | Y103: 0 | Z103: 0 | AA103: 0 | AC103: =L103-INDEX($C103:$L103,1,aux!$BA$1) -> 0 | AD103: 0 | AE103: =+IF(INDEX($C103:$L103,1,aux!$BA$1)>0,(L103/INDEX($C103:$L103,1,aux!$BA$1))^(1/($L$3-INDEX($C$3:$L$3,1,aux!$BA$1)))-1,"n.d.") -> n.d. | AF103: =IF(INDEX($C103:$L103,1,aux!$BA$1)>0,(L103-INDEX($C103:$L103,1,aux!$BA$1))/INDEX($C103:$L103,1,aux!$BA$1),"n.d.") -> n.d. | AH103: =X103-INDEX($O103:$X103,1,aux!$BA$1) -> 0 | AI103: 0 | AJ103: =+IF(INDEX($O103:$X103,1,aux!$BA$1)>0,(X103/INDEX($O103:$X103,1,aux!$BA$1))^(1/($X$3-INDEX($O$3:$X$3,1,aux!$BA$1)))-1,"n.d.") -> n.d. | AK103: =IF(INDEX($O103:$X103,1,aux!$BA$1)>0,(X103-INDEX($O103:$X103,1,aux!$BA$1))/INDEX($O103:$X103,1,aux!$BA$1),"n.d.") -> n.d. | AM103: 0 | BO103: 0 | CC103: =+IF(ISNA(MATCH('5.1'!A103,AUX_2d_pais!$G$2:$G$40000,0)),0,1) -> 0
A104: 0496 | B104: Guiana Francesa | C104: 0 | D104: 0 | E104: 0 | F104: 0 | G104: 0 | H104: 0 | I104: 0 | J104: 0 | K104: 0 | L104: 0 | M104: 0 | N104: 0 | O104: 0 | P104: 0 | Q104: 0 | R104: 0 | S104: 0 | T104: 0 | U104: 0 | V104: 0 | W104: 0 | X104: 0 | Y104: 0 | Z104: 0 | AA104: 0 | AC104: =L104-INDEX($C104:$L104,1,aux!$BA$1) -> 0 | AD104: 0 | AE104: =+IF(INDEX($C104:$L104,1,aux!$BA$1)>0,(L104/INDEX($C104:$L104,1,aux!$BA$1))^(1/($L$3-INDEX($C$3:$L$3,1,aux!$BA$1)))-1,"n.d.") -> n.d. | AF104: =IF(INDEX($C104:$L104,1,aux!$BA$1)>0,(L104-INDEX($C104:$L104,1,aux!$BA$1))/INDEX($C104:$L104,1,aux!$BA$1),"n.d.") -> n.d. | AH104: =X104-INDEX($O104:$X104,1,aux!$BA$1) -> 0 | AI104: 0 | AJ104: =+IF(INDEX($O104:$X104,1,aux!$BA$1)>0,(X104/INDEX($O104:$X104,1,aux!$BA$1))^(1/($X$3-INDEX($O$3:$X$3,1,aux!$BA$1)))-1,"n.d.") -> n.d. | AK104: =IF(INDEX($O104:$X104,1,aux!$BA$1)>0,(X104-INDEX($O104:$X104,1,aux!$BA$1))/INDEX($O104:$X104,1,aux!$BA$1),"n.d.") -> n.d. | AM104: 0 | BO104: 0 | CC104: =+IF(ISNA(MATCH('5.1'!A104,AUX_2d_pais!$G$2:$G$40000,0)),0,1) -> 0
A105: 0260 | B105: Guiné | C105: 0 | D105: 0 | E105: 0 | F105: 0 | G105: 0 | H105: 0 | I105: 0 | J105: 0 | K105: 0 | L105: 0 | M105: 0 | N105: 0 | O105: 0 | P105: 0 | Q105: 0 | R105: 0 | S105: 0 | T105: 0 | U105: 0 | V105: 0 | W105: 0 | X105: 0 | Y105: 0 | Z105: 0 | AA105: 0 | AC105: =L105-INDEX($C105:$L105,1,aux!$BA$1) -> 0 | AD105: 0 | AE105: =+IF(INDEX($C105:$L105,1,aux!$BA$1)>0,(L105/INDEX($C105:$L105,1,aux!$BA$1))^(1/($L$3-INDEX($C$3:$L$3,1,aux!$BA$1)))-1,"n.d.") -> n.d. | AF105: =IF(INDEX($C105:$L105,1,aux!$BA$1)>0,(L105-INDEX($C105:$L105,1,aux!$BA$1))/INDEX($C105:$L105,1,aux!$BA$1),"n.d.") -> n.d. | AH105: =X105-INDEX($O105:$X105,1,aux!$BA$1) -> 0 | AI105: 0 | AJ105: =+IF(INDEX($O105:$X105,1,aux!$BA$1)>0,(X105/INDEX($O105:$X105,1,aux!$BA$1))^(1/($X$3-INDEX($O$3:$X$3,1,aux!$BA$1)))-1,"n.d.") -> n.d. | AK105: =IF(INDEX($O105:$X105,1,aux!$BA$1)>0,(X105-INDEX($O105:$X105,1,aux!$BA$1))/INDEX($O105:$X105,1,aux!$BA$1),"n.d.") -> n.d. | AM105: 0 | CC105: =+IF(ISNA(MATCH('5.1'!A105,AUX_2d_pais!$G$2:$G$40000,0)),0,1) -> 0
A106: 0310 | B106: Guiné Equatorial | C106: 0 | D106: 0 | E106: 0 | F106: 0 | G106: 0 | H106: 0 | I106: 0 | J106: 0 | K106: 0 | L106: 0 | M106: 0 | N106: 0 | O106: 0 | P106: 0 | Q106: 0 | R106: 0 | S106: 0 | T106: 0 | U106: 0 | V106: 0 | W106: 0 | X106: 0 | Y106: 0 | Z106: 0 | AA106: 0 | AC106: =L106-INDEX($C106:$L106,1,aux!$BA$1) -> 0 | AD106: 0 | AE106: =+IF(INDEX($C106:$L106,1,aux!$BA$1)>0,(L106/INDEX($C106:$L106,1,aux!$BA$1))^(1/($L$3-INDEX($C$3:$L$3,1,aux!$BA$1)))-1,"n.d.") -> n.d. | AF106: =IF(INDEX($C106:$L106,1,aux!$BA$1)>0,(L106-INDEX($C106:$L106,1,aux!$BA$1))/INDEX($C106:$L106,1,aux!$BA$1),"n.d.") -> n.d. | AH106: =X106-INDEX($O106:$X106,1,aux!$BA$1) -> 0 | AI106: 0 | AJ106: =+IF(INDEX($O106:$X106,1,aux!$BA$1)>0,(X106/INDEX($O106:$X106,1,aux!$BA$1))^(1/($X$3-INDEX($O$3:$X$3,1,aux!$BA$1)))-1,"n.d.") -> n.d. | AK106: =IF(INDEX($O106:$X106,1,aux!$BA$1)>0,(X106-INDEX($O106:$X106,1,aux!$BA$1))/INDEX($O106:$X106,1,aux!$BA$1),"n.d.") -> n.d. | AM106: 0 | CC106: =+IF(ISNA(MATCH('5.1'!A106,AUX_2d_pais!$G$2:$G$40000,0)),0,1) -> 0
A107: 0257 | B107: Guiné-Bissau | C107: 0 | D107: 0 | E107: 0 | F107: 0 | G107: 0 | H107: 0 | I107: 0 | J107: 0 | K107: 0 | L107: 0 | M107: 0 | N107: 0 | O107: 0 | P107: 0 | Q107: 0 | R107: 0 | S107: 0 | T107: 0 | U107: 0 | V107: 0 | W107: 0 | X107: 0 | Y107: 0 | Z107: 0 | AA107: 0 | AC107: =L107-INDEX($C107:$L107,1,aux!$BA$1) -> 0 | AD107: 0 | AE107: =+IF(INDEX($C107:$L107,1,aux!$BA$1)>0,(L107/INDEX($C107:$L107,1,aux!$BA$1))^(1/($L$3-INDEX($C$3:$L$3,1,aux!$BA$1)))-1,"n.d.") -> n.d. | AF107: =IF(INDEX($C107:$L107,1,aux!$BA$1)>0,(L107-INDEX($C107:$L107,1,aux!$BA$1))/INDEX($C107:$L107,1,aux!$BA$1),"n.d.") -> n.d. | AH107: =X107-INDEX($O107:$X107,1,aux!$BA$1) -> 0 | AI107: 0 | AJ107: =+IF(INDEX($O107:$X107,1,aux!$BA$1)>0,(X107/INDEX($O107:$X107,1,aux!$BA$1))^(1/($X$3-INDEX($O$3:$X$3,1,aux!$BA$1)))-1,"n.d.") -> n.d. | AK107: =IF(INDEX($O107:$X107,1,aux!$BA$1)>0,(X107-INDEX($O107:$X107,1,aux!$BA$1))/INDEX($O107:$X107,1,aux!$BA$1),"n.d.") -> n.d. | AM107: 0 | CC107: =+IF(ISNA(MATCH('5.1'!A107,AUX_2d_pais!$G$2:$G$40000,0)),0,1) -> 0
A108: 0452 | B108: Haiti | C108: 0 | D108: 0 | E108: 0 | F108: 0 | G108: 0 | H108: 0 | I108: 0 | J108: 0 | K108: 0 | L108: 0 | M108: 0 | N108: 0 | O108: 0 | P108: 0 | Q108: 0 | R108: 0 | S108: 0 | T108: 0 | U108: 0 | V108: 0 | W108: 0 | X108: 0 | Y108: 0 | Z108: 0 | AA108: 0 | AC108: =L108-INDEX($C108:$L108,1,aux!$BA$1) -> 0 | AD108: 0 | AE108: =+IF(INDEX($C108:$L108,1,aux!$BA$1)>0,(L108/INDEX($C108:$L108,1,aux!$BA$1))^(1/($L$3-INDEX($C$3:$L$3,1,aux!$BA$1)))-1,"n.d.") -> n.d. | AF108: =IF(INDEX($C108:$L108,1,aux!$BA$1)>0,(L108-INDEX($C108:$L108,1,aux!$BA$1))/INDEX($C108:$L108,1,aux!$BA$1),"n.d.") -> n.d. | AH108: =X108-INDEX($O108:$X108,1,aux!$BA$1) -> 0 | AI108: 0 | AJ108: =+IF(INDEX($O108:$X108,1,aux!$BA$1)>0,(X108/INDEX($O108:$X108,1,aux!$BA$1))^(1/($X$3-INDEX($O$3:$X$3,1,aux!$BA$1)))-1,"n.d.") -> n.d. | AK108: =IF(INDEX($O108:$X108,1,aux!$BA$1)>0,(X108-INDEX($O108:$X108,1,aux!$BA$1))/INDEX($O108:$X108,1,aux!$BA$1),"n.d.") -> n.d. | AM108: 0 | CC108: =+IF(ISNA(MATCH('5.1'!A108,AUX_2d_pais!$G$2:$G$40000,0)),0,1) -> 0
A109: 0835 | B109: Heard, Ilha e McDonald, Ilhas | C109: 0 | D109: 0 | E109: 0 | F109: 0 | G109: 0 | H109: 0 | I109: 0 | J109: 0 | K109: 0 | L109: 0 | M109: 0 | N109: 0 | O109: 0 | P109: 0 | Q109: 0 | R109: 0 | S109: 0 | T109: 0 | U109: 0 | V109: 0 | W109: 0 | X109: 0 | Y109: 0 | Z109: 0 | AA109: 0 | AC109: =L109-INDEX($C109:$L109,1,aux!$BA$1) -> 0 | AD109: 0 | AE109: =+IF(INDEX($C109:$L109,1,aux!$BA$1)>0,(L109/INDEX($C109:$L109,1,aux!$BA$1))^(1/($L$3-INDEX($C$3:$L$3,1,aux!$BA$1)))-1,"n.d.") -> n.d. | AF109: =IF(INDEX($C109:$L109,1,aux!$BA$1)>0,(L109-INDEX($C109:$L109,1,aux!$BA$1))/INDEX($C109:$L109,1,aux!$BA$1),"n.d.") -> n.d. | AH109: =X109-INDEX($O109:$X109,1,aux!$BA$1) -> 0 | AI109: 0 | AJ109: =+IF(INDEX($O109:$X109,1,aux!$BA$1)>0,(X109/INDEX($O109:$X109,1,aux!$BA$1))^(1/($X$3-INDEX($O$3:$X$3,1,aux!$BA$1)))-1,"n.d.") -> n.d. | AK109: =IF(INDEX($O109:$X109,1,aux!$BA$1)>0,(X109-INDEX($O109:$X109,1,aux!$BA$1))/INDEX($O109:$X109,1,aux!$BA$1),"n.d.") -> n.d. | AM109: 0 | BO109: 0 | CC109: =+IF(ISNA(MATCH('5.1'!A109,AUX_2d_pais!$G$2:$G$40000,0)),0,1) -> 0
A110: 0424 | B110: Honduras | C110: 0 | D110: 0 | E110: 0 | F110: 0 | G110: 0 | H110: 0 | I110: 0 | J110: 0 | K110: 0 | L110: 0 | M110: 0 | N110: 0 | O110: 0 | P110: 0 | Q110: 0 | R110: 0 | S110: 0 | T110: 0 | U110: 0 | V110: 0 | W110: 0 | X110: 0 | Y110: 0 | Z110: 0 | AA110: 0 | AC110: =L110-INDEX($C110:$L110,1,aux!$BA$1) -> 0 | AD110: 0 | AE110: =+IF(INDEX($C110:$L110,1,aux!$BA$1)>0,(L110/INDEX($C110:$L110,1,aux!$BA$1))^(1/($L$3-INDEX($C$3:$L$3,1,aux!$BA$1)))-1,"n.d.") -> n.d. | AF110: =IF(INDEX($C110:$L110,1,aux!$BA$1)>0,(L110-INDEX($C110:$L110,1,aux!$BA$1))/INDEX($C110:$L110,1,aux!$BA$1),"n.d.") -> n.d. | AH110: =X110-INDEX($O110:$X110,1,aux!$BA$1) -> 0 | AI110: 0 | AJ110: =+IF(INDEX($O110:$X110,1,aux!$BA$1)>0,(X110/INDEX($O110:$X110,1,aux!$BA$1))^(1/($X$3-INDEX($O$3:$X$3,1,aux!$BA$1)))-1,"n.d.") -> n.d. | AK110: =IF(INDEX($O110:$X110,1,aux!$BA$1)>0,(X110-INDEX($O110:$X110,1,aux!$BA$1))/INDEX($O110:$X110,1,aux!$BA$1),"n.d.") -> n.d. | AM110: 0 | CC110: =+IF(ISNA(MATCH('5.1'!A110,AUX_2d_pais!$G$2:$G$40000,0)),0,1) -> 0
A111: 0740 | B111: HongKong | C111: 1538.603 | D111: 2077.911 | E111: 1886.445 | F111: 1669.839 | G111: 1846.653 | H111: 1379.331 | I111: 1364.335 | J111: 1975.829 | K111: 1783.291 | L111: 1919.365 | M111: 1744.1602 | N111: 0.004277817375 | O111: 4473.038 | P111: 12888.427 | Q111: 23124.379 | R111: 16080.049 | S111: 13902.32 | T111: 13110.95 | U111: 21511.002 | V111: 23839.341 | W111: 15739.217 | X111: 15911.988 | Y111: 16058.0711 | Z111: 0.03340186842 | AA111: 14313.9109 | AC111: =L111-INDEX($C111:$L111,1,aux!$BA$1) -> 380.762 | AD111: 0.001347734426 | AE111: =+IF(INDEX($C111:$L111,1,aux!$BA$1)>0,(L111/INDEX($C111:$L111,1,aux!$BA$1))^(1/($L$3-INDEX($C$3:$L$3,1,aux!$BA$1)))-1,"n.d.") -> 0.0248731387 | AF111: =IF(INDEX($C111:$L111,1,aux!$BA$1)>0,(L111-INDEX($C111:$L111,1,aux!$BA$1))/INDEX($C111:$L111,1,aux!$BA$1),"n.d.") -> 0.2474725449 | AH111: =X111-INDEX($O111:$X111,1,aux!$BA$1) -> 11438.95 | AI111: 0.02154907784 | AJ111: =+IF(INDEX($O111:$X111,1,aux!$BA$1)>0,(X111/INDEX($O111:$X111,1,aux!$BA$1))^(1/($X$3-INDEX($O$3:$X$3,1,aux!$BA$1)))-1,"n.d.") -> 0.1514252835 | AK111: =IF(INDEX($O111:$X111,1,aux!$BA$1)>0,(X111-INDEX($O111:$X111,1,aux!$BA$1))/INDEX($O111:$X111,1,aux!$BA$1),"n.d.") -> 2.557311161 | CC111: =+IF(ISNA(MATCH('5.1'!A111,AUX_2d_pais!$G$2:$G$40000,0)),0,1) -> 1
A112: 0064 | B112: Hungria | C112: 0 | D112: 0 | E112: 0 | F112: 0 | G112: 0 | H112: 0 | I112: 0 | J112: 0 | K112: 0 | L112: 0 | M112: 0 | N112: 0 | O112: 0 | P112: 0 | Q112: 0 | R112: 0 | S112: 0 | T112: 0 | U112: 0 | V112: 0 | W112: 0 | X112: 0 | Y112: 0 | Z112: 0 | AA112: 0 | AC112: =L112-INDEX($C112:$L112,1,aux!$BA$1) -> 0 | AD112: 0 | AE112: =+IF(INDEX($C112:$L112,1,aux!$BA$1)>0,(L112/INDEX($C112:$L112,1,aux!$BA$1))^(1/($L$3-INDEX($C$3:$L$3,1,aux!$BA$1)))-1,"n.d.") -> n.d. | AF112: =IF(INDEX($C112:$L112,1,aux!$BA$1)>0,(L112-INDEX($C112:$L112,1,aux!$BA$1))/INDEX($C112:$L112,1,aux!$BA$1),"n.d.") -> n.d. | AH112: =X112-INDEX($O112:$X112,1,aux!$BA$1) -> 0 | AI112: 0 | AJ112: =+IF(INDEX($O112:$X112,1,aux!$BA$1)>0,(X112/INDEX($O112:$X112,1,aux!$BA$1))^(1/($X$3-INDEX($O$3:$X$3,1,aux!$BA$1)))-1,"n.d.") -> n.d. | AK112: =IF(INDEX($O112:$X112,1,aux!$BA$1)>0,(X112-INDEX($O112:$X112,1,aux!$BA$1))/INDEX($O112:$X112,1,aux!$BA$1),"n.d.") -> n.d. | AM112: 0 | CC112: =+IF(ISNA(MATCH('5.1'!A112,AUX_2d_pais!$G$2:$G$40000,0)),0,1) -> 0
A113: 0653 | B113: Iémen | C113: 252.803 | D113: 137.994 | E113: 664.421 | F113: 206.881 | G113: 162.126 | H113: 0 | I113: 0 | J113: 0 | K113: 260.747 | L113: 2398.123 | M113: 408.3095 | N113: 0.001001440965 | O113: 0 | P113: 9.597 | Q113: 136.843 | R113: 22.85 | S113: 77.775 | T113: 1403.379 | U113: 163.183 | V113: 374.235 | W113: 1239.501 | X113: 2379.027 | Y113: 580.639 | Z113: 0.001207768191 | AA113: 172.3295 | AC113: =L113-INDEX($C113:$L113,1,aux!$BA$1) -> 2145.32 | AD113: 0.007593514106 | AE113: =+IF(INDEX($C113:$L113,1,aux!$BA$1)>0,(L113/INDEX($C113:$L113,1,aux!$BA$1))^(1/($L$3-INDEX($C$3:$L$3,1,aux!$BA$1)))-1,"n.d.") -> 0.2840013197 | AF113: =IF(INDEX($C113:$L113,1,aux!$BA$1)>0,(L113-INDEX($C113:$L113,1,aux!$BA$1))/INDEX($C113:$L113,1,aux!$BA$1),"n.d.") -> 8.486133472 | AH113: =X113-INDEX($O113:$X113,1,aux!$BA$1) -> 2379.027 | AI113: 0.00448169089 | AJ113: =+IF(INDEX($O113:$X113,1,aux!$BA$1)>0,(X113/INDEX($O113:$X113,1,aux!$BA$1))^(1/($X$3-INDEX($O$3:$X$3,1,aux!$BA$1)))-1,"n.d.") -> n.d. | AK113: =IF(INDEX($O113:$X113,1,aux!$BA$1)>0,(X113-INDEX($O113:$X113,1,aux!$BA$1))/INDEX($O113:$X113,1,aux!$BA$1),"n.d.") -> n.d. | BO113: 9889.485 | CC113: =+IF(ISNA(MATCH('5.1'!A113,AUX_2d_pais!$G$2:$G$40000,0)),0,1) -> 1
A114: 0664 | B114: Índia | C114: 39368.697 | D114: 40646.876 | E114: 55183.076 | F114: 50224.999 | G114: 47050.337 | H114: 59516.483 | I114: 64505.959 | J114: 69312.229 | K114: 81458.48 | L114: 76498.306 | M114: 58376.5442 | N114: 0.1431773269 | O114: 5962.773 | P114: 7072.684 | Q114: 8298.84 | R114: 7722.631 | S114: 8202.027 | T114: 12638.72 | U114: 8834.525 | V114: 10937.741 | W114: 15344.047 | X114: 16054.98 | Y114: 10106.8968 | Z114: 0.02102302543 | AA114: -48269.6474 | AC114: =L114-INDEX($C114:$L114,1,aux!$BA$1) -> 37129.609 | AD114: 0.1314229158 | AE114: =+IF(INDEX($C114:$L114,1,aux!$BA$1)>0,(L114/INDEX($C114:$L114,1,aux!$BA$1))^(1/($L$3-INDEX($C$3:$L$3,1,aux!$BA$1)))-1,"n.d.") -> 0.07660313941 | AF114: =IF(INDEX($C114:$L114,1,aux!$BA$1)>0,(L114-INDEX($C114:$L114,1,aux!$BA$1))/INDEX($C114:$L114,1,aux!$BA$1),"n.d.") -> 0.9431251687 | AH114: =X114-INDEX($O114:$X114,1,aux!$BA$1) -> 10092.207 | AI114: 0.01901203819 | AJ114: =+IF(INDEX($O114:$X114,1,aux!$BA$1)>0,(X114/INDEX($O114:$X114,1,aux!$BA$1))^(1/($X$3-INDEX($O$3:$X$3,1,aux!$BA$1)))-1,"n.d.") -> 0.1163380336 | AK114: =IF(INDEX($O114:$X114,1,aux!$BA$1)>0,(X114-INDEX($O114:$X114,1,aux!$BA$1))/INDEX($O114:$X114,1,aux!$BA$1),"n.d.") -> 1.692535839 | CC114: =+IF(ISNA(MATCH('5.1'!A114,AUX_2d_pais!$G$2:$G$40000,0)),0,1) -> 1
A115: 0700 | B115: Indonésia | C115: 33009.356 | D115: 18767.176 | E115: 18088.28 | F115: 16820.02 | G115: 34033.054 | H115: 32042.189 | I115: 34220.956 | J115: 35915.161 | K115: 30512.978 | L115: 32633.829 | M115: 28604.2999 | N115: 0.07015638306 | O115: 1687.288 | P115: 2232.11 | Q115: 762.258 | R115: 518.296 | S115: 395.177 | T115: 890.597 | U115: 428.174 | V115: 1134.927 | W115: 2036.04 | X115: 2615.998 | Y115: 1270.0865 | Z115: 0.002641865383 | AA115: -27334.2134 | AC115: =L115-INDEX($C115:$L115,1,aux!$BA$1) -> -375.527 | AD115: -0.001329204767 | AE115: =+IF(INDEX($C115:$L115,1,aux!$BA$1)>0,(L115/INDEX($C115:$L115,1,aux!$BA$1))^(1/($L$3-INDEX($C$3:$L$3,1,aux!$BA$1)))-1,"n.d.") -> -0.001270479669 | AF115: =IF(INDEX($C115:$L115,1,aux!$BA$1)>0,(L115-INDEX($C115:$L115,1,aux!$BA$1))/INDEX($C115:$L115,1,aux!$BA$1),"n.d.") -> -0.01137638068 | AH115: =X115-INDEX($O115:$X115,1,aux!$BA$1) -> 928.71 | AI115: 0.00174953506 | AJ115: =+IF(INDEX($O115:$X115,1,aux!$BA$1)>0,(X115/INDEX($O115:$X115,1,aux!$BA$1))^(1/($X$3-INDEX($O$3:$X$3,1,aux!$BA$1)))-1,"n.d.") -> 0.04993136553 | AK115: =IF(INDEX($O115:$X115,1,aux!$BA$1)>0,(X115-INDEX($O115:$X115,1,aux!$BA$1))/INDEX($O115:$X115,1,aux!$BA$1),"n.d.") -> 0.5504158152 | CC115: =+IF(ISNA(MATCH('5.1'!A115,AUX_2d_pais!$G$2:$G$40000,0)),0,1) -> 1
A116: 0616 | B116: Irão, República Islâmica do | C116: 7.715 | D116: 180.169 | E116: 317.755 | F116: 348.957 | G116: 570.045 | H116: 187.94 | I116: 555.171 | J116: 651.354 | K116: 53.643 | L116: 99.327 | M116: 297.2076 | N116: 0.0007289467075 | O116: 5676.411 | P116: 11517.554 | Q116: 20608.749 | R116: 5678.53 | S116: 579.04 | T116: 2927.793 | U116: 6922.082 | V116: 8655.429 | W116: 9860.708 | X116: 5830.991 | Y116: 7825.7287 | Z116: 0.01627804228 | AA116: 7528.5211 | AC116: =L116-INDEX($C116:$L116,1,aux!$BA$1) -> 91.612 | AD116: 0.0003242672488 | AE116: =+IF(INDEX($C116:$L116,1,aux!$BA$1)>0,(L116/INDEX($C116:$L116,1,aux!$BA$1))^(1/($L$3-INDEX($C$3:$L$3,1,aux!$BA$1)))-1,"n.d.") -> 0.3283223731 | AF116: =IF(INDEX($C116:$L116,1,aux!$BA$1)>0,(L116-INDEX($C116:$L116,1,aux!$BA$1))/INDEX($C116:$L116,1,aux!$BA$1),"n.d.") -> 11.87453014 | AH116: =X116-INDEX($O116:$X116,1,aux!$BA$1) -> 154.58 | AI116: 0.0002912029909 | AJ116: =+IF(INDEX($O116:$X116,1,aux!$BA$1)>0,(X116/INDEX($O116:$X116,1,aux!$BA$1))^(1/($X$3-INDEX($O$3:$X$3,1,aux!$BA$1)))-1,"n.d.") -> 0.002989771806 | AK116: =IF(INDEX($O116:$X116,1,aux!$BA$1)>0,(X116-INDEX($O116:$X116,1,aux!$BA$1))/INDEX($O116:$X116,1,aux!$BA$1),"n.d.") -> 0.02723199571 | CC116: =+IF(ISNA(MATCH('5.1'!A116,AUX_2d_pais!$G$2:$G$40000,0)),0,1) -> 1
A117: 0612 | B117: Iraque | C117: 0 | D117: 0 | E117: 0 | F117: 0 | G117: 124.733 | H117: 232.456 | I117: 172.396 | J117: 47.819 | K117: 9.198 | L117: 0 | M117: 58.6602 | N117: 0.0001438730357 | O117: 34.827 | P117: 31.039 | Q117: 89.141 | R117: 710.233 | S117: 2325.038 | T117: 3534.873 | U117: 2593.803 | V117: 7074.93 | W117: 12019.442 | X117: 11342.973 | Y117: 3975.6299 | Z117: 0.008269577707 | AA117: 3916.9697 | AC117: =L117-INDEX($C117:$L117,1,aux!$BA$1) -> 0 | AD117: 0 | AE117: =+IF(INDEX($C117:$L117,1,aux!$BA$1)>0,(L117/INDEX($C117:$L117,1,aux!$BA$1))^(1/($L$3-INDEX($C$3:$L$3,1,aux!$BA$1)))-1,"n.d.") -> n.d. | AF117: =IF(INDEX($C117:$L117,1,aux!$BA$1)>0,(L117-INDEX($C117:$L117,1,aux!$BA$1))/INDEX($C117:$L117,1,aux!$BA$1),"n.d.") -> n.d. | AH117: =X117-INDEX($O117:$X117,1,aux!$BA$1) -> 11308.146 | AI117: 0.02130266487 | AJ117: =+IF(INDEX($O117:$X117,1,aux!$BA$1)>0,(X117/INDEX($O117:$X117,1,aux!$BA$1))^(1/($X$3-INDEX($O$3:$X$3,1,aux!$BA$1)))-1,"n.d.") -> 0.9019592315 | AK117: =IF(INDEX($O117:$X117,1,aux!$BA$1)>0,(X117-INDEX($O117:$X117,1,aux!$BA$1))/INDEX($O117:$X117,1,aux!$BA$1),"n.d.") -> 324.6948058 | CC117: =+IF(ISNA(MATCH('5.1'!A117,AUX_2d_pais!$G$2:$G$40000,0)),0,1) -> 1
A118: 0007 | B118: Irlanda | C118: 0 | D118: 0 | E118: 0 | F118: 0 | G118: 0 | H118: 0 | I118: 0 | J118: 0 | K118: 0 | L118: 0 | M118: 0 | N118: 0 | O118: 0 | P118: 0 | Q118: 0 | R118: 0 | S118: 0 | T118: 0 | U118: 0 | V118: 0 | W118: 0 | X118: 0 | Y118: 0 | Z118: 0 | AA118: 0 | AC118: =L118-INDEX($C118:$L118,1,aux!$BA$1) -> 0 | AD118: 0 | AE118: =+IF(INDEX($C118:$L118,1,aux!$BA$1)>0,(L118/INDEX($C118:$L118,1,aux!$BA$1))^(1/($L$3-INDEX($C$3:$L$3,1,aux!$BA$1)))-1,"n.d.") -> n.d. | AF118: =IF(INDEX($C118:$L118,1,aux!$BA$1)>0,(L118-INDEX($C118:$L118,1,aux!$BA$1))/INDEX($C118:$L118,1,aux!$BA$1),"n.d.") -> n.d. | AH118: =X118-INDEX($O118:$X118,1,aux!$BA$1) -> 0 | AI118: 0 | AJ118: =+IF(INDEX($O118:$X118,1,aux!$BA$1)>0,(X118/INDEX($O118:$X118,1,aux!$BA$1))^(1/($X$3-INDEX($O$3:$X$3,1,aux!$BA$1)))-1,"n.d.") -> n.d. | AK118: =IF(INDEX($O118:$X118,1,aux!$BA$1)>0,(X118-INDEX($O118:$X118,1,aux!$BA$1))/INDEX($O118:$X118,1,aux!$BA$1),"n.d.") -> n.d. | AM118: 0 | CC118: =+IF(ISNA(MATCH('5.1'!A118,AUX_2d_pais!$G$2:$G$40000,0)),0,1) -> 0
A119: 0024 | B119: Islândia | C119: 0 | D119: 0 | E119: 0 | F119: 0 | G119: 0 | H119: 0 | I119: 0 | J119: 0 | K119: 0 | L119: 0 | M119: 0 | N119: 0 | O119: 0 | P119: 0 | Q119: 0 | R119: 0 | S119: 0 | T119: 0 | U119: 0 | V119: 0 | W119: 0 | X119: 0 | Y119: 0 | Z119: 0 | AA119: 0 | AC119: =L119-INDEX($C119:$L119,1,aux!$BA$1) -> 0 | AD119: 0 | AE119: =+IF(INDEX($C119:$L119,1,aux!$BA$1)>0,(L119/INDEX($C119:$L119,1,aux!$BA$1))^(1/($L$3-INDEX($C$3:$L$3,1,aux!$BA$1)))-1,"n.d.") -> n.d. | AF119: =IF(INDEX($C119:$L119,1,aux!$BA$1)>0,(L119-INDEX($C119:$L119,1,aux!$BA$1))/INDEX($C119:$L119,1,aux!$BA$1),"n.d.") -> n.d. | AH119: =X119-INDEX($O119:$X119,1,aux!$BA$1) -> 0 | AI119: 0 | AJ119: =+IF(INDEX($O119:$X119,1,aux!$BA$1)>0,(X119/INDEX($O119:$X119,1,aux!$BA$1))^(1/($X$3-INDEX($O$3:$X$3,1,aux!$BA$1)))-1,"n.d.") -> n.d. | AK119: =IF(INDEX($O119:$X119,1,aux!$BA$1)>0,(X119-INDEX($O119:$X119,1,aux!$BA$1))/INDEX($O119:$X119,1,aux!$BA$1),"n.d.") -> n.d. | AM119: 0 | CC119: =+IF(ISNA(MATCH('5.1'!A119,AUX_2d_pais!$G$2:$G$40000,0)),0,1) -> 0
A120: 0624 | B120: Israel | C120: 6030.87 | D120: 7007.762 | E120: 6148.417 | F120: 4288.034 | G120: 6432.756 | H120: 11470.409 | I120: 12032.351 | J120: 12857.604 | K120: 12380.679 | L120: 11244.262 | M120: 8989.3144 | N120: 0.0220476567 | O120: 23411.904 | P120: 21450.071 | Q120: 24452.475 | R120: 26001.634 | S120: 28916.76 | T120: 28723.081 | U120: 45207.488 | V120: 90038.608 | W120: 112278.362 | X120: 143080.601 | Y120: 54356.0984 | Z120: 0.1130643422 | AA120: 45366.784 | AC120: =L120-INDEX($C120:$L120,1,aux!$BA$1) -> 5213.392 | AD120: 0.01845317514 | AE120: =+IF(INDEX($C120:$L120,1,aux!$BA$1)>0,(L120/INDEX($C120:$L120,1,aux!$BA$1))^(1/($L$3-INDEX($C$3:$L$3,1,aux!$BA$1)))-1,"n.d.") -> 0.07167036439 | AF120: =IF(INDEX($C120:$L120,1,aux!$BA$1)>0,(L120-INDEX($C120:$L120,1,aux!$BA$1))/INDEX($C120:$L120,1,aux!$BA$1),"n.d.") -> 0.8644510659 | AH120: =X120-INDEX($O120:$X120,1,aux!$BA$1) -> 119668.697 | AI120: 0.2254359068 | AJ120: =+IF(INDEX($O120:$X120,1,aux!$BA$1)>0,(X120/INDEX($O120:$X120,1,aux!$BA$1))^(1/($X$3-INDEX($O$3:$X$3,1,aux!$BA$1)))-1,"n.d.") -> 0.2227828408 | AK120: =IF(INDEX($O120:$X120,1,aux!$BA$1)>0,(X120-INDEX($O120:$X120,1,aux!$BA$1))/INDEX($O120:$X120,1,aux!$BA$1),"n.d.") -> 5.111446596 | CC120: =+IF(ISNA(MATCH('5.1'!A120,AUX_2d_pais!$G$2:$G$40000,0)),0,1) -> 1
A121: 0005 | B121: Itália | C121: 0 | D121: 0 | E121: 0 | F121: 0 | G121: 0 | H121: 0 | I121: 0 | J121: 0 | K121: 0 | L121: 0 | M121: 0 | N121: 0 | O121: 0 | P121: 0 | Q121: 0 | R121: 0 | S121: 0 | T121: 0 | U121: 0 | V121: 0 | W121: 0 | X121: 0 | Y121: 0 | Z121: 0 | AA121: 0 | AC121: =L121-INDEX($C121:$L121,1,aux!$BA$1) -> 0 | AD121: 0 | AE121: =+IF(INDEX($C121:$L121,1,aux!$BA$1)>0,(L121/INDEX($C121:$L121,1,aux!$BA$1))^(1/($L$3-INDEX($C$3:$L$3,1,aux!$BA$1)))-1,"n.d.") -> n.d. | AF121: =IF(INDEX($C121:$L121,1,aux!$BA$1)>0,(L121-INDEX($C121:$L121,1,aux!$BA$1))/INDEX($C121:$L121,1,aux!$BA$1),"n.d.") -> n.d. | AH121: =X121-INDEX($O121:$X121,1,aux!$BA$1) -> 0 | AI121: 0 | AJ121: =+IF(INDEX($O121:$X121,1,aux!$BA$1)>0,(X121/INDEX($O121:$X121,1,aux!$BA$1))^(1/($X$3-INDEX($O$3:$X$3,1,aux!$BA$1)))-1,"n.d.") -> n.d. | AK121: =IF(INDEX($O121:$X121,1,aux!$BA$1)>0,(X121-INDEX($O121:$X121,1,aux!$BA$1))/INDEX($O121:$X121,1,aux!$BA$1),"n.d.") -> n.d. | AM121: 0 | CC121: =+IF(ISNA(MATCH('5.1'!A121,AUX_2d_pais!$G$2:$G$40000,0)),0,1) -> 0
A122: 0464 | B122: Jamaica | C122: 0 | D122: 0 | E122: 0 | F122: 0 | G122: 0 | H122: 0 | I122: 0 | J122: 0 | K122: 0 | L122: 0 | M122: 0 | N122: 0 | O122: 0 | P122: 0 | Q122: 0 | R122: 0 | S122: 0 | T122: 0 | U122: 0 | V122: 0 | W122: 0 | X122: 0 | Y122: 0 | Z122: 0 | AA122: 0 | AC122: =L122-INDEX($C122:$L122,1,aux!$BA$1) -> 0 | AD122: 0 | AE122: =+IF(INDEX($C122:$L122,1,aux!$BA$1)>0,(L122/INDEX($C122:$L122,1,aux!$BA$1))^(1/($L$3-INDEX($C$3:$L$3,1,aux!$BA$1)))-1,"n.d.") -> n.d. | AF122: =IF(INDEX($C122:$L122,1,aux!$BA$1)>0,(L122-INDEX($C122:$L122,1,aux!$BA$1))/INDEX($C122:$L122,1,aux!$BA$1),"n.d.") -> n.d. | AH122: =X122-INDEX($O122:$X122,1,aux!$BA$1) -> 0 | AI122: 0 | AJ122: =+IF(INDEX($O122:$X122,1,aux!$BA$1)>0,(X122/INDEX($O122:$X122,1,aux!$BA$1))^(1/($X$3-INDEX($O$3:$X$3,1,aux!$BA$1)))-1,"n.d.") -> n.d. | AK122: =IF(INDEX($O122:$X122,1,aux!$BA$1)>0,(X122-INDEX($O122:$X122,1,aux!$BA$1))/INDEX($O122:$X122,1,aux!$BA$1),"n.d.") -> n.d. | AM122: 0 | CC122: =+IF(ISNA(MATCH('5.1'!A122,AUX_2d_pais!$G$2:$G$40000,0)),0,1) -> 0
A123: 0732 | B123: Japão | C123: 1379.488 | D123: 1855.449 | E123: 2251.918 | F123: 2860.171 | G123: 3602.122 | H123: 2952.924 | I123: 4130.508 | J123: 6925.752 | K123: 11807.757 | L123: 16669.273 | M123: 5443.5362 | N123: 0.01335109799 | O123: 30728.084 | P123: 37717.059 | Q123: 44164.32 | R123: 49260.816 | S123: 54543.563 | T123: 45596.731 | U123: 51602.918 | V123: 45064.569 | W123: 58417.85 | X123: 57755.503 | Y123: 47485.1413 | Z123: 0.09877228912 | AA123: 42041.6051 | AC123: =L123-INDEX($C123:$L123,1,aux!$BA$1) -> 15289.785 | AD123: 0.05411929133 | AE123: =+IF(INDEX($C123:$L123,1,aux!$BA$1)>0,(L123/INDEX($C123:$L123,1,aux!$BA$1))^(1/($L$3-INDEX($C$3:$L$3,1,aux!$BA$1)))-1,"n.d.") -> 0.3189985059 | AF123: =IF(INDEX($C123:$L123,1,aux!$BA$1)>0,(L123-INDEX($C123:$L123,1,aux!$BA$1))/INDEX($C123:$L123,1,aux!$BA$1),"n.d.") -> 11.08366655 | AH123: =X123-INDEX($O123:$X123,1,aux!$BA$1) -> 27027.419 | AI123: 0.05091515881 | AJ123: =+IF(INDEX($O123:$X123,1,aux!$BA$1)>0,(X123/INDEX($O123:$X123,1,aux!$BA$1))^(1/($X$3-INDEX($O$3:$X$3,1,aux!$BA$1)))-1,"n.d.") -> 0.0726323146 | AK123: =IF(INDEX($O123:$X123,1,aux!$BA$1)>0,(X123-INDEX($O123:$X123,1,aux!$BA$1))/INDEX($O123:$X123,1,aux!$BA$1),"n.d.") -> 0.8795673365 | CC123: =+IF(ISNA(MATCH('5.1'!A123,AUX_2d_pais!$G$2:$G$40000,0)),0,1) -> 1
A124: 0338 | B124: Jibuti | C124: 0 | D124: 0 | E124: 0 | F124: 0 | G124: 0 | H124: 0 | I124: 0 | J124: 0 | K124: 0 | L124: 0 | M124: 0 | N124: 0 | O124: 0 | P124: 0 | Q124: 0 | R124: 0 | S124: 0 | T124: 0 | U124: 0 | V124: 0 | W124: 0 | X124: 0 | Y124: 0 | Z124: 0 | AA124: 0 | AC124: =L124-INDEX($C124:$L124,1,aux!$BA$1) -> 0 | AD124: 0 | AE124: =+IF(INDEX($C124:$L124,1,aux!$BA$1)>0,(L124/INDEX($C124:$L124,1,aux!$BA$1))^(1/($L$3-INDEX($C$3:$L$3,1,aux!$BA$1)))-1,"n.d.") -> n.d. | AF124: =IF(INDEX($C124:$L124,1,aux!$BA$1)>0,(L124-INDEX($C124:$L124,1,aux!$BA$1))/INDEX($C124:$L124,1,aux!$BA$1),"n.d.") -> n.d. | AH124: =X124-INDEX($O124:$X124,1,aux!$BA$1) -> 0 | AI124: 0 | AJ124: =+IF(INDEX($O124:$X124,1,aux!$BA$1)>0,(X124/INDEX($O124:$X124,1,aux!$BA$1))^(1/($X$3-INDEX($O$3:$X$3,1,aux!$BA$1)))-1,"n.d.") -> n.d. | AK124: =IF(INDEX($O124:$X124,1,aux!$BA$1)>0,(X124-INDEX($O124:$X124,1,aux!$BA$1))/INDEX($O124:$X124,1,aux!$BA$1),"n.d.") -> n.d. | AM124: 0 | BO124: 0 | CC124: =+IF(ISNA(MATCH('5.1'!A124,AUX_2d_pais!$G$2:$G$40000,0)),0,1) -> 0
A125: 0628 | B125: Jordânia | C125: 2.05 | D125: 81.612 | E125: 10.835 | F125: 0 | G125: 65.083 | H125: 0 | I125: 2.488 | J125: 3.149 | K125: 664.283 | L125: 67.075 | M125: 89.6575 | N125: 0.0002198986144 | O125: 8013.625 | P125: 6133.424 | Q125: 9395.734 | R125: 7781.346 | S125: 18382.733 | T125: 12232.551 | U125: 12155.757 | V125: 14233.093 | W125: 20481.933 | X125: 19130.321 | Y125: 12794.0517 | Z125: 0.02661248843 | AA125: 12704.3942 | AC125: =L125-INDEX($C125:$L125,1,aux!$BA$1) -> 65.025 | AD125: 0.0002301606542 | AE125: =+IF(INDEX($C125:$L125,1,aux!$BA$1)>0,(L125/INDEX($C125:$L125,1,aux!$BA$1))^(1/($L$3-INDEX($C$3:$L$3,1,aux!$BA$1)))-1,"n.d.") -> 0.4733701567 | AF125: =IF(INDEX($C125:$L125,1,aux!$BA$1)>0,(L125-INDEX($C125:$L125,1,aux!$BA$1))/INDEX($C125:$L125,1,aux!$BA$1),"n.d.") -> 31.7195122 | AH125: =X125-INDEX($O125:$X125,1,aux!$BA$1) -> 11116.696 | AI125: 0.02094200494 | AJ125: =+IF(INDEX($O125:$X125,1,aux!$BA$1)>0,(X125/INDEX($O125:$X125,1,aux!$BA$1))^(1/($X$3-INDEX($O$3:$X$3,1,aux!$BA$1)))-1,"n.d.") -> 0.1015092233 | AK125: =IF(INDEX($O125:$X125,1,aux!$BA$1)>0,(X125-INDEX($O125:$X125,1,aux!$BA$1))/INDEX($O125:$X125,1,aux!$BA$1),"n.d.") -> 1.387224383 | CC125: =+IF(ISNA(MATCH('5.1'!A125,AUX_2d_pais!$G$2:$G$40000,0)),0,1) -> 1
A126: 0812 | B126: Kiribati | C126: 0 | D126: 0 | E126: 0 | F126: 0 | G126: 0 | H126: 0 | I126: 0 | J126: 0 | K126: 0 | L126: 0 | M126: 0 | N126: 0 | O126: 0 | P126: 0 | Q126: 0 | R126: 0 | S126: 0 | T126: 0 | U126: 0 | V126: 0 | W126: 0 | X126: 0 | Y126: 0 | Z126: 0 | AA126: 0 | AC126: =L126-INDEX($C126:$L126,1,aux!$BA$1) -> 0 | AD126: 0 | AE126: =+IF(INDEX($C126:$L126,1,aux!$BA$1)>0,(L126/INDEX($C126:$L126,1,aux!$BA$1))^(1/($L$3-INDEX($C$3:$L$3,1,aux!$BA$1)))-1,"n.d.") -> n.d. | AF126: =IF(INDEX($C126:$L126,1,aux!$BA$1)>0,(L126-INDEX($C126:$L126,1,aux!$BA$1))/INDEX($C126:$L126,1,aux!$BA$1),"n.d.") -> n.d. | AH126: =X126-INDEX($O126:$X126,1,aux!$BA$1) -> 0 | AI126: 0 | AJ126: =+IF(INDEX($O126:$X126,1,aux!$BA$1)>0,(X126/INDEX($O126:$X126,1,aux!$BA$1))^(1/($X$3-INDEX($O$3:$X$3,1,aux!$BA$1)))-1,"n.d.") -> n.d. | AK126: =IF(INDEX($O126:$X126,1,aux!$BA$1)>0,(X126-INDEX($O126:$X126,1,aux!$BA$1))/INDEX($O126:$X126,1,aux!$BA$1),"n.d.") -> n.d. | AM126: 0 | BO126: 0 | CC126: =+IF(ISNA(MATCH('5.1'!A126,AUX_2d_pais!$G$2:$G$40000,0)),0,1) -> 0
A127: 0095 | B127: Kosovo | C127: 0 | D127: 0 | E127: 0 | F127: 0 | G127: 0 | H127: 0 | I127: 0 | J127: 0 | K127: 0 | L127: 0 | M127: 0 | N127: 0 | O127: 0 | P127: 0 | Q127: 0 | R127: 0 | S127: 0 | T127: 0 | U127: 0 | V127: 0 | W127: 0 | X127: 0 | Y127: 0 | Z127: 0 | AA127: 0 | AC127: =L127-INDEX($C127:$L127,1,aux!$BA$1) -> 0 | AD127: 0 | AE127: =+IF(INDEX($C127:$L127,1,aux!$BA$1)>0,(L127/INDEX($C127:$L127,1,aux!$BA$1))^(1/($L$3-INDEX($C$3:$L$3,1,aux!$BA$1)))-1,"n.d.") -> n.d. | AF127: =IF(INDEX($C127:$L127,1,aux!$BA$1)>0,(L127-INDEX($C127:$L127,1,aux!$BA$1))/INDEX($C127:$L127,1,aux!$BA$1),"n.d.") -> n.d. | AH127: =X127-INDEX($O127:$X127,1,aux!$BA$1) -> 0 | AI127: 0 | AJ127: =+IF(INDEX($O127:$X127,1,aux!$BA$1)>0,(X127/INDEX($O127:$X127,1,aux!$BA$1))^(1/($X$3-INDEX($O$3:$X$3,1,aux!$BA$1)))-1,"n.d.") -> n.d. | AK127: =IF(INDEX($O127:$X127,1,aux!$BA$1)>0,(X127-INDEX($O127:$X127,1,aux!$BA$1))/INDEX($O127:$X127,1,aux!$BA$1),"n.d.") -> n.d. | AM127: 0 | BO127: 0 | CC127: =+IF(ISNA(MATCH('5.1'!A127,AUX_2d_pais!$G$2:$G$40000,0)),0,1) -> 0
A128: 0636 | B128: Kuwait | C128: 0 | D128: 0 | E128: 0 | F128: 0 | G128: 0.048 | H128: 0.146 | I128: 0.118 | J128: 163.234 | K128: 724.11 | L128: 813.997 | M128: 170.1653 | N128: 0.0004173562021 | O128: 3812.272 | P128: 5406.583 | Q128: 7673.676 | R128: 7382.064 | S128: 8705.422 | T128: 9592.878 | U128: 8610.925 | V128: 8024.714 | W128: 6618.808 | X128: 6768.362 | Y128: 7259.5704 | Z128: 0.01510039492 | AA128: 7089.4051 | AC128: =L128-INDEX($C128:$L128,1,aux!$BA$1) -> 813.997 | AD128: 0.002881200801 | AE128: =+IF(INDEX($C128:$L128,1,aux!$BA$1)>0,(L128/INDEX($C128:$L128,1,aux!$BA$1))^(1/($L$3-INDEX($C$3:$L$3,1,aux!$BA$1)))-1,"n.d.") -> n.d. | AF128: =IF(INDEX($C128:$L128,1,aux!$BA$1)>0,(L128-INDEX($C128:$L128,1,aux!$BA$1))/INDEX($C128:$L128,1,aux!$BA$1),"n.d.") -> n.d. | AH128: =X128-INDEX($O128:$X128,1,aux!$BA$1) -> 2956.09 | AI128: 0.005568781532 | AJ128: =+IF(INDEX($O128:$X128,1,aux!$BA$1)>0,(X128/INDEX($O128:$X128,1,aux!$BA$1))^(1/($X$3-INDEX($O$3:$X$3,1,aux!$BA$1)))-1,"n.d.") -> 0.06585951511 | AK128: =IF(INDEX($O128:$X128,1,aux!$BA$1)>0,(X128-INDEX($O128:$X128,1,aux!$BA$1))/INDEX($O128:$X128,1,aux!$BA$1),"n.d.") -> 0.7754142412 | CC128: =+IF(ISNA(MATCH('5.1'!A128,AUX_2d_pais!$G$2:$G$40000,0)),0,1) -> 1
A129: 0684 | B129: Laos, República Democrática Popular do | C129: 1198.493 | D129: 639.945 | E129: 1975.942 | F129: 2265.191 | G129: 1865.676 | H129: 10591.272 | I129: 1214.775 | J129: 1522.526 | K129: 15112.755 | L129: 1493.655 | M129: 3788.023 | N129: 0.009290700823 | O129: 16.545 | P129: 0 | Q129: 0 | R129: 0.637 | S129: 0 | T129: 0 | U129: 0 | V129: 0 | W129: 0.724 | X129: 28.104 | Y129: 4.601 | Z129: 9.570389596e-06 | AA129: -3783.422 | AC129: =L129-INDEX($C129:$L129,1,aux!$BA$1) -> 295.162 | AD129: 0.001044747082 | AE129: =+IF(INDEX($C129:$L129,1,aux!$BA$1)>0,(L129/INDEX($C129:$L129,1,aux!$BA$1))^(1/($L$3-INDEX($C$3:$L$3,1,aux!$BA$1)))-1,"n.d.") -> 0.02476401395 | AF129: =IF(INDEX($C129:$L129,1,aux!$BA$1)>0,(L129-INDEX($C129:$L129,1,aux!$BA$1))/INDEX($C129:$L129,1,aux!$BA$1),"n.d.") -> 0.246277617 | AH129: =X129-INDEX($O129:$X129,1,aux!$BA$1) -> 11.559 | AI129: 2.177523206e-05 | AJ129: =+IF(INDEX($O129:$X129,1,aux!$BA$1)>0,(X129/INDEX($O129:$X129,1,aux!$BA$1))^(1/($X$3-INDEX($O$3:$X$3,1,aux!$BA$1)))-1,"n.d.") -> 0.06063711011 | AK129: =IF(INDEX($O129:$X129,1,aux!$BA$1)>0,(X129-INDEX($O129:$X129,1,aux!$BA$1))/INDEX($O129:$X129,1,aux!$BA$1),"n.d.") -> 0.6986400725 | BO129: 37926.24 | CC129: =+IF(ISNA(MATCH('5.1'!A129,AUX_2d_pais!$G$2:$G$40000,0)),0,1) -> 1
A130: 0395 | B130: Lesoto | C130: 0 | D130: 0 | E130: 0 | F130: 0 | G130: 0 | H130: 0 | I130: 0 | J130: 0 | K130: 0 | L130: 0 | M130: 0 | N130: 0 | O130: 0 | P130: 0 | Q130: 0 | R130: 0 | S130: 0 | T130: 0 | U130: 0 | V130: 0 | W130: 0 | X130: 0 | Y130: 0 | Z130: 0 | AA130: 0 | AC130: =L130-INDEX($C130:$L130,1,aux!$BA$1) -> 0 | AD130: 0 | AE130: =+IF(INDEX($C130:$L130,1,aux!$BA$1)>0,(L130/INDEX($C130:$L130,1,aux!$BA$1))^(1/($L$3-INDEX($C$3:$L$3,1,aux!$BA$1)))-1,"n.d.") -> n.d. | AF130: =IF(INDEX($C130:$L130,1,aux!$BA$1)>0,(L130-INDEX($C130:$L130,1,aux!$BA$1))/INDEX($C130:$L130,1,aux!$BA$1),"n.d.") -> n.d. | AH130: =X130-INDEX($O130:$X130,1,aux!$BA$1) -> 0 | AI130: 0 | AJ130: =+IF(INDEX($O130:$X130,1,aux!$BA$1)>0,(X130/INDEX($O130:$X130,1,aux!$BA$1))^(1/($X$3-INDEX($O$3:$X$3,1,aux!$BA$1)))-1,"n.d.") -> n.d. | AK130: =IF(INDEX($O130:$X130,1,aux!$BA$1)>0,(X130-INDEX($O130:$X130,1,aux!$BA$1))/INDEX($O130:$X130,1,aux!$BA$1),"n.d.") -> n.d. | AM130: 0 | BO130: 0 | CC130: =+IF(ISNA(MATCH('5.1'!A130,AUX_2d_pais!$G$2:$G$40000,0)),0,1) -> 0
A131: 0054 | B131: Letónia | C131: 0 | D131: 0 | E131: 0 | F131: 0 | G131: 0 | H131: 0 | I131: 0 | J131: 0 | K131: 0 | L131: 0 | M131: 0 | N131: 0 | O131: 0 | P131: 0 | Q131: 0 | R131: 0 | S131: 0 | T131: 0 | U131: 0 | V131: 0 | W131: 0 | X131: 0 | Y131: 0 | Z131: 0 | AA131: 0 | AC131: =L131-INDEX($C131:$L131,1,aux!$BA$1) -> 0 | AD131: 0 | AE131: =+IF(INDEX($C131:$L131,1,aux!$BA$1)>0,(L131/INDEX($C131:$L131,1,aux!$BA$1))^(1/($L$3-INDEX($C$3:$L$3,1,aux!$BA$1)))-1,"n.d.") -> n.d. | AF131: =IF(INDEX($C131:$L131,1,aux!$BA$1)>0,(L131-INDEX($C131:$L131,1,aux!$BA$1))/INDEX($C131:$L131,1,aux!$BA$1),"n.d.") -> n.d. | AH131: =X131-INDEX($O131:$X131,1,aux!$BA$1) -> 0 | AI131: 0 | AJ131: =+IF(INDEX($O131:$X131,1,aux!$BA$1)>0,(X131/INDEX($O131:$X131,1,aux!$BA$1))^(1/($X$3-INDEX($O$3:$X$3,1,aux!$BA$1)))-1,"n.d.") -> n.d. | AK131: =IF(INDEX($O131:$X131,1,aux!$BA$1)>0,(X131-INDEX($O131:$X131,1,aux!$BA$1))/INDEX($O131:$X131,1,aux!$BA$1),"n.d.") -> n.d. | AM131: 0 | CC131: =+IF(ISNA(MATCH('5.1'!A131,AUX_2d_pais!$G$2:$G$40000,0)),0,1) -> 0
A132: 0604 | B132: Líbano | C132: 15.282 | D132: 21.024 | E132: 40.008 | F132: 6.476 | G132: 4.535 | H132: 188.761 | I132: 242.19 | J132: 1524.724 | K132: 4808.849 | L132: 1306.053 | M132: 815.7902 | N132: 0.002000849172 | O132: 3527.403 | P132: 8633.421 | Q132: 9208.13 | R132: 7110.554 | S132: 10196.704 | T132: 9023.488 | U132: 11286.484 | V132: 10368.348 | W132: 15485.342 | X132: 16328.744 | Y132: 10116.8618 | Z132: 0.0210437533 | AA132: 9301.0716 | AC132: =L132-INDEX($C132:$L132,1,aux!$BA$1) -> 1290.771 | AD132: 0.004568776591 | AE132: =+IF(INDEX($C132:$L132,1,aux!$BA$1)>0,(L132/INDEX($C132:$L132,1,aux!$BA$1))^(1/($L$3-INDEX($C$3:$L$3,1,aux!$BA$1)))-1,"n.d.") -> 0.6392390433 | AF132: =IF(INDEX($C132:$L132,1,aux!$BA$1)>0,(L132-INDEX($C132:$L132,1,aux!$BA$1))/INDEX($C132:$L132,1,aux!$BA$1),"n.d.") -> 84.46348645 | AH132: =X132-INDEX($O132:$X132,1,aux!$BA$1) -> 12801.341 | AI132: 0.02411559572 | AJ132: =+IF(INDEX($O132:$X132,1,aux!$BA$1)>0,(X132/INDEX($O132:$X132,1,aux!$BA$1))^(1/($X$3-INDEX($O$3:$X$3,1,aux!$BA$1)))-1,"n.d.") -> 0.1856163751 | AK132: =IF(INDEX($O132:$X132,1,aux!$BA$1)>0,(X132-INDEX($O132:$X132,1,aux!$BA$1))/INDEX($O132:$X132,1,aux!$BA$1),"n.d.") -> 3.629112126 | CC132: =+IF(ISNA(MATCH('5.1'!A132,AUX_2d_pais!$G$2:$G$40000,0)),0,1) -> 1
A133: 0268 | B133: Libéria | C133: 0 | D133: 0 | E133: 0 | F133: 0 | G133: 0 | H133: 0 | I133: 0 | J133: 0 | K133: 0 | L133: 0 | M133: 0 | N133: 0 | O133: 0 | P133: 0 | Q133: 0 | R133: 0 | S133: 0 | T133: 0 | U133: 0 | V133: 0 | W133: 0 | X133: 0 | Y133: 0 | Z133: 0 | AA133: 0 | AC133: =L133-INDEX($C133:$L133,1,aux!$BA$1) -> 0 | AD133: 0 | AE133: =+IF(INDEX($C133:$L133,1,aux!$BA$1)>0,(L133/INDEX($C133:$L133,1,aux!$BA$1))^(1/($L$3-INDEX($C$3:$L$3,1,aux!$BA$1)))-1,"n.d.") -> n.d. | AF133: =IF(INDEX($C133:$L133,1,aux!$BA$1)>0,(L133-INDEX($C133:$L133,1,aux!$BA$1))/INDEX($C133:$L133,1,aux!$BA$1),"n.d.") -> n.d. | AH133: =X133-INDEX($O133:$X133,1,aux!$BA$1) -> 0 | AI133: 0 | AJ133: =+IF(INDEX($O133:$X133,1,aux!$BA$1)>0,(X133/INDEX($O133:$X133,1,aux!$BA$1))^(1/($X$3-INDEX($O$3:$X$3,1,aux!$BA$1)))-1,"n.d.") -> n.d. | AK133: =IF(INDEX($O133:$X133,1,aux!$BA$1)>0,(X133-INDEX($O133:$X133,1,aux!$BA$1))/INDEX($O133:$X133,1,aux!$BA$1),"n.d.") -> n.d. | AM133: =SUM(A133:AA133) -> 0 | CC133: =+IF(ISNA(MATCH('5.1'!A133,AUX_2d_pais!$G$2:$G$40000,0)),0,1) -> 0
A134: 0216 | B134: Líbia, Jamahira Árabe da | C134: 0 | D134: 0 | E134: 0 | F134: 0 | G134: 0 | H134: 0 | I134: 0 | J134: 0 | K134: 0 | L134: 0 | M134: 0 | N134: 0 | O134: 0 | P134: 0 | Q134: 0 | R134: 0 | S134: 0 | T134: 0 | U134: 0 | V134: 0 | W134: 0 | X134: 0 | Y134: 0 | Z134: 0 | AA134: 0 | AC134: =L134-INDEX($C134:$L134,1,aux!$BA$1) -> 0 | AD134: 0 | AE134: =+IF(INDEX($C134:$L134,1,aux!$BA$1)>0,(L134/INDEX($C134:$L134,1,aux!$BA$1))^(1/($L$3-INDEX($C$3:$L$3,1,aux!$BA$1)))-1,"n.d.") -> n.d. | AF134: =IF(INDEX($C134:$L134,1,aux!$BA$1)>0,(L134-INDEX($C134:$L134,1,aux!$BA$1))/INDEX($C134:$L134,1,aux!$BA$1),"n.d.") -> n.d. | AH134: =X134-INDEX($O134:$X134,1,aux!$BA$1) -> 0 | AI134: 0 | AJ134: =+IF(INDEX($O134:$X134,1,aux!$BA$1)>0,(X134/INDEX($O134:$X134,1,aux!$BA$1))^(1/($X$3-INDEX($O$3:$X$3,1,aux!$BA$1)))-1,"n.d.") -> n.d. | AK134: =IF(INDEX($O134:$X134,1,aux!$BA$1)>0,(X134-INDEX($O134:$X134,1,aux!$BA$1))/INDEX($O134:$X134,1,aux!$BA$1),"n.d.") -> n.d. | AM134: 0 | CC134: =+IF(ISNA(MATCH('5.1'!A134,AUX_2d_pais!$G$2:$G$40000,0)),0,1) -> 0
A135: 0037 | B135: Liechtenstein | C135: 0 | D135: 0 | E135: 0 | F135: 0 | G135: 0 | H135: 0 | I135: 0 | J135: 0 | K135: 0 | L135: 0 | M135: 0 | N135: 0 | O135: 0 | P135: 0 | Q135: 0 | R135: 0 | S135: 0 | T135: 0 | U135: 0 | V135: 0 | W135: 0 | X135: 0 | Y135: 0 | Z135: 0 | AA135: 0 | AC135: =L135-INDEX($C135:$L135,1,aux!$BA$1) -> 0 | AD135: 0 | AE135: =+IF(INDEX($C135:$L135,1,aux!$BA$1)>0,(L135/INDEX($C135:$L135,1,aux!$BA$1))^(1/($L$3-INDEX($C$3:$L$3,1,aux!$BA$1)))-1,"n.d.") -> n.d. | AF135: =IF(INDEX($C135:$L135,1,aux!$BA$1)>0,(L135-INDEX($C135:$L135,1,aux!$BA$1))/INDEX($C135:$L135,1,aux!$BA$1),"n.d.") -> n.d. | AH135: =X135-INDEX($O135:$X135,1,aux!$BA$1) -> 0 | AI135: 0 | AJ135: =+IF(INDEX($O135:$X135,1,aux!$BA$1)>0,(X135/INDEX($O135:$X135,1,aux!$BA$1))^(1/($X$3-INDEX($O$3:$X$3,1,aux!$BA$1)))-1,"n.d.") -> n.d. | AK135: =IF(INDEX($O135:$X135,1,aux!$BA$1)>0,(X135-INDEX($O135:$X135,1,aux!$BA$1))/INDEX($O135:$X135,1,aux!$BA$1),"n.d.") -> n.d. | AM135: 0 | CC135: =+IF(ISNA(MATCH('5.1'!A135,AUX_2d_pais!$G$2:$G$40000,0)),0,1) -> 0
A136: 0055 | B136: Lituânia | C136: 0 | D136: 0 | E136: 0 | F136: 0 | G136: 0 | H136: 0 | I136: 0 | J136: 0 | K136: 0 | L136: 0 | M136: 0 | N136: 0 | O136: 0 | P136: 0 | Q136: 0 | R136: 0 | S136: 0 | T136: 0 | U136: 0 | V136: 0 | W136: 0 | X136: 0 | Y136: 0 | Z136: 0 | AA136: 0 | AC136: =L136-INDEX($C136:$L136,1,aux!$BA$1) -> 0 | AD136: 0 | AE136: =+IF(INDEX($C136:$L136,1,aux!$BA$1)>0,(L136/INDEX($C136:$L136,1,aux!$BA$1))^(1/($L$3-INDEX($C$3:$L$3,1,aux!$BA$1)))-1,"n.d.") -> n.d. | AF136: =IF(INDEX($C136:$L136,1,aux!$BA$1)>0,(L136-INDEX($C136:$L136,1,aux!$BA$1))/INDEX($C136:$L136,1,aux!$BA$1),"n.d.") -> n.d. | AH136: =X136-INDEX($O136:$X136,1,aux!$BA$1) -> 0 | AI136: 0 | AJ136: =+IF(INDEX($O136:$X136,1,aux!$BA$1)>0,(X136/INDEX($O136:$X136,1,aux!$BA$1))^(1/($X$3-INDEX($O$3:$X$3,1,aux!$BA$1)))-1,"n.d.") -> n.d. | AK136: =IF(INDEX($O136:$X136,1,aux!$BA$1)>0,(X136-INDEX($O136:$X136,1,aux!$BA$1))/INDEX($O136:$X136,1,aux!$BA$1),"n.d.") -> n.d. | AM136: 0 | CC136: =+IF(ISNA(MATCH('5.1'!A136,AUX_2d_pais!$G$2:$G$40000,0)),0,1) -> 0
A137: 0018 | B137: Luxemburgo | C137: 0 | D137: 0 | E137: 0 | F137: 0 | G137: 0 | H137: 0 | I137: 0 | J137: 0 | K137: 0 | L137: 0 | M137: 0 | N137: 0 | O137: 0 | P137: 0 | Q137: 0 | R137: 0 | S137: 0 | T137: 0 | U137: 0 | V137: 0 | W137: 0 | X137: 0 | Y137: 0 | Z137: 0 | AA137: 0 | AC137: =L137-INDEX($C137:$L137,1,aux!$BA$1) -> 0 | AD137: 0 | AE137: =+IF(INDEX($C137:$L137,1,aux!$BA$1)>0,(L137/INDEX($C137:$L137,1,aux!$BA$1))^(1/($L$3-INDEX($C$3:$L$3,1,aux!$BA$1)))-1,"n.d.") -> n.d. | AF137: =IF(INDEX($C137:$L137,1,aux!$BA$1)>0,(L137-INDEX($C137:$L137,1,aux!$BA$1))/INDEX($C137:$L137,1,aux!$BA$1),"n.d.") -> n.d. | AH137: =X137-INDEX($O137:$X137,1,aux!$BA$1) -> 0 | AI137: 0 | AJ137: =+IF(INDEX($O137:$X137,1,aux!$BA$1)>0,(X137/INDEX($O137:$X137,1,aux!$BA$1))^(1/($X$3-INDEX($O$3:$X$3,1,aux!$BA$1)))-1,"n.d.") -> n.d. | AK137: =IF(INDEX($O137:$X137,1,aux!$BA$1)>0,(X137-INDEX($O137:$X137,1,aux!$BA$1))/INDEX($O137:$X137,1,aux!$BA$1),"n.d.") -> n.d. | AM137: 0 | CC137: =+IF(ISNA(MATCH('5.1'!A137,AUX_2d_pais!$G$2:$G$40000,0)),0,1) -> 0
A138: 0743 | B138: Macau | C138: 15.255 | D138: 12.576 | E138: 1.69 | F138: 83.468 | G138: 2.382 | H138: 0.604 | I138: 101.206 | J138: 54.768 | K138: 6.153 | L138: 0.779 | M138: 27.8881 | N138: 6.83997942e-05 | O138: 7435.172 | P138: 8294.963 | Q138: 9727.463 | R138: 11856.233 | S138: 11543.547 | T138: 12950.672 | U138: 12543.095 | V138: 13857.428 | W138: 14230.51 | X138: 15005.542 | Y138: 11744.4625 | Z138: 0.02442927227 | AA138: 11716.5744 | AC138: =L138-INDEX($C138:$L138,1,aux!$BA$1) -> -14.476 | AD138: -5.123884092e-05 | AE138: =+IF(INDEX($C138:$L138,1,aux!$BA$1)>0,(L138/INDEX($C138:$L138,1,aux!$BA$1))^(1/($L$3-INDEX($C$3:$L$3,1,aux!$BA$1)))-1,"n.d.") -> -0.2814477384 | AF138: =IF(INDEX($C138:$L138,1,aux!$BA$1)>0,(L138-INDEX($C138:$L138,1,aux!$BA$1))/INDEX($C138:$L138,1,aux!$BA$1),"n.d.") -> -0.9489347755 | AH138: =X138-INDEX($O138:$X138,1,aux!$BA$1) -> 7570.37 | AI138: 0.01426131703 | AJ138: =+IF(INDEX($O138:$X138,1,aux!$BA$1)>0,(X138/INDEX($O138:$X138,1,aux!$BA$1))^(1/($X$3-INDEX($O$3:$X$3,1,aux!$BA$1)))-1,"n.d.") -> 0.08114642994 | AK138: =IF(INDEX($O138:$X138,1,aux!$BA$1)>0,(X138-INDEX($O138:$X138,1,aux!$BA$1))/INDEX($O138:$X138,1,aux!$BA$1),"n.d.") -> 1.018183574 | CC138: =+IF(ISNA(MATCH('5.1'!A138,AUX_2d_pais!$G$2:$G$40000,0)),0,1) -> 1
A139: 0096 | B139: Macedónia, Antiga República jugoslava da | C139: 0 | D139: 0 | E139: 0 | F139: 0 | G139: 0 | H139: 0 | I139: 0 | J139: 0 | K139: 0 | L139: 0 | M139: 0 | N139: 0 | O139: 0 | P139: 0 | Q139: 0 | R139: 0 | S139: 0 | T139: 0 | U139: 0 | V139: 0 | W139: 0 | X139: 0 | Y139: 0 | Z139: 0 | AA139: 0 | AC139: =L139-INDEX($C139:$L139,1,aux!$BA$1) -> 0 | AD139: 0 | AE139: =+IF(INDEX($C139:$L139,1,aux!$BA$1)>0,(L139/INDEX($C139:$L139,1,aux!$BA$1))^(1/($L$3-INDEX($C$3:$L$3,1,aux!$BA$1)))-1,"n.d.") -> n.d. | AF139: =IF(INDEX($C139:$L139,1,aux!$BA$1)>0,(L139-INDEX($C139:$L139,1,aux!$BA$1))/INDEX($C139:$L139,1,aux!$BA$1),"n.d.") -> n.d. | AH139: =X139-INDEX($O139:$X139,1,aux!$BA$1) -> 0 | AI139: 0 | AJ139: =+IF(INDEX($O139:$X139,1,aux!$BA$1)>0,(X139/INDEX($O139:$X139,1,aux!$BA$1))^(1/($X$3-INDEX($O$3:$X$3,1,aux!$BA$1)))-1,"n.d.") -> n.d. | AK139: =IF(INDEX($O139:$X139,1,aux!$BA$1)>0,(X139-INDEX($O139:$X139,1,aux!$BA$1))/INDEX($O139:$X139,1,aux!$BA$1),"n.d.") -> n.d. | AM139: 0 | CC139: =+IF(ISNA(MATCH('5.1'!A139,AUX_2d_pais!$G$2:$G$40000,0)),0,1) -> 0
A140: 0370 | B140: Madagáscar | C140: 0 | D140: 0 | E140: 0 | F140: 0 | G140: 0 | H140: 0 | I140: 0 | J140: 0 | K140: 0 | L140: 0 | M140: 0 | N140: 0 | O140: 0 | P140: 0 | Q140: 0 | R140: 0 | S140: 0 | T140: 0 | U140: 0 | V140: 0 | W140: 0 | X140: 0 | Y140: 0 | Z140: 0 | AA140: 0 | AC140: =L140-INDEX($C140:$L140,1,aux!$BA$1) -> 0 | AD140: 0 | AE140: =+IF(INDEX($C140:$L140,1,aux!$BA$1)>0,(L140/INDEX($C140:$L140,1,aux!$BA$1))^(1/($L$3-INDEX($C$3:$L$3,1,aux!$BA$1)))-1,"n.d.") -> n.d. | AF140: =IF(INDEX($C140:$L140,1,aux!$BA$1)>0,(L140-INDEX($C140:$L140,1,aux!$BA$1))/INDEX($C140:$L140,1,aux!$BA$1),"n.d.") -> n.d. | AH140: =X140-INDEX($O140:$X140,1,aux!$BA$1) -> 0 | AI140: 0 | AJ140: =+IF(INDEX($O140:$X140,1,aux!$BA$1)>0,(X140/INDEX($O140:$X140,1,aux!$BA$1))^(1/($X$3-INDEX($O$3:$X$3,1,aux!$BA$1)))-1,"n.d.") -> n.d. | AK140: =IF(INDEX($O140:$X140,1,aux!$BA$1)>0,(X140-INDEX($O140:$X140,1,aux!$BA$1))/INDEX($O140:$X140,1,aux!$BA$1),"n.d.") -> n.d. | AM140: 0 | CC140: =+IF(ISNA(MATCH('5.1'!A140,AUX_2d_pais!$G$2:$G$40000,0)),0,1) -> 0
A141: 0701 | B141: Malásia | C141: 10423.791 | D141: 7056.118 | E141: 2429.018 | F141: 1060.415 | G141: 4444.993 | H141: 5762.822 | I141: 4744.528 | J141: 2554.118 | K141: 2132.426 | L141: 7011.016 | M141: 4761.9245 | N141: 0.01167934193 | O141: 2123.904 | P141: 1564.481 | Q141: 2344.433 | R141: 2340.358 | S141: 2172.555 | T141: 2773.22 | U141: 2342.089 | V141: 3562.884 | W141: 4274.252 | X141: 4475.752 | Y141: 2797.3928 | Z141: 0.005818765257 | AA141: -1964.5317 | AC141: =L141-INDEX($C141:$L141,1,aux!$BA$1) -> -3412.775 | AD141: -0.01207976204 | AE141: =+IF(INDEX($C141:$L141,1,aux!$BA$1)>0,(L141/INDEX($C141:$L141,1,aux!$BA$1))^(1/($L$3-INDEX($C$3:$L$3,1,aux!$BA$1)))-1,"n.d.") -> -0.04311070527 | AF141: =IF(INDEX($C141:$L141,1,aux!$BA$1)>0,(L141-INDEX($C141:$L141,1,aux!$BA$1))/INDEX($C141:$L141,1,aux!$BA$1),"n.d.") -> -0.3274024777 | AH141: =X141-INDEX($O141:$X141,1,aux!$BA$1) -> 2351.848 | AI141: 0.004430490178 | AJ141: =+IF(INDEX($O141:$X141,1,aux!$BA$1)>0,(X141/INDEX($O141:$X141,1,aux!$BA$1))^(1/($X$3-INDEX($O$3:$X$3,1,aux!$BA$1)))-1,"n.d.") -> 0.08635089309 | AK141: =IF(INDEX($O141:$X141,1,aux!$BA$1)>0,(X141-INDEX($O141:$X141,1,aux!$BA$1))/INDEX($O141:$X141,1,aux!$BA$1),"n.d.") -> 1.107323118 | CC141: =+IF(ISNA(MATCH('5.1'!A141,AUX_2d_pais!$G$2:$G$40000,0)),0,1) -> 1
A142: 0386 | B142: Malavi | C142: 0 | D142: 0 | E142: 0 | F142: 0 | G142: 0 | H142: 0 | I142: 0 | J142: 0 | K142: 0 | L142: 0 | M142: 0 | N142: 0 | O142: 0 | P142: 0 | Q142: 0 | R142: 0 | S142: 0 | T142: 0 | U142: 0 | V142: 0 | W142: 0 | X142: 0 | Y142: 0 | Z142: 0 | AA142: 0 | AC142: =L142-INDEX($C142:$L142,1,aux!$BA$1) -> 0 | AD142: 0 | AE142: =+IF(INDEX($C142:$L142,1,aux!$BA$1)>0,(L142/INDEX($C142:$L142,1,aux!$BA$1))^(1/($L$3-INDEX($C$3:$L$3,1,aux!$BA$1)))-1,"n.d.") -> n.d. | AF142: =IF(INDEX($C142:$L142,1,aux!$BA$1)>0,(L142-INDEX($C142:$L142,1,aux!$BA$1))/INDEX($C142:$L142,1,aux!$BA$1),"n.d.") -> n.d. | AH142: =X142-INDEX($O142:$X142,1,aux!$BA$1) -> 0 | AI142: 0 | AJ142: =+IF(INDEX($O142:$X142,1,aux!$BA$1)>0,(X142/INDEX($O142:$X142,1,aux!$BA$1))^(1/($X$3-INDEX($O$3:$X$3,1,aux!$BA$1)))-1,"n.d.") -> n.d. | AK142: =IF(INDEX($O142:$X142,1,aux!$BA$1)>0,(X142-INDEX($O142:$X142,1,aux!$BA$1))/INDEX($O142:$X142,1,aux!$BA$1),"n.d.") -> n.d. | AM142: 0 | CC142: =+IF(ISNA(MATCH('5.1'!A142,AUX_2d_pais!$G$2:$G$40000,0)),0,1) -> 0
A143: 0667 | B143: Maldivas | C143: 0 | D143: 0 | E143: 0 | F143: 0 | G143: 0 | H143: 37.697 | I143: 80.183 | J143: 87.277 | K143: 72.707 | L143: 48.541 | M143: 32.6405 | N143: 8.005577585e-05 | O143: 45.773 | P143: 66.065 | Q143: 28.05 | R143: 28.713 | S143: 72.323 | T143: 34.685 | U143: 51.041 | V143: 106.579 | W143: 92.373 | X143: 87.355 | Y143: 61.2957 | Z143: 0.0001274991805 | AA143: 28.6552 | AC143: =L143-INDEX($C143:$L143,1,aux!$BA$1) -> 48.541 | AD143: 0.0001718143532 | AE143: =+IF(INDEX($C143:$L143,1,aux!$BA$1)>0,(L143/INDEX($C143:$L143,1,aux!$BA$1))^(1/($L$3-INDEX($C$3:$L$3,1,aux!$BA$1)))-1,"n.d.") -> n.d. | AF143: =IF(INDEX($C143:$L143,1,aux!$BA$1)>0,(L143-INDEX($C143:$L143,1,aux!$BA$1))/INDEX($C143:$L143,1,aux!$BA$1),"n.d.") -> n.d. | AH143: =X143-INDEX($O143:$X143,1,aux!$BA$1) -> 41.582 | AI143: 7.833356687e-05 | AJ143: =+IF(INDEX($O143:$X143,1,aux!$BA$1)>0,(X143/INDEX($O143:$X143,1,aux!$BA$1))^(1/($X$3-INDEX($O$3:$X$3,1,aux!$BA$1)))-1,"n.d.") -> 0.07445068688 | AK143: =IF(INDEX($O143:$X143,1,aux!$BA$1)>0,(X143-INDEX($O143:$X143,1,aux!$BA$1))/INDEX($O143:$X143,1,aux!$BA$1),"n.d.") -> 0.9084394731 | CC143: =+IF(ISNA(MATCH('5.1'!A143,AUX_2d_pais!$G$2:$G$40000,0)),0,1) -> 1
A144: 0232 | B144: Mali | C144: 0 | D144: 0 | E144: 0 | F144: 0 | G144: 0 | H144: 0 | I144: 0 | J144: 0 | K144: 0 | L144: 0 | M144: 0 | N144: 0 | O144: 0 | P144: 0 | Q144: 0 | R144: 0 | S144: 0 | T144: 0 | U144: 0 | V144: 0 | W144: 0 | X144: 0 | Y144: 0 | Z144: 0 | AA144: 0 | AC144: =L144-INDEX($C144:$L144,1,aux!$BA$1) -> 0 | AD144: 0 | AE144: =+IF(INDEX($C144:$L144,1,aux!$BA$1)>0,(L144/INDEX($C144:$L144,1,aux!$BA$1))^(1/($L$3-INDEX($C$3:$L$3,1,aux!$BA$1)))-1,"n.d.") -> n.d. | AF144: =IF(INDEX($C144:$L144,1,aux!$BA$1)>0,(L144-INDEX($C144:$L144,1,aux!$BA$1))/INDEX($C144:$L144,1,aux!$BA$1),"n.d.") -> n.d. | AH144: =X144-INDEX($O144:$X144,1,aux!$BA$1) -> 0 | AI144: 0 | AJ144: =+IF(INDEX($O144:$X144,1,aux!$BA$1)>0,(X144/INDEX($O144:$X144,1,aux!$BA$1))^(1/($X$3-INDEX($O$3:$X$3,1,aux!$BA$1)))-1,"n.d.") -> n.d. | AK144: =IF(INDEX($O144:$X144,1,aux!$BA$1)>0,(X144-INDEX($O144:$X144,1,aux!$BA$1))/INDEX($O144:$X144,1,aux!$BA$1),"n.d.") -> n.d. | AM144: 0 | CC144: =+IF(ISNA(MATCH('5.1'!A144,AUX_2d_pais!$G$2:$G$40000,0)),0,1) -> 0
A145: 0046 | B145: Malta | C145: 0 | D145: 0 | E145: 0 | F145: 0 | G145: 0 | H145: 0 | I145: 0 | J145: 0 | K145: 0 | L145: 0 | M145: 0 | N145: 0 | O145: 0 | P145: 0 | Q145: 0 | R145: 0 | S145: 0 | T145: 0 | U145: 0 | V145: 0 | W145: 0 | X145: 0 | Y145: 0 | Z145: 0 | AA145: 0 | AC145: =L145-INDEX($C145:$L145,1,aux!$BA$1) -> 0 | AD145: 0 | AE145: =+IF(INDEX($C145:$L145,1,aux!$BA$1)>0,(L145/INDEX($C145:$L145,1,aux!$BA$1))^(1/($L$3-INDEX($C$3:$L$3,1,aux!$BA$1)))-1,"n.d.") -> n.d. | AF145: =IF(INDEX($C145:$L145,1,aux!$BA$1)>0,(L145-INDEX($C145:$L145,1,aux!$BA$1))/INDEX($C145:$L145,1,aux!$BA$1),"n.d.") -> n.d. | AH145: =X145-INDEX($O145:$X145,1,aux!$BA$1) -> 0 | AI145: 0 | AJ145: =+IF(INDEX($O145:$X145,1,aux!$BA$1)>0,(X145/INDEX($O145:$X145,1,aux!$BA$1))^(1/($X$3-INDEX($O$3:$X$3,1,aux!$BA$1)))-1,"n.d.") -> n.d. | AK145: =IF(INDEX($O145:$X145,1,aux!$BA$1)>0,(X145-INDEX($O145:$X145,1,aux!$BA$1))/INDEX($O145:$X145,1,aux!$BA$1),"n.d.") -> n.d. | AM145: 0 | CC145: =+IF(ISNA(MATCH('5.1'!A145,AUX_2d_pais!$G$2:$G$40000,0)),0,1) -> 0
A146: 0820 | B146: Marianas do Norte, Ilhas | C146: 0 | D146: 0 | E146: 0 | F146: 0 | G146: 0 | H146: 0 | I146: 0 | J146: 0 | K146: 0 | L146: 0 | M146: 0 | N146: 0 | O146: 0 | P146: 0 | Q146: 0 | R146: 0 | S146: 0 | T146: 0 | U146: 0 | V146: 0 | W146: 0 | X146: 0 | Y146: 0 | Z146: 0 | AA146: 0 | AC146: =L146-INDEX($C146:$L146,1,aux!$BA$1) -> 0 | AD146: 0 | AE146: =+IF(INDEX($C146:$L146,1,aux!$BA$1)>0,(L146/INDEX($C146:$L146,1,aux!$BA$1))^(1/($L$3-INDEX($C$3:$L$3,1,aux!$BA$1)))-1,"n.d.") -> n.d. | AF146: =IF(INDEX($C146:$L146,1,aux!$BA$1)>0,(L146-INDEX($C146:$L146,1,aux!$BA$1))/INDEX($C146:$L146,1,aux!$BA$1),"n.d.") -> n.d. | AH146: =X146-INDEX($O146:$X146,1,aux!$BA$1) -> 0 | AI146: 0 | AJ146: =+IF(INDEX($O146:$X146,1,aux!$BA$1)>0,(X146/INDEX($O146:$X146,1,aux!$BA$1))^(1/($X$3-INDEX($O$3:$X$3,1,aux!$BA$1)))-1,"n.d.") -> n.d. | AK146: =IF(INDEX($O146:$X146,1,aux!$BA$1)>0,(X146-INDEX($O146:$X146,1,aux!$BA$1))/INDEX($O146:$X146,1,aux!$BA$1),"n.d.") -> n.d. | AM146: 0 | BO146: =SUM(C146:L146,O146:X146) -> 0 | CC146: =+IF(ISNA(MATCH('5.1'!A146,AUX_2d_pais!$G$2:$G$40000,0)),0,1) -> 0
A147: 0204 | B147: Marrocos | C147: 0 | D147: 0 | E147: 0 | F147: 0 | G147: 0 | H147: 0 | I147: 0 | J147: 0 | K147: 0 | L147: 0 | M147: 0 | N147: 0 | O147: 0 | P147: 0 | Q147: 0 | R147: 0 | S147: 0 | T147: 0 | U147: 0 | V147: 0 | W147: 0 | X147: 0 | Y147: 0 | Z147: 0 | AA147: 0 | AC147: =L147-INDEX($C147:$L147,1,aux!$BA$1) -> 0 | AD147: 0 | AE147: =+IF(INDEX($C147:$L147,1,aux!$BA$1)>0,(L147/INDEX($C147:$L147,1,aux!$BA$1))^(1/($L$3-INDEX($C$3:$L$3,1,aux!$BA$1)))-1,"n.d.") -> n.d. | AF147: =IF(INDEX($C147:$L147,1,aux!$BA$1)>0,(L147-INDEX($C147:$L147,1,aux!$BA$1))/INDEX($C147:$L147,1,aux!$BA$1),"n.d.") -> n.d. | AH147: =X147-INDEX($O147:$X147,1,aux!$BA$1) -> 0 | AI147: 0 | AJ147: =+IF(INDEX($O147:$X147,1,aux!$BA$1)>0,(X147/INDEX($O147:$X147,1,aux!$BA$1))^(1/($X$3-INDEX($O$3:$X$3,1,aux!$BA$1)))-1,"n.d.") -> n.d. | AK147: =IF(INDEX($O147:$X147,1,aux!$BA$1)>0,(X147-INDEX($O147:$X147,1,aux!$BA$1))/INDEX($O147:$X147,1,aux!$BA$1),"n.d.") -> n.d. | AM147: 0 | CC147: =+IF(ISNA(MATCH('5.1'!A147,AUX_2d_pais!$G$2:$G$40000,0)),0,1) -> 0
A148: 0824 | B148: Marshall, Ilhas | C148: 0 | D148: 0 | E148: 0 | F148: 0 | G148: 0 | H148: 0 | I148: 0 | J148: 0 | K148: 0 | L148: 0 | M148: 0 | N148: 0 | O148: 0 | P148: 0 | Q148: 0 | R148: 0 | S148: 0 | T148: 0 | U148: 0 | V148: 0 | W148: 0 | X148: 0 | Y148: 0 | Z148: 0 | AA148: 0 | AC148: =L148-INDEX($C148:$L148,1,aux!$BA$1) -> 0 | AD148: 0 | AE148: =+IF(INDEX($C148:$L148,1,aux!$BA$1)>0,(L148/INDEX($C148:$L148,1,aux!$BA$1))^(1/($L$3-INDEX($C$3:$L$3,1,aux!$BA$1)))-1,"n.d.") -> n.d. | AF148: =IF(INDEX($C148:$L148,1,aux!$BA$1)>0,(L148-INDEX($C148:$L148,1,aux!$BA$1))/INDEX($C148:$L148,1,aux!$BA$1),"n.d.") -> n.d. | AH148: =X148-INDEX($O148:$X148,1,aux!$BA$1) -> 0 | AI148: 0 | AJ148: =+IF(INDEX($O148:$X148,1,aux!$BA$1)>0,(X148/INDEX($O148:$X148,1,aux!$BA$1))^(1/($X$3-INDEX($O$3:$X$3,1,aux!$BA$1)))-1,"n.d.") -> n.d. | AK148: =IF(INDEX($O148:$X148,1,aux!$BA$1)>0,(X148-INDEX($O148:$X148,1,aux!$BA$1))/INDEX($O148:$X148,1,aux!$BA$1),"n.d.") -> n.d. | AM148: 0 | CC148: =+IF(ISNA(MATCH('5.1'!A148,AUX_2d_pais!$G$2:$G$40000,0)),0,1) -> 0
A149: 0462 | B149: Martinica | C149: 0 | D149: 0 | E149: 0 | F149: 0 | G149: 0 | H149: 0 | I149: 0 | J149: 0 | K149: 0 | L149: 0 | M149: 0 | N149: 0 | O149: 0 | P149: 0 | Q149: 0 | R149: 0 | S149: 0 | T149: 0 | U149: 0 | V149: 0 | W149: 0 | X149: 0 | Y149: 0 | Z149: 0 | AA149: 0 | AC149: =L149-INDEX($C149:$L149,1,aux!$BA$1) -> 0 | AD149: 0 | AE149: =+IF(INDEX($C149:$L149,1,aux!$BA$1)>0,(L149/INDEX($C149:$L149,1,aux!$BA$1))^(1/($L$3-INDEX($C$3:$L$3,1,aux!$BA$1)))-1,"n.d.") -> n.d. | AF149: =IF(INDEX($C149:$L149,1,aux!$BA$1)>0,(L149-INDEX($C149:$L149,1,aux!$BA$1))/INDEX($C149:$L149,1,aux!$BA$1),"n.d.") -> n.d. | AH149: =X149-INDEX($O149:$X149,1,aux!$BA$1) -> 0 | AI149: 0 | AJ149: =+IF(INDEX($O149:$X149,1,aux!$BA$1)>0,(X149/INDEX($O149:$X149,1,aux!$BA$1))^(1/($X$3-INDEX($O$3:$X$3,1,aux!$BA$1)))-1,"n.d.") -> n.d. | AK149: =IF(INDEX($O149:$X149,1,aux!$BA$1)>0,(X149-INDEX($O149:$X149,1,aux!$BA$1))/INDEX($O149:$X149,1,aux!$BA$1),"n.d.") -> n.d. | AM149: 0 | BO149: 0 | CC149: =+IF(ISNA(MATCH('5.1'!A149,AUX_2d_pais!$G$2:$G$40000,0)),0,1) -> 0
A150: 0373 | B150: Maurícias | C150: 0 | D150: 0 | E150: 0 | F150: 0 | G150: 0 | H150: 0 | I150: 0 | J150: 0 | K150: 0 | L150: 0 | M150: 0 | N150: 0 | O150: 0 | P150: 0 | Q150: 0 | R150: 0 | S150: 0 | T150: 0 | U150: 0 | V150: 0 | W150: 0 | X150: 0 | Y150: 0 | Z150: 0 | AA150: 0 | AC150: =L150-INDEX($C150:$L150,1,aux!$BA$1) -> 0 | AD150: 0 | AE150: =+IF(INDEX($C150:$L150,1,aux!$BA$1)>0,(L150/INDEX($C150:$L150,1,aux!$BA$1))^(1/($L$3-INDEX($C$3:$L$3,1,aux!$BA$1)))-1,"n.d.") -> n.d. | AF150: =IF(INDEX($C150:$L150,1,aux!$BA$1)>0,(L150-INDEX($C150:$L150,1,aux!$BA$1))/INDEX($C150:$L150,1,aux!$BA$1),"n.d.") -> n.d. | AH150: =X150-INDEX($O150:$X150,1,aux!$BA$1) -> 0 | AI150: 0 | AJ150: =+IF(INDEX($O150:$X150,1,aux!$BA$1)>0,(X150/INDEX($O150:$X150,1,aux!$BA$1))^(1/($X$3-INDEX($O$3:$X$3,1,aux!$BA$1)))-1,"n.d.") -> n.d. | AK150: =IF(INDEX($O150:$X150,1,aux!$BA$1)>0,(X150-INDEX($O150:$X150,1,aux!$BA$1))/INDEX($O150:$X150,1,aux!$BA$1),"n.d.") -> n.d. | AM150: 0 | CC150: =+IF(ISNA(MATCH('5.1'!A150,AUX_2d_pais!$G$2:$G$40000,0)),0,1) -> 0
A151: 0228 | B151: Mauritânia | C151: 0 | D151: 0 | E151: 0 | F151: 0 | G151: 0 | H151: 0 | I151: 0 | J151: 0 | K151: 0 | L151: 0 | M151: 0 | N151: 0 | O151: 0 | P151: 0 | Q151: 0 | R151: 0 | S151: 0 | T151: 0 | U151: 0 | V151: 0 | W151: 0 | X151: 0 | Y151: 0 | Z151: 0 | AA151: 0 | AC151: =L151-INDEX($C151:$L151,1,aux!$BA$1) -> 0 | AD151: 0 | AE151: =+IF(INDEX($C151:$L151,1,aux!$BA$1)>0,(L151/INDEX($C151:$L151,1,aux!$BA$1))^(1/($L$3-INDEX($C$3:$L$3,1,aux!$BA$1)))-1,"n.d.") -> n.d. | AF151: =IF(INDEX($C151:$L151,1,aux!$BA$1)>0,(L151-INDEX($C151:$L151,1,aux!$BA$1))/INDEX($C151:$L151,1,aux!$BA$1),"n.d.") -> n.d. | AH151: =X151-INDEX($O151:$X151,1,aux!$BA$1) -> 0 | AI151: 0 | AJ151: =+IF(INDEX($O151:$X151,1,aux!$BA$1)>0,(X151/INDEX($O151:$X151,1,aux!$BA$1))^(1/($X$3-INDEX($O$3:$X$3,1,aux!$BA$1)))-1,"n.d.") -> n.d. | AK151: =IF(INDEX($O151:$X151,1,aux!$BA$1)>0,(X151-INDEX($O151:$X151,1,aux!$BA$1))/INDEX($O151:$X151,1,aux!$BA$1),"n.d.") -> n.d. | AM151: 0 | CC151: =+IF(ISNA(MATCH('5.1'!A151,AUX_2d_pais!$G$2:$G$40000,0)),0,1) -> 0
A152: 0377 | B152: Mayotte | C152: 0 | D152: 0 | E152: 0 | F152: 0 | G152: 0 | H152: 0 | I152: 0 | J152: 0 | K152: 0 | L152: 0 | M152: 0 | N152: 0 | O152: 0 | P152: 0 | Q152: 0 | R152: 0 | S152: 0 | T152: 0 | U152: 0 | V152: 0 | W152: 0 | X152: 0 | Y152: 0 | Z152: 0 | AA152: 0 | AC152: =L152-INDEX($C152:$L152,1,aux!$BA$1) -> 0 | AD152: 0 | AE152: =+IF(INDEX($C152:$L152,1,aux!$BA$1)>0,(L152/INDEX($C152:$L152,1,aux!$BA$1))^(1/($L$3-INDEX($C$3:$L$3,1,aux!$BA$1)))-1,"n.d.") -> n.d. | AF152: =IF(INDEX($C152:$L152,1,aux!$BA$1)>0,(L152-INDEX($C152:$L152,1,aux!$BA$1))/INDEX($C152:$L152,1,aux!$BA$1),"n.d.") -> n.d. | AH152: =X152-INDEX($O152:$X152,1,aux!$BA$1) -> 0 | AI152: 0 | AJ152: =+IF(INDEX($O152:$X152,1,aux!$BA$1)>0,(X152/INDEX($O152:$X152,1,aux!$BA$1))^(1/($X$3-INDEX($O$3:$X$3,1,aux!$BA$1)))-1,"n.d.") -> n.d. | AK152: =IF(INDEX($O152:$X152,1,aux!$BA$1)>0,(X152-INDEX($O152:$X152,1,aux!$BA$1))/INDEX($O152:$X152,1,aux!$BA$1),"n.d.") -> n.d. | AM152: 0 | BO152: 0 | CC152: =+IF(ISNA(MATCH('5.1'!A152,AUX_2d_pais!$G$2:$G$40000,0)),0,1) -> 0
A153: 0023 | B153: Melilha | C153: 0 | D153: 0 | E153: 0 | F153: 0 | G153: 0 | H153: 0 | I153: 0 | J153: 0 | K153: 0 | L153: 0 | M153: 0 | N153: 0 | O153: 0 | P153: 0 | Q153: 0 | R153: 0 | S153: 0 | T153: 0 | U153: 0 | V153: 0 | W153: 0 | X153: 0 | Y153: 0 | Z153: 0 | AA153: 0 | AC153: =L153-INDEX($C153:$L153,1,aux!$BA$1) -> 0 | AD153: 0 | AE153: =+IF(INDEX($C153:$L153,1,aux!$BA$1)>0,(L153/INDEX($C153:$L153,1,aux!$BA$1))^(1/($L$3-INDEX($C$3:$L$3,1,aux!$BA$1)))-1,"n.d.") -> n.d. | AF153: =IF(INDEX($C153:$L153,1,aux!$BA$1)>0,(L153-INDEX($C153:$L153,1,aux!$BA$1))/INDEX($C153:$L153,1,aux!$BA$1),"n.d.") -> n.d. | AH153: =X153-INDEX($O153:$X153,1,aux!$BA$1) -> 0 | AI153: 0 | AJ153: =+IF(INDEX($O153:$X153,1,aux!$BA$1)>0,(X153/INDEX($O153:$X153,1,aux!$BA$1))^(1/($X$3-INDEX($O$3:$X$3,1,aux!$BA$1)))-1,"n.d.") -> n.d. | AK153: =IF(INDEX($O153:$X153,1,aux!$BA$1)>0,(X153-INDEX($O153:$X153,1,aux!$BA$1))/INDEX($O153:$X153,1,aux!$BA$1),"n.d.") -> n.d. | AM153: 0 | CC153: =+IF(ISNA(MATCH('5.1'!A153,AUX_2d_pais!$G$2:$G$40000,0)),0,1) -> 0
A154: 0832 | B154: Menores distantes dos Estados Unidos, lhas | C154: 0 | D154: 0 | E154: 0 | F154: 0 | G154: 0 | H154: 0 | I154: 0 | J154: 0 | K154: 0 | L154: 0 | M154: 0 | N154: 0 | O154: 0 | P154: 0 | Q154: 0 | R154: 0 | S154: 0 | T154: 0 | U154: 0 | V154: 0 | W154: 0 | X154: 0 | Y154: 0 | Z154: 0 | AA154: 0 | AC154: =L154-INDEX($C154:$L154,1,aux!$BA$1) -> 0 | AD154: 0 | AE154: =+IF(INDEX($C154:$L154,1,aux!$BA$1)>0,(L154/INDEX($C154:$L154,1,aux!$BA$1))^(1/($L$3-INDEX($C$3:$L$3,1,aux!$BA$1)))-1,"n.d.") -> n.d. | AF154: =IF(INDEX($C154:$L154,1,aux!$BA$1)>0,(L154-INDEX($C154:$L154,1,aux!$BA$1))/INDEX($C154:$L154,1,aux!$BA$1),"n.d.") -> n.d. | AH154: =X154-INDEX($O154:$X154,1,aux!$BA$1) -> 0 | AI154: 0 | AJ154: =+IF(INDEX($O154:$X154,1,aux!$BA$1)>0,(X154/INDEX($O154:$X154,1,aux!$BA$1))^(1/($X$3-INDEX($O$3:$X$3,1,aux!$BA$1)))-1,"n.d.") -> n.d. | AK154: =IF(INDEX($O154:$X154,1,aux!$BA$1)>0,(X154-INDEX($O154:$X154,1,aux!$BA$1))/INDEX($O154:$X154,1,aux!$BA$1),"n.d.") -> n.d. | AM154: 0 | BO154: 0 | CC154: =+IF(ISNA(MATCH('5.1'!A154,AUX_2d_pais!$G$2:$G$40000,0)),0,1) -> 0
A155: 0412 | B155: México | C155: 0 | D155: 0 | E155: 0 | F155: 0 | G155: 0 | H155: 0 | I155: 0 | J155: 0 | K155: 0 | L155: 0 | M155: 0 | N155: 0 | O155: 0 | P155: 0 | Q155: 0 | R155: 0 | S155: 0 | T155: 0 | U155: 0 | V155: 0 | W155: 0 | X155: 0 | Y155: 0 | Z155: 0 | AA155: 0 | AC155: =L155-INDEX($C155:$L155,1,aux!$BA$1) -> 0 | AD155: 0 | AE155: =+IF(INDEX($C155:$L155,1,aux!$BA$1)>0,(L155/INDEX($C155:$L155,1,aux!$BA$1))^(1/($L$3-INDEX($C$3:$L$3,1,aux!$BA$1)))-1,"n.d.") -> n.d. | AF155: =IF(INDEX($C155:$L155,1,aux!$BA$1)>0,(L155-INDEX($C155:$L155,1,aux!$BA$1))/INDEX($C155:$L155,1,aux!$BA$1),"n.d.") -> n.d. | AH155: =X155-INDEX($O155:$X155,1,aux!$BA$1) -> 0 | AI155: 0 | AJ155: =+IF(INDEX($O155:$X155,1,aux!$BA$1)>0,(X155/INDEX($O155:$X155,1,aux!$BA$1))^(1/($X$3-INDEX($O$3:$X$3,1,aux!$BA$1)))-1,"n.d.") -> n.d. | AK155: =IF(INDEX($O155:$X155,1,aux!$BA$1)>0,(X155-INDEX($O155:$X155,1,aux!$BA$1))/INDEX($O155:$X155,1,aux!$BA$1),"n.d.") -> n.d. | AM155: 0 | CC155: =+IF(ISNA(MATCH('5.1'!A155,AUX_2d_pais!$G$2:$G$40000,0)),0,1) -> 0
A156: 0823 | B156: Micronésia, Estados Federados da | C156: 0 | D156: 0 | E156: 0 | F156: 0 | G156: 0 | H156: 0 | I156: 0 | J156: 0 | K156: 0 | L156: 0 | M156: 0 | N156: 0 | O156: 0 | P156: 0 | Q156: 0 | R156: 0 | S156: 0 | T156: 0 | U156: 0 | V156: 0 | W156: 0 | X156: 0 | Y156: 0 | Z156: 0 | AA156: 0 | AC156: =L156-INDEX($C156:$L156,1,aux!$BA$1) -> 0 | AD156: 0 | AE156: =+IF(INDEX($C156:$L156,1,aux!$BA$1)>0,(L156/INDEX($C156:$L156,1,aux!$BA$1))^(1/($L$3-INDEX($C$3:$L$3,1,aux!$BA$1)))-1,"n.d.") -> n.d. | AF156: =IF(INDEX($C156:$L156,1,aux!$BA$1)>0,(L156-INDEX($C156:$L156,1,aux!$BA$1))/INDEX($C156:$L156,1,aux!$BA$1),"n.d.") -> n.d. | AH156: =X156-INDEX($O156:$X156,1,aux!$BA$1) -> 0 | AI156: 0 | AJ156: =+IF(INDEX($O156:$X156,1,aux!$BA$1)>0,(X156/INDEX($O156:$X156,1,aux!$BA$1))^(1/($X$3-INDEX($O$3:$X$3,1,aux!$BA$1)))-1,"n.d.") -> n.d. | AK156: =IF(INDEX($O156:$X156,1,aux!$BA$1)>0,(X156-INDEX($O156:$X156,1,aux!$BA$1))/INDEX($O156:$X156,1,aux!$BA$1),"n.d.") -> n.d. | AM156: 0 | BO156: 0 | CC156: =+IF(ISNA(MATCH('5.1'!A156,AUX_2d_pais!$G$2:$G$40000,0)),0,1) -> 0
A157: 0366 | B157: Moçambique | C157: 0 | D157: 0 | E157: 0 | F157: 0 | G157: 0 | H157: 0 | I157: 0 | J157: 0 | K157: 0 | L157: 0 | M157: 0 | N157: 0 | O157: 0 | P157: 0 | Q157: 0 | R157: 0 | S157: 0 | T157: 0 | U157: 0 | V157: 0 | W157: 0 | X157: 0 | Y157: 0 | Z157: 0 | AA157: 0 | AC157: =L157-INDEX($C157:$L157,1,aux!$BA$1) -> 0 | AD157: 0 | AE157: =+IF(INDEX($C157:$L157,1,aux!$BA$1)>0,(L157/INDEX($C157:$L157,1,aux!$BA$1))^(1/($L$3-INDEX($C$3:$L$3,1,aux!$BA$1)))-1,"n.d.") -> n.d. | AF157: =IF(INDEX($C157:$L157,1,aux!$BA$1)>0,(L157-INDEX($C157:$L157,1,aux!$BA$1))/INDEX($C157:$L157,1,aux!$BA$1),"n.d.") -> n.d. | AH157: =X157-INDEX($O157:$X157,1,aux!$BA$1) -> 0 | AI157: 0 | AJ157: =+IF(INDEX($O157:$X157,1,aux!$BA$1)>0,(X157/INDEX($O157:$X157,1,aux!$BA$1))^(1/($X$3-INDEX($O$3:$X$3,1,aux!$BA$1)))-1,"n.d.") -> n.d. | AK157: =IF(INDEX($O157:$X157,1,aux!$BA$1)>0,(X157-INDEX($O157:$X157,1,aux!$BA$1))/INDEX($O157:$X157,1,aux!$BA$1),"n.d.") -> n.d. | AM157: 0 | CC157: =+IF(ISNA(MATCH('5.1'!A157,AUX_2d_pais!$G$2:$G$40000,0)),0,1) -> 0
A158: 0074 | B158: Moldava, República de | C158: 0 | D158: 0 | E158: 0 | F158: 0 | G158: 0 | H158: 0 | I158: 0 | J158: 0 | K158: 0 | L158: 0 | M158: 0 | N158: 0 | O158: 0 | P158: 0 | Q158: 0 | R158: 0 | S158: 0 | T158: 0 | U158: 0 | V158: 0 | W158: 0 | X158: 0 | Y158: 0 | Z158: 0 | AA158: 0 | AC158: =L158-INDEX($C158:$L158,1,aux!$BA$1) -> 0 | AD158: 0 | AE158: =+IF(INDEX($C158:$L158,1,aux!$BA$1)>0,(L158/INDEX($C158:$L158,1,aux!$BA$1))^(1/($L$3-INDEX($C$3:$L$3,1,aux!$BA$1)))-1,"n.d.") -> n.d. | AF158: =IF(INDEX($C158:$L158,1,aux!$BA$1)>0,(L158-INDEX($C158:$L158,1,aux!$BA$1))/INDEX($C158:$L158,1,aux!$BA$1),"n.d.") -> n.d. | AH158: =X158-INDEX($O158:$X158,1,aux!$BA$1) -> 0 | AI158: 0 | AJ158: =+IF(INDEX($O158:$X158,1,aux!$BA$1)>0,(X158/INDEX($O158:$X158,1,aux!$BA$1))^(1/($X$3-INDEX($O$3:$X$3,1,aux!$BA$1)))-1,"n.d.") -> n.d. | AK158: =IF(INDEX($O158:$X158,1,aux!$BA$1)>0,(X158-INDEX($O158:$X158,1,aux!$BA$1))/INDEX($O158:$X158,1,aux!$BA$1),"n.d.") -> n.d. | AM158: 0 | CC158: =+IF(ISNA(MATCH('5.1'!A158,AUX_2d_pais!$G$2:$G$40000,0)),0,1) -> 0
A159: 0716 | B159: Mongólia | C159: 0 | D159: 0 | E159: 0 | F159: 0 | G159: 0 | H159: 0 | I159: 0 | J159: 0 | K159: 0 | L159: 0 | M159: 0 | N159: 0 | O159: 0 | P159: 0 | Q159: 16.249 | R159: 13.482 | S159: 51.662 | T159: 127.57 | U159: 62.587 | V159: 0.005 | W159: 4.654 | X159: 58.623 | Y159: 33.4832 | Z159: 6.964730904e-05 | AA159: 33.4832 | AC159: =L159-INDEX($C159:$L159,1,aux!$BA$1) -> 0 | AD159: 0 | AE159: =+IF(INDEX($C159:$L159,1,aux!$BA$1)>0,(L159/INDEX($C159:$L159,1,aux!$BA$1))^(1/($L$3-INDEX($C$3:$L$3,1,aux!$BA$1)))-1,"n.d.") -> n.d. | AF159: =IF(INDEX($C159:$L159,1,aux!$BA$1)>0,(L159-INDEX($C159:$L159,1,aux!$BA$1))/INDEX($C159:$L159,1,aux!$BA$1),"n.d.") -> n.d. | AH159: =X159-INDEX($O159:$X159,1,aux!$BA$1) -> 58.623 | AI159: 0.0001104359745 | AJ159: =+IF(INDEX($O159:$X159,1,aux!$BA$1)>0,(X159/INDEX($O159:$X159,1,aux!$BA$1))^(1/($X$3-INDEX($O$3:$X$3,1,aux!$BA$1)))-1,"n.d.") -> n.d. | AK159: =IF(INDEX($O159:$X159,1,aux!$BA$1)>0,(X159-INDEX($O159:$X159,1,aux!$BA$1))/INDEX($O159:$X159,1,aux!$BA$1),"n.d.") -> n.d. | BO159: 334.832 | CC159: =+IF(ISNA(MATCH('5.1'!A159,AUX_2d_pais!$G$2:$G$40000,0)),0,1) -> 1
A160: 0470 | B160: Monserrate | C160: 0 | D160: 0 | E160: 0 | F160: 0 | G160: 0 | H160: 0 | I160: 0 | J160: 0 | K160: 0 | L160: 0 | M160: 0 | N160: 0 | O160: 0 | P160: 0 | Q160: 0 | R160: 0 | S160: 0 | T160: 0 | U160: 0 | V160: 0 | W160: 0 | X160: 0 | Y160: 0 | Z160: 0 | AA160: 0 | AC160: =L160-INDEX($C160:$L160,1,aux!$BA$1) -> 0 | AD160: 0 | AE160: =+IF(INDEX($C160:$L160,1,aux!$BA$1)>0,(L160/INDEX($C160:$L160,1,aux!$BA$1))^(1/($L$3-INDEX($C$3:$L$3,1,aux!$BA$1)))-1,"n.d.") -> n.d. | AF160: =IF(INDEX($C160:$L160,1,aux!$BA$1)>0,(L160-INDEX($C160:$L160,1,aux!$BA$1))/INDEX($C160:$L160,1,aux!$BA$1),"n.d.") -> n.d. | AH160: =X160-INDEX($O160:$X160,1,aux!$BA$1) -> 0 | AI160: 0 | AJ160: =+IF(INDEX($O160:$X160,1,aux!$BA$1)>0,(X160/INDEX($O160:$X160,1,aux!$BA$1))^(1/($X$3-INDEX($O$3:$X$3,1,aux!$BA$1)))-1,"n.d.") -> n.d. | AK160: =IF(INDEX($O160:$X160,1,aux!$BA$1)>0,(X160-INDEX($O160:$X160,1,aux!$BA$1))/INDEX($O160:$X160,1,aux!$BA$1),"n.d.") -> n.d. | AM160: 0 | BO160: 0 | CC160: =+IF(ISNA(MATCH('5.1'!A160,AUX_2d_pais!$G$2:$G$40000,0)),0,1) -> 0
A161: 0097 | B161: Montenegro | C161: 0 | D161: 0 | E161: 0 | F161: 0 | G161: 0 | H161: 0 | I161: 0 | J161: 0 | K161: 0 | L161: 0 | M161: 0 | N161: 0 | O161: 0 | P161: 0 | Q161: 0 | R161: 0 | S161: 0 | T161: 0 | U161: 0 | V161: 0 | W161: 0 | X161: 0 | Y161: 0 | Z161: 0 | AA161: 0 | AC161: =L161-INDEX($C161:$L161,1,aux!$BA$1) -> 0 | AD161: 0 | AE161: =+IF(INDEX($C161:$L161,1,aux!$BA$1)>0,(L161/INDEX($C161:$L161,1,aux!$BA$1))^(1/($L$3-INDEX($C$3:$L$3,1,aux!$BA$1)))-1,"n.d.") -> n.d. | AF161: =IF(INDEX($C161:$L161,1,aux!$BA$1)>0,(L161-INDEX($C161:$L161,1,aux!$BA$1))/INDEX($C161:$L161,1,aux!$BA$1),"n.d.") -> n.d. | AH161: =X161-INDEX($O161:$X161,1,aux!$BA$1) -> 0 | AI161: 0 | AJ161: =+IF(INDEX($O161:$X161,1,aux!$BA$1)>0,(X161/INDEX($O161:$X161,1,aux!$BA$1))^(1/($X$3-INDEX($O$3:$X$3,1,aux!$BA$1)))-1,"n.d.") -> n.d. | AK161: =IF(INDEX($O161:$X161,1,aux!$BA$1)>0,(X161-INDEX($O161:$X161,1,aux!$BA$1))/INDEX($O161:$X161,1,aux!$BA$1),"n.d.") -> n.d. | AM161: 0 | BO161: 0 | CC161: =+IF(ISNA(MATCH('5.1'!A161,AUX_2d_pais!$G$2:$G$40000,0)),0,1) -> 0
A162: 0676 | B162: Myanmar | C162: 120.439 | D162: 99.25 | E162: 42.66 | F162: 215.232 | G162: 434.364 | H162: 3099.2 | I162: 1191.197 | J162: 1356.023 | K162: 1235.819 | L162: 6699.172 | M162: 1449.3356 | N162: 0.003554715336 | O162: 0 | P162: 0 | Q162: 19.385 | R162: 19.722 | S162: 31.952 | T162: 27.867 | U162: 38.69 | V162: 53.55 | W162: 68.587 | X162: 639.609 | Y162: 89.9362 | Z162: 0.0001870733477 | AA162: -1359.3994 | AC162: =L162-INDEX($C162:$L162,1,aux!$BA$1) -> 6578.733 | AD162: 0.0232858976 | AE162: =+IF(INDEX($C162:$L162,1,aux!$BA$1)>0,(L162/INDEX($C162:$L162,1,aux!$BA$1))^(1/($L$3-INDEX($C$3:$L$3,1,aux!$BA$1)))-1,"n.d.") -> 0.5628493257 | AF162: =IF(INDEX($C162:$L162,1,aux!$BA$1)>0,(L162-INDEX($C162:$L162,1,aux!$BA$1))/INDEX($C162:$L162,1,aux!$BA$1),"n.d.") -> 54.62294606 | AH162: =X162-INDEX($O162:$X162,1,aux!$BA$1) -> 639.609 | AI162: 0.001204916896 | AJ162: =+IF(INDEX($O162:$X162,1,aux!$BA$1)>0,(X162/INDEX($O162:$X162,1,aux!$BA$1))^(1/($X$3-INDEX($O$3:$X$3,1,aux!$BA$1)))-1,"n.d.") -> n.d. | AK162: =IF(INDEX($O162:$X162,1,aux!$BA$1)>0,(X162-INDEX($O162:$X162,1,aux!$BA$1))/INDEX($O162:$X162,1,aux!$BA$1),"n.d.") -> n.d. | CC162: =+IF(ISNA(MATCH('5.1'!A162,AUX_2d_pais!$G$2:$G$40000,0)),0,1) -> 1
A163: 0389 | B163: Namíbia | C163: 0 | D163: 0 | E163: 0 | F163: 0 | G163: 0 | H163: 0 | I163: 0 | J163: 0 | K163: 0 | L163: 0 | M163: 0 | N163: 0 | O163: 0 | P163: 0 | Q163: 0 | R163: 0 | S163: 0 | T163: 0 | U163: 0 | V163: 0 | W163: 0 | X163: 0 | Y163: 0 | Z163: 0 | AA163: 0 | AC163: =L163-INDEX($C163:$L163,1,aux!$BA$1) -> 0 | AD163: 0 | AE163: =+IF(INDEX($C163:$L163,1,aux!$BA$1)>0,(L163/INDEX($C163:$L163,1,aux!$BA$1))^(1/($L$3-INDEX($C$3:$L$3,1,aux!$BA$1)))-1,"n.d.") -> n.d. | AF163: =IF(INDEX($C163:$L163,1,aux!$BA$1)>0,(L163-INDEX($C163:$L163,1,aux!$BA$1))/INDEX($C163:$L163,1,aux!$BA$1),"n.d.") -> n.d. | AH163: =X163-INDEX($O163:$X163,1,aux!$BA$1) -> 0 | AI163: 0 | AJ163: =+IF(INDEX($O163:$X163,1,aux!$BA$1)>0,(X163/INDEX($O163:$X163,1,aux!$BA$1))^(1/($X$3-INDEX($O$3:$X$3,1,aux!$BA$1)))-1,"n.d.") -> n.d. | AK163: =IF(INDEX($O163:$X163,1,aux!$BA$1)>0,(X163-INDEX($O163:$X163,1,aux!$BA$1))/INDEX($O163:$X163,1,aux!$BA$1),"n.d.") -> n.d. | AM163: 0 | CC163: =+IF(ISNA(MATCH('5.1'!A163,AUX_2d_pais!$G$2:$G$40000,0)),0,1) -> 0
A164: 0803 | B164: Nauru | C164: 0 | D164: 0 | E164: 0 | F164: 0 | G164: 0 | H164: 0 | I164: 0 | J164: 0 | K164: 0 | L164: 0 | M164: 0 | N164: 0 | O164: 0 | P164: 0 | Q164: 0 | R164: 0 | S164: 0 | T164: 0 | U164: 0 | V164: 0 | W164: 0 | X164: 0 | Y164: 0 | Z164: 0 | AA164: 0 | AC164: =L164-INDEX($C164:$L164,1,aux!$BA$1) -> 0 | AD164: 0 | AE164: =+IF(INDEX($C164:$L164,1,aux!$BA$1)>0,(L164/INDEX($C164:$L164,1,aux!$BA$1))^(1/($L$3-INDEX($C$3:$L$3,1,aux!$BA$1)))-1,"n.d.") -> n.d. | AF164: =IF(INDEX($C164:$L164,1,aux!$BA$1)>0,(L164-INDEX($C164:$L164,1,aux!$BA$1))/INDEX($C164:$L164,1,aux!$BA$1),"n.d.") -> n.d. | AH164: =X164-INDEX($O164:$X164,1,aux!$BA$1) -> 0 | AI164: 0 | AJ164: =+IF(INDEX($O164:$X164,1,aux!$BA$1)>0,(X164/INDEX($O164:$X164,1,aux!$BA$1))^(1/($X$3-INDEX($O$3:$X$3,1,aux!$BA$1)))-1,"n.d.") -> n.d. | AK164: =IF(INDEX($O164:$X164,1,aux!$BA$1)>0,(X164-INDEX($O164:$X164,1,aux!$BA$1))/INDEX($O164:$X164,1,aux!$BA$1),"n.d.") -> n.d. | AM164: 0 | BO164: 0 | CC164: =+IF(ISNA(MATCH('5.1'!A164,AUX_2d_pais!$G$2:$G$40000,0)),0,1) -> 0
A165: 0672 | B165: Nepal | C165: 2.634 | D165: 21.317 | E165: 14.27 | F165: 1.93 | G165: 5.547 | H165: 0.965 | I165: 0.454 | J165: 3.022 | K165: 1.948 | L165: 2.654 | M165: 5.4741 | N165: 1.342606034e-05 | O165: 24.964 | P165: 44.21 | Q165: 10.325 | R165: 20.125 | S165: 6.745 | T165: 52.178 | U165: 5.735 | V165: 0 | W165: 53.891 | X165: 35.799 | Y165: 25.3972 | Z165: 5.282788495e-05 | AA165: 19.9231 | AC165: =L165-INDEX($C165:$L165,1,aux!$BA$1) -> 0.02 | AD165: =AC165/$AC$252 -> 7.079143536e-08 | AE165: =+IF(INDEX($C165:$L165,1,aux!$BA$1)>0,(L165/INDEX($C165:$L165,1,aux!$BA$1))^(1/($L$3-INDEX($C$3:$L$3,1,aux!$BA$1)))-1,"n.d.") -> 0.0008408347022 | AF165: =IF(INDEX($C165:$L165,1,aux!$BA$1)>0,(L165-INDEX($C165:$L165,1,aux!$BA$1))/INDEX($C165:$L165,1,aux!$BA$1),"n.d.") -> 0.007593014427 | AH165: =X165-INDEX($O165:$X165,1,aux!$BA$1) -> 10.835 | AI165: =AH165/$AH$252 -> 2.041133656e-05 | AJ165: =+IF(INDEX($O165:$X165,1,aux!$BA$1)>0,(X165/INDEX($O165:$X165,1,aux!$BA$1))^(1/($X$3-INDEX($O$3:$X$3,1,aux!$BA$1)))-1,"n.d.") -> 0.04086688385 | AK165: =IF(INDEX($O165:$X165,1,aux!$BA$1)>0,(X165-INDEX($O165:$X165,1,aux!$BA$1))/INDEX($O165:$X165,1,aux!$BA$1),"n.d.") -> 0.434024996 | BO165: 308.713 | CC165: =+IF(ISNA(MATCH('5.1'!A165,AUX_2d_pais!$G$2:$G$40000,0)),0,1) -> 1
A166: 0432 | B166: Nicarágua | C166: 0 | D166: 0 | E166: 0 | F166: 0 | G166: 0 | H166: 0 | I166: 0 | J166: 0 | K166: 0 | L166: 0 | M166: 0 | N166: 0 | O166: 0 | P166: 0 | Q166: 0 | R166: 0 | S166: 0 | T166: 0 | U166: 0 | V166: 0 | W166: 0 | X166: 0 | Y166: 0 | Z166: 0 | AA166: 0 | AC166: =L166-INDEX($C166:$L166,1,aux!$BA$1) -> 0 | AD166: 0 | AE166: =+IF(INDEX($C166:$L166,1,aux!$BA$1)>0,(L166/INDEX($C166:$L166,1,aux!$BA$1))^(1/($L$3-INDEX($C$3:$L$3,1,aux!$BA$1)))-1,"n.d.") -> n.d. | AF166: =IF(INDEX($C166:$L166,1,aux!$BA$1)>0,(L166-INDEX($C166:$L166,1,aux!$BA$1))/INDEX($C166:$L166,1,aux!$BA$1),"n.d.") -> n.d. | AH166: =X166-INDEX($O166:$X166,1,aux!$BA$1) -> 0 | AI166: 0 | AJ166: =+IF(INDEX($O166:$X166,1,aux!$BA$1)>0,(X166/INDEX($O166:$X166,1,aux!$BA$1))^(1/($X$3-INDEX($O$3:$X$3,1,aux!$BA$1)))-1,"n.d.") -> n.d. | AK166: =IF(INDEX($O166:$X166,1,aux!$BA$1)>0,(X166-INDEX($O166:$X166,1,aux!$BA$1))/INDEX($O166:$X166,1,aux!$BA$1),"n.d.") -> n.d. | AM166: 0 | CC166: =+IF(ISNA(MATCH('5.1'!A166,AUX_2d_pais!$G$2:$G$40000,0)),0,1) -> 0
A167: 0240 | B167: Niger | C167: 0 | D167: 0 | E167: 0 | F167: 0 | G167: 0 | H167: 0 | I167: 0 | J167: 0 | K167: 0 | L167: 0 | M167: 0 | N167: 0 | O167: 0 | P167: 0 | Q167: 0 | R167: 0 | S167: 0 | T167: 0 | U167: 0 | V167: 0 | W167: 0 | X167: 0 | Y167: 0 | Z167: 0 | AA167: 0 | AC167: =L167-INDEX($C167:$L167,1,aux!$BA$1) -> 0 | AD167: 0 | AE167: =+IF(INDEX($C167:$L167,1,aux!$BA$1)>0,(L167/INDEX($C167:$L167,1,aux!$BA$1))^(1/($L$3-INDEX($C$3:$L$3,1,aux!$BA$1)))-1,"n.d.") -> n.d. | AF167: =IF(INDEX($C167:$L167,1,aux!$BA$1)>0,(L167-INDEX($C167:$L167,1,aux!$BA$1))/INDEX($C167:$L167,1,aux!$BA$1),"n.d.") -> n.d. | AH167: =X167-INDEX($O167:$X167,1,aux!$BA$1) -> 0 | AI167: 0 | AJ167: =+IF(INDEX($O167:$X167,1,aux!$BA$1)>0,(X167/INDEX($O167:$X167,1,aux!$BA$1))^(1/($X$3-INDEX($O$3:$X$3,1,aux!$BA$1)))-1,"n.d.") -> n.d. | AK167: =IF(INDEX($O167:$X167,1,aux!$BA$1)>0,(X167-INDEX($O167:$X167,1,aux!$BA$1))/INDEX($O167:$X167,1,aux!$BA$1),"n.d.") -> n.d. | AM167: 0 | CC167: =+IF(ISNA(MATCH('5.1'!A167,AUX_2d_pais!$G$2:$G$40000,0)),0,1) -> 0
A168: 0288 | B168: Nigéria | C168: 0 | D168: 0 | E168: 0 | F168: 0 | G168: 0 | H168: 0 | I168: 0 | J168: 0 | K168: 0 | L168: 0 | M168: 0 | N168: 0 | O168: 0 | P168: 0 | Q168: 0 | R168: 0 | S168: 0 | T168: 0 | U168: 0 | V168: 0 | W168: 0 | X168: 0 | Y168: 0 | Z168: 0 | AA168: 0 | AC168: =L168-INDEX($C168:$L168,1,aux!$BA$1) -> 0 | AD168: 0 | AE168: =+IF(INDEX($C168:$L168,1,aux!$BA$1)>0,(L168/INDEX($C168:$L168,1,aux!$BA$1))^(1/($L$3-INDEX($C$3:$L$3,1,aux!$BA$1)))-1,"n.d.") -> n.d. | AF168: =IF(INDEX($C168:$L168,1,aux!$BA$1)>0,(L168-INDEX($C168:$L168,1,aux!$BA$1))/INDEX($C168:$L168,1,aux!$BA$1),"n.d.") -> n.d. | AH168: =X168-INDEX($O168:$X168,1,aux!$BA$1) -> 0 | AI168: 0 | AJ168: =+IF(INDEX($O168:$X168,1,aux!$BA$1)>0,(X168/INDEX($O168:$X168,1,aux!$BA$1))^(1/($X$3-INDEX($O$3:$X$3,1,aux!$BA$1)))-1,"n.d.") -> n.d. | AK168: =IF(INDEX($O168:$X168,1,aux!$BA$1)>0,(X168-INDEX($O168:$X168,1,aux!$BA$1))/INDEX($O168:$X168,1,aux!$BA$1),"n.d.") -> n.d. | AM168: 0 | CC168: =+IF(ISNA(MATCH('5.1'!A168,AUX_2d_pais!$G$2:$G$40000,0)),0,1) -> 0
A169: 0838 | B169: Niue | C169: 0 | D169: 0 | E169: 0 | F169: 0 | G169: 0 | H169: 0 | I169: 0 | J169: 0 | K169: 0 | L169: 0 | M169: 0 | N169: 0 | O169: 0 | P169: 0 | Q169: 0 | R169: 0 | S169: 0 | T169: 0 | U169: 0 | V169: 0 | W169: 0 | X169: 0 | Y169: 0 | Z169: 0 | AA169: 0 | AC169: =L169-INDEX($C169:$L169,1,aux!$BA$1) -> 0 | AD169: 0 | AE169: =+IF(INDEX($C169:$L169,1,aux!$BA$1)>0,(L169/INDEX($C169:$L169,1,aux!$BA$1))^(1/($L$3-INDEX($C$3:$L$3,1,aux!$BA$1)))-1,"n.d.") -> n.d. | AF169: =IF(INDEX($C169:$L169,1,aux!$BA$1)>0,(L169-INDEX($C169:$L169,1,aux!$BA$1))/INDEX($C169:$L169,1,aux!$BA$1),"n.d.") -> n.d. | AH169: =X169-INDEX($O169:$X169,1,aux!$BA$1) -> 0 | AI169: 0 | AJ169: =+IF(INDEX($O169:$X169,1,aux!$BA$1)>0,(X169/INDEX($O169:$X169,1,aux!$BA$1))^(1/($X$3-INDEX($O$3:$X$3,1,aux!$BA$1)))-1,"n.d.") -> n.d. | AK169: =IF(INDEX($O169:$X169,1,aux!$BA$1)>0,(X169-INDEX($O169:$X169,1,aux!$BA$1))/INDEX($O169:$X169,1,aux!$BA$1),"n.d.") -> n.d. | AM169: 0 | BO169: 0 | CC169: =+IF(ISNA(MATCH('5.1'!A169,AUX_2d_pais!$G$2:$G$40000,0)),0,1) -> 0
A170: 0836 | B170: Norfolk, Ilha | C170: 0 | D170: 0 | E170: 0 | F170: 0 | G170: 0 | H170: 0 | I170: 0 | J170: 0 | K170: 0 | L170: 0 | M170: 0 | N170: 0 | O170: 0 | P170: 0 | Q170: 0 | R170: 0 | S170: 0 | T170: 0 | U170: 0 | V170: 0 | W170: 0 | X170: 0 | Y170: 0 | Z170: 0 | AA170: 0 | AC170: =L170-INDEX($C170:$L170,1,aux!$BA$1) -> 0 | AD170: 0 | AE170: =+IF(INDEX($C170:$L170,1,aux!$BA$1)>0,(L170/INDEX($C170:$L170,1,aux!$BA$1))^(1/($L$3-INDEX($C$3:$L$3,1,aux!$BA$1)))-1,"n.d.") -> n.d. | AF170: =IF(INDEX($C170:$L170,1,aux!$BA$1)>0,(L170-INDEX($C170:$L170,1,aux!$BA$1))/INDEX($C170:$L170,1,aux!$BA$1),"n.d.") -> n.d. | AH170: =X170-INDEX($O170:$X170,1,aux!$BA$1) -> 0 | AI170: 0 | AJ170: =+IF(INDEX($O170:$X170,1,aux!$BA$1)>0,(X170/INDEX($O170:$X170,1,aux!$BA$1))^(1/($X$3-INDEX($O$3:$X$3,1,aux!$BA$1)))-1,"n.d.") -> n.d. | AK170: =IF(INDEX($O170:$X170,1,aux!$BA$1)>0,(X170-INDEX($O170:$X170,1,aux!$BA$1))/INDEX($O170:$X170,1,aux!$BA$1),"n.d.") -> n.d. | AM170: 0 | BO170: 0 | CC170: =+IF(ISNA(MATCH('5.1'!A170,AUX_2d_pais!$G$2:$G$40000,0)),0,1) -> 0
A171: 0028 | B171: Noruega | C171: 0 | D171: 0 | E171: 0 | F171: 0 | G171: 0 | H171: 0 | I171: 0 | J171: 0 | K171: 0 | L171: 0 | M171: 0 | N171: 0 | O171: 0 | P171: 0 | Q171: 0 | R171: 0 | S171: 0 | T171: 0 | U171: 0 | V171: 0 | W171: 0 | X171: 0 | Y171: 0 | Z171: 0 | AA171: 0 | AC171: =L171-INDEX($C171:$L171,1,aux!$BA$1) -> 0 | AD171: 0 | AE171: =+IF(INDEX($C171:$L171,1,aux!$BA$1)>0,(L171/INDEX($C171:$L171,1,aux!$BA$1))^(1/($L$3-INDEX($C$3:$L$3,1,aux!$BA$1)))-1,"n.d.") -> n.d. | AF171: =IF(INDEX($C171:$L171,1,aux!$BA$1)>0,(L171-INDEX($C171:$L171,1,aux!$BA$1))/INDEX($C171:$L171,1,aux!$BA$1),"n.d.") -> n.d. | AH171: =X171-INDEX($O171:$X171,1,aux!$BA$1) -> 0 | AI171: 0 | AJ171: =+IF(INDEX($O171:$X171,1,aux!$BA$1)>0,(X171/INDEX($O171:$X171,1,aux!$BA$1))^(1/($X$3-INDEX($O$3:$X$3,1,aux!$BA$1)))-1,"n.d.") -> n.d. | AK171: =IF(INDEX($O171:$X171,1,aux!$BA$1)>0,(X171-INDEX($O171:$X171,1,aux!$BA$1))/INDEX($O171:$X171,1,aux!$BA$1),"n.d.") -> n.d. | AM171: 0 | CC171: =+IF(ISNA(MATCH('5.1'!A171,AUX_2d_pais!$G$2:$G$40000,0)),0,1) -> 0
A172: 0809 | B172: Nova Caledónia | C172: 0 | D172: 0 | E172: 0 | F172: 0 | G172: 0 | H172: 0 | I172: 0 | J172: 0 | K172: 0 | L172: 0 | M172: 0 | N172: 0 | O172: 0 | P172: 0 | Q172: 0 | R172: 0 | S172: 0 | T172: 0 | U172: 0 | V172: 0 | W172: 0 | X172: 0 | Y172: 0 | Z172: 0 | AA172: 0 | AC172: =L172-INDEX($C172:$L172,1,aux!$BA$1) -> 0 | AD172: 0 | AE172: =+IF(INDEX($C172:$L172,1,aux!$BA$1)>0,(L172/INDEX($C172:$L172,1,aux!$BA$1))^(1/($L$3-INDEX($C$3:$L$3,1,aux!$BA$1)))-1,"n.d.") -> n.d. | AF172: =IF(INDEX($C172:$L172,1,aux!$BA$1)>0,(L172-INDEX($C172:$L172,1,aux!$BA$1))/INDEX($C172:$L172,1,aux!$BA$1),"n.d.") -> n.d. | AH172: =X172-INDEX($O172:$X172,1,aux!$BA$1) -> 0 | AI172: 0 | AJ172: =+IF(INDEX($O172:$X172,1,aux!$BA$1)>0,(X172/INDEX($O172:$X172,1,aux!$BA$1))^(1/($X$3-INDEX($O$3:$X$3,1,aux!$BA$1)))-1,"n.d.") -> n.d. | AK172: =IF(INDEX($O172:$X172,1,aux!$BA$1)>0,(X172-INDEX($O172:$X172,1,aux!$BA$1))/INDEX($O172:$X172,1,aux!$BA$1),"n.d.") -> n.d. | AM172: 0 | CC172: =+IF(ISNA(MATCH('5.1'!A172,AUX_2d_pais!$G$2:$G$40000,0)),0,1) -> 0
A173: 0804 | B173: Nova Zelânda | C173: 0 | D173: 0 | E173: 0 | F173: 0 | G173: 0 | H173: 0 | I173: 0 | J173: 0 | K173: 0 | L173: 0 | M173: 0 | N173: 0 | O173: 0 | P173: 0 | Q173: 0 | R173: 0 | S173: 0 | T173: 0 | U173: 0 | V173: 0 | W173: 0 | X173: 0 | Y173: 0 | Z173: 0 | AA173: 0 | AC173: =L173-INDEX($C173:$L173,1,aux!$BA$1) -> 0 | AD173: 0 | AE173: =+IF(INDEX($C173:$L173,1,aux!$BA$1)>0,(L173/INDEX($C173:$L173,1,aux!$BA$1))^(1/($L$3-INDEX($C$3:$L$3,1,aux!$BA$1)))-1,"n.d.") -> n.d. | AF173: =IF(INDEX($C173:$L173,1,aux!$BA$1)>0,(L173-INDEX($C173:$L173,1,aux!$BA$1))/INDEX($C173:$L173,1,aux!$BA$1),"n.d.") -> n.d. | AH173: =X173-INDEX($O173:$X173,1,aux!$BA$1) -> 0 | AI173: 0 | AJ173: =+IF(INDEX($O173:$X173,1,aux!$BA$1)>0,(X173/INDEX($O173:$X173,1,aux!$BA$1))^(1/($X$3-INDEX($O$3:$X$3,1,aux!$BA$1)))-1,"n.d.") -> n.d. | AK173: =IF(INDEX($O173:$X173,1,aux!$BA$1)>0,(X173-INDEX($O173:$X173,1,aux!$BA$1))/INDEX($O173:$X173,1,aux!$BA$1),"n.d.") -> n.d. | AM173: 0 | CC173: =+IF(ISNA(MATCH('5.1'!A173,AUX_2d_pais!$G$2:$G$40000,0)),0,1) -> 0
A174: 0357 | B174: Oceano Indico, Território Britânico do | C174: 0 | D174: 0 | E174: 0 | F174: 0 | G174: 0 | H174: 0 | I174: 0 | J174: 0 | K174: 0 | L174: 0 | M174: 0 | N174: 0 | O174: 0 | P174: 0 | Q174: 0 | R174: 0 | S174: 0 | T174: 0 | U174: 0 | V174: 0 | W174: 0 | X174: 0 | Y174: 0 | Z174: 0 | AA174: 0 | AC174: =L174-INDEX($C174:$L174,1,aux!$BA$1) -> 0 | AD174: 0 | AE174: =+IF(INDEX($C174:$L174,1,aux!$BA$1)>0,(L174/INDEX($C174:$L174,1,aux!$BA$1))^(1/($L$3-INDEX($C$3:$L$3,1,aux!$BA$1)))-1,"n.d.") -> n.d. | AF174: =IF(INDEX($C174:$L174,1,aux!$BA$1)>0,(L174-INDEX($C174:$L174,1,aux!$BA$1))/INDEX($C174:$L174,1,aux!$BA$1),"n.d.") -> n.d. | AH174: =X174-INDEX($O174:$X174,1,aux!$BA$1) -> 0 | AI174: 0 | AJ174: =+IF(INDEX($O174:$X174,1,aux!$BA$1)>0,(X174/INDEX($O174:$X174,1,aux!$BA$1))^(1/($X$3-INDEX($O$3:$X$3,1,aux!$BA$1)))-1,"n.d.") -> n.d. | AK174: =IF(INDEX($O174:$X174,1,aux!$BA$1)>0,(X174-INDEX($O174:$X174,1,aux!$BA$1))/INDEX($O174:$X174,1,aux!$BA$1),"n.d.") -> n.d. | AM174: 0 | BO174: 0 | CC174: =+IF(ISNA(MATCH('5.1'!A174,AUX_2d_pais!$G$2:$G$40000,0)),0,1) -> 0
A175: 0649 | B175: Omã | C175: 128.07 | D175: 0.789 | E175: 0 | F175: 0 | G175: 0 | H175: 0.725 | I175: 139.055 | J175: 0 | K175: 175.154 | L175: 0.501 | M175: 44.4294 | N175: 0.0001089698408 | O175: 92.674 | P175: 138.926 | Q175: 1561.39 | R175: 2149.696 | S175: 2953.886 | T175: 3740.611 | U175: 7179.945 | V175: 5232.504 | W175: 5013.864 | X175: 3821.703 | Y175: 3188.5199 | Z175: 0.006632335944 | AA175: 3144.0905 | AC175: =L175-INDEX($C175:$L175,1,aux!$BA$1) -> -127.569 | AD175: -0.0004515396309 | AE175: =+IF(INDEX($C175:$L175,1,aux!$BA$1)>0,(L175/INDEX($C175:$L175,1,aux!$BA$1))^(1/($L$3-INDEX($C$3:$L$3,1,aux!$BA$1)))-1,"n.d.") -> -0.4598830421 | AF175: =IF(INDEX($C175:$L175,1,aux!$BA$1)>0,(L175-INDEX($C175:$L175,1,aux!$BA$1))/INDEX($C175:$L175,1,aux!$BA$1),"n.d.") -> -0.9960880768 | AH175: =X175-INDEX($O175:$X175,1,aux!$BA$1) -> 3729.029 | AI175: 0.007024869956 | AJ175: =+IF(INDEX($O175:$X175,1,aux!$BA$1)>0,(X175/INDEX($O175:$X175,1,aux!$BA$1))^(1/($X$3-INDEX($O$3:$X$3,1,aux!$BA$1)))-1,"n.d.") -> 0.5117419665 | AK175: =IF(INDEX($O175:$X175,1,aux!$BA$1)>0,(X175-INDEX($O175:$X175,1,aux!$BA$1))/INDEX($O175:$X175,1,aux!$BA$1),"n.d.") -> 40.23813583 | CC175: =+IF(ISNA(MATCH('5.1'!A175,AUX_2d_pais!$G$2:$G$40000,0)),0,1) -> 1
A176: 0003 | B176: Países Baixos | C176: 0 | D176: 0 | E176: 0 | F176: 0 | G176: 0 | H176: 0 | I176: 0 | J176: 0 | K176: 0 | L176: 0 | M176: 0 | N176: 0 | O176: 0 | P176: 0 | Q176: 0 | R176: 0 | S176: 0 | T176: 0 | U176: 0 | V176: 0 | W176: 0 | X176: 0 | Y176: 0 | Z176: 0 | AA176: 0 | AC176: =L176-INDEX($C176:$L176,1,aux!$BA$1) -> 0 | AD176: 0 | AE176: =+IF(INDEX($C176:$L176,1,aux!$BA$1)>0,(L176/INDEX($C176:$L176,1,aux!$BA$1))^(1/($L$3-INDEX($C$3:$L$3,1,aux!$BA$1)))-1,"n.d.") -> n.d. | AF176: =IF(INDEX($C176:$L176,1,aux!$BA$1)>0,(L176-INDEX($C176:$L176,1,aux!$BA$1))/INDEX($C176:$L176,1,aux!$BA$1),"n.d.") -> n.d. | AH176: =X176-INDEX($O176:$X176,1,aux!$BA$1) -> 0 | AI176: 0 | AJ176: =+IF(INDEX($O176:$X176,1,aux!$BA$1)>0,(X176/INDEX($O176:$X176,1,aux!$BA$1))^(1/($X$3-INDEX($O$3:$X$3,1,aux!$BA$1)))-1,"n.d.") -> n.d. | AK176: =IF(INDEX($O176:$X176,1,aux!$BA$1)>0,(X176-INDEX($O176:$X176,1,aux!$BA$1))/INDEX($O176:$X176,1,aux!$BA$1),"n.d.") -> n.d. | AM176: 0 | CC176: =+IF(ISNA(MATCH('5.1'!A176,AUX_2d_pais!$G$2:$G$40000,0)),0,1) -> 0
A177: 0825 | B177: Palau | C177: 0 | D177: 0 | E177: 0 | F177: 0 | G177: 0 | H177: 0 | I177: 0 | J177: 0 | K177: 0 | L177: 0 | M177: 0 | N177: 0 | O177: 0 | P177: 0 | Q177: 0 | R177: 0 | S177: 0 | T177: 0 | U177: 0 | V177: 0 | W177: 0 | X177: 0 | Y177: 0 | Z177: 0 | AA177: 0 | AC177: =L177-INDEX($C177:$L177,1,aux!$BA$1) -> 0 | AD177: 0 | AE177: =+IF(INDEX($C177:$L177,1,aux!$BA$1)>0,(L177/INDEX($C177:$L177,1,aux!$BA$1))^(1/($L$3-INDEX($C$3:$L$3,1,aux!$BA$1)))-1,"n.d.") -> n.d. | AF177: =IF(INDEX($C177:$L177,1,aux!$BA$1)>0,(L177-INDEX($C177:$L177,1,aux!$BA$1))/INDEX($C177:$L177,1,aux!$BA$1),"n.d.") -> n.d. | AH177: =X177-INDEX($O177:$X177,1,aux!$BA$1) -> 0 | AI177: 0 | AJ177: =+IF(INDEX($O177:$X177,1,aux!$BA$1)>0,(X177/INDEX($O177:$X177,1,aux!$BA$1))^(1/($X$3-INDEX($O$3:$X$3,1,aux!$BA$1)))-1,"n.d.") -> n.d. | AK177: =IF(INDEX($O177:$X177,1,aux!$BA$1)>0,(X177-INDEX($O177:$X177,1,aux!$BA$1))/INDEX($O177:$X177,1,aux!$BA$1),"n.d.") -> n.d. | AM177: 0 | BO177: 0 | CC177: =+IF(ISNA(MATCH('5.1'!A177,AUX_2d_pais!$G$2:$G$40000,0)),0,1) -> 0
A178: 0442 | B178: Panamá | C178: 0 | D178: 0 | E178: 0 | F178: 0 | G178: 0 | H178: 0 | I178: 0 | J178: 0 | K178: 0 | L178: 0 | M178: 0 | N178: 0 | O178: 0 | P178: 0 | Q178: 0 | R178: 0 | S178: 0 | T178: 0 | U178: 0 | V178: 0 | W178: 0 | X178: 0 | Y178: 0 | Z178: 0 | AA178: 0 | AC178: =L178-INDEX($C178:$L178,1,aux!$BA$1) -> 0 | AD178: 0 | AE178: =+IF(INDEX($C178:$L178,1,aux!$BA$1)>0,(L178/INDEX($C178:$L178,1,aux!$BA$1))^(1/($L$3-INDEX($C$3:$L$3,1,aux!$BA$1)))-1,"n.d.") -> n.d. | AF178: =IF(INDEX($C178:$L178,1,aux!$BA$1)>0,(L178-INDEX($C178:$L178,1,aux!$BA$1))/INDEX($C178:$L178,1,aux!$BA$1),"n.d.") -> n.d. | AH178: =X178-INDEX($O178:$X178,1,aux!$BA$1) -> 0 | AI178: 0 | AJ178: =+IF(INDEX($O178:$X178,1,aux!$BA$1)>0,(X178/INDEX($O178:$X178,1,aux!$BA$1))^(1/($X$3-INDEX($O$3:$X$3,1,aux!$BA$1)))-1,"n.d.") -> n.d. | AK178: =IF(INDEX($O178:$X178,1,aux!$BA$1)>0,(X178-INDEX($O178:$X178,1,aux!$BA$1))/INDEX($O178:$X178,1,aux!$BA$1),"n.d.") -> n.d. | AM178: 0 | CC178: =+IF(ISNA(MATCH('5.1'!A178,AUX_2d_pais!$G$2:$G$40000,0)),0,1) -> 0
A179: 0801 | B179: Papuásia-Nova Guiné | C179: 0 | D179: 0 | E179: 0 | F179: 0 | G179: 0 | H179: 0 | I179: 0 | J179: 0 | K179: 0 | L179: 0 | M179: 0 | N179: 0 | O179: 0 | P179: 0 | Q179: 0 | R179: 0 | S179: 0 | T179: 0 | U179: 0 | V179: 0 | W179: 0 | X179: 0 | Y179: 0 | Z179: 0 | AA179: 0 | AC179: =L179-INDEX($C179:$L179,1,aux!$BA$1) -> 0 | AD179: 0 | AE179: =+IF(INDEX($C179:$L179,1,aux!$BA$1)>0,(L179/INDEX($C179:$L179,1,aux!$BA$1))^(1/($L$3-INDEX($C$3:$L$3,1,aux!$BA$1)))-1,"n.d.") -> n.d. | AF179: =IF(INDEX($C179:$L179,1,aux!$BA$1)>0,(L179-INDEX($C179:$L179,1,aux!$BA$1))/INDEX($C179:$L179,1,aux!$BA$1),"n.d.") -> n.d. | AH179: =X179-INDEX($O179:$X179,1,aux!$BA$1) -> 0 | AI179: 0 | AJ179: =+IF(INDEX($O179:$X179,1,aux!$BA$1)>0,(X179/INDEX($O179:$X179,1,aux!$BA$1))^(1/($X$3-INDEX($O$3:$X$3,1,aux!$BA$1)))-1,"n.d.") -> n.d. | AK179: =IF(INDEX($O179:$X179,1,aux!$BA$1)>0,(X179-INDEX($O179:$X179,1,aux!$BA$1))/INDEX($O179:$X179,1,aux!$BA$1),"n.d.") -> n.d. | AM179: 0 | BO179: 0 | CC179: =+IF(ISNA(MATCH('5.1'!A179,AUX_2d_pais!$G$2:$G$40000,0)),0,1) -> 0
A180: 0662 | B180: Paquistão | C180: 3759.071 | D180: 2830.055 | E180: 4379.68 | F180: 2751.474 | G180: 2841.818 | H180: 3275.237 | I180: 3597.1 | J180: 2868.618 | K180: 2091.452 | L180: 6169.419 | M180: 3456.3924 | N180: 0.008477326488 | O180: 273.094 | P180: 914.54 | Q180: 1425.089 | R180: 808.48 | S180: 919.413 | T180: 1569.3 | U180: 2691.862 | V180: 3457.299 | W180: 2693.94 | X180: 2296.57 | Y180: 1704.9587 | Z180: 0.003546428821 | AA180: -1751.4337 | AC180: =L180-INDEX($C180:$L180,1,aux!$BA$1) -> 2410.348 | AD180: 0.008531599732 | AE180: =+IF(INDEX($C180:$L180,1,aux!$BA$1)>0,(L180/INDEX($C180:$L180,1,aux!$BA$1))^(1/($L$3-INDEX($C$3:$L$3,1,aux!$BA$1)))-1,"n.d.") -> 0.05659142561 | AF180: =IF(INDEX($C180:$L180,1,aux!$BA$1)>0,(L180-INDEX($C180:$L180,1,aux!$BA$1))/INDEX($C180:$L180,1,aux!$BA$1),"n.d.") -> 0.6412084262 | AH180: =X180-INDEX($O180:$X180,1,aux!$BA$1) -> 2023.476 | AI180: 0.003811891986 | AJ180: =+IF(INDEX($O180:$X180,1,aux!$BA$1)>0,(X180/INDEX($O180:$X180,1,aux!$BA$1))^(1/($X$3-INDEX($O$3:$X$3,1,aux!$BA$1)))-1,"n.d.") -> 0.2669280384 | AK180: =IF(INDEX($O180:$X180,1,aux!$BA$1)>0,(X180-INDEX($O180:$X180,1,aux!$BA$1))/INDEX($O180:$X180,1,aux!$BA$1),"n.d.") -> 7.409448761 | CC180: =+IF(ISNA(MATCH('5.1'!A180,AUX_2d_pais!$G$2:$G$40000,0)),0,1) -> 1
A181: 0520 | B181: Paraguai | C181: 0 | D181: 0 | E181: 0 | F181: 0 | G181: 0 | H181: 0 | I181: 0 | J181: 0 | K181: 0 | L181: 0 | M181: 0 | N181: 0 | O181: 0 | P181: 0 | Q181: 0 | R181: 0 | S181: 0 | T181: 0 | U181: 0 | V181: 0 | W181: 0 | X181: 0 | Y181: 0 | Z181: 0 | AA181: 0 | AC181: =L181-INDEX($C181:$L181,1,aux!$BA$1) -> 0 | AD181: 0 | AE181: =+IF(INDEX($C181:$L181,1,aux!$BA$1)>0,(L181/INDEX($C181:$L181,1,aux!$BA$1))^(1/($L$3-INDEX($C$3:$L$3,1,aux!$BA$1)))-1,"n.d.") -> n.d. | AF181: =IF(INDEX($C181:$L181,1,aux!$BA$1)>0,(L181-INDEX($C181:$L181,1,aux!$BA$1))/INDEX($C181:$L181,1,aux!$BA$1),"n.d.") -> n.d. | AH181: =X181-INDEX($O181:$X181,1,aux!$BA$1) -> 0 | AI181: 0 | AJ181: =+IF(INDEX($O181:$X181,1,aux!$BA$1)>0,(X181/INDEX($O181:$X181,1,aux!$BA$1))^(1/($X$3-INDEX($O$3:$X$3,1,aux!$BA$1)))-1,"n.d.") -> n.d. | AK181: =IF(INDEX($O181:$X181,1,aux!$BA$1)>0,(X181-INDEX($O181:$X181,1,aux!$BA$1))/INDEX($O181:$X181,1,aux!$BA$1),"n.d.") -> n.d. | AM181: 0 | CC181: =+IF(ISNA(MATCH('5.1'!A181,AUX_2d_pais!$G$2:$G$40000,0)),0,1) -> 0
A182: 0504 | B182: Peru | C182: 0 | D182: 0 | E182: 0 | F182: 0 | G182: 0 | H182: 0 | I182: 0 | J182: 0 | K182: 0 | L182: 0 | M182: 0 | N182: 0 | O182: 0 | P182: 0 | Q182: 0 | R182: 0 | S182: 0 | T182: 0 | U182: 0 | V182: 0 | W182: 0 | X182: 0 | Y182: 0 | Z182: 0 | AA182: 0 | AC182: =L182-INDEX($C182:$L182,1,aux!$BA$1) -> 0 | AD182: 0 | AE182: =+IF(INDEX($C182:$L182,1,aux!$BA$1)>0,(L182/INDEX($C182:$L182,1,aux!$BA$1))^(1/($L$3-INDEX($C$3:$L$3,1,aux!$BA$1)))-1,"n.d.") -> n.d. | AF182: =IF(INDEX($C182:$L182,1,aux!$BA$1)>0,(L182-INDEX($C182:$L182,1,aux!$BA$1))/INDEX($C182:$L182,1,aux!$BA$1),"n.d.") -> n.d. | AH182: =X182-INDEX($O182:$X182,1,aux!$BA$1) -> 0 | AI182: 0 | AJ182: =+IF(INDEX($O182:$X182,1,aux!$BA$1)>0,(X182/INDEX($O182:$X182,1,aux!$BA$1))^(1/($X$3-INDEX($O$3:$X$3,1,aux!$BA$1)))-1,"n.d.") -> n.d. | AK182: =IF(INDEX($O182:$X182,1,aux!$BA$1)>0,(X182-INDEX($O182:$X182,1,aux!$BA$1))/INDEX($O182:$X182,1,aux!$BA$1),"n.d.") -> n.d. | AM182: 0 | CC182: =+IF(ISNA(MATCH('5.1'!A182,AUX_2d_pais!$G$2:$G$40000,0)),0,1) -> 0
A183: 0813 | B183: Pitcairn | C183: 0 | D183: 0 | E183: 0 | F183: 0 | G183: 0 | H183: 0 | I183: 0 | J183: 0 | K183: 0 | L183: 0 | M183: 0 | N183: 0 | O183: 0 | P183: 0 | Q183: 0 | R183: 0 | S183: 0 | T183: 0 | U183: 0 | V183: 0 | W183: 0 | X183: 0 | Y183: 0 | Z183: 0 | AA183: 0 | AC183: =L183-INDEX($C183:$L183,1,aux!$BA$1) -> 0 | AD183: 0 | AE183: =+IF(INDEX($C183:$L183,1,aux!$BA$1)>0,(L183/INDEX($C183:$L183,1,aux!$BA$1))^(1/($L$3-INDEX($C$3:$L$3,1,aux!$BA$1)))-1,"n.d.") -> n.d. | AF183: =IF(INDEX($C183:$L183,1,aux!$BA$1)>0,(L183-INDEX($C183:$L183,1,aux!$BA$1))/INDEX($C183:$L183,1,aux!$BA$1),"n.d.") -> n.d. | AH183: =X183-INDEX($O183:$X183,1,aux!$BA$1) -> 0 | AI183: 0 | AJ183: =+IF(INDEX($O183:$X183,1,aux!$BA$1)>0,(X183/INDEX($O183:$X183,1,aux!$BA$1))^(1/($X$3-INDEX($O$3:$X$3,1,aux!$BA$1)))-1,"n.d.") -> n.d. | AK183: =IF(INDEX($O183:$X183,1,aux!$BA$1)>0,(X183-INDEX($O183:$X183,1,aux!$BA$1))/INDEX($O183:$X183,1,aux!$BA$1),"n.d.") -> n.d. | AM183: 0 | BO183: 0 | CC183: =+IF(ISNA(MATCH('5.1'!A183,AUX_2d_pais!$G$2:$G$40000,0)),0,1) -> 0
A184: 0822 | B184: Polinésia Francesa | C184: 0 | D184: 0 | E184: 0 | F184: 0 | G184: 0 | H184: 0 | I184: 0 | J184: 0 | K184: 0 | L184: 0 | M184: 0 | N184: 0 | O184: 0 | P184: 0 | Q184: 0 | R184: 0 | S184: 0 | T184: 0 | U184: 0 | V184: 0 | W184: 0 | X184: 0 | Y184: 0 | Z184: 0 | AA184: 0 | AC184: =L184-INDEX($C184:$L184,1,aux!$BA$1) -> 0 | AD184: 0 | AE184: =+IF(INDEX($C184:$L184,1,aux!$BA$1)>0,(L184/INDEX($C184:$L184,1,aux!$BA$1))^(1/($L$3-INDEX($C$3:$L$3,1,aux!$BA$1)))-1,"n.d.") -> n.d. | AF184: =IF(INDEX($C184:$L184,1,aux!$BA$1)>0,(L184-INDEX($C184:$L184,1,aux!$BA$1))/INDEX($C184:$L184,1,aux!$BA$1),"n.d.") -> n.d. | AH184: =X184-INDEX($O184:$X184,1,aux!$BA$1) -> 0 | AI184: 0 | AJ184: =+IF(INDEX($O184:$X184,1,aux!$BA$1)>0,(X184/INDEX($O184:$X184,1,aux!$BA$1))^(1/($X$3-INDEX($O$3:$X$3,1,aux!$BA$1)))-1,"n.d.") -> n.d. | AK184: =IF(INDEX($O184:$X184,1,aux!$BA$1)>0,(X184-INDEX($O184:$X184,1,aux!$BA$1))/INDEX($O184:$X184,1,aux!$BA$1),"n.d.") -> n.d. | AM184: 0 | CC184: =+IF(ISNA(MATCH('5.1'!A184,AUX_2d_pais!$G$2:$G$40000,0)),0,1) -> 0
A185: 0060 | B185: Polónia | C185: 0 | D185: 0 | E185: 0 | F185: 0 | G185: 0 | H185: 0 | I185: 0 | J185: 0 | K185: 0 | L185: 0 | M185: 0 | N185: 0 | O185: 0 | P185: 0 | Q185: 0 | R185: 0 | S185: 0 | T185: 0 | U185: 0 | V185: 0 | W185: 0 | X185: 0 | Y185: 0 | Z185: 0 | AA185: 0 | AC185: =L185-INDEX($C185:$L185,1,aux!$BA$1) -> 0 | AD185: 0 | AE185: =+IF(INDEX($C185:$L185,1,aux!$BA$1)>0,(L185/INDEX($C185:$L185,1,aux!$BA$1))^(1/($L$3-INDEX($C$3:$L$3,1,aux!$BA$1)))-1,"n.d.") -> n.d. | AF185: =IF(INDEX($C185:$L185,1,aux!$BA$1)>0,(L185-INDEX($C185:$L185,1,aux!$BA$1))/INDEX($C185:$L185,1,aux!$BA$1),"n.d.") -> n.d. | AH185: =X185-INDEX($O185:$X185,1,aux!$BA$1) -> 0 | AI185: 0 | AJ185: =+IF(INDEX($O185:$X185,1,aux!$BA$1)>0,(X185/INDEX($O185:$X185,1,aux!$BA$1))^(1/($X$3-INDEX($O$3:$X$3,1,aux!$BA$1)))-1,"n.d.") -> n.d. | AK185: =IF(INDEX($O185:$X185,1,aux!$BA$1)>0,(X185-INDEX($O185:$X185,1,aux!$BA$1))/INDEX($O185:$X185,1,aux!$BA$1),"n.d.") -> n.d. | AM185: 0 | CC185: =+IF(ISNA(MATCH('5.1'!A185,AUX_2d_pais!$G$2:$G$40000,0)),0,1) -> 0
A186: 0346 | B186: Quénia | C186: 0 | D186: 0 | E186: 0 | F186: 0 | G186: 0 | H186: 0 | I186: 0 | J186: 0 | K186: 0 | L186: 0 | M186: 0 | N186: 0 | O186: 0 | P186: 0 | Q186: 0 | R186: 0 | S186: 0 | T186: 0 | U186: 0 | V186: 0 | W186: 0 | X186: 0 | Y186: 0 | Z186: 0 | AA186: 0 | AC186: =L186-INDEX($C186:$L186,1,aux!$BA$1) -> 0 | AD186: 0 | AE186: =+IF(INDEX($C186:$L186,1,aux!$BA$1)>0,(L186/INDEX($C186:$L186,1,aux!$BA$1))^(1/($L$3-INDEX($C$3:$L$3,1,aux!$BA$1)))-1,"n.d.") -> n.d. | AF186: =IF(INDEX($C186:$L186,1,aux!$BA$1)>0,(L186-INDEX($C186:$L186,1,aux!$BA$1))/INDEX($C186:$L186,1,aux!$BA$1),"n.d.") -> n.d. | AH186: =X186-INDEX($O186:$X186,1,aux!$BA$1) -> 0 | AI186: 0 | AJ186: =+IF(INDEX($O186:$X186,1,aux!$BA$1)>0,(X186/INDEX($O186:$X186,1,aux!$BA$1))^(1/($X$3-INDEX($O$3:$X$3,1,aux!$BA$1)))-1,"n.d.") -> n.d. | AK186: =IF(INDEX($O186:$X186,1,aux!$BA$1)>0,(X186-INDEX($O186:$X186,1,aux!$BA$1))/INDEX($O186:$X186,1,aux!$BA$1),"n.d.") -> n.d. | AM186: 0 | CC186: =+IF(ISNA(MATCH('5.1'!A186,AUX_2d_pais!$G$2:$G$40000,0)),0,1) -> 0
A187: 0083 | B187: Quirguizistão | C187: 53.197 | D187: 100.732 | E187: 0 | F187: 0 | G187: 72.712 | H187: 143.196 | I187: 0 | J187: 85.615 | K187: 0 | L187: 0 | M187: 45.5452 | N187: 0.0001117065095 | O187: 3.75 | P187: 14.123 | Q187: 40.6 | R187: 232.788 | S187: 195.968 | T187: 106.645 | U187: 95.45 | V187: 96.688 | W187: 78.28 | X187: 139.115 | Y187: 100.3407 | Z187: 0.0002087154078 | AA187: 54.7955 | AC187: =L187-INDEX($C187:$L187,1,aux!$BA$1) -> -53.197 | AD187: -0.0001882945994 | AE187: =+IF(INDEX($C187:$L187,1,aux!$BA$1)>0,(L187/INDEX($C187:$L187,1,aux!$BA$1))^(1/($L$3-INDEX($C$3:$L$3,1,aux!$BA$1)))-1,"n.d.") -> -1 | AF187: =IF(INDEX($C187:$L187,1,aux!$BA$1)>0,(L187-INDEX($C187:$L187,1,aux!$BA$1))/INDEX($C187:$L187,1,aux!$BA$1),"n.d.") -> -1 | AH187: =X187-INDEX($O187:$X187,1,aux!$BA$1) -> 135.365 | AI187: 0.0002550051291 | AJ187: =+IF(INDEX($O187:$X187,1,aux!$BA$1)>0,(X187/INDEX($O187:$X187,1,aux!$BA$1))^(1/($X$3-INDEX($O$3:$X$3,1,aux!$BA$1)))-1,"n.d.") -> 0.494071599 | AK187: =IF(INDEX($O187:$X187,1,aux!$BA$1)>0,(X187-INDEX($O187:$X187,1,aux!$BA$1))/INDEX($O187:$X187,1,aux!$BA$1),"n.d.") -> 36.09733333 | CC187: =+IF(ISNA(MATCH('5.1'!A187,AUX_2d_pais!$G$2:$G$40000,0)),0,1) -> 1
A188: 0890 | B188: Região Polar | C188: 0 | D188: 0 | E188: 0 | F188: 0 | G188: 0 | H188: 0 | I188: 0 | J188: 0 | K188: 0 | L188: 0 | M188: 0 | N188: 0 | O188: 0 | P188: 0 | Q188: 0 | R188: 0 | S188: 0 | T188: 0 | U188: 0 | V188: 0 | W188: 0 | X188: 0 | Y188: 0 | Z188: 0 | AA188: 0 | AC188: =L188-INDEX($C188:$L188,1,aux!$BA$1) -> 0 | AD188: 0 | AE188: =+IF(INDEX($C188:$L188,1,aux!$BA$1)>0,(L188/INDEX($C188:$L188,1,aux!$BA$1))^(1/($L$3-INDEX($C$3:$L$3,1,aux!$BA$1)))-1,"n.d.") -> n.d. | AF188: =IF(INDEX($C188:$L188,1,aux!$BA$1)>0,(L188-INDEX($C188:$L188,1,aux!$BA$1))/INDEX($C188:$L188,1,aux!$BA$1),"n.d.") -> n.d. | AH188: =X188-INDEX($O188:$X188,1,aux!$BA$1) -> 0 | AI188: 0 | AJ188: =+IF(INDEX($O188:$X188,1,aux!$BA$1)>0,(X188/INDEX($O188:$X188,1,aux!$BA$1))^(1/($X$3-INDEX($O$3:$X$3,1,aux!$BA$1)))-1,"n.d.") -> n.d. | AK188: =IF(INDEX($O188:$X188,1,aux!$BA$1)>0,(X188-INDEX($O188:$X188,1,aux!$BA$1))/INDEX($O188:$X188,1,aux!$BA$1),"n.d.") -> n.d. | AM188: 0 | BO188: 0 | CC188: =+IF(ISNA(MATCH('5.1'!A188,AUX_2d_pais!$G$2:$G$40000,0)),0,1) -> 0
A189: 0006 | B189: Reino Unido | C189: 0 | D189: 0 | E189: 0 | F189: 0 | G189: 0 | H189: 0 | I189: 0 | J189: 0 | K189: 0 | L189: 0 | M189: 0 | N189: 0 | O189: 0 | P189: 0 | Q189: 0 | R189: 0 | S189: 0 | T189: 0 | U189: 0 | V189: 0 | W189: 0 | X189: 0 | Y189: 0 | Z189: 0 | AA189: 0 | AC189: =L189-INDEX($C189:$L189,1,aux!$BA$1) -> 0 | AD189: 0 | AE189: =+IF(INDEX($C189:$L189,1,aux!$BA$1)>0,(L189/INDEX($C189:$L189,1,aux!$BA$1))^(1/($L$3-INDEX($C$3:$L$3,1,aux!$BA$1)))-1,"n.d.") -> n.d. | AF189: =IF(INDEX($C189:$L189,1,aux!$BA$1)>0,(L189-INDEX($C189:$L189,1,aux!$BA$1))/INDEX($C189:$L189,1,aux!$BA$1),"n.d.") -> n.d. | AH189: =X189-INDEX($O189:$X189,1,aux!$BA$1) -> 0 | AI189: 0 | AJ189: =+IF(INDEX($O189:$X189,1,aux!$BA$1)>0,(X189/INDEX($O189:$X189,1,aux!$BA$1))^(1/($X$3-INDEX($O$3:$X$3,1,aux!$BA$1)))-1,"n.d.") -> n.d. | AK189: =IF(INDEX($O189:$X189,1,aux!$BA$1)>0,(X189-INDEX($O189:$X189,1,aux!$BA$1))/INDEX($O189:$X189,1,aux!$BA$1),"n.d.") -> n.d. | AM189: 0 | CC189: =+IF(ISNA(MATCH('5.1'!A189,AUX_2d_pais!$G$2:$G$40000,0)),0,1) -> 0
A190: 0372 | B190: Reunião, Ilha da | C190: 0 | D190: 0 | E190: 0 | F190: 0 | G190: 0 | H190: 0 | I190: 0 | J190: 0 | K190: 0 | L190: 0 | M190: 0 | N190: 0 | O190: 0 | P190: 0 | Q190: 0 | R190: 0 | S190: 0 | T190: 0 | U190: 0 | V190: 0 | W190: 0 | X190: 0 | Y190: 0 | Z190: 0 | AA190: 0 | AC190: =L190-INDEX($C190:$L190,1,aux!$BA$1) -> 0 | AD190: 0 | AE190: =+IF(INDEX($C190:$L190,1,aux!$BA$1)>0,(L190/INDEX($C190:$L190,1,aux!$BA$1))^(1/($L$3-INDEX($C$3:$L$3,1,aux!$BA$1)))-1,"n.d.") -> n.d. | AF190: =IF(INDEX($C190:$L190,1,aux!$BA$1)>0,(L190-INDEX($C190:$L190,1,aux!$BA$1))/INDEX($C190:$L190,1,aux!$BA$1),"n.d.") -> n.d. | AH190: =X190-INDEX($O190:$X190,1,aux!$BA$1) -> 0 | AI190: 0 | AJ190: =+IF(INDEX($O190:$X190,1,aux!$BA$1)>0,(X190/INDEX($O190:$X190,1,aux!$BA$1))^(1/($X$3-INDEX($O$3:$X$3,1,aux!$BA$1)))-1,"n.d.") -> n.d. | AK190: =IF(INDEX($O190:$X190,1,aux!$BA$1)>0,(X190-INDEX($O190:$X190,1,aux!$BA$1))/INDEX($O190:$X190,1,aux!$BA$1),"n.d.") -> n.d. | AM190: 0 | BO190: 0 | CC190: =+IF(ISNA(MATCH('5.1'!A190,AUX_2d_pais!$G$2:$G$40000,0)),0,1) -> 0
A191: 0066 | B191: Roménia | C191: 0 | D191: 0 | E191: 0 | F191: 0 | G191: 0 | H191: 0 | I191: 0 | J191: 0 | K191: 0 | L191: 0 | M191: 0 | N191: 0 | O191: 0 | P191: 0 | Q191: 0 | R191: 0 | S191: 0 | T191: 0 | U191: 0 | V191: 0 | W191: 0 | X191: 0 | Y191: 0 | Z191: 0 | AA191: 0 | AC191: =L191-INDEX($C191:$L191,1,aux!$BA$1) -> 0 | AD191: 0 | AE191: =+IF(INDEX($C191:$L191,1,aux!$BA$1)>0,(L191/INDEX($C191:$L191,1,aux!$BA$1))^(1/($L$3-INDEX($C$3:$L$3,1,aux!$BA$1)))-1,"n.d.") -> n.d. | AF191: =IF(INDEX($C191:$L191,1,aux!$BA$1)>0,(L191-INDEX($C191:$L191,1,aux!$BA$1))/INDEX($C191:$L191,1,aux!$BA$1),"n.d.") -> n.d. | AH191: =X191-INDEX($O191:$X191,1,aux!$BA$1) -> 0 | AI191: 0 | AJ191: =+IF(INDEX($O191:$X191,1,aux!$BA$1)>0,(X191/INDEX($O191:$X191,1,aux!$BA$1))^(1/($X$3-INDEX($O$3:$X$3,1,aux!$BA$1)))-1,"n.d.") -> n.d. | AK191: =IF(INDEX($O191:$X191,1,aux!$BA$1)>0,(X191-INDEX($O191:$X191,1,aux!$BA$1))/INDEX($O191:$X191,1,aux!$BA$1),"n.d.") -> n.d. | AM191: 0 | CC191: =+IF(ISNA(MATCH('5.1'!A191,AUX_2d_pais!$G$2:$G$40000,0)),0,1) -> 0
A192: 0324 | B192: Ruanda | C192: 0 | D192: 0 | E192: 0 | F192: 0 | G192: 0 | H192: 0 | I192: 0 | J192: 0 | K192: 0 | L192: 0 | M192: 0 | N192: 0 | O192: 0 | P192: 0 | Q192: 0 | R192: 0 | S192: 0 | T192: 0 | U192: 0 | V192: 0 | W192: 0 | X192: 0 | Y192: 0 | Z192: 0 | AA192: 0 | AC192: =L192-INDEX($C192:$L192,1,aux!$BA$1) -> 0 | AD192: 0 | AE192: =+IF(INDEX($C192:$L192,1,aux!$BA$1)>0,(L192/INDEX($C192:$L192,1,aux!$BA$1))^(1/($L$3-INDEX($C$3:$L$3,1,aux!$BA$1)))-1,"n.d.") -> n.d. | AF192: =IF(INDEX($C192:$L192,1,aux!$BA$1)>0,(L192-INDEX($C192:$L192,1,aux!$BA$1))/INDEX($C192:$L192,1,aux!$BA$1),"n.d.") -> n.d. | AH192: =X192-INDEX($O192:$X192,1,aux!$BA$1) -> 0 | AI192: 0 | AJ192: =+IF(INDEX($O192:$X192,1,aux!$BA$1)>0,(X192/INDEX($O192:$X192,1,aux!$BA$1))^(1/($X$3-INDEX($O$3:$X$3,1,aux!$BA$1)))-1,"n.d.") -> n.d. | AK192: =IF(INDEX($O192:$X192,1,aux!$BA$1)>0,(X192-INDEX($O192:$X192,1,aux!$BA$1))/INDEX($O192:$X192,1,aux!$BA$1),"n.d.") -> n.d. | AM192: 0 | BO192: 0 | CC192: =+IF(ISNA(MATCH('5.1'!A192,AUX_2d_pais!$G$2:$G$40000,0)),0,1) -> 0
A193: 0075 | B193: Rússia, Federação da | C193: 37677.412 | D193: 27024.877 | E193: 47867.006 | F193: 73921.505 | G193: 35679.302 | H193: 43174.847 | I193: 40559.199 | J193: 56799.132 | K193: 67998.82 | L193: 110719.752 | M193: 54142.1852 | N193: 0.1327919193 | O193: 33382.225 | P193: 46140.184 | Q193: 56984.486 | R193: 69100.456 | S193: 97236.397 | T193: 83273.473 | U193: 63076.704 | V193: 69469.913 | W193: 82977.817 | X193: 85448.737 | Y193: 68709.0392 | Z193: 0.1429194249 | AA193: 14566.854 | AC193: =L193-INDEX($C193:$L193,1,aux!$BA$1) -> 73042.34 | AD193: 0.2585386045 | AE193: =+IF(INDEX($C193:$L193,1,aux!$BA$1)>0,(L193/INDEX($C193:$L193,1,aux!$BA$1))^(1/($L$3-INDEX($C$3:$L$3,1,aux!$BA$1)))-1,"n.d.") -> 0.127238996 | AF193: =IF(INDEX($C193:$L193,1,aux!$BA$1)>0,(L193-INDEX($C193:$L193,1,aux!$BA$1))/INDEX($C193:$L193,1,aux!$BA$1),"n.d.") -> 1.938624128 | AH193: =X193-INDEX($O193:$X193,1,aux!$BA$1) -> 52066.512 | AI193: 0.09808464237 | AJ193: =+IF(INDEX($O193:$X193,1,aux!$BA$1)>0,(X193/INDEX($O193:$X193,1,aux!$BA$1))^(1/($X$3-INDEX($O$3:$X$3,1,aux!$BA$1)))-1,"n.d.") -> 0.1100805295 | AK193: =IF(INDEX($O193:$X193,1,aux!$BA$1)>0,(X193-INDEX($O193:$X193,1,aux!$BA$1))/INDEX($O193:$X193,1,aux!$BA$1),"n.d.") -> 1.559707659 | CC193: =+IF(ISNA(MATCH('5.1'!A193,AUX_2d_pais!$G$2:$G$40000,0)),0,1) -> 1
A194: 0806 | B194: Salomão, Ilhas | C194: 0 | D194: 0 | E194: 0 | F194: 0 | G194: 0 | H194: 0 | I194: 0 | J194: 0 | K194: 0 | L194: 0 | M194: 0 | N194: 0 | O194: 0 | P194: 0 | Q194: 0 | R194: 0 | S194: 0 | T194: 0 | U194: 0 | V194: 0 | W194: 0 | X194: 0 | Y194: 0 | Z194: 0 | AA194: 0 | AC194: =L194-INDEX($C194:$L194,1,aux!$BA$1) -> 0 | AD194: 0 | AE194: =+IF(INDEX($C194:$L194,1,aux!$BA$1)>0,(L194/INDEX($C194:$L194,1,aux!$BA$1))^(1/($L$3-INDEX($C$3:$L$3,1,aux!$BA$1)))-1,"n.d.") -> n.d. | AF194: =IF(INDEX($C194:$L194,1,aux!$BA$1)>0,(L194-INDEX($C194:$L194,1,aux!$BA$1))/INDEX($C194:$L194,1,aux!$BA$1),"n.d.") -> n.d. | AH194: =X194-INDEX($O194:$X194,1,aux!$BA$1) -> 0 | AI194: 0 | AJ194: =+IF(INDEX($O194:$X194,1,aux!$BA$1)>0,(X194/INDEX($O194:$X194,1,aux!$BA$1))^(1/($X$3-INDEX($O$3:$X$3,1,aux!$BA$1)))-1,"n.d.") -> n.d. | AK194: =IF(INDEX($O194:$X194,1,aux!$BA$1)>0,(X194-INDEX($O194:$X194,1,aux!$BA$1))/INDEX($O194:$X194,1,aux!$BA$1),"n.d.") -> n.d. | AM194: 0 | BO194: 0 | CC194: =+IF(ISNA(MATCH('5.1'!A194,AUX_2d_pais!$G$2:$G$40000,0)),0,1) -> 0
A195: 0819 | B195: Samoa | C195: 0 | D195: 0 | E195: 0 | F195: 0 | G195: 0 | H195: 0 | I195: 0 | J195: 0 | K195: 0 | L195: 0 | M195: 0 | N195: 0 | O195: 0 | P195: 0 | Q195: 0 | R195: 0 | S195: 0 | T195: 0 | U195: 0 | V195: 0 | W195: 0 | X195: 0 | Y195: 0 | Z195: 0 | AA195: 0 | AC195: =L195-INDEX($C195:$L195,1,aux!$BA$1) -> 0 | AD195: 0 | AE195: =+IF(INDEX($C195:$L195,1,aux!$BA$1)>0,(L195/INDEX($C195:$L195,1,aux!$BA$1))^(1/($L$3-INDEX($C$3:$L$3,1,aux!$BA$1)))-1,"n.d.") -> n.d. | AF195: =IF(INDEX($C195:$L195,1,aux!$BA$1)>0,(L195-INDEX($C195:$L195,1,aux!$BA$1))/INDEX($C195:$L195,1,aux!$BA$1),"n.d.") -> n.d. | AH195: =X195-INDEX($O195:$X195,1,aux!$BA$1) -> 0 | AI195: 0 | AJ195: =+IF(INDEX($O195:$X195,1,aux!$BA$1)>0,(X195/INDEX($O195:$X195,1,aux!$BA$1))^(1/($X$3-INDEX($O$3:$X$3,1,aux!$BA$1)))-1,"n.d.") -> n.d. | AK195: =IF(INDEX($O195:$X195,1,aux!$BA$1)>0,(X195-INDEX($O195:$X195,1,aux!$BA$1))/INDEX($O195:$X195,1,aux!$BA$1),"n.d.") -> n.d. | AM195: 0 | BO195: 0 | CC195: =+IF(ISNA(MATCH('5.1'!A195,AUX_2d_pais!$G$2:$G$40000,0)),0,1) -> 0
A196: 0830 | B196: Samoa Americana | C196: 0 | D196: 0 | E196: 0 | F196: 0 | G196: 0 | H196: 0 | I196: 0 | J196: 0 | K196: 0 | L196: 0 | M196: 0 | N196: 0 | O196: 0 | P196: 0 | Q196: 0 | R196: 0 | S196: 0 | T196: 0 | U196: 0 | V196: 0 | W196: 0 | X196: 0 | Y196: 0 | Z196: 0 | AA196: 0 | AC196: =L196-INDEX($C196:$L196,1,aux!$BA$1) -> 0 | AD196: 0 | AE196: =+IF(INDEX($C196:$L196,1,aux!$BA$1)>0,(L196/INDEX($C196:$L196,1,aux!$BA$1))^(1/($L$3-INDEX($C$3:$L$3,1,aux!$BA$1)))-1,"n.d.") -> n.d. | AF196: =IF(INDEX($C196:$L196,1,aux!$BA$1)>0,(L196-INDEX($C196:$L196,1,aux!$BA$1))/INDEX($C196:$L196,1,aux!$BA$1),"n.d.") -> n.d. | AH196: =X196-INDEX($O196:$X196,1,aux!$BA$1) -> 0 | AI196: 0 | AJ196: =+IF(INDEX($O196:$X196,1,aux!$BA$1)>0,(X196/INDEX($O196:$X196,1,aux!$BA$1))^(1/($X$3-INDEX($O$3:$X$3,1,aux!$BA$1)))-1,"n.d.") -> n.d. | AK196: =IF(INDEX($O196:$X196,1,aux!$BA$1)>0,(X196-INDEX($O196:$X196,1,aux!$BA$1))/INDEX($O196:$X196,1,aux!$BA$1),"n.d.") -> n.d. | AM196: =SUM(A196:AA196) -> 0 | BO196: =SUM(C196:L196,O196:X196) -> 0 | CC196: =+IF(ISNA(MATCH('5.1'!A196,AUX_2d_pais!$G$2:$G$40000,0)),0,1) -> 0
A197: 0329 | B197: Santa Helena | C197: 0 | D197: 0 | E197: 0 | F197: 0 | G197: 0 | H197: 0 | I197: 0 | J197: 0 | K197: 0 | L197: 0 | M197: 0 | N197: 0 | O197: 0 | P197: 0 | Q197: 0 | R197: 0 | S197: 0 | T197: 0 | U197: 0 | V197: 0 | W197: 0 | X197: 0 | Y197: 0 | Z197: 0 | AA197: 0 | AC197: =L197-INDEX($C197:$L197,1,aux!$BA$1) -> 0 | AD197: 0 | AE197: =+IF(INDEX($C197:$L197,1,aux!$BA$1)>0,(L197/INDEX($C197:$L197,1,aux!$BA$1))^(1/($L$3-INDEX($C$3:$L$3,1,aux!$BA$1)))-1,"n.d.") -> n.d. | AF197: =IF(INDEX($C197:$L197,1,aux!$BA$1)>0,(L197-INDEX($C197:$L197,1,aux!$BA$1))/INDEX($C197:$L197,1,aux!$BA$1),"n.d.") -> n.d. | AH197: =X197-INDEX($O197:$X197,1,aux!$BA$1) -> 0 | AI197: 0 | AJ197: =+IF(INDEX($O197:$X197,1,aux!$BA$1)>0,(X197/INDEX($O197:$X197,1,aux!$BA$1))^(1/($X$3-INDEX($O$3:$X$3,1,aux!$BA$1)))-1,"n.d.") -> n.d. | AK197: =IF(INDEX($O197:$X197,1,aux!$BA$1)>0,(X197-INDEX($O197:$X197,1,aux!$BA$1))/INDEX($O197:$X197,1,aux!$BA$1),"n.d.") -> n.d. | AM197: 0 | BO197: 0 | CC197: =+IF(ISNA(MATCH('5.1'!A197,AUX_2d_pais!$G$2:$G$40000,0)),0,1) -> 0
A198: 0465 | B198: Santa Lúcia | C198: 0 | D198: 0 | E198: 0 | F198: 0 | G198: 0 | H198: 0 | I198: 0 | J198: 0 | K198: 0 | L198: 0 | M198: 0 | N198: 0 | O198: 0 | P198: 0 | Q198: 0 | R198: 0 | S198: 0 | T198: 0 | U198: 0 | V198: 0 | W198: 0 | X198: 0 | Y198: 0 | Z198: 0 | AA198: 0 | AC198: =L198-INDEX($C198:$L198,1,aux!$BA$1) -> 0 | AD198: 0 | AE198: =+IF(INDEX($C198:$L198,1,aux!$BA$1)>0,(L198/INDEX($C198:$L198,1,aux!$BA$1))^(1/($L$3-INDEX($C$3:$L$3,1,aux!$BA$1)))-1,"n.d.") -> n.d. | AF198: =IF(INDEX($C198:$L198,1,aux!$BA$1)>0,(L198-INDEX($C198:$L198,1,aux!$BA$1))/INDEX($C198:$L198,1,aux!$BA$1),"n.d.") -> n.d. | AH198: =X198-INDEX($O198:$X198,1,aux!$BA$1) -> 0 | AI198: 0 | AJ198: =+IF(INDEX($O198:$X198,1,aux!$BA$1)>0,(X198/INDEX($O198:$X198,1,aux!$BA$1))^(1/($X$3-INDEX($O$3:$X$3,1,aux!$BA$1)))-1,"n.d.") -> n.d. | AK198: =IF(INDEX($O198:$X198,1,aux!$BA$1)>0,(X198-INDEX($O198:$X198,1,aux!$BA$1))/INDEX($O198:$X198,1,aux!$BA$1),"n.d.") -> n.d. | AM198: 0 | BO198: 0 | CC198: =+IF(ISNA(MATCH('5.1'!A198,AUX_2d_pais!$G$2:$G$40000,0)),0,1) -> 0
A199: 0045 | B199: Santa Sé (Cidade Estado do Vaticano) | C199: 0 | D199: 0 | E199: 0 | F199: 0 | G199: 0 | H199: 0 | I199: 0 | J199: 0 | K199: 0 | L199: 0 | M199: 0 | N199: 0 | O199: 0 | P199: 0 | Q199: 0 | R199: 0 | S199: 0 | T199: 0 | U199: 0 | V199: 0 | W199: 0 | X199: 0 | Y199: 0 | Z199: 0 | AA199: 0 | AC199: =L199-INDEX($C199:$L199,1,aux!$BA$1) -> 0 | AD199: 0 | AE199: =+IF(INDEX($C199:$L199,1,aux!$BA$1)>0,(L199/INDEX($C199:$L199,1,aux!$BA$1))^(1/($L$3-INDEX($C$3:$L$3,1,aux!$BA$1)))-1,"n.d.") -> n.d. | AF199: =IF(INDEX($C199:$L199,1,aux!$BA$1)>0,(L199-INDEX($C199:$L199,1,aux!$BA$1))/INDEX($C199:$L199,1,aux!$BA$1),"n.d.") -> n.d. | AH199: =X199-INDEX($O199:$X199,1,aux!$BA$1) -> 0 | AI199: 0 | AJ199: =+IF(INDEX($O199:$X199,1,aux!$BA$1)>0,(X199/INDEX($O199:$X199,1,aux!$BA$1))^(1/($X$3-INDEX($O$3:$X$3,1,aux!$BA$1)))-1,"n.d.") -> n.d. | AK199: =IF(INDEX($O199:$X199,1,aux!$BA$1)>0,(X199-INDEX($O199:$X199,1,aux!$BA$1))/INDEX($O199:$X199,1,aux!$BA$1),"n.d.") -> n.d. | AM199: 0 | BO199: 0 | CC199: =+IF(ISNA(MATCH('5.1'!A199,AUX_2d_pais!$G$2:$G$40000,0)),0,1) -> 0
A200: 0466 | B200: São Bartolomeu | C200: 0 | D200: 0 | E200: 0 | F200: 0 | G200: 0 | H200: 0 | I200: 0 | J200: 0 | K200: 0 | L200: 0 | M200: 0 | N200: 0 | O200: 0 | P200: 0 | Q200: 0 | R200: 0 | S200: 0 | T200: 0 | U200: 0 | V200: 0 | W200: 0 | X200: 0 | Y200: 0 | Z200: 0 | AA200: 0 | AC200: =L200-INDEX($C200:$L200,1,aux!$BA$1) -> 0 | AD200: 0 | AE200: =+IF(INDEX($C200:$L200,1,aux!$BA$1)>0,(L200/INDEX($C200:$L200,1,aux!$BA$1))^(1/($L$3-INDEX($C$3:$L$3,1,aux!$BA$1)))-1,"n.d.") -> n.d. | AF200: =IF(INDEX($C200:$L200,1,aux!$BA$1)>0,(L200-INDEX($C200:$L200,1,aux!$BA$1))/INDEX($C200:$L200,1,aux!$BA$1),"n.d.") -> n.d. | AH200: =X200-INDEX($O200:$X200,1,aux!$BA$1) -> 0 | AI200: 0 | AJ200: =+IF(INDEX($O200:$X200,1,aux!$BA$1)>0,(X200/INDEX($O200:$X200,1,aux!$BA$1))^(1/($X$3-INDEX($O$3:$X$3,1,aux!$BA$1)))-1,"n.d.") -> n.d. | AK200: =IF(INDEX($O200:$X200,1,aux!$BA$1)>0,(X200-INDEX($O200:$X200,1,aux!$BA$1))/INDEX($O200:$X200,1,aux!$BA$1),"n.d.") -> n.d. | AM200: 0 | CC200: =+IF(ISNA(MATCH('5.1'!A200,AUX_2d_pais!$G$2:$G$40000,0)),0,1) -> 0
... 54 more rows

Sheet 5.1_var
A1: ="Principais contributos por país para a variação das trocas comerciais PT-Ásia_x000D_ no período " & INDEX('5.2'!P3:X3,1,aux!BA1) & "-2018 Agroalimentar, Mar & Florestas (valores em milhares de euros)" -> Principais contributos por país para a variação das trocas comerciais PT-Ásia no período 2009-2018 Agroalimentar, Mar & Florestas (valores em milhares de euros)
E5: aumento das importações | J5: aumento das exportações
E17: redução das importações | J17: redução das exportações
A28: Fonte: GPP a partir de dados INE/Comércio Internacional (2017 provisórios; 2018 preliminares) | H28: ='3'!Y116 -> 2019-11-26T14:40:28.720
A29: Cód. NC | B29: Descritivo | C29: ="Variação das Importações " & INDEX('5.2'!C3:L3,1,aux!BA1) & "-"& '5.2'!L3&"" -> Variação das Importações 2009-2018 | F29: Cód. NC | G29: Descritivo | H29: ="Variação das Exportações " & INDEX('5.2'!P3:X3,1,aux!BA1) & "-"& '5.2'!Y3 &"" -> Variação das Exportações 2009-2018
C30: variação total em valor | D30: % do aumento/ redução total | H30: variação total em valor | I30: % do aumento/ redução total
A31: =IF(C31>0,aux!CY6,"") -> 0075 | B31: =IF(C31>0,aux!CZ6,"") -> Rússia, Federação da | C31: =IF(aux!DA6>0,aux!DA6,0) -> 73042.34 | D31: =IF(SUM($C$31:$C$41)<>0,C31/SUM($C$31:$C$41),0) -> 0.2523488986 | F31: =IF(H31>0,aux!DD6,"") -> 0720 | G31: =IF(H31>0,aux!DE6,"") -> China, República Popular da | H31: =IF(aux!DF6>0,aux!DF6,0) -> 145998.868 | I31: =IF(SUM($H$31:$H$41)<>0,H31/SUM($H$31:$H$41),0) -> 0.2736744099
A32: =IF(C32>0,aux!CY7,"") -> 0720 | B32: =IF(C32>0,aux!CZ7,"") -> China, República Popular da | C32: =IF(aux!DA7>0,aux!DA7,0) -> 66296.479 | D32: =IF(SUM($C$31:$C$41)<>0,C32/SUM($C$31:$C$41),0) -> 0.2290430928 | F32: =IF(H32>0,aux!DD7,"") -> 0624 | G32: =IF(H32>0,aux!DE7,"") -> Israel | H32: =IF(aux!DF7>0,aux!DF7,0) -> 119668.697 | I32: =IF(SUM($H$31:$H$41)<>0,H32/SUM($H$31:$H$41),0) -> 0.2243185888
A33: =IF(C33>0,aux!CY8,"") -> 0690 | B33: =IF(C33>0,aux!CZ8,"") -> Vietname | C33: =IF(aux!DA8>0,aux!DA8,0) -> 38391.464 | D33: 0.1326359979 | F33: =IF(H33>0,aux!DD8,"") -> 0075 | G33: =IF(H33>0,aux!DE8,"") -> Rússia, Federação da | H33: =IF(aux!DF8>0,aux!DF8,0) -> 52066.512 | I33: 0.0975985098
A34: =IF(C34>0,aux!CY9,"") -> 0664 | B34: =IF(C34>0,aux!CZ9,"") -> Índia | C34: =IF(aux!DA9>0,aux!DA9,0) -> 37129.609 | D34: 0.1282765029 | F34: =IF(H34>0,aux!DD9,"") -> 0632 | G34: =IF(H34>0,aux!DE9,"") -> Arábia Saudita | H34: =IF(aux!DF9>0,aux!DF9,0) -> 30622.427 | I34: 0.05740164123
A35: =IF(C35>0,aux!CY10,"") -> 0732 | B35: =IF(C35>0,aux!CZ10,"") -> Japão | C35: =IF(aux!DA10>0,aux!DA10,0) -> 15289.785 | D35: 0.05282361442 | F35: =IF(H35>0,aux!DD10,"") -> 0732 | G35: =IF(H35>0,aux!DE10,"") -> Japão | H35: =IF(aux!DF10>0,aux!DF10,0) -> 27027.419 | I35: 0.05066281026
A36: =IF(C36>0,aux!CY11,"") -> 0708 | B36: =IF(C36>0,aux!CZ11,"") -> Filipinas | C36: =IF(aux!DA11>0,aux!DA11,0) -> 12579.088 | D36: 0.04345861595 | F36: =IF(H36>0,aux!DD11,"") -> 0647 | G36: =IF(H36>0,aux!DE11,"") -> Emirados Árabes Unidos | H36: =IF(aux!DF11>0,aux!DF11,0) -> 23728.188 | I36: 0.04447841233
A37: =IF(C37>0,aux!CY12,"") -> 0728 | B37: =IF(C37>0,aux!CZ12,"") -> Coreia, República da | C37: =IF(aux!DA12>0,aux!DA12,0) -> 10735.283 | D37: 0.03708858234 | F37: =IF(H37>0,aux!DD12,"") -> 0608 | G37: =IF(H37>0,aux!DE12,"") -> Síria, República Árabe da | H37: =IF(aux!DF12>0,aux!DF12,0) -> 15335.06 | I37: 0.0287455208
A38: =IF(C38>0,aux!CY13,"") -> 0676 | B38: =IF(C38>0,aux!CZ13,"") -> Myanmar | C38: =IF(aux!DA13>0,aux!DA13,0) -> 6578.733 | D38: 0.02272840693 | F38: =IF(H38>0,aux!DD13,"") -> 0604 | G38: =IF(H38>0,aux!DE13,"") -> Líbano | H38: =IF(aux!DF13>0,aux!DF13,0) -> 12801.341 | I38: 0.02399607266
A39: =IF(C39>0,aux!CY14,"") -> 0624 | B39: =IF(C39>0,aux!CZ14,"") -> Israel | C39: =IF(aux!DA14>0,aux!DA14,0) -> 5213.392 | D39: 0.0180113853 | F39: =IF(H39>0,aux!DD14,"") -> 0740 | G39: =IF(H39>0,aux!DE14,"") -> HongKong | H39: =IF(aux!DF14>0,aux!DF14,0) -> 11438.95 | I39: 0.0214422751
A40: =IF(C40>0,aux!CY15,"") -> 0696 | B40: =IF(C40>0,aux!CZ15,"") -> Camboja | C40: =IF(aux!DA15>0,aux!DA15,0) -> 4584.931 | D40: 0.01584015912 | F40: =IF(H40>0,aux!DD15,"") -> 0612 | G40: =IF(H40>0,aux!DE15,"") -> Iraque | H40: =IF(aux!DF15>0,aux!DF15,0) -> 11308.146 | I40: 0.02119708342
B41: Outros contributos para o aumento das importações | C41: =SUMIF(aux!DA16:DA252,">0") -> 19608.703 | D41: 0.06774474374 | G41: Outros contributos para o aumento das exportações | H41: =SUMIF(aux!DF16:DF252,">0") -> 83480.898 | I41: 0.1564846756
B42: Outros contributos para a redução das importações | C42: =SUMIF(aux!DA6:DA242,"<0") -> 0 | D42: =IF(SUM($C$42:$C$52)<>0,C42/SUM($C$42:$C$52),0) -> 0 | G42: Outros contributos para a redução das exportações | H42: =SUMIF(aux!DF6:DF242,"<0") -> 0 | I42: =IF(SUM($H$42:$H$52)<>0,H42/SUM($H$42:$H$52),0) -> 0
A43: =IF(C43<>0,aux!CY243,"") -> 0625 | B43: =IF(C43<0,aux!CZ243,"") -> Território Palestiniano Ocupado | C43: =IF(aux!DA243<0,aux!DA243,0) -> -3.347 | D43: =IF(SUM($C$42:$C$52)<>0,C43/SUM($C$42:$C$52),0) -> 0.0004829896584 | F43: =IF(H43<>0,aux!DD243,"") ->  | G43: =IF(H43<>0,aux!DE243,"") ->  | H43: =IF(aux!DF243<0,aux!DF243,0) -> 0 | I43: =IF(SUM($H$42:$H$52)<>0,H43/SUM($H$42:$H$52),0) -> 0
A44: =IF(C44<>0,aux!CY244,"") -> 0743 | B44: =IF(C44<0,aux!CZ244,"") -> Macau | C44: =IF(aux!DA244<0,aux!DA244,0) -> -14.476 | D44: 0.002088962741 | F44: =IF(H44<>0,aux!DD244,"") ->  | G44: =IF(H44<>0,aux!DE244,"") ->  | H44: =IF(aux!DF244<0,aux!DF244,0) -> 0 | I44: 0
A45: =IF(C45<>0,aux!CY245,"") -> 0083 | B45: =IF(C45<0,aux!CZ245,"") -> Quirguizistão | C45: =IF(aux!DA245<0,aux!DA245,0) -> -53.197 | D45: 0.007676606172 | F45: =IF(H45<>0,aux!DD245,"") ->  | G45: =IF(H45<>0,aux!DE245,"") ->  | H45: =IF(aux!DF245<0,aux!DF245,0) -> 0 | I45: 0
A46: =IF(C46<>0,aux!CY246,"") -> 0649 | B46: =IF(C46<0,aux!CZ246,"") -> Omã | C46: =IF(aux!DA246<0,aux!DA246,0) -> -127.569 | D46: 0.01840887593 | F46: =IF(H46<>0,aux!DD246,"") ->  | G46: =IF(H46<>0,aux!DE246,"") ->  | H46: =IF(aux!DF246<0,aux!DF246,0) -> 0 | I46: 0
A47: =IF(C47<>0,aux!CY247,"") -> 0079 | B47: =IF(C47<0,aux!CZ247,"") -> Cazaquistão | C47: =IF(aux!DA247<0,aux!DA247,0) -> -153.24 | D47: 0.0221133359 | F47: =IF(H47<>0,aux!DD247,"") ->  | G47: =IF(H47<>0,aux!DE247,"") ->  | H47: =IF(aux!DF247<0,aux!DF247,0) -> 0 | I47: 0
A48: =IF(C48<>0,aux!CY248,"") -> 0626 | B48: =IF(C48<0,aux!CZ248,"") -> Timor-Leste | C48: =IF(aux!DA248<0,aux!DA248,0) -> -171.059 | D48: 0.02468471108 | F48: =IF(H48<>0,aux!DD248,"") ->  | G48: =IF(H48<>0,aux!DE248,"") ->  | H48: =IF(aux!DF248<0,aux!DF248,0) -> 0 | I48: 0
A49: =IF(C49<>0,aux!CY249,"") -> 0700 | B49: =IF(C49<0,aux!CZ249,"") -> Indonésia | C49: =IF(aux!DA249<0,aux!DA249,0) -> -375.527 | D49: 0.05419051611 | F49: =IF(H49<>0,aux!DD249,"") ->  | G49: =IF(H49<>0,aux!DE249,"") ->  | H49: =IF(aux!DF249<0,aux!DF249,0) -> 0 | I49: 0
A50: =IF(C50<>0,aux!CY250,"") -> 0076 | B50: =IF(C50<0,aux!CZ250,"") -> Geórgia | C50: =IF(aux!DA250<0,aux!DA250,0) -> -769.264 | D50: 0.1110088308 | F50: =IF(H50<>0,aux!DD250,"") ->  | G50: =IF(H50<>0,aux!DE250,"") ->  | H50: =IF(aux!DF250<0,aux!DF250,0) -> 0 | I50: 0
A51: =IF(C51<>0,aux!CY251,"") -> 0680 | B51: =IF(C51<0,aux!CZ251,"") -> Tailândia | C51: =IF(aux!DA251<0,aux!DA251,0) -> -1849.301 | D51: 0.2668638357 | F51: =IF(H51<>0,aux!DD251,"") -> 0660 | G51: =IF(H51<>0,aux!DE251,"") -> Afeganistão | H51: =IF(aux!DF251<0,aux!DF251,0) -> -6.722 | I51: 0.00254231583
A52: =IF(C52<>0,aux!CY252,"") -> 0701 | B52: =IF(C52<0,aux!CZ252,"") -> Malásia | C52: =IF(aux!DA252<0,aux!DA252,0) -> -3412.775 | D52: 0.4924813359 | F52: =IF(H52<>0,aux!DD252,"") -> 0728 | G52: =IF(H52<>0,aux!DE252,"") -> Coreia, República da | H52: =IF(aux!DF252<0,aux!DF252,0) -> -2637.324 | I52: 0.9974576842
A53: TOTAL | C53: =SUM(C31:C52) -> 282520.052 | F53: TOTAL | H53: =SUM(H31:H52) -> 530832.46

Sheet 5.1A
A1: Trocas comerciais Portugal-Ásia (2009-2018) por país em milhares de euros | C1: Produtos agrícolas e agroalimentares
A2: Cód. País | B2: País | C2: Importações | O2: Exportações | AA2: Saldo período (exp-imp) | AB2: Evolução das importações | AC2: =+"Variação das Importações " & INDEX(C3:K3,1,aux!$BA$1) & "-"& L3 &"" -> Variação das Importações 2009-2018 | AG2: Evolução das exportações | AH2: ="Variação das Exportações " & INDEX(O3:W3,1,aux!BA1) & "-"& X3 &"" -> Variação das Exportações 2009-2018
C3: 2009 | D3: 2010 | E3: 2011 | F3: 2012 | G3: 2013 | H3: 2014 | I3: 2015 | J3: 2016 | K3: 2017 | L3: 2018 | M3: média período | N3: % Total | O3: 2009 | P3: 2010 | Q3: 2011 | R3: 2012 | S3: 2013 | T3: 2014 | U3: 2015 | V3: 2016 | W3: 2017 | X3: 2018 | Y3: média período | Z3: % Total | AC3: variação total em valor | AD3: % no total de variação | AE3: taxa de variação média anual | AF3: taxa de variação total | AH3: variação total em valor | AI3: % no total de variação | AJ3: taxa de variação média anual | AK3: taxa de variação total | CC3: filtro
A4: 0660 | B4: Afeganistão | C4: 0 | D4: 0 | E4: 0 | F4: 0 | G4: 0 | H4: 0 | I4: 15.895 | J4: 0 | K4: 385.134 | L4: 21.004 | M4: 42.2033 | N4: 0.000281543385 | O4: 6.722 | P4: 2.25 | Q4: 0 | R4: 0 | S4: 0 | T4: 0.03 | U4: 0.192 | V4: 0 | W4: 0 | X4: 0 | Y4: 0.9194 | Z4: 4.27736175e-06 | AA4: -41.2839 | AC4: =L4-INDEX($C4:$L4,1,aux!$BA$1) -> 21.004 | AD4: =AC4/$AC$252 -> 0.0002435708639 | AE4: =+IF(INDEX($C4:$L4,1,aux!$BA$1)>0,(L4/INDEX($C4:$L4,1,aux!$BA$1))^(1/($L$3-INDEX($C$3:$L$3,1,aux!$BA$1)))-1,"n.d.") -> n.d. | AF4: =IF(INDEX($C4:$L4,1,aux!$BA$1)>0,(L4-INDEX($C4:$L4,1,aux!$BA$1))/INDEX($C4:$L4,1,aux!$BA$1),"n.d.") -> n.d. | AH4: =X4-INDEX($O4:$X4,1,aux!$BA$1) -> -6.722 | AI4: =AH4/$AH$252 -> -2.232872082e-05 | AJ4: =+IF(INDEX($O4:$X4,1,aux!$BA$1)>0,(X4/INDEX($O4:$X4,1,aux!$BA$1))^(1/($X$3-INDEX($O$3:$X$3,1,aux!$BA$1)))-1,"n.d.") -> -1 | AK4: =IF(INDEX($O4:$X4,1,aux!$BA$1)>0,(X4-INDEX($O4:$X4,1,aux!$BA$1))/INDEX($O4:$X4,1,aux!$BA$1),"n.d.") -> -1 | CC4: =+IF(ISNA(MATCH('5.1'!A4,AUX_2d_pais!$G$2:$G$40000,0)),0,1) -> 1
A5: 0388 | B5: África do Sul | C5: 0 | D5: 0 | E5: 0 | F5: 0 | G5: 0 | H5: 0 | I5: 0 | J5: 0 | K5: 0 | L5: 0 | M5: 0 | N5: 0 | O5: 0 | P5: 0 | Q5: 0 | R5: 0 | S5: 0 | T5: 0 | U5: 0 | V5: 0 | W5: 0 | X5: 0 | Y5: 0 | Z5: 0 | AA5: 0 | AC5: =L5-INDEX($C5:$L5,1,aux!$BA$1) -> 0 | AD5: 0 | AE5: =+IF(INDEX($C5:$L5,1,aux!$BA$1)>0,(L5/INDEX($C5:$L5,1,aux!$BA$1))^(1/($L$3-INDEX($C$3:$L$3,1,aux!$BA$1)))-1,"n.d.") -> n.d. | AF5: =IF(INDEX($C5:$L5,1,aux!$BA$1)>0,(L5-INDEX($C5:$L5,1,aux!$BA$1))/INDEX($C5:$L5,1,aux!$BA$1),"n.d.") -> n.d. | AH5: =X5-INDEX($O5:$X5,1,aux!$BA$1) -> 0 | AI5: 0 | AJ5: =+IF(INDEX($O5:$X5,1,aux!$BA$1)>0,(X5/INDEX($O5:$X5,1,aux!$BA$1))^(1/($X$3-INDEX($O$3:$X$3,1,aux!$BA$1)))-1,"n.d.") -> n.d. | AK5: =IF(INDEX($O5:$X5,1,aux!$BA$1)>0,(X5-INDEX($O5:$X5,1,aux!$BA$1))/INDEX($O5:$X5,1,aux!$BA$1),"n.d.") -> n.d. | AM5: =SUM(A5:AA5) -> 0 | CC5: =+IF(ISNA(MATCH('5.1'!A5,AUX_2d_pais!$G$2:$G$40000,0)),0,1) -> 0
A6: 0070 | B6: Albânia | C6: 0 | D6: 0 | E6: 0 | F6: 0 | G6: 0 | H6: 0 | I6: 0 | J6: 0 | K6: 0 | L6: 0 | M6: 0 | N6: 0 | O6: 0 | P6: 0 | Q6: 0 | R6: 0 | S6: 0 | T6: 0 | U6: 0 | V6: 0 | W6: 0 | X6: 0 | Y6: 0 | Z6: 0 | AA6: 0 | AC6: =L6-INDEX($C6:$L6,1,aux!$BA$1) -> 0 | AD6: 0 | AE6: =+IF(INDEX($C6:$L6,1,aux!$BA$1)>0,(L6/INDEX($C6:$L6,1,aux!$BA$1))^(1/($L$3-INDEX($C$3:$L$3,1,aux!$BA$1)))-1,"n.d.") -> n.d. | AF6: =IF(INDEX($C6:$L6,1,aux!$BA$1)>0,(L6-INDEX($C6:$L6,1,aux!$BA$1))/INDEX($C6:$L6,1,aux!$BA$1),"n.d.") -> n.d. | AH6: =X6-INDEX($O6:$X6,1,aux!$BA$1) -> 0 | AI6: 0 | AJ6: =+IF(INDEX($O6:$X6,1,aux!$BA$1)>0,(X6/INDEX($O6:$X6,1,aux!$BA$1))^(1/($X$3-INDEX($O$3:$X$3,1,aux!$BA$1)))-1,"n.d.") -> n.d. | AK6: =IF(INDEX($O6:$X6,1,aux!$BA$1)>0,(X6-INDEX($O6:$X6,1,aux!$BA$1))/INDEX($O6:$X6,1,aux!$BA$1),"n.d.") -> n.d. | AM6: 0 | CC6: =+IF(ISNA(MATCH('5.1'!A6,AUX_2d_pais!$G$2:$G$40000,0)),0,1) -> 0
A7: 0004 | B7: Alemanha | C7: 0 | D7: 0 | E7: 0 | F7: 0 | G7: 0 | H7: 0 | I7: 0 | J7: 0 | K7: 0 | L7: 0 | M7: 0 | N7: 0 | O7: 0 | P7: 0 | Q7: 0 | R7: 0 | S7: 0 | T7: 0 | U7: 0 | V7: 0 | W7: 0 | X7: 0 | Y7: 0 | Z7: 0 | AA7: 0 | AC7: =L7-INDEX($C7:$L7,1,aux!$BA$1) -> 0 | AD7: 0 | AE7: =+IF(INDEX($C7:$L7,1,aux!$BA$1)>0,(L7/INDEX($C7:$L7,1,aux!$BA$1))^(1/($L$3-INDEX($C$3:$L$3,1,aux!$BA$1)))-1,"n.d.") -> n.d. | AF7: =IF(INDEX($C7:$L7,1,aux!$BA$1)>0,(L7-INDEX($C7:$L7,1,aux!$BA$1))/INDEX($C7:$L7,1,aux!$BA$1),"n.d.") -> n.d. | AH7: =X7-INDEX($O7:$X7,1,aux!$BA$1) -> 0 | AI7: 0 | AJ7: =+IF(INDEX($O7:$X7,1,aux!$BA$1)>0,(X7/INDEX($O7:$X7,1,aux!$BA$1))^(1/($X$3-INDEX($O$3:$X$3,1,aux!$BA$1)))-1,"n.d.") -> n.d. | AK7: =IF(INDEX($O7:$X7,1,aux!$BA$1)>0,(X7-INDEX($O7:$X7,1,aux!$BA$1))/INDEX($O7:$X7,1,aux!$BA$1),"n.d.") -> n.d. | AM7: 0 | CC7: =+IF(ISNA(MATCH('5.1'!A7,AUX_2d_pais!$G$2:$G$40000,0)),0,1) -> 0
A8: 0043 | B8: Andorra | C8: 0 | D8: 0 | E8: 0 | F8: 0 | G8: 0 | H8: 0 | I8: 0 | J8: 0 | K8: 0 | L8: 0 | M8: 0 | N8: 0 | O8: 0 | P8: 0 | Q8: 0 | R8: 0 | S8: 0 | T8: 0 | U8: 0 | V8: 0 | W8: 0 | X8: 0 | Y8: 0 | Z8: 0 | AA8: 0 | AC8: =L8-INDEX($C8:$L8,1,aux!$BA$1) -> 0 | AD8: 0 | AE8: =+IF(INDEX($C8:$L8,1,aux!$BA$1)>0,(L8/INDEX($C8:$L8,1,aux!$BA$1))^(1/($L$3-INDEX($C$3:$L$3,1,aux!$BA$1)))-1,"n.d.") -> n.d. | AF8: =IF(INDEX($C8:$L8,1,aux!$BA$1)>0,(L8-INDEX($C8:$L8,1,aux!$BA$1))/INDEX($C8:$L8,1,aux!$BA$1),"n.d.") -> n.d. | AH8: =X8-INDEX($O8:$X8,1,aux!$BA$1) -> 0 | AI8: 0 | AJ8: =+IF(INDEX($O8:$X8,1,aux!$BA$1)>0,(X8/INDEX($O8:$X8,1,aux!$BA$1))^(1/($X$3-INDEX($O$3:$X$3,1,aux!$BA$1)))-1,"n.d.") -> n.d. | AK8: =IF(INDEX($O8:$X8,1,aux!$BA$1)>0,(X8-INDEX($O8:$X8,1,aux!$BA$1))/INDEX($O8:$X8,1,aux!$BA$1),"n.d.") -> n.d. | AM8: 0 | CC8: =+IF(ISNA(MATCH('5.1'!A8,AUX_2d_pais!$G$2:$G$40000,0)),0,1) -> 0
A9: 0330 | B9: Angola | C9: 0 | D9: 0 | E9: 0 | F9: 0 | G9: 0 | H9: 0 | I9: 0 | J9: 0 | K9: 0 | L9: 0 | M9: 0 | N9: 0 | O9: 0 | P9: 0 | Q9: 0 | R9: 0 | S9: 0 | T9: 0 | U9: 0 | V9: 0 | W9: 0 | X9: 0 | Y9: 0 | Z9: 0 | AA9: 0 | AC9: =L9-INDEX($C9:$L9,1,aux!$BA$1) -> 0 | AD9: 0 | AE9: =+IF(INDEX($C9:$L9,1,aux!$BA$1)>0,(L9/INDEX($C9:$L9,1,aux!$BA$1))^(1/($L$3-INDEX($C$3:$L$3,1,aux!$BA$1)))-1,"n.d.") -> n.d. | AF9: =IF(INDEX($C9:$L9,1,aux!$BA$1)>0,(L9-INDEX($C9:$L9,1,aux!$BA$1))/INDEX($C9:$L9,1,aux!$BA$1),"n.d.") -> n.d. | AH9: =X9-INDEX($O9:$X9,1,aux!$BA$1) -> 0 | AI9: 0 | AJ9: =+IF(INDEX($O9:$X9,1,aux!$BA$1)>0,(X9/INDEX($O9:$X9,1,aux!$BA$1))^(1/($X$3-INDEX($O$3:$X$3,1,aux!$BA$1)))-1,"n.d.") -> n.d. | AK9: =IF(INDEX($O9:$X9,1,aux!$BA$1)>0,(X9-INDEX($O9:$X9,1,aux!$BA$1))/INDEX($O9:$X9,1,aux!$BA$1),"n.d.") -> n.d. | AM9: 0 | CC9: =+IF(ISNA(MATCH('5.1'!A9,AUX_2d_pais!$G$2:$G$40000,0)),0,1) -> 0
A10: 0446 | B10: Anguila | C10: 0 | D10: 0 | E10: 0 | F10: 0 | G10: 0 | H10: 0 | I10: 0 | J10: 0 | K10: 0 | L10: 0 | M10: 0 | N10: 0 | O10: 0 | P10: 0 | Q10: 0 | R10: 0 | S10: 0 | T10: 0 | U10: 0 | V10: 0 | W10: 0 | X10: 0 | Y10: 0 | Z10: 0 | AA10: 0 | AC10: =L10-INDEX($C10:$L10,1,aux!$BA$1) -> 0 | AD10: 0 | AE10: =+IF(INDEX($C10:$L10,1,aux!$BA$1)>0,(L10/INDEX($C10:$L10,1,aux!$BA$1))^(1/($L$3-INDEX($C$3:$L$3,1,aux!$BA$1)))-1,"n.d.") -> n.d. | AF10: =IF(INDEX($C10:$L10,1,aux!$BA$1)>0,(L10-INDEX($C10:$L10,1,aux!$BA$1))/INDEX($C10:$L10,1,aux!$BA$1),"n.d.") -> n.d. | AH10: =X10-INDEX($O10:$X10,1,aux!$BA$1) -> 0 | AI10: 0 | AJ10: =+IF(INDEX($O10:$X10,1,aux!$BA$1)>0,(X10/INDEX($O10:$X10,1,aux!$BA$1))^(1/($X$3-INDEX($O$3:$X$3,1,aux!$BA$1)))-1,"n.d.") -> n.d. | AK10: =IF(INDEX($O10:$X10,1,aux!$BA$1)>0,(X10-INDEX($O10:$X10,1,aux!$BA$1))/INDEX($O10:$X10,1,aux!$BA$1),"n.d.") -> n.d. | AM10: 0 | CC10: =+IF(ISNA(MATCH('5.1'!A10,AUX_2d_pais!$G$2:$G$40000,0)),0,1) -> 0
A11: 0891 | B11: Antárctica | C11: 0 | D11: 0 | E11: 0 | F11: 0 | G11: 0 | H11: 0 | I11: 0 | J11: 0 | K11: 0 | L11: 0 | M11: 0 | N11: 0 | O11: 0 | P11: 0 | Q11: 0 | R11: 0 | S11: 0 | T11: 0 | U11: 0 | V11: 0 | W11: 0 | X11: 0 | Y11: 0 | Z11: 0 | AA11: 0 | AC11: =L11-INDEX($C11:$L11,1,aux!$BA$1) -> 0 | AD11: 0 | AE11: =+IF(INDEX($C11:$L11,1,aux!$BA$1)>0,(L11/INDEX($C11:$L11,1,aux!$BA$1))^(1/($L$3-INDEX($C$3:$L$3,1,aux!$BA$1)))-1,"n.d.") -> n.d. | AF11: =IF(INDEX($C11:$L11,1,aux!$BA$1)>0,(L11-INDEX($C11:$L11,1,aux!$BA$1))/INDEX($C11:$L11,1,aux!$BA$1),"n.d.") -> n.d. | AH11: =X11-INDEX($O11:$X11,1,aux!$BA$1) -> 0 | AI11: 0 | AJ11: =+IF(INDEX($O11:$X11,1,aux!$BA$1)>0,(X11/INDEX($O11:$X11,1,aux!$BA$1))^(1/($X$3-INDEX($O$3:$X$3,1,aux!$BA$1)))-1,"n.d.") -> n.d. | AK11: =IF(INDEX($O11:$X11,1,aux!$BA$1)>0,(X11-INDEX($O11:$X11,1,aux!$BA$1))/INDEX($O11:$X11,1,aux!$BA$1),"n.d.") -> n.d. | AM11: 0 | CC11: =+IF(ISNA(MATCH('5.1'!A11,AUX_2d_pais!$G$2:$G$40000,0)),0,1) -> 0
A12: 0459 | B12: Antígua e Barbuda | C12: 0 | D12: 0 | E12: 0 | F12: 0 | G12: 0 | H12: 0 | I12: 0 | J12: 0 | K12: 0 | L12: 0 | M12: 0 | N12: 0 | O12: 0 | P12: 0 | Q12: 0 | R12: 0 | S12: 0 | T12: 0 | U12: 0 | V12: 0 | W12: 0 | X12: 0 | Y12: 0 | Z12: 0 | AA12: 0 | AC12: =L12-INDEX($C12:$L12,1,aux!$BA$1) -> 0 | AD12: 0 | AE12: =+IF(INDEX($C12:$L12,1,aux!$BA$1)>0,(L12/INDEX($C12:$L12,1,aux!$BA$1))^(1/($L$3-INDEX($C$3:$L$3,1,aux!$BA$1)))-1,"n.d.") -> n.d. | AF12: =IF(INDEX($C12:$L12,1,aux!$BA$1)>0,(L12-INDEX($C12:$L12,1,aux!$BA$1))/INDEX($C12:$L12,1,aux!$BA$1),"n.d.") -> n.d. | AH12: =X12-INDEX($O12:$X12,1,aux!$BA$1) -> 0 | AI12: 0 | AJ12: =+IF(INDEX($O12:$X12,1,aux!$BA$1)>0,(X12/INDEX($O12:$X12,1,aux!$BA$1))^(1/($X$3-INDEX($O$3:$X$3,1,aux!$BA$1)))-1,"n.d.") -> n.d. | AK12: =IF(INDEX($O12:$X12,1,aux!$BA$1)>0,(X12-INDEX($O12:$X12,1,aux!$BA$1))/INDEX($O12:$X12,1,aux!$BA$1),"n.d.") -> n.d. | AM12: 0 | CC12: =+IF(ISNA(MATCH('5.1'!A12,AUX_2d_pais!$G$2:$G$40000,0)),0,1) -> 0
A13: 0478 | B13: Antilhas Holandesas | C13: 0 | D13: 0 | E13: 0 | F13: 0 | G13: 0 | H13: 0 | I13: 0 | J13: 0 | K13: 0 | L13: 0 | M13: 0 | N13: 0 | O13: 0 | P13: 0 | Q13: 0 | R13: 0 | S13: 0 | T13: 0 | U13: 0 | V13: 0 | W13: 0 | X13: 0 | Y13: 0 | Z13: 0 | AA13: 0 | AC13: =L13-INDEX($C13:$L13,1,aux!$BA$1) -> 0 | AD13: 0 | AE13: =+IF(INDEX($C13:$L13,1,aux!$BA$1)>0,(L13/INDEX($C13:$L13,1,aux!$BA$1))^(1/($L$3-INDEX($C$3:$L$3,1,aux!$BA$1)))-1,"n.d.") -> n.d. | AF13: =IF(INDEX($C13:$L13,1,aux!$BA$1)>0,(L13-INDEX($C13:$L13,1,aux!$BA$1))/INDEX($C13:$L13,1,aux!$BA$1),"n.d.") -> n.d. | AH13: =X13-INDEX($O13:$X13,1,aux!$BA$1) -> 0 | AI13: 0 | AJ13: =+IF(INDEX($O13:$X13,1,aux!$BA$1)>0,(X13/INDEX($O13:$X13,1,aux!$BA$1))^(1/($X$3-INDEX($O$3:$X$3,1,aux!$BA$1)))-1,"n.d.") -> n.d. | AK13: =IF(INDEX($O13:$X13,1,aux!$BA$1)>0,(X13-INDEX($O13:$X13,1,aux!$BA$1))/INDEX($O13:$X13,1,aux!$BA$1),"n.d.") -> n.d. | AM13: 0 | CC13: =+IF(ISNA(MATCH('5.1'!A13,AUX_2d_pais!$G$2:$G$40000,0)),0,1) -> 0
A14: 0632 | B14: Arábia Saudita | C14: 6.542 | D14: 88.496 | E14: 168.605 | F14: 64.415 | G14: 78.46 | H14: 2675.57 | I14: 53.076 | J14: 158.966 | K14: 25.747 | L14: 13.764 | M14: 333.3641 | N14: 0.002223912754 | O14: 637.376 | P14: 1308.818 | Q14: 2175.586 | R14: 3369.714 | S14: 4624.619 | T14: 4952.226 | U14: 15747.509 | V14: 14292.943 | W14: 26591.448 | X14: 23294.312 | Y14: 9699.4551 | Z14: 0.04512516667 | AA14: 9366.091 | AC14: =L14-INDEX($C14:$L14,1,aux!$BA$1) -> 7.222 | AD14: 8.374922772e-05 | AE14: =+IF(INDEX($C14:$L14,1,aux!$BA$1)>0,(L14/INDEX($C14:$L14,1,aux!$BA$1))^(1/($L$3-INDEX($C$3:$L$3,1,aux!$BA$1)))-1,"n.d.") -> 0.08615718758 | AF14: =IF(INDEX($C14:$L14,1,aux!$BA$1)>0,(L14-INDEX($C14:$L14,1,aux!$BA$1))/INDEX($C14:$L14,1,aux!$BA$1),"n.d.") -> 1.103943748 | AH14: =X14-INDEX($O14:$X14,1,aux!$BA$1) -> 22656.936 | AI14: 0.07526039849 | AJ14: =+IF(INDEX($O14:$X14,1,aux!$BA$1)>0,(X14/INDEX($O14:$X14,1,aux!$BA$1))^(1/($X$3-INDEX($O$3:$X$3,1,aux!$BA$1)))-1,"n.d.") -> 0.4915934399 | AK14: =IF(INDEX($O14:$X14,1,aux!$BA$1)>0,(X14-INDEX($O14:$X14,1,aux!$BA$1))/INDEX($O14:$X14,1,aux!$BA$1),"n.d.") -> 35.54720604 | CC14: =+IF(ISNA(MATCH('5.1'!A14,AUX_2d_pais!$G$2:$G$40000,0)),0,1) -> 1
A15: 0208 | B15: Argélia | C15: 0 | D15: 0 | E15: 0 | F15: 0 | G15: 0 | H15: 0 | I15: 0 | J15: 0 | K15: 0 | L15: 0 | M15: 0 | N15: 0 | O15: 0 | P15: 0 | Q15: 0 | R15: 0 | S15: 0 | T15: 0 | U15: 0 | V15: 0 | W15: 0 | X15: 0 | Y15: 0 | Z15: 0 | AA15: 0 | AC15: =L15-INDEX($C15:$L15,1,aux!$BA$1) -> 0 | AD15: 0 | AE15: =+IF(INDEX($C15:$L15,1,aux!$BA$1)>0,(L15/INDEX($C15:$L15,1,aux!$BA$1))^(1/($L$3-INDEX($C$3:$L$3,1,aux!$BA$1)))-1,"n.d.") -> n.d. | AF15: =IF(INDEX($C15:$L15,1,aux!$BA$1)>0,(L15-INDEX($C15:$L15,1,aux!$BA$1))/INDEX($C15:$L15,1,aux!$BA$1),"n.d.") -> n.d. | AH15: =X15-INDEX($O15:$X15,1,aux!$BA$1) -> 0 | AI15: 0 | AJ15: =+IF(INDEX($O15:$X15,1,aux!$BA$1)>0,(X15/INDEX($O15:$X15,1,aux!$BA$1))^(1/($X$3-INDEX($O$3:$X$3,1,aux!$BA$1)))-1,"n.d.") -> n.d. | AK15: =IF(INDEX($O15:$X15,1,aux!$BA$1)>0,(X15-INDEX($O15:$X15,1,aux!$BA$1))/INDEX($O15:$X15,1,aux!$BA$1),"n.d.") -> n.d. | AM15: 0 | CC15: =+IF(ISNA(MATCH('5.1'!A15,AUX_2d_pais!$G$2:$G$40000,0)),0,1) -> 0
A16: 0528 | B16: Argentina | C16: 0 | D16: 0 | E16: 0 | F16: 0 | G16: 0 | H16: 0 | I16: 0 | J16: 0 | K16: 0 | L16: 0 | M16: 0 | N16: 0 | O16: 0 | P16: 0 | Q16: 0 | R16: 0 | S16: 0 | T16: 0 | U16: 0 | V16: 0 | W16: 0 | X16: 0 | Y16: 0 | Z16: 0 | AA16: 0 | AC16: =L16-INDEX($C16:$L16,1,aux!$BA$1) -> 0 | AD16: 0 | AE16: =+IF(INDEX($C16:$L16,1,aux!$BA$1)>0,(L16/INDEX($C16:$L16,1,aux!$BA$1))^(1/($L$3-INDEX($C$3:$L$3,1,aux!$BA$1)))-1,"n.d.") -> n.d. | AF16: =IF(INDEX($C16:$L16,1,aux!$BA$1)>0,(L16-INDEX($C16:$L16,1,aux!$BA$1))/INDEX($C16:$L16,1,aux!$BA$1),"n.d.") -> n.d. | AH16: =X16-INDEX($O16:$X16,1,aux!$BA$1) -> 0 | AI16: 0 | AJ16: =+IF(INDEX($O16:$X16,1,aux!$BA$1)>0,(X16/INDEX($O16:$X16,1,aux!$BA$1))^(1/($X$3-INDEX($O$3:$X$3,1,aux!$BA$1)))-1,"n.d.") -> n.d. | AK16: =IF(INDEX($O16:$X16,1,aux!$BA$1)>0,(X16-INDEX($O16:$X16,1,aux!$BA$1))/INDEX($O16:$X16,1,aux!$BA$1),"n.d.") -> n.d. | AM16: 0 | CC16: =+IF(ISNA(MATCH('5.1'!A16,AUX_2d_pais!$G$2:$G$40000,0)),0,1) -> 0
A17: 0077 | B17: Arménia | C17: 0 | D17: 0 | E17: 0 | F17: 0 | G17: 0 | H17: 0 | I17: 0 | J17: 0 | K17: 0 | L17: 0 | M17: 0 | N17: 0 | O17: 1.969 | P17: 95.851 | Q17: 92.972 | R17: 315.544 | S17: 651.028 | T17: 1276.149 | U17: 871.566 | V17: 739.37 | W17: 997.978 | X17: 1032.25 | Y17: 607.4677 | Z17: 0.002826146513 | AA17: 607.4677 | AC17: =L17-INDEX($C17:$L17,1,aux!$BA$1) -> 0 | AD17: 0 | AE17: =+IF(INDEX($C17:$L17,1,aux!$BA$1)>0,(L17/INDEX($C17:$L17,1,aux!$BA$1))^(1/($L$3-INDEX($C$3:$L$3,1,aux!$BA$1)))-1,"n.d.") -> n.d. | AF17: =IF(INDEX($C17:$L17,1,aux!$BA$1)>0,(L17-INDEX($C17:$L17,1,aux!$BA$1))/INDEX($C17:$L17,1,aux!$BA$1),"n.d.") -> n.d. | AH17: =X17-INDEX($O17:$X17,1,aux!$BA$1) -> 1030.281 | AI17: 0.00342232324 | AJ17: =+IF(INDEX($O17:$X17,1,aux!$BA$1)>0,(X17/INDEX($O17:$X17,1,aux!$BA$1))^(1/($X$3-INDEX($O$3:$X$3,1,aux!$BA$1)))-1,"n.d.") -> 1.005261518 | AK17: =IF(INDEX($O17:$X17,1,aux!$BA$1)>0,(X17-INDEX($O17:$X17,1,aux!$BA$1))/INDEX($O17:$X17,1,aux!$BA$1),"n.d.") -> 523.2508888 | CC17: =+IF(ISNA(MATCH('5.1'!A17,AUX_2d_pais!$G$2:$G$40000,0)),0,1) -> 1
A18: 0474 | B18: Aruba | C18: 0 | D18: 0 | E18: 0 | F18: 0 | G18: 0 | H18: 0 | I18: 0 | J18: 0 | K18: 0 | L18: 0 | M18: 0 | N18: 0 | O18: 0 | P18: 0 | Q18: 0 | R18: 0 | S18: 0 | T18: 0 | U18: 0 | V18: 0 | W18: 0 | X18: 0 | Y18: 0 | Z18: 0 | AA18: 0 | AC18: =L18-INDEX($C18:$L18,1,aux!$BA$1) -> 0 | AD18: 0 | AE18: =+IF(INDEX($C18:$L18,1,aux!$BA$1)>0,(L18/INDEX($C18:$L18,1,aux!$BA$1))^(1/($L$3-INDEX($C$3:$L$3,1,aux!$BA$1)))-1,"n.d.") -> n.d. | AF18: =IF(INDEX($C18:$L18,1,aux!$BA$1)>0,(L18-INDEX($C18:$L18,1,aux!$BA$1))/INDEX($C18:$L18,1,aux!$BA$1),"n.d.") -> n.d. | AH18: =X18-INDEX($O18:$X18,1,aux!$BA$1) -> 0 | AI18: 0 | AJ18: =+IF(INDEX($O18:$X18,1,aux!$BA$1)>0,(X18/INDEX($O18:$X18,1,aux!$BA$1))^(1/($X$3-INDEX($O$3:$X$3,1,aux!$BA$1)))-1,"n.d.") -> n.d. | AK18: =IF(INDEX($O18:$X18,1,aux!$BA$1)>0,(X18-INDEX($O18:$X18,1,aux!$BA$1))/INDEX($O18:$X18,1,aux!$BA$1),"n.d.") -> n.d. | AM18: 0 | CC18: =+IF(ISNA(MATCH('5.1'!A18,AUX_2d_pais!$G$2:$G$40000,0)),0,1) -> 0
A19: 0800 | B19: Austrália | C19: 0 | D19: 0 | E19: 0 | F19: 0 | G19: 0 | H19: 0 | I19: 0 | J19: 0 | K19: 0 | L19: 0 | M19: 0 | N19: 0 | O19: 0 | P19: 0 | Q19: 0 | R19: 0 | S19: 0 | T19: 0 | U19: 0 | V19: 0 | W19: 0 | X19: 0 | Y19: 0 | Z19: 0 | AA19: 0 | AC19: =L19-INDEX($C19:$L19,1,aux!$BA$1) -> 0 | AD19: 0 | AE19: =+IF(INDEX($C19:$L19,1,aux!$BA$1)>0,(L19/INDEX($C19:$L19,1,aux!$BA$1))^(1/($L$3-INDEX($C$3:$L$3,1,aux!$BA$1)))-1,"n.d.") -> n.d. | AF19: =IF(INDEX($C19:$L19,1,aux!$BA$1)>0,(L19-INDEX($C19:$L19,1,aux!$BA$1))/INDEX($C19:$L19,1,aux!$BA$1),"n.d.") -> n.d. | AH19: =X19-INDEX($O19:$X19,1,aux!$BA$1) -> 0 | AI19: 0 | AJ19: =+IF(INDEX($O19:$X19,1,aux!$BA$1)>0,(X19/INDEX($O19:$X19,1,aux!$BA$1))^(1/($X$3-INDEX($O$3:$X$3,1,aux!$BA$1)))-1,"n.d.") -> n.d. | AK19: =IF(INDEX($O19:$X19,1,aux!$BA$1)>0,(X19-INDEX($O19:$X19,1,aux!$BA$1))/INDEX($O19:$X19,1,aux!$BA$1),"n.d.") -> n.d. | AM19: 0 | CC19: =+IF(ISNA(MATCH('5.1'!A19,AUX_2d_pais!$G$2:$G$40000,0)),0,1) -> 0
A20: 0038 | B20: Áustria | C20: 0 | D20: 0 | E20: 0 | F20: 0 | G20: 0 | H20: 0 | I20: 0 | J20: 0 | K20: 0 | L20: 0 | M20: 0 | N20: 0 | O20: 0 | P20: 0 | Q20: 0 | R20: 0 | S20: 0 | T20: 0 | U20: 0 | V20: 0 | W20: 0 | X20: 0 | Y20: 0 | Z20: 0 | AA20: 0 | AC20: =L20-INDEX($C20:$L20,1,aux!$BA$1) -> 0 | AD20: 0 | AE20: =+IF(INDEX($C20:$L20,1,aux!$BA$1)>0,(L20/INDEX($C20:$L20,1,aux!$BA$1))^(1/($L$3-INDEX($C$3:$L$3,1,aux!$BA$1)))-1,"n.d.") -> n.d. | AF20: =IF(INDEX($C20:$L20,1,aux!$BA$1)>0,(L20-INDEX($C20:$L20,1,aux!$BA$1))/INDEX($C20:$L20,1,aux!$BA$1),"n.d.") -> n.d. | AH20: =X20-INDEX($O20:$X20,1,aux!$BA$1) -> 0 | AI20: 0 | AJ20: =+IF(INDEX($O20:$X20,1,aux!$BA$1)>0,(X20/INDEX($O20:$X20,1,aux!$BA$1))^(1/($X$3-INDEX($O$3:$X$3,1,aux!$BA$1)))-1,"n.d.") -> n.d. | AK20: =IF(INDEX($O20:$X20,1,aux!$BA$1)>0,(X20-INDEX($O20:$X20,1,aux!$BA$1))/INDEX($O20:$X20,1,aux!$BA$1),"n.d.") -> n.d. | AM20: 0 | CC20: =+IF(ISNA(MATCH('5.1'!A20,AUX_2d_pais!$G$2:$G$40000,0)),0,1) -> 0
A21: 0078 | B21: Azerbaijão | C21: 0 | D21: 0 | E21: 0 | F21: 0 | G21: 0 | H21: 0 | I21: 0 | J21: 0 | K21: 0 | L21: 0 | M21: 0 | N21: 0 | O21: 289.441 | P21: 136.916 | Q21: 391.4 | R21: 484.354 | S21: 360.109 | T21: 1116.638 | U21: 606.368 | V21: 255.637 | W21: 215.718 | X21: 717.451 | Y21: 457.4032 | Z21: 0.002127995379 | AA21: 457.4032 | AC21: =L21-INDEX($C21:$L21,1,aux!$BA$1) -> 0 | AD21: 0 | AE21: =+IF(INDEX($C21:$L21,1,aux!$BA$1)>0,(L21/INDEX($C21:$L21,1,aux!$BA$1))^(1/($L$3-INDEX($C$3:$L$3,1,aux!$BA$1)))-1,"n.d.") -> n.d. | AF21: =IF(INDEX($C21:$L21,1,aux!$BA$1)>0,(L21-INDEX($C21:$L21,1,aux!$BA$1))/INDEX($C21:$L21,1,aux!$BA$1),"n.d.") -> n.d. | AH21: =X21-INDEX($O21:$X21,1,aux!$BA$1) -> 428.01 | AI21: 0.001421736953 | AJ21: =+IF(INDEX($O21:$X21,1,aux!$BA$1)>0,(X21/INDEX($O21:$X21,1,aux!$BA$1))^(1/($X$3-INDEX($O$3:$X$3,1,aux!$BA$1)))-1,"n.d.") -> 0.1061233932 | AK21: =IF(INDEX($O21:$X21,1,aux!$BA$1)>0,(X21-INDEX($O21:$X21,1,aux!$BA$1))/INDEX($O21:$X21,1,aux!$BA$1),"n.d.") -> 1.478746964 | CC21: =+IF(ISNA(MATCH('5.1'!A21,AUX_2d_pais!$G$2:$G$40000,0)),0,1) -> 1
A22: 0453 | B22: Bahamas | C22: 0 | D22: 0 | E22: 0 | F22: 0 | G22: 0 | H22: 0 | I22: 0 | J22: 0 | K22: 0 | L22: 0 | M22: 0 | N22: 0 | O22: 0 | P22: 0 | Q22: 0 | R22: 0 | S22: 0 | T22: 0 | U22: 0 | V22: 0 | W22: 0 | X22: 0 | Y22: 0 | Z22: 0 | AA22: 0 | AC22: =L22-INDEX($C22:$L22,1,aux!$BA$1) -> 0 | AD22: 0 | AE22: =+IF(INDEX($C22:$L22,1,aux!$BA$1)>0,(L22/INDEX($C22:$L22,1,aux!$BA$1))^(1/($L$3-INDEX($C$3:$L$3,1,aux!$BA$1)))-1,"n.d.") -> n.d. | AF22: =IF(INDEX($C22:$L22,1,aux!$BA$1)>0,(L22-INDEX($C22:$L22,1,aux!$BA$1))/INDEX($C22:$L22,1,aux!$BA$1),"n.d.") -> n.d. | AH22: =X22-INDEX($O22:$X22,1,aux!$BA$1) -> 0 | AI22: 0 | AJ22: =+IF(INDEX($O22:$X22,1,aux!$BA$1)>0,(X22/INDEX($O22:$X22,1,aux!$BA$1))^(1/($X$3-INDEX($O$3:$X$3,1,aux!$BA$1)))-1,"n.d.") -> n.d. | AK22: =IF(INDEX($O22:$X22,1,aux!$BA$1)>0,(X22-INDEX($O22:$X22,1,aux!$BA$1))/INDEX($O22:$X22,1,aux!$BA$1),"n.d.") -> n.d. | AM22: 0 | CC22: =+IF(ISNA(MATCH('5.1'!A22,AUX_2d_pais!$G$2:$G$40000,0)),0,1) -> 0
A23: 0666 | B23: Bangladesh | C23: 0.222 | D23: 72.661 | E23: 279.587 | F23: 0 | G23: 47.04 | H23: 77.085 | I23: 349.135 | J23: 29.219 | K23: 156.086 | L23: 411.168 | M23: 142.2203 | N23: 0.0009487690459 | O23: 298.454 | P23: 445.555 | Q23: 10.975 | R23: 59.686 | S23: 58.978 | T23: 57.092 | U23: 25.998 | V23: 21.104 | W23: 131.034 | X23: 277.224 | Y23: 138.61 | Z23: 0.0006448609007 | AA23: -3.6103 | AC23: =L23-INDEX($C23:$L23,1,aux!$BA$1) -> 410.946 | AD23: 0.004765495726 | AE23: =+IF(INDEX($C23:$L23,1,aux!$BA$1)>0,(L23/INDEX($C23:$L23,1,aux!$BA$1))^(1/($L$3-INDEX($C$3:$L$3,1,aux!$BA$1)))-1,"n.d.") -> 1.307140468 | AF23: =IF(INDEX($C23:$L23,1,aux!$BA$1)>0,(L23-INDEX($C23:$L23,1,aux!$BA$1))/INDEX($C23:$L23,1,aux!$BA$1),"n.d.") -> 1851.108108 | AH23: =X23-INDEX($O23:$X23,1,aux!$BA$1) -> -21.23 | AI23: -7.052049138e-05 | AJ23: =+IF(INDEX($O23:$X23,1,aux!$BA$1)>0,(X23/INDEX($O23:$X23,1,aux!$BA$1))^(1/($X$3-INDEX($O$3:$X$3,1,aux!$BA$1)))-1,"n.d.") -> -0.008165366743 | AK23: =IF(INDEX($O23:$X23,1,aux!$BA$1)>0,(X23-INDEX($O23:$X23,1,aux!$BA$1))/INDEX($O23:$X23,1,aux!$BA$1),"n.d.") -> -0.07113323996 | CC23: =+IF(ISNA(MATCH('5.1'!A23,AUX_2d_pais!$G$2:$G$40000,0)),0,1) -> 1
A24: 0469 | B24: Barbados | C24: 0 | D24: 0 | E24: 0 | F24: 0 | G24: 0 | H24: 0 | I24: 0 | J24: 0 | K24: 0 | L24: 0 | M24: 0 | N24: 0 | O24: 0 | P24: 0 | Q24: 0 | R24: 0 | S24: 0 | T24: 0 | U24: 0 | V24: 0 | W24: 0 | X24: 0 | Y24: 0 | Z24: 0 | AA24: 0 | AC24: =L24-INDEX($C24:$L24,1,aux!$BA$1) -> 0 | AD24: 0 | AE24: =+IF(INDEX($C24:$L24,1,aux!$BA$1)>0,(L24/INDEX($C24:$L24,1,aux!$BA$1))^(1/($L$3-INDEX($C$3:$L$3,1,aux!$BA$1)))-1,"n.d.") -> n.d. | AF24: =IF(INDEX($C24:$L24,1,aux!$BA$1)>0,(L24-INDEX($C24:$L24,1,aux!$BA$1))/INDEX($C24:$L24,1,aux!$BA$1),"n.d.") -> n.d. | AH24: =X24-INDEX($O24:$X24,1,aux!$BA$1) -> 0 | AI24: 0 | AJ24: =+IF(INDEX($O24:$X24,1,aux!$BA$1)>0,(X24/INDEX($O24:$X24,1,aux!$BA$1))^(1/($X$3-INDEX($O$3:$X$3,1,aux!$BA$1)))-1,"n.d.") -> n.d. | AK24: =IF(INDEX($O24:$X24,1,aux!$BA$1)>0,(X24-INDEX($O24:$X24,1,aux!$BA$1))/INDEX($O24:$X24,1,aux!$BA$1),"n.d.") -> n.d. | AM24: 0 | CC24: =+IF(ISNA(MATCH('5.1'!A24,AUX_2d_pais!$G$2:$G$40000,0)),0,1) -> 0
A25: 0640 | B25: Barém | C25: 0 | D25: 0 | E25: 0 | F25: 0 | G25: 0 | H25: 0 | I25: 0 | J25: 0 | K25: 0 | L25: 0.342 | M25: 0.0342 | N25: 2.281523901e-07 | O25: 28.591 | P25: 44.87 | Q25: 261.475 | R25: 105.63 | S25: 117.29 | T25: 192.425 | U25: 285.224 | V25: 474.664 | W25: 624.64 | X25: 401.385 | Y25: 253.6194 | Z25: 0.001179923777 | AA25: 253.5852 | AC25: =L25-INDEX($C25:$L25,1,aux!$BA$1) -> 0.342 | AD25: 3.965970075e-06 | AE25: =+IF(INDEX($C25:$L25,1,aux!$BA$1)>0,(L25/INDEX($C25:$L25,1,aux!$BA$1))^(1/($L$3-INDEX($C$3:$L$3,1,aux!$BA$1)))-1,"n.d.") -> n.d. | AF25: =IF(INDEX($C25:$L25,1,aux!$BA$1)>0,(L25-INDEX($C25:$L25,1,aux!$BA$1))/INDEX($C25:$L25,1,aux!$BA$1),"n.d.") -> n.d. | AH25: =X25-INDEX($O25:$X25,1,aux!$BA$1) -> 372.794 | AI25: 0.001238323884 | AJ25: =+IF(INDEX($O25:$X25,1,aux!$BA$1)>0,(X25/INDEX($O25:$X25,1,aux!$BA$1))^(1/($X$3-INDEX($O$3:$X$3,1,aux!$BA$1)))-1,"n.d.") -> 0.3411622179 | AK25: =IF(INDEX($O25:$X25,1,aux!$BA$1)>0,(X25-INDEX($O25:$X25,1,aux!$BA$1))/INDEX($O25:$X25,1,aux!$BA$1),"n.d.") -> 13.03885838 | CC25: =+IF(ISNA(MATCH('5.1'!A25,AUX_2d_pais!$G$2:$G$40000,0)),0,1) -> 1
A26: 0073 | B26: Belarus | C26: 0 | D26: 0 | E26: 0 | F26: 0 | G26: 0 | H26: 0 | I26: 0 | J26: 0 | K26: 0 | L26: 0 | M26: 0 | N26: 0 | O26: 0 | P26: 0 | Q26: 0 | R26: 0 | S26: 0 | T26: 0 | U26: 0 | V26: 0 | W26: 0 | X26: 0 | Y26: 0 | Z26: 0 | AA26: 0 | AC26: =L26-INDEX($C26:$L26,1,aux!$BA$1) -> 0 | AD26: 0 | AE26: =+IF(INDEX($C26:$L26,1,aux!$BA$1)>0,(L26/INDEX($C26:$L26,1,aux!$BA$1))^(1/($L$3-INDEX($C$3:$L$3,1,aux!$BA$1)))-1,"n.d.") -> n.d. | AF26: =IF(INDEX($C26:$L26,1,aux!$BA$1)>0,(L26-INDEX($C26:$L26,1,aux!$BA$1))/INDEX($C26:$L26,1,aux!$BA$1),"n.d.") -> n.d. | AH26: =X26-INDEX($O26:$X26,1,aux!$BA$1) -> 0 | AI26: 0 | AJ26: =+IF(INDEX($O26:$X26,1,aux!$BA$1)>0,(X26/INDEX($O26:$X26,1,aux!$BA$1))^(1/($X$3-INDEX($O$3:$X$3,1,aux!$BA$1)))-1,"n.d.") -> n.d. | AK26: =IF(INDEX($O26:$X26,1,aux!$BA$1)>0,(X26-INDEX($O26:$X26,1,aux!$BA$1))/INDEX($O26:$X26,1,aux!$BA$1),"n.d.") -> n.d. | AM26: 0 | CC26: =+IF(ISNA(MATCH('5.1'!A26,AUX_2d_pais!$G$2:$G$40000,0)),0,1) -> 0
A27: 0017 | B27: Bélgica | C27: 0 | D27: 0 | E27: 0 | F27: 0 | G27: 0 | H27: 0 | I27: 0 | J27: 0 | K27: 0 | L27: 0 | M27: 0 | N27: 0 | O27: 0 | P27: 0 | Q27: 0 | R27: 0 | S27: 0 | T27: 0 | U27: 0 | V27: 0 | W27: 0 | X27: 0 | Y27: 0 | Z27: 0 | AA27: 0 | AC27: =L27-INDEX($C27:$L27,1,aux!$BA$1) -> 0 | AD27: 0 | AE27: =+IF(INDEX($C27:$L27,1,aux!$BA$1)>0,(L27/INDEX($C27:$L27,1,aux!$BA$1))^(1/($L$3-INDEX($C$3:$L$3,1,aux!$BA$1)))-1,"n.d.") -> n.d. | AF27: =IF(INDEX($C27:$L27,1,aux!$BA$1)>0,(L27-INDEX($C27:$L27,1,aux!$BA$1))/INDEX($C27:$L27,1,aux!$BA$1),"n.d.") -> n.d. | AH27: =X27-INDEX($O27:$X27,1,aux!$BA$1) -> 0 | AI27: 0 | AJ27: =+IF(INDEX($O27:$X27,1,aux!$BA$1)>0,(X27/INDEX($O27:$X27,1,aux!$BA$1))^(1/($X$3-INDEX($O$3:$X$3,1,aux!$BA$1)))-1,"n.d.") -> n.d. | AK27: =IF(INDEX($O27:$X27,1,aux!$BA$1)>0,(X27-INDEX($O27:$X27,1,aux!$BA$1))/INDEX($O27:$X27,1,aux!$BA$1),"n.d.") -> n.d. | AM27: 0 | CC27: =+IF(ISNA(MATCH('5.1'!A27,AUX_2d_pais!$G$2:$G$40000,0)),0,1) -> 0
A28: 0421 | B28: Belize | C28: 0 | D28: 0 | E28: 0 | F28: 0 | G28: 0 | H28: 0 | I28: 0 | J28: 0 | K28: 0 | L28: 0 | M28: 0 | N28: 0 | O28: 0 | P28: 0 | Q28: 0 | R28: 0 | S28: 0 | T28: 0 | U28: 0 | V28: 0 | W28: 0 | X28: 0 | Y28: 0 | Z28: 0 | AA28: 0 | AC28: =L28-INDEX($C28:$L28,1,aux!$BA$1) -> 0 | AD28: 0 | AE28: =+IF(INDEX($C28:$L28,1,aux!$BA$1)>0,(L28/INDEX($C28:$L28,1,aux!$BA$1))^(1/($L$3-INDEX($C$3:$L$3,1,aux!$BA$1)))-1,"n.d.") -> n.d. | AF28: =IF(INDEX($C28:$L28,1,aux!$BA$1)>0,(L28-INDEX($C28:$L28,1,aux!$BA$1))/INDEX($C28:$L28,1,aux!$BA$1),"n.d.") -> n.d. | AH28: =X28-INDEX($O28:$X28,1,aux!$BA$1) -> 0 | AI28: 0 | AJ28: =+IF(INDEX($O28:$X28,1,aux!$BA$1)>0,(X28/INDEX($O28:$X28,1,aux!$BA$1))^(1/($X$3-INDEX($O$3:$X$3,1,aux!$BA$1)))-1,"n.d.") -> n.d. | AK28: =IF(INDEX($O28:$X28,1,aux!$BA$1)>0,(X28-INDEX($O28:$X28,1,aux!$BA$1))/INDEX($O28:$X28,1,aux!$BA$1),"n.d.") -> n.d. | AM28: 0 | CC28: =+IF(ISNA(MATCH('5.1'!A28,AUX_2d_pais!$G$2:$G$40000,0)),0,1) -> 0
A29: 0284 | B29: Benim | C29: 0 | D29: 0 | E29: 0 | F29: 0 | G29: 0 | H29: 0 | I29: 0 | J29: 0 | K29: 0 | L29: 0 | M29: 0 | N29: 0 | O29: 0 | P29: 0 | Q29: 0 | R29: 0 | S29: 0 | T29: 0 | U29: 0 | V29: 0 | W29: 0 | X29: 0 | Y29: 0 | Z29: 0 | AA29: 0 | AC29: =L29-INDEX($C29:$L29,1,aux!$BA$1) -> 0 | AD29: 0 | AE29: =+IF(INDEX($C29:$L29,1,aux!$BA$1)>0,(L29/INDEX($C29:$L29,1,aux!$BA$1))^(1/($L$3-INDEX($C$3:$L$3,1,aux!$BA$1)))-1,"n.d.") -> n.d. | AF29: =IF(INDEX($C29:$L29,1,aux!$BA$1)>0,(L29-INDEX($C29:$L29,1,aux!$BA$1))/INDEX($C29:$L29,1,aux!$BA$1),"n.d.") -> n.d. | AH29: =X29-INDEX($O29:$X29,1,aux!$BA$1) -> 0 | AI29: 0 | AJ29: =+IF(INDEX($O29:$X29,1,aux!$BA$1)>0,(X29/INDEX($O29:$X29,1,aux!$BA$1))^(1/($X$3-INDEX($O$3:$X$3,1,aux!$BA$1)))-1,"n.d.") -> n.d. | AK29: =IF(INDEX($O29:$X29,1,aux!$BA$1)>0,(X29-INDEX($O29:$X29,1,aux!$BA$1))/INDEX($O29:$X29,1,aux!$BA$1),"n.d.") -> n.d. | AM29: 0 | CC29: =+IF(ISNA(MATCH('5.1'!A29,AUX_2d_pais!$G$2:$G$40000,0)),0,1) -> 0
A30: 0413 | B30: Bermudas | C30: 0 | D30: 0 | E30: 0 | F30: 0 | G30: 0 | H30: 0 | I30: 0 | J30: 0 | K30: 0 | L30: 0 | M30: 0 | N30: 0 | O30: 0 | P30: 0 | Q30: 0 | R30: 0 | S30: 0 | T30: 0 | U30: 0 | V30: 0 | W30: 0 | X30: 0 | Y30: 0 | Z30: 0 | AA30: 0 | AC30: =L30-INDEX($C30:$L30,1,aux!$BA$1) -> 0 | AD30: 0 | AE30: =+IF(INDEX($C30:$L30,1,aux!$BA$1)>0,(L30/INDEX($C30:$L30,1,aux!$BA$1))^(1/($L$3-INDEX($C$3:$L$3,1,aux!$BA$1)))-1,"n.d.") -> n.d. | AF30: =IF(INDEX($C30:$L30,1,aux!$BA$1)>0,(L30-INDEX($C30:$L30,1,aux!$BA$1))/INDEX($C30:$L30,1,aux!$BA$1),"n.d.") -> n.d. | AH30: =X30-INDEX($O30:$X30,1,aux!$BA$1) -> 0 | AI30: 0 | AJ30: =+IF(INDEX($O30:$X30,1,aux!$BA$1)>0,(X30/INDEX($O30:$X30,1,aux!$BA$1))^(1/($X$3-INDEX($O$3:$X$3,1,aux!$BA$1)))-1,"n.d.") -> n.d. | AK30: =IF(INDEX($O30:$X30,1,aux!$BA$1)>0,(X30-INDEX($O30:$X30,1,aux!$BA$1))/INDEX($O30:$X30,1,aux!$BA$1),"n.d.") -> n.d. | AM30: 0 | CC30: =+IF(ISNA(MATCH('5.1'!A30,AUX_2d_pais!$G$2:$G$40000,0)),0,1) -> 0
A31: 0516 | B31: Bolívia | C31: 0 | D31: 0 | E31: 0 | F31: 0 | G31: 0 | H31: 0 | I31: 0 | J31: 0 | K31: 0 | L31: 0 | M31: 0 | N31: 0 | O31: 0 | P31: 0 | Q31: 0 | R31: 0 | S31: 0 | T31: 0 | U31: 0 | V31: 0 | W31: 0 | X31: 0 | Y31: 0 | Z31: 0 | AA31: 0 | AC31: =L31-INDEX($C31:$L31,1,aux!$BA$1) -> 0 | AD31: 0 | AE31: =+IF(INDEX($C31:$L31,1,aux!$BA$1)>0,(L31/INDEX($C31:$L31,1,aux!$BA$1))^(1/($L$3-INDEX($C$3:$L$3,1,aux!$BA$1)))-1,"n.d.") -> n.d. | AF31: =IF(INDEX($C31:$L31,1,aux!$BA$1)>0,(L31-INDEX($C31:$L31,1,aux!$BA$1))/INDEX($C31:$L31,1,aux!$BA$1),"n.d.") -> n.d. | AH31: =X31-INDEX($O31:$X31,1,aux!$BA$1) -> 0 | AI31: 0 | AJ31: =+IF(INDEX($O31:$X31,1,aux!$BA$1)>0,(X31/INDEX($O31:$X31,1,aux!$BA$1))^(1/($X$3-INDEX($O$3:$X$3,1,aux!$BA$1)))-1,"n.d.") -> n.d. | AK31: =IF(INDEX($O31:$X31,1,aux!$BA$1)>0,(X31-INDEX($O31:$X31,1,aux!$BA$1))/INDEX($O31:$X31,1,aux!$BA$1),"n.d.") -> n.d. | AM31: 0 | CC31: =+IF(ISNA(MATCH('5.1'!A31,AUX_2d_pais!$G$2:$G$40000,0)),0,1) -> 0
A32: 0477 | B32: Bonaire, Santo Eustáquio e Saba | C32: 0 | D32: 0 | E32: 0 | F32: 0 | G32: 0 | H32: 0 | I32: 0 | J32: 0 | K32: 0 | L32: 0 | M32: 0 | N32: 0 | O32: 0 | P32: 0 | Q32: 0 | R32: 0 | S32: 0 | T32: 0 | U32: 0 | V32: 0 | W32: 0 | X32: 0 | Y32: 0 | Z32: 0 | AA32: 0 | AC32: =L32-INDEX($C32:$L32,1,aux!$BA$1) -> 0 | AD32: 0 | AE32: =+IF(INDEX($C32:$L32,1,aux!$BA$1)>0,(L32/INDEX($C32:$L32,1,aux!$BA$1))^(1/($L$3-INDEX($C$3:$L$3,1,aux!$BA$1)))-1,"n.d.") -> n.d. | AF32: =IF(INDEX($C32:$L32,1,aux!$BA$1)>0,(L32-INDEX($C32:$L32,1,aux!$BA$1))/INDEX($C32:$L32,1,aux!$BA$1),"n.d.") -> n.d. | AH32: =X32-INDEX($O32:$X32,1,aux!$BA$1) -> 0 | AI32: 0 | AJ32: =+IF(INDEX($O32:$X32,1,aux!$BA$1)>0,(X32/INDEX($O32:$X32,1,aux!$BA$1))^(1/($X$3-INDEX($O$3:$X$3,1,aux!$BA$1)))-1,"n.d.") -> n.d. | AK32: =IF(INDEX($O32:$X32,1,aux!$BA$1)>0,(X32-INDEX($O32:$X32,1,aux!$BA$1))/INDEX($O32:$X32,1,aux!$BA$1),"n.d.") -> n.d. | AM32: 0 | CC32: =+IF(ISNA(MATCH('5.1'!A32,AUX_2d_pais!$G$2:$G$40000,0)),0,1) -> 0
A33: 0093 | B33: Bósnia-Herzegovina | C33: 0 | D33: 0 | E33: 0 | F33: 0 | G33: 0 | H33: 0 | I33: 0 | J33: 0 | K33: 0 | L33: 0 | M33: 0 | N33: 0 | O33: 0 | P33: 0 | Q33: 0 | R33: 0 | S33: 0 | T33: 0 | U33: 0 | V33: 0 | W33: 0 | X33: 0 | Y33: 0 | Z33: 0 | AA33: 0 | AC33: =L33-INDEX($C33:$L33,1,aux!$BA$1) -> 0 | AD33: 0 | AE33: =+IF(INDEX($C33:$L33,1,aux!$BA$1)>0,(L33/INDEX($C33:$L33,1,aux!$BA$1))^(1/($L$3-INDEX($C$3:$L$3,1,aux!$BA$1)))-1,"n.d.") -> n.d. | AF33: =IF(INDEX($C33:$L33,1,aux!$BA$1)>0,(L33-INDEX($C33:$L33,1,aux!$BA$1))/INDEX($C33:$L33,1,aux!$BA$1),"n.d.") -> n.d. | AH33: =X33-INDEX($O33:$X33,1,aux!$BA$1) -> 0 | AI33: 0 | AJ33: =+IF(INDEX($O33:$X33,1,aux!$BA$1)>0,(X33/INDEX($O33:$X33,1,aux!$BA$1))^(1/($X$3-INDEX($O$3:$X$3,1,aux!$BA$1)))-1,"n.d.") -> n.d. | AK33: =IF(INDEX($O33:$X33,1,aux!$BA$1)>0,(X33-INDEX($O33:$X33,1,aux!$BA$1))/INDEX($O33:$X33,1,aux!$BA$1),"n.d.") -> n.d. | AM33: 0 | CC33: =+IF(ISNA(MATCH('5.1'!A33,AUX_2d_pais!$G$2:$G$40000,0)),0,1) -> 0
A34: 0391 | B34: Botswana | C34: 0 | D34: 0 | E34: 0 | F34: 0 | G34: 0 | H34: 0 | I34: 0 | J34: 0 | K34: 0 | L34: 0 | M34: 0 | N34: 0 | O34: 0 | P34: 0 | Q34: 0 | R34: 0 | S34: 0 | T34: 0 | U34: 0 | V34: 0 | W34: 0 | X34: 0 | Y34: 0 | Z34: 0 | AA34: 0 | AC34: =L34-INDEX($C34:$L34,1,aux!$BA$1) -> 0 | AD34: 0 | AE34: =+IF(INDEX($C34:$L34,1,aux!$BA$1)>0,(L34/INDEX($C34:$L34,1,aux!$BA$1))^(1/($L$3-INDEX($C$3:$L$3,1,aux!$BA$1)))-1,"n.d.") -> n.d. | AF34: =IF(INDEX($C34:$L34,1,aux!$BA$1)>0,(L34-INDEX($C34:$L34,1,aux!$BA$1))/INDEX($C34:$L34,1,aux!$BA$1),"n.d.") -> n.d. | AH34: =X34-INDEX($O34:$X34,1,aux!$BA$1) -> 0 | AI34: 0 | AJ34: =+IF(INDEX($O34:$X34,1,aux!$BA$1)>0,(X34/INDEX($O34:$X34,1,aux!$BA$1))^(1/($X$3-INDEX($O$3:$X$3,1,aux!$BA$1)))-1,"n.d.") -> n.d. | AK34: =IF(INDEX($O34:$X34,1,aux!$BA$1)>0,(X34-INDEX($O34:$X34,1,aux!$BA$1))/INDEX($O34:$X34,1,aux!$BA$1),"n.d.") -> n.d. | AM34: 0 | CC34: =+IF(ISNA(MATCH('5.1'!A34,AUX_2d_pais!$G$2:$G$40000,0)),0,1) -> 0
